Workbook

Sheet Watchlist
A1: =IF(ROW(A1)>COUNTA(X),"",HYPERLINK("#'"&INDEX(X,ROW(A1))&"'!A1",MID(INDEX(X,ROW(A1)),FIND("]",INDEX(X,ROW(A1)))+1,31))) -> Watchlist | B1: Name | C1: Kurs | D1: KGV | E1: Yield | F1: Umsatz-5yr | G1: Umsatz-10yr | H1: EPS-5yr | I1: EPS-10yr | J1: Div.-5yr | K1: Div.-10yr | L1: Growth-5yr | M1: Growth-10yr | N1: Qualität | O1: KGV-10yr | P1: KGV-Vgl. | Q1: Div.-10yr | R1: Div.-Vgl | S1: ER | T1: RoE | U1: RoA | V1: CV | W1: NCAV | X1: DtE | Y1: EBIT-Margin | Z1: GD200 | AA1: Score | AB1: Percentage
A2: =IF(ROW(A2)>COUNTA(X),"",HYPERLINK("#'"&INDEX(X,ROW(A2))&"'!A1",MID(INDEX(X,ROW(A2)),FIND("]",INDEX(X,ROW(A2)))+1,31))) -> ALZ | B2: =INDIRECT("'"&$A2&"'!B4") -> Allianz | C2: =INDIRECT("'"&$A2&"'!H4") -> 160.171 | D2: =INDIRECT("'"&$A2&"'!H5") -> 11.54 | E2: =INDIRECT("'"&$A2&"'!H6") -> 0.0417 | F2: =INDIRECT("'"&$A2&"'!C27") -> 0.02653304675 | G2: =INDIRECT("'"&$A2&"'!C28") -> 0.008667519058 | H2: =INDIRECT("'"&$A2&"'!C30") -> 0.1802217801 | I2: =INDIRECT("'"&$A2&"'!C31") -> -0.171169577 | J2: =INDIRECT("'"&$A2&"'!C33") -> 0.1135583167 | K2: =INDIRECT("'"&$A2&"'!C34") -> 0.1865809355 | L2: =INDIRECT("'"&$A2&"'!C35") -> 0.008026292523 | M2: =INDIRECT("'"&$A2&"'!C36") -> 0.1067710479 | N2: =INDIRECT("'"&$A2&"'!I30") -> 0.6666666667 | O2: =INDIRECT("'"&$A2&"'!I34") -> 9.766666667 | P2: =INDIRECT("'"&$A2&"'!I35") -> Nein | Q2: =INDIRECT("'"&$A2&"'!I39") -> 0.04161 | R2: =INDIRECT("'"&$A2&"'!I40") -> Ja | S2: =INDIRECT("'"&$A2&"'!O34") -> 0.0753884091 | T2: =INDIRECT("'"&$A2&"'!O35") -> 0.1086967258 | U2: =INDIRECT("'"&$A2&"'!O36") -> 0.008194473229 | V2: =INDIRECT("'"&$A2&"'!O37") -> NEIN | W2: =INDIRECT("'"&$A2&"'!O38") -> NEIN | X2: =INDIRECT("'"&$A2&"'!O39") -> 12.21599421 | Y2: =INDIRECT("'"&$A2&"'!O40") -> 0.08576884675 | Z2: =INDIRECT("'"&$A2&"'!T27") -> 0 | AA2: =SUM(IF($D2<Score!$C$2,1,0),IF($E2>Score!$C$3,1,0),IF($F2>Score!$C$4,1,0),IF($G2>Score!$C$5,1,0),IF($H2>Score!$C$6,1,0),IF($I2>Score!$C$7,1,0),IF($J2>Score!$C$8,1,0),IF($K2>Score!$C$9,1,0),IF($L2>Score!$C$10,1,0),IF($M2>Score!$C$11,1,0),IF($N2>Score!$C$12,1,0),IF($O2<Score!$C$13,1,0),IF($P2=Score!$C$14,1,0),IF($Q2>Score!$C$15,1,0),IF($R2=Score!$C$16,1,0),IF($S2>Score!$C$17,1,0),IF($T2>Score!$C$18,1,0),IF($U2>Score!$C$19,1,0),IF($V2=Score!$C$20,1,0),IF($W2=Score!$C$21,1,0),IF($X2<Score!$C$22,1,0),IF($Y2>Score!$C$23,1,0),IF($Z2<Score!C24,1,0)) -> 9 | AB2: =AA2/COUNTA(D2:Y2) -> 0.4090909091
A3: =IF(ROW(A3)>COUNTA(X),"",HYPERLINK("#'"&INDEX(X,ROW(A3))&"'!A1",MID(INDEX(X,ROW(A3)),FIND("]",INDEX(X,ROW(A3)))+1,31))) -> APPL | B3: Apple | C3: 110.6 | D3: 16.06 | E3: 0.0158 | F3: 0.4103994482 | G3: 0.3841822366 | H3: 0.5724998486 | I3: 0.8296542515 | N3: 0.7 | O3: 22.871 | P3: Ja, | Q3: 0.0046 | R3: Ja | S3: 0.481139929 | T3: 0.3542004716 | U3: 0.1704199897 | V3: JA | W3: NEIN | X3: 1.078397447 | Y3: =INDIRECT("'"&$A3&"'!O40") -> 0.2872233923 | AA3: =SUM(IF($D3<Score!$C$2,1,0),IF($E3>Score!$C$3,1,0),IF($F3>Score!$C$4,1,0),IF($G3>Score!$C$5,1,0),IF($H3>Score!$C$6,1,0),IF($I3>Score!$C$7,1,0),IF($J3>Score!$C$8,1,0),IF($K3>Score!$C$9,1,0),IF($L3>Score!$C$10,1,0),IF($M3>Score!$C$11,1,0),IF($N3>Score!$C$12,1,0),IF($O3<Score!$C$13,1,0),IF($P3=Score!$C$14,1,0),IF($Q3>Score!$C$15,1,0),IF($R3=Score!$C$16,1,0),IF($S3>Score!$C$17,1,0),IF($T3>Score!$C$18,1,0),IF($U3>Score!$C$19,1,0),IF($V3=Score!$C$20,1,0),IF($W3=Score!$C$21,1,0),IF($X3<Score!$C$22,1,0),IF($Y3>Score!$C$23,1,0),IF($Z3<Score!C25,1,0)) -> 
A4: =IF(ROW(A4)>COUNTA(X),"",HYPERLINK("#'"&INDEX(X,ROW(A4))&"'!A1",MID(INDEX(X,ROW(A4)),FIND("]",INDEX(X,ROW(A4)))+1,31))) -> BASF | B4: BASF | C4: 0 | D4: 0 | E4: 0 | N4: 0 | V4: NEIN | W4: NEIN | AA4: =SUM(IF($D4<Score!$C$2,1,0),IF($E4>Score!$C$3,1,0),IF($F4>Score!$C$4,1,0),IF($G4>Score!$C$5,1,0),IF($H4>Score!$C$6,1,0),IF($I4>Score!$C$7,1,0),IF($J4>Score!$C$8,1,0),IF($K4>Score!$C$9,1,0),IF($L4>Score!$C$10,1,0),IF($M4>Score!$C$11,1,0),IF($N4>Score!$C$12,1,0),IF($O4<Score!$C$13,1,0),IF($P4=Score!$C$14,1,0),IF($Q4>Score!$C$15,1,0),IF($R4=Score!$C$16,1,0),IF($S4>Score!$C$17,1,0),IF($T4>Score!$C$18,1,0),IF($U4>Score!$C$19,1,0),IF($V4=Score!$C$20,1,0),IF($W4=Score!$C$21,1,0),IF($X4<Score!$C$22,1,0),IF($Y4>Score!$C$23,1,0),IF($Z4<Score!C26,1,0)) -> 
A5: =IF(ROW(A5)>COUNTA(X),"",HYPERLINK("#'"&INDEX(X,ROW(A5))&"'!A1",MID(INDEX(X,ROW(A5)),FIND("]",INDEX(X,ROW(A5)))+1,31))) -> BAT | B5: British American Tobacco | C5: 49.961 | D5: 15.51 | E5: 0.0442 | F5: -0.002293333806 | H5: 0.05045739196 | J5: 0.08222651734 | M5: 0.04346352516 | N5: 0.6333333333 | O5: 18.075 | P5: Ja, | Q5: 0.0434125 | R5: Ja | S5: 0.2221882524 | T5: 0.5835913313 | U5: 0.129667138 | V5: JA | W5: NEIN | X5: 3.500687994 | Y5: 0.1069496071 | AA5: =SUM(IF($D5<Score!$C$2,1,0),IF($E5>Score!$C$3,1,0),IF($F5>Score!$C$4,1,0),IF($G5>Score!$C$5,1,0),IF($H5>Score!$C$6,1,0),IF($I5>Score!$C$7,1,0),IF($J5>Score!$C$8,1,0),IF($K5>Score!$C$9,1,0),IF($L5>Score!$C$10,1,0),IF($M5>Score!$C$11,1,0),IF($N5>Score!$C$12,1,0),IF($O5<Score!$C$13,1,0),IF($P5=Score!$C$14,1,0),IF($Q5>Score!$C$15,1,0),IF($R5=Score!$C$16,1,0),IF($S5>Score!$C$17,1,0),IF($T5>Score!$C$18,1,0),IF($U5>Score!$C$19,1,0),IF($V5=Score!$C$20,1,0),IF($W5=Score!$C$21,1,0),IF($X5<Score!$C$22,1,0),IF($Y5>Score!$C$23,1,0),IF($Z5<Score!C27,1,0)) -> 
A6: =IF(ROW(A6)>COUNTA(X),"",HYPERLINK("#'"&INDEX(X,ROW(A6))&"'!A1",MID(INDEX(X,ROW(A6)),FIND("]",INDEX(X,ROW(A6)))+1,31))) -> BAY | B6: Bayer | C6: 132.986 | D6: 19.49 | E6: 0.0186 | F6: 0.1697690493 | G6: 0.06044234859 | H6: 0.238909496 | I6: 0.362333371 | J6: 0.09992709045 | K6: 0.1666576796 | L6: 0.1964777997 | M6: 0.1695352119 | N6: 0.7333333333 | O6: 22.697 | P6: Ja, | Q6: 0.02592 | R6: Nein | S6: 0.2878662756 | T6: 0.1702937976 | U6: 0.04902184127 | V6: JA | W6: NEIN | X6: 2.473835196 | Y6: 0.1303534648 | AA6: =SUM(IF($D6<Score!$C$2,1,0),IF($E6>Score!$C$3,1,0),IF($F6>Score!$C$4,1,0),IF($G6>Score!$C$5,1,0),IF($H6>Score!$C$6,1,0),IF($I6>Score!$C$7,1,0),IF($J6>Score!$C$8,1,0),IF($K6>Score!$C$9,1,0),IF($L6>Score!$C$10,1,0),IF($M6>Score!$C$11,1,0),IF($N6>Score!$C$12,1,0),IF($O6<Score!$C$13,1,0),IF($P6=Score!$C$14,1,0),IF($Q6>Score!$C$15,1,0),IF($R6=Score!$C$16,1,0),IF($S6>Score!$C$17,1,0),IF($T6>Score!$C$18,1,0),IF($U6>Score!$C$19,1,0),IF($V6=Score!$C$20,1,0),IF($W6=Score!$C$21,1,0),IF($X6<Score!$C$22,1,0),IF($Y6>Score!$C$23,1,0),IF($Z6<Score!C28,1,0)) -> 12 | AB6: 0.5454545455
A7: =IF(ROW(A7)>COUNTA(X),"",HYPERLINK("#'"&INDEX(X,ROW(A7))&"'!A1",MID(INDEX(X,ROW(A7)),FIND("]",INDEX(X,ROW(A7)))+1,31))) -> BBL | B7: BHP Billiton | C7: 0 | D7: 0 | E7: 0 | N7: 0 | V7: NEIN | W7: NEIN | AA7: =SUM(IF($D7<Score!$C$2,1,0),IF($E7>Score!$C$3,1,0),IF($F7>Score!$C$4,1,0),IF($G7>Score!$C$5,1,0),IF($H7>Score!$C$6,1,0),IF($I7>Score!$C$7,1,0),IF($J7>Score!$C$8,1,0),IF($K7>Score!$C$9,1,0),IF($L7>Score!$C$10,1,0),IF($M7>Score!$C$11,1,0),IF($N7>Score!$C$12,1,0),IF($O7<Score!$C$13,1,0),IF($P7=Score!$C$14,1,0),IF($Q7>Score!$C$15,1,0),IF($R7=Score!$C$16,1,0),IF($S7>Score!$C$17,1,0),IF($T7>Score!$C$18,1,0),IF($U7>Score!$C$19,1,0),IF($V7=Score!$C$20,1,0),IF($W7=Score!$C$21,1,0),IF($X7<Score!$C$22,1,0),IF($Y7>Score!$C$23,1,0),IF($Z7<Score!C29,1,0)) -> 
A8: =IF(ROW(A8)>COUNTA(X),"",HYPERLINK("#'"&INDEX(X,ROW(A8))&"'!A1",MID(INDEX(X,ROW(A8)),FIND("]",INDEX(X,ROW(A8)))+1,31))) -> BLK | B8: Blackrock | C8: 368.64 | D8: 18.7 | E8: 0.0237 | F8: 0.2187369303 | G8: 0.3779949604 | H8: 0.2756287787 | I8: 0.2947783501 | J8: 0.2033539794 | K8: 0.2376187096 | L8: 0.3034640067 | M8: 0.2325732294 | N8: 0.8666666667 | S8: 0.6661635833 | T8: 0.1192720895 | U8: 0.07945472249 | V8: NEIN | W8: NEIN | X8: 0.1804428853 | Y8: 0.4037541738 | AA8: =SUM(IF($D8<Score!$C$2,1,0),IF($E8>Score!$C$3,1,0),IF($F8>Score!$C$4,1,0),IF($G8>Score!$C$5,1,0),IF($H8>Score!$C$6,1,0),IF($I8>Score!$C$7,1,0),IF($J8>Score!$C$8,1,0),IF($K8>Score!$C$9,1,0),IF($L8>Score!$C$10,1,0),IF($M8>Score!$C$11,1,0),IF($N8>Score!$C$12,1,0),IF($O8<Score!$C$13,1,0),IF($P8=Score!$C$14,1,0),IF($Q8>Score!$C$15,1,0),IF($R8=Score!$C$16,1,0),IF($S8>Score!$C$17,1,0),IF($T8>Score!$C$18,1,0),IF($U8>Score!$C$19,1,0),IF($V8=Score!$C$20,1,0),IF($W8=Score!$C$21,1,0),IF($X8<Score!$C$22,1,0),IF($Y8>Score!$C$23,1,0),IF($Z8<Score!C30,1,0)) -> 
A9: =IF(ROW(A9)>COUNTA(X),"",HYPERLINK("#'"&INDEX(X,ROW(A9))&"'!A1",MID(INDEX(X,ROW(A9)),FIND("]",INDEX(X,ROW(A9)))+1,31))) -> BP | B9: British Petroleum | C9: 6.065 | D9: 9.54 | E9: 0.0621 | F9: 0.0825120623 | G9: 0.03433170082 | H9: 1.244679682 | I9: 0.653972388 | J9: 0.1207675208 | K9: 0.1372520675 | L9: 0.2751853855 | M9: 0.4826530883 | N9: 0.6666666667 | O9: 9.644444444 | P9: Ja, | Q9: 0.05854 | R9: Ja | S9: 0.3919769262 | T9: 0.03592035247 | U9: 0.01407994935 | V9: JA | W9: NEIN | X9: 1.540393571 | Y9: 0.01813512535 | AA9: =SUM(IF($D9<Score!$C$2,1,0),IF($E9>Score!$C$3,1,0),IF($F9>Score!$C$4,1,0),IF($G9>Score!$C$5,1,0),IF($H9>Score!$C$6,1,0),IF($I9>Score!$C$7,1,0),IF($J9>Score!$C$8,1,0),IF($K9>Score!$C$9,1,0),IF($L9>Score!$C$10,1,0),IF($M9>Score!$C$11,1,0),IF($N9>Score!$C$12,1,0),IF($O9<Score!$C$13,1,0),IF($P9=Score!$C$14,1,0),IF($Q9>Score!$C$15,1,0),IF($R9=Score!$C$16,1,0),IF($S9>Score!$C$17,1,0),IF($T9>Score!$C$18,1,0),IF($U9>Score!$C$19,1,0),IF($V9=Score!$C$20,1,0),IF($W9=Score!$C$21,1,0),IF($X9<Score!$C$22,1,0),IF($Y9>Score!$C$23,1,0),IF($Z9<Score!C31,1,0)) -> 15 | AB9: 0.6818181818
A10: =IF(ROW(A10)>COUNTA(X),"",HYPERLINK("#'"&INDEX(X,ROW(A10))&"'!A1",MID(INDEX(X,ROW(A10)),FIND("]",INDEX(X,ROW(A10)))+1,31))) -> BUD | B10: Anheuser-Busch | C10: 108.123 | D10: 20.99 | E10: 0.028 | F10: -0.1664110186 | H10: 0.1038042059 | J10: 0.2203641299 | M10: 0.05258577242 | N10: 0.8888888889 | O10: 17.51 | P10: Nein | Q10: 0.0217 | R10: Ja | S10: 0.3806173273 | T10: 0.2083049192 | U10: 0.07928446159 | V10: NEIN | W10: NEIN | X10: 1.125845513 | Y10: 0.3210802541 | AA10: =SUM(IF($D10<Score!$C$2,1,0),IF($E10>Score!$C$3,1,0),IF($F10>Score!$C$4,1,0),IF($G10>Score!$C$5,1,0),IF($H10>Score!$C$6,1,0),IF($I10>Score!$C$7,1,0),IF($J10>Score!$C$8,1,0),IF($K10>Score!$C$9,1,0),IF($L10>Score!$C$10,1,0),IF($M10>Score!$C$11,1,0),IF($N10>Score!$C$12,1,0),IF($O10<Score!$C$13,1,0),IF($P10=Score!$C$14,1,0),IF($Q10>Score!$C$15,1,0),IF($R10=Score!$C$16,1,0),IF($S10>Score!$C$17,1,0),IF($T10>Score!$C$18,1,0),IF($U10>Score!$C$19,1,0),IF($V10=Score!$C$20,1,0),IF($W10=Score!$C$21,1,0),IF($X10<Score!$C$22,1,0),IF($Y10>Score!$C$23,1,0),IF($Z10<Score!C32,1,0)) -> 
A11: =IF(ROW(A11)>COUNTA(X),"",HYPERLINK("#'"&INDEX(X,ROW(A11))&"'!A1",MID(INDEX(X,ROW(A11)),FIND("]",INDEX(X,ROW(A11)))+1,31))) -> CARL | B11: Carlsberg | C11: 81.26 | D11: 15.66 | E11: 0.0164 | F11: 0.0173354021 | H11: 0.06391318017 | J11: -0.009437229437 | M11: 0.02393711761 | N11: 0.8 | O11: 15.69 | P11: Ja, | Q11: 0.01078 | R11: Ja | S11: 0.4087879518 | T11: 0.08818329553 | U11: 0.03604826876 | V11: NEIN | W11: NEIN | X11: 1.446256049 | Y11: 0.1007983051 | AA11: =SUM(IF($D11<Score!$C$2,1,0),IF($E11>Score!$C$3,1,0),IF($F11>Score!$C$4,1,0),IF($G11>Score!$C$5,1,0),IF($H11>Score!$C$6,1,0),IF($I11>Score!$C$7,1,0),IF($J11>Score!$C$8,1,0),IF($K11>Score!$C$9,1,0),IF($L11>Score!$C$10,1,0),IF($M11>Score!$C$11,1,0),IF($N11>Score!$C$12,1,0),IF($O11<Score!$C$13,1,0),IF($P11=Score!$C$14,1,0),IF($Q11>Score!$C$15,1,0),IF($R11=Score!$C$16,1,0),IF($S11>Score!$C$17,1,0),IF($T11>Score!$C$18,1,0),IF($U11>Score!$C$19,1,0),IF($V11=Score!$C$20,1,0),IF($W11=Score!$C$21,1,0),IF($X11<Score!$C$22,1,0),IF($Y11>Score!$C$23,1,0),IF($Z11<Score!C33,1,0)) -> 
A12: =IF(ROW(A12)>COUNTA(X),"",HYPERLINK("#'"&INDEX(X,ROW(A12))&"'!A1",MID(INDEX(X,ROW(A12)),FIND("]",INDEX(X,ROW(A12)))+1,31))) -> CAT | B12: Caterpillar | C12: 77.3 | D12: 12.59 | E12: 0.0298 | F12: 0.1426155927 | G12: 0.08953475888 | H12: 0.5142408311 | I12: 0.2592173829 | J12: 0.1007778724 | K12: 0.1312756109 | L12: 0.1600092509 | M12: 0.2525447654 | N12: 0.8 | O12: 15.96 | P12: Ja, | Q12: 0.02364 | R12: Ja | S12: 0.1986986455 | T12: 0.3376322358 | U12: 0.06708706794 | V12: JA | W12: NEIN | X12: 4.032746939 | Y12: 0.1301404175 | AA12: =SUM(IF($D12<Score!$C$2,1,0),IF($E12>Score!$C$3,1,0),IF($F12>Score!$C$4,1,0),IF($G12>Score!$C$5,1,0),IF($H12>Score!$C$6,1,0),IF($I12>Score!$C$7,1,0),IF($J12>Score!$C$8,1,0),IF($K12>Score!$C$9,1,0),IF($L12>Score!$C$10,1,0),IF($M12>Score!$C$11,1,0),IF($N12>Score!$C$12,1,0),IF($O12<Score!$C$13,1,0),IF($P12=Score!$C$14,1,0),IF($Q12>Score!$C$15,1,0),IF($R12=Score!$C$16,1,0),IF($S12>Score!$C$17,1,0),IF($T12>Score!$C$18,1,0),IF($U12>Score!$C$19,1,0),IF($V12=Score!$C$20,1,0),IF($W12=Score!$C$21,1,0),IF($X12<Score!$C$22,1,0),IF($Y12>Score!$C$23,1,0),IF($Z12<Score!C34,1,0)) -> 16 | AB12: 0.7272727273
A13: =IF(ROW(A13)>COUNTA(X),"",HYPERLINK("#'"&INDEX(X,ROW(A13))&"'!A1",MID(INDEX(X,ROW(A13)),FIND("]",INDEX(X,ROW(A13)))+1,31))) -> CL | B13: Colgate Palmolive | C13: 59.775 | D13: 21.11 | E13: 0.0232 | F13: 0.02459741854 | G13: 0.0512485143 | H13: 0.01152448677 | I13: 0.07336028092 | J13: 0.1062280044 | K13: 0.1150767617 | L13: 0.07989518562 | M13: 0.0474499699 | N13: 0.8333333333 | O13: 21.534 | P13: Ja, | Q13: 0.02152 | R13: Ja | S13: 0.1029051193 | T13: 1.688808664 | U13: 0.173787057 | V13: JA | W13: NEIN | X13: 8.717689531 | Y13: 0.2058806506 | AA13: =SUM(IF($D13<Score!$C$2,1,0),IF($E13>Score!$C$3,1,0),IF($F13>Score!$C$4,1,0),IF($G13>Score!$C$5,1,0),IF($H13>Score!$C$6,1,0),IF($I13>Score!$C$7,1,0),IF($J13>Score!$C$8,1,0),IF($K13>Score!$C$9,1,0),IF($L13>Score!$C$10,1,0),IF($M13>Score!$C$11,1,0),IF($N13>Score!$C$12,1,0),IF($O13<Score!$C$13,1,0),IF($P13=Score!$C$14,1,0),IF($Q13>Score!$C$15,1,0),IF($R13=Score!$C$16,1,0),IF($S13>Score!$C$17,1,0),IF($T13>Score!$C$18,1,0),IF($U13>Score!$C$19,1,0),IF($V13=Score!$C$20,1,0),IF($W13=Score!$C$21,1,0),IF($X13<Score!$C$22,1,0),IF($Y13>Score!$C$23,1,0),IF($Z13<Score!C35,1,0)) -> 9 | AB13: 0.4090909091
A14: =IF(ROW(A14)>COUNTA(X),"",HYPERLINK("#'"&INDEX(X,ROW(A14))&"'!A1",MID(INDEX(X,ROW(A14)),FIND("]",INDEX(X,ROW(A14)))+1,31))) -> CLX | B14: Clorox | C14: 0 | D14: 0 | E14: 0 | N14: 0 | V14: NEIN | W14: NEIN | AA14: =SUM(IF($D14<Score!$C$2,1,0),IF($E14>Score!$C$3,1,0),IF($F14>Score!$C$4,1,0),IF($G14>Score!$C$5,1,0),IF($H14>Score!$C$6,1,0),IF($I14>Score!$C$7,1,0),IF($J14>Score!$C$8,1,0),IF($K14>Score!$C$9,1,0),IF($L14>Score!$C$10,1,0),IF($M14>Score!$C$11,1,0),IF($N14>Score!$C$12,1,0),IF($O14<Score!$C$13,1,0),IF($P14=Score!$C$14,1,0),IF($Q14>Score!$C$15,1,0),IF($R14=Score!$C$16,1,0),IF($S14>Score!$C$17,1,0),IF($T14>Score!$C$18,1,0),IF($U14>Score!$C$19,1,0),IF($V14=Score!$C$20,1,0),IF($W14=Score!$C$21,1,0),IF($X14<Score!$C$22,1,0),IF($Y14>Score!$C$23,1,0),IF($Z14<Score!C36,1,0)) -> 
A15: =IF(ROW(A15)>COUNTA(X),"",HYPERLINK("#'"&INDEX(X,ROW(A15))&"'!A1",MID(INDEX(X,ROW(A15)),FIND("]",INDEX(X,ROW(A15)))+1,31))) -> COP | B15: Conoco Philips | C15: 0 | D15: 0 | E15: 0 | N15: 0 | V15: NEIN | W15: NEIN | AA15: =SUM(IF($D15<Score!$C$2,1,0),IF($E15>Score!$C$3,1,0),IF($F15>Score!$C$4,1,0),IF($G15>Score!$C$5,1,0),IF($H15>Score!$C$6,1,0),IF($I15>Score!$C$7,1,0),IF($J15>Score!$C$8,1,0),IF($K15>Score!$C$9,1,0),IF($L15>Score!$C$10,1,0),IF($M15>Score!$C$11,1,0),IF($N15>Score!$C$12,1,0),IF($O15<Score!$C$13,1,0),IF($P15=Score!$C$14,1,0),IF($Q15>Score!$C$15,1,0),IF($R15=Score!$C$16,1,0),IF($S15>Score!$C$17,1,0),IF($T15>Score!$C$18,1,0),IF($U15>Score!$C$19,1,0),IF($V15=Score!$C$20,1,0),IF($W15=Score!$C$21,1,0),IF($X15<Score!$C$22,1,0),IF($Y15>Score!$C$23,1,0),IF($Z15<Score!C37,1,0)) -> 
A16: =IF(ROW(A16)>COUNTA(X),"",HYPERLINK("#'"&INDEX(X,ROW(A16))&"'!A1",MID(INDEX(X,ROW(A16)),FIND("]",INDEX(X,ROW(A16)))+1,31))) -> CSCO | B16: Cisco Systems | C16: 25.421 | D16: 13.59 | E16: 0.0256 | F16: 0.05575598197 | G16: 0.0823814872 | H16: 0.09664758771 | I16: 0.1115479434 | N16: 0.6333333333 | O16: 18.883 | P16: Ja, | Q16: 0.01643333333 | R16: Ja | S16: 0.5389407803 | T16: 0.1385962126 | U16: 0.07469515095 | V16: JA | W16: JA | X16: 0.8554914315 | Y16: 0.1982308769 | AA16: =SUM(IF($D16<Score!$C$2,1,0),IF($E16>Score!$C$3,1,0),IF($F16>Score!$C$4,1,0),IF($G16>Score!$C$5,1,0),IF($H16>Score!$C$6,1,0),IF($I16>Score!$C$7,1,0),IF($J16>Score!$C$8,1,0),IF($K16>Score!$C$9,1,0),IF($L16>Score!$C$10,1,0),IF($M16>Score!$C$11,1,0),IF($N16>Score!$C$12,1,0),IF($O16<Score!$C$13,1,0),IF($P16=Score!$C$14,1,0),IF($Q16>Score!$C$15,1,0),IF($R16=Score!$C$16,1,0),IF($S16>Score!$C$17,1,0),IF($T16>Score!$C$18,1,0),IF($U16>Score!$C$19,1,0),IF($V16=Score!$C$20,1,0),IF($W16=Score!$C$21,1,0),IF($X16<Score!$C$22,1,0),IF($Y16>Score!$C$23,1,0),IF($Z16<Score!C38,1,0)) -> 
A17: =IF(ROW(A17)>COUNTA(X),"",HYPERLINK("#'"&INDEX(X,ROW(A17))&"'!A1",MID(INDEX(X,ROW(A17)),FIND("]",INDEX(X,ROW(A17)))+1,31))) -> CVS | B17: CVS Health | C17: 100.46 | D17: 17.12 | E17: 0.0139 | F17: 0.07320315078 | G17: 0.1776593755 | H17: 0.09492024397 | I17: 0.1371871076 | J17: 0.2928882587 | K17: 0.2444463988 | L17: 0.1864309606 | M17: 0.1536705511 | N17: 0.9 | O17: 16.19 | P17: Nein | Q17: 0.009255555556 | R17: Ja | S17: 0.5112724236 | T17: 0.1223296368 | U17: 0.06254376986 | V17: JA | W17: NEIN | X17: 0.9559044333 | Y17: 0.06313546248 | AA17: =SUM(IF($D17<Score!$C$2,1,0),IF($E17>Score!$C$3,1,0),IF($F17>Score!$C$4,1,0),IF($G17>Score!$C$5,1,0),IF($H17>Score!$C$6,1,0),IF($I17>Score!$C$7,1,0),IF($J17>Score!$C$8,1,0),IF($K17>Score!$C$9,1,0),IF($L17>Score!$C$10,1,0),IF($M17>Score!$C$11,1,0),IF($N17>Score!$C$12,1,0),IF($O17<Score!$C$13,1,0),IF($P17=Score!$C$14,1,0),IF($Q17>Score!$C$15,1,0),IF($R17=Score!$C$16,1,0),IF($S17>Score!$C$17,1,0),IF($T17>Score!$C$18,1,0),IF($U17>Score!$C$19,1,0),IF($V17=Score!$C$20,1,0),IF($W17=Score!$C$21,1,0),IF($X17<Score!$C$22,1,0),IF($Y17>Score!$C$23,1,0),IF($Z17<Score!C39,1,0)) -> 15 | AB17: 0.6818181818
A18: =IF(ROW(A18)>COUNTA(X),"",HYPERLINK("#'"&INDEX(X,ROW(A18))&"'!A1",MID(INDEX(X,ROW(A18)),FIND("]",INDEX(X,ROW(A18)))+1,31))) -> CVX | B18: Chevron | C18: 0 | D18: 0 | E18: 0 | N18: 0 | V18: NEIN | W18: NEIN | AA18: =SUM(IF($D18<Score!$C$2,1,0),IF($E18>Score!$C$3,1,0),IF($F18>Score!$C$4,1,0),IF($G18>Score!$C$5,1,0),IF($H18>Score!$C$6,1,0),IF($I18>Score!$C$7,1,0),IF($J18>Score!$C$8,1,0),IF($K18>Score!$C$9,1,0),IF($L18>Score!$C$10,1,0),IF($M18>Score!$C$11,1,0),IF($N18>Score!$C$12,1,0),IF($O18<Score!$C$13,1,0),IF($P18=Score!$C$14,1,0),IF($Q18>Score!$C$15,1,0),IF($R18=Score!$C$16,1,0),IF($S18>Score!$C$17,1,0),IF($T18>Score!$C$18,1,0),IF($U18>Score!$C$19,1,0),IF($V18=Score!$C$20,1,0),IF($W18=Score!$C$21,1,0),IF($X18<Score!$C$22,1,0),IF($Y18>Score!$C$23,1,0),IF($Z18<Score!C40,1,0)) -> 
A19: =IF(ROW(A19)>COUNTA(X),"",HYPERLINK("#'"&INDEX(X,ROW(A19))&"'!A1",MID(INDEX(X,ROW(A19)),FIND("]",INDEX(X,ROW(A19)))+1,31))) -> DE | B19: John Deere | C19: 0 | D19: 0 | E19: 0 | N19: 0 | V19: NEIN | W19: NEIN | AA19: =SUM(IF($D19<Score!$C$2,1,0),IF($E19>Score!$C$3,1,0),IF($F19>Score!$C$4,1,0),IF($G19>Score!$C$5,1,0),IF($H19>Score!$C$6,1,0),IF($I19>Score!$C$7,1,0),IF($J19>Score!$C$8,1,0),IF($K19>Score!$C$9,1,0),IF($L19>Score!$C$10,1,0),IF($M19>Score!$C$11,1,0),IF($N19>Score!$C$12,1,0),IF($O19<Score!$C$13,1,0),IF($P19=Score!$C$14,1,0),IF($Q19>Score!$C$15,1,0),IF($R19=Score!$C$16,1,0),IF($S19>Score!$C$17,1,0),IF($T19>Score!$C$18,1,0),IF($U19>Score!$C$19,1,0),IF($V19=Score!$C$20,1,0),IF($W19=Score!$C$21,1,0),IF($X19<Score!$C$22,1,0),IF($Y19>Score!$C$23,1,0),IF($Z19<Score!C41,1,0)) -> 
A20: =IF(ROW(A20)>COUNTA(X),"",HYPERLINK("#'"&INDEX(X,ROW(A20))&"'!A1",MID(INDEX(X,ROW(A20)),FIND("]",INDEX(X,ROW(A20)))+1,31))) -> DEO | B20: Diageo | C20: 25.925 | D20: 19.52 | E20: 0.0285 | F20: 0.021805965 | G20: 0.01915653779 | H20: 0.07430744694 | I20: 0.08233766842 | J20: 0.07655038628 | K20: 0.06411565249 | L20: 0.05520328623 | M20: 0.05755459941 | N20: 0.8333333333 | O20: 17.32 | P20: Nein | Q20: 0.03271 | R20: Nein | S20: 0.297117227 | T20: 0.331818848 | U20: 0.09858909598 | V20: JA | W20: NEIN | X20: 2.253261029 | Y20: 0.2638915968 | AA20: =SUM(IF($D20<Score!$C$2,1,0),IF($E20>Score!$C$3,1,0),IF($F20>Score!$C$4,1,0),IF($G20>Score!$C$5,1,0),IF($H20>Score!$C$6,1,0),IF($I20>Score!$C$7,1,0),IF($J20>Score!$C$8,1,0),IF($K20>Score!$C$9,1,0),IF($L20>Score!$C$10,1,0),IF($M20>Score!$C$11,1,0),IF($N20>Score!$C$12,1,0),IF($O20<Score!$C$13,1,0),IF($P20=Score!$C$14,1,0),IF($Q20>Score!$C$15,1,0),IF($R20=Score!$C$16,1,0),IF($S20>Score!$C$17,1,0),IF($T20>Score!$C$18,1,0),IF($U20>Score!$C$19,1,0),IF($V20=Score!$C$20,1,0),IF($W20=Score!$C$21,1,0),IF($X20<Score!$C$22,1,0),IF($Y20>Score!$C$23,1,0),IF($Z20<Score!C42,1,0)) -> 13 | AB20: 0.5909090909
A21: =IF(ROW(A21)>COUNTA(X),"",HYPERLINK("#'"&INDEX(X,ROW(A21))&"'!A1",MID(INDEX(X,ROW(A21)),FIND("]",INDEX(X,ROW(A21)))+1,31))) -> DIS | B21: Disney | C21: 99.51 | D21: 24.35 | E21: 0.0102 | F21: 0.06203355912 | G21: 0.04789639157 | H21: 0.1954031691 | I21: 0.1571047977 | J21: 0.2079047619 | K21: 0.1584561359 | L21: 0.1211524417 | M21: 0.15511383 | N21: 0.8 | O21: 16.146 | P21: Nein | Q21: 0.0108 | R21: Nein | S21: 0.5722804267 | T21: 0.16613392 | U21: 0.09507519065 | V21: JA | W21: NEIN | X21: 0.7473950766 | Y21: 0.2508757913 | AA21: =SUM(IF($D21<Score!$C$2,1,0),IF($E21>Score!$C$3,1,0),IF($F21>Score!$C$4,1,0),IF($G21>Score!$C$5,1,0),IF($H21>Score!$C$6,1,0),IF($I21>Score!$C$7,1,0),IF($J21>Score!$C$8,1,0),IF($K21>Score!$C$9,1,0),IF($L21>Score!$C$10,1,0),IF($M21>Score!$C$11,1,0),IF($N21>Score!$C$12,1,0),IF($O21<Score!$C$13,1,0),IF($P21=Score!$C$14,1,0),IF($Q21>Score!$C$15,1,0),IF($R21=Score!$C$16,1,0),IF($S21>Score!$C$17,1,0),IF($T21>Score!$C$18,1,0),IF($U21>Score!$C$19,1,0),IF($V21=Score!$C$20,1,0),IF($W21=Score!$C$21,1,0),IF($X21<Score!$C$22,1,0),IF($Y21>Score!$C$23,1,0),IF($Z21<Score!C43,1,0)) -> 13 | AB21: 0.5909090909
A22: =IF(ROW(A22)>COUNTA(X),"",HYPERLINK("#'"&INDEX(X,ROW(A22))&"'!A1",MID(INDEX(X,ROW(A22)),FIND("]",INDEX(X,ROW(A22)))+1,31))) -> DP | B22: Deutsche Post | C22: 0 | D22: 0 | E22: 0 | N22: 0 | V22: NEIN | W22: NEIN | AA22: =SUM(IF($D22<Score!$C$2,1,0),IF($E22>Score!$C$3,1,0),IF($F22>Score!$C$4,1,0),IF($G22>Score!$C$5,1,0),IF($H22>Score!$C$6,1,0),IF($I22>Score!$C$7,1,0),IF($J22>Score!$C$8,1,0),IF($K22>Score!$C$9,1,0),IF($L22>Score!$C$10,1,0),IF($M22>Score!$C$11,1,0),IF($N22>Score!$C$12,1,0),IF($O22<Score!$C$13,1,0),IF($P22=Score!$C$14,1,0),IF($Q22>Score!$C$15,1,0),IF($R22=Score!$C$16,1,0),IF($S22>Score!$C$17,1,0),IF($T22>Score!$C$18,1,0),IF($U22>Score!$C$19,1,0),IF($V22=Score!$C$20,1,0),IF($W22=Score!$C$21,1,0),IF($X22<Score!$C$22,1,0),IF($Y22>Score!$C$23,1,0),IF($Z22<Score!C44,1,0)) -> 
A23: =IF(ROW(A23)>COUNTA(X),"",HYPERLINK("#'"&INDEX(X,ROW(A23))&"'!A1",MID(INDEX(X,ROW(A23)),FIND("]",INDEX(X,ROW(A23)))+1,31))) -> EMR | B23: Emerson Electric | C23: 57.92 | D23: 18.39 | E23: 0.0325 | F23: 0.03411687521 | G23: 0.05049868379 | H23: 0.06972839465 | I23: 0.08893268234 | J23: 0.05411406418 | K23: 0.08113252346 | L23: 0.07352129653 | M23: 0.05265311135 | N23: 0.8333333333 | O23: 17.91333333 | P23: Nein | Q23: 0.02698888889 | R23: Ja | S23: 0.4283517462 | T23: 0.1951818611 | U23: 0.08360649104 | V23: NEIN | W23: NEIN | X23: 1.321965045 | Y23: 0.1295553123 | AA23: =SUM(IF($D23<Score!$C$2,1,0),IF($E23>Score!$C$3,1,0),IF($F23>Score!$C$4,1,0),IF($G23>Score!$C$5,1,0),IF($H23>Score!$C$6,1,0),IF($I23>Score!$C$7,1,0),IF($J23>Score!$C$8,1,0),IF($K23>Score!$C$9,1,0),IF($L23>Score!$C$10,1,0),IF($M23>Score!$C$11,1,0),IF($N23>Score!$C$12,1,0),IF($O23<Score!$C$13,1,0),IF($P23=Score!$C$14,1,0),IF($Q23>Score!$C$15,1,0),IF($R23=Score!$C$16,1,0),IF($S23>Score!$C$17,1,0),IF($T23>Score!$C$18,1,0),IF($U23>Score!$C$19,1,0),IF($V23=Score!$C$20,1,0),IF($W23=Score!$C$21,1,0),IF($X23<Score!$C$22,1,0),IF($Y23>Score!$C$23,1,0),IF($Z23<Score!C45,1,0)) -> 14 | AB23: 0.6363636364
A24: =IF(ROW(A24)>COUNTA(X),"",HYPERLINK("#'"&INDEX(X,ROW(A24))&"'!A1",MID(INDEX(X,ROW(A24)),FIND("]",INDEX(X,ROW(A24)))+1,31))) -> ERIC | B24: Ericsson | C24: 0 | D24: 0 | E24: 0 | N24: 0 | V24: NEIN | W24: NEIN | AA24: =SUM(IF($D24<Score!$C$2,1,0),IF($E24>Score!$C$3,1,0),IF($F24>Score!$C$4,1,0),IF($G24>Score!$C$5,1,0),IF($H24>Score!$C$6,1,0),IF($I24>Score!$C$7,1,0),IF($J24>Score!$C$8,1,0),IF($K24>Score!$C$9,1,0),IF($L24>Score!$C$10,1,0),IF($M24>Score!$C$11,1,0),IF($N24>Score!$C$12,1,0),IF($O24<Score!$C$13,1,0),IF($P24=Score!$C$14,1,0),IF($Q24>Score!$C$15,1,0),IF($R24=Score!$C$16,1,0),IF($S24>Score!$C$17,1,0),IF($T24>Score!$C$18,1,0),IF($U24>Score!$C$19,1,0),IF($V24=Score!$C$20,1,0),IF($W24=Score!$C$21,1,0),IF($X24<Score!$C$22,1,0),IF($Y24>Score!$C$23,1,0),IF($Z24<Score!C46,1,0)) -> 
A25: =IF(ROW(A25)>COUNTA(X),"",HYPERLINK("#'"&INDEX(X,ROW(A25))&"'!A1",MID(INDEX(X,ROW(A25)),FIND("]",INDEX(X,ROW(A25)))+1,31))) -> FPL | B25: Fuchs Petrolub | C25: 38.788 | D25: 23.37 | E25: 0.0217 | F25: 0.09965930806 | G25: 0.05907566109 | H25: 0.14187336 | I25: 0.2166838827 | J25: 0.2341523319 | K25: 0.2514351403 | L25: 0.1757315614 | M25: 0.1585616666 | N25: 0.9 | O25: 14.26 | P25: Nein | Q25: 0.02573 | R25: Nein | S25: 0.7174986286 | T25: 0.2401703801 | U25: 0.1723219183 | V25: JA | W25: JA | X25: 0.3937308869 | Y25: 0.1568144059 | AA25: =SUM(IF($D25<Score!$C$2,1,0),IF($E25>Score!$C$3,1,0),IF($F25>Score!$C$4,1,0),IF($G25>Score!$C$5,1,0),IF($H25>Score!$C$6,1,0),IF($I25>Score!$C$7,1,0),IF($J25>Score!$C$8,1,0),IF($K25>Score!$C$9,1,0),IF($L25>Score!$C$10,1,0),IF($M25>Score!$C$11,1,0),IF($N25>Score!$C$12,1,0),IF($O25<Score!$C$13,1,0),IF($P25=Score!$C$14,1,0),IF($Q25>Score!$C$15,1,0),IF($R25=Score!$C$16,1,0),IF($S25>Score!$C$17,1,0),IF($T25>Score!$C$18,1,0),IF($U25>Score!$C$19,1,0),IF($V25=Score!$C$20,1,0),IF($W25=Score!$C$21,1,0),IF($X25<Score!$C$22,1,0),IF($Y25>Score!$C$23,1,0),IF($Z25<Score!C47,1,0)) -> 17 | AB25: 0.7727272727
A26: =IF(ROW(A26)>COUNTA(X),"",HYPERLINK("#'"&INDEX(X,ROW(A26))&"'!A1",MID(INDEX(X,ROW(A26)),FIND("]",INDEX(X,ROW(A26)))+1,31))) -> FRES | B26: Fresenius | C26: 55.99 | D26: 24.07 | E26: 0.0091 | F26: 0.1053000517 | G26: 0.1265627467 | H26: 0.1446003207 | I26: 0.1913874877 | J26: 0.1204904917 | K26: 0.1146924929 | L26: 0.1442142424 | M26: 0.1234636214 | N26: 0.9333333333 | O26: 19.299 | P26: Nein | Q26: 0.01424 | R26: Nein | S26: 0.3880742913 | T26: 0.0689142931 | U26: 0.02674386545 | V26: JA | W26: NEIN | X26: 1.532842472 | Y26: 0.134045026 | AA26: =SUM(IF($D26<Score!$C$2,1,0),IF($E26>Score!$C$3,1,0),IF($F26>Score!$C$4,1,0),IF($G26>Score!$C$5,1,0),IF($H26>Score!$C$6,1,0),IF($I26>Score!$C$7,1,0),IF($J26>Score!$C$8,1,0),IF($K26>Score!$C$9,1,0),IF($L26>Score!$C$10,1,0),IF($M26>Score!$C$11,1,0),IF($N26>Score!$C$12,1,0),IF($O26<Score!$C$13,1,0),IF($P26=Score!$C$14,1,0),IF($Q26>Score!$C$15,1,0),IF($R26=Score!$C$16,1,0),IF($S26>Score!$C$17,1,0),IF($T26>Score!$C$18,1,0),IF($U26>Score!$C$19,1,0),IF($V26=Score!$C$20,1,0),IF($W26=Score!$C$21,1,0),IF($X26<Score!$C$22,1,0),IF($Y26>Score!$C$23,1,0),IF($Z26<Score!C48,1,0)) -> 14 | AB26: 0.6363636364
A27: =IF(ROW(A27)>COUNTA(X),"",HYPERLINK("#'"&INDEX(X,ROW(A27))&"'!A1",MID(INDEX(X,ROW(A27)),FIND("]",INDEX(X,ROW(A27)))+1,31))) -> GE | B27: General Electric | C27: 0 | D27: 0 | E27: 0 | N27: 0 | V27: NEIN | W27: NEIN | AA27: =SUM(IF($D27<Score!$C$2,1,0),IF($E27>Score!$C$3,1,0),IF($F27>Score!$C$4,1,0),IF($G27>Score!$C$5,1,0),IF($H27>Score!$C$6,1,0),IF($I27>Score!$C$7,1,0),IF($J27>Score!$C$8,1,0),IF($K27>Score!$C$9,1,0),IF($L27>Score!$C$10,1,0),IF($M27>Score!$C$11,1,0),IF($N27>Score!$C$12,1,0),IF($O27<Score!$C$13,1,0),IF($P27=Score!$C$14,1,0),IF($Q27>Score!$C$15,1,0),IF($R27=Score!$C$16,1,0),IF($S27>Score!$C$17,1,0),IF($T27>Score!$C$18,1,0),IF($U27>Score!$C$19,1,0),IF($V27=Score!$C$20,1,0),IF($W27=Score!$C$21,1,0),IF($X27<Score!$C$22,1,0),IF($Y27>Score!$C$23,1,0),IF($Z27<Score!C49,1,0)) -> 
A28: =IF(ROW(A28)>COUNTA(X),"",HYPERLINK("#'"&INDEX(X,ROW(A28))&"'!A1",MID(INDEX(X,ROW(A28)),FIND("]",INDEX(X,ROW(A28)))+1,31))) -> GILD | B28: Gilead Sciences | C28: 102.045 | D28: 11.46 | E28: 0 | F28: 0.3445077854 | G28: 0.3724213586 | H28: 0.6609006605 | I28: 0.4521612732 | N28: 0.5333333333 | O28: 16.077 | P28: Ja, | Q28: 0 | R28: Nein | S28: 0.4563524117 | T28: 0.7623111448 | U28: 0.3478825294 | V28: JA | W28: JA | X28: 0.8271066439 | Y28: 0.6132985135 | AA28: =SUM(IF($D28<Score!$C$2,1,0),IF($E28>Score!$C$3,1,0),IF($F28>Score!$C$4,1,0),IF($G28>Score!$C$5,1,0),IF($H28>Score!$C$6,1,0),IF($I28>Score!$C$7,1,0),IF($J28>Score!$C$8,1,0),IF($K28>Score!$C$9,1,0),IF($L28>Score!$C$10,1,0),IF($M28>Score!$C$11,1,0),IF($N28>Score!$C$12,1,0),IF($O28<Score!$C$13,1,0),IF($P28=Score!$C$14,1,0),IF($Q28>Score!$C$15,1,0),IF($R28=Score!$C$16,1,0),IF($S28>Score!$C$17,1,0),IF($T28>Score!$C$18,1,0),IF($U28>Score!$C$19,1,0),IF($V28=Score!$C$20,1,0),IF($W28=Score!$C$21,1,0),IF($X28<Score!$C$22,1,0),IF($Y28>Score!$C$23,1,0),IF($Z28<Score!C50,1,0)) -> 
A29: =IF(ROW(A29)>COUNTA(X),"",HYPERLINK("#'"&INDEX(X,ROW(A29))&"'!A1",MID(INDEX(X,ROW(A29)),FIND("]",INDEX(X,ROW(A29)))+1,31))) -> GIS | B29: General Mills | C29: 0 | D29: 0 | E29: 0 | N29: 0 | V29: NEIN | W29: NEIN | AA29: =SUM(IF($D29<Score!$C$2,1,0),IF($E29>Score!$C$3,1,0),IF($F29>Score!$C$4,1,0),IF($G29>Score!$C$5,1,0),IF($H29>Score!$C$6,1,0),IF($I29>Score!$C$7,1,0),IF($J29>Score!$C$8,1,0),IF($K29>Score!$C$9,1,0),IF($L29>Score!$C$10,1,0),IF($M29>Score!$C$11,1,0),IF($N29>Score!$C$12,1,0),IF($O29<Score!$C$13,1,0),IF($P29=Score!$C$14,1,0),IF($Q29>Score!$C$15,1,0),IF($R29=Score!$C$16,1,0),IF($S29>Score!$C$17,1,0),IF($T29>Score!$C$18,1,0),IF($U29>Score!$C$19,1,0),IF($V29=Score!$C$20,1,0),IF($W29=Score!$C$21,1,0),IF($X29<Score!$C$22,1,0),IF($Y29>Score!$C$23,1,0),IF($Z29<Score!C51,1,0)) -> 
A30: =IF(ROW(A30)>COUNTA(X),"",HYPERLINK("#'"&INDEX(X,ROW(A30))&"'!A1",MID(INDEX(X,ROW(A30)),FIND("]",INDEX(X,ROW(A30)))+1,31))) -> GOOG | B30: Google | C30: 546.39 | D30: 27.26 | E30: 0 | F30: 0.2303577536 | G30: 0.3766939353 | H30: 0.1592931642 | I30: 0.4126102078 | N30: 0.6 | O30: 46.191 | P30: Ja, | S30: 0.7969008564 | T30: 0.1382200957 | U30: 0.1101477126 | V30: JA | W30: JA | X30: 0.09404784689 | Y30: 0.249935607 | AA30: =SUM(IF($D30<Score!$C$2,1,0),IF($E30>Score!$C$3,1,0),IF($F30>Score!$C$4,1,0),IF($G30>Score!$C$5,1,0),IF($H30>Score!$C$6,1,0),IF($I30>Score!$C$7,1,0),IF($J30>Score!$C$8,1,0),IF($K30>Score!$C$9,1,0),IF($L30>Score!$C$10,1,0),IF($M30>Score!$C$11,1,0),IF($N30>Score!$C$12,1,0),IF($O30<Score!$C$13,1,0),IF($P30=Score!$C$14,1,0),IF($Q30>Score!$C$15,1,0),IF($R30=Score!$C$16,1,0),IF($S30>Score!$C$17,1,0),IF($T30>Score!$C$18,1,0),IF($U30>Score!$C$19,1,0),IF($V30=Score!$C$20,1,0),IF($W30=Score!$C$21,1,0),IF($X30<Score!$C$22,1,0),IF($Y30>Score!$C$23,1,0),IF($Z30<Score!C52,1,0)) -> 
A31: =IF(ROW(A31)>COUNTA(X),"",HYPERLINK("#'"&INDEX(X,ROW(A31))&"'!A1",MID(INDEX(X,ROW(A31)),FIND("]",INDEX(X,ROW(A31)))+1,31))) -> GSK | B31: GlaxoSmithKline | C31: 0 | D31: 0 | E31: 0 | N31: 0 | V31: NEIN | W31: NEIN | AA31: =SUM(IF($D31<Score!$C$2,1,0),IF($E31>Score!$C$3,1,0),IF($F31>Score!$C$4,1,0),IF($G31>Score!$C$5,1,0),IF($H31>Score!$C$6,1,0),IF($I31>Score!$C$7,1,0),IF($J31>Score!$C$8,1,0),IF($K31>Score!$C$9,1,0),IF($L31>Score!$C$10,1,0),IF($M31>Score!$C$11,1,0),IF($N31>Score!$C$12,1,0),IF($O31<Score!$C$13,1,0),IF($P31=Score!$C$14,1,0),IF($Q31>Score!$C$15,1,0),IF($R31=Score!$C$16,1,0),IF($S31>Score!$C$17,1,0),IF($T31>Score!$C$18,1,0),IF($U31>Score!$C$19,1,0),IF($V31=Score!$C$20,1,0),IF($W31=Score!$C$21,1,0),IF($X31<Score!$C$22,1,0),IF($Y31>Score!$C$23,1,0),IF($Z31<Score!C53,1,0)) -> 
A32: =IF(ROW(A32)>COUNTA(X),"",HYPERLINK("#'"&INDEX(X,ROW(A32))&"'!A1",MID(INDEX(X,ROW(A32)),FIND("]",INDEX(X,ROW(A32)))+1,31))) -> HEIN | B32: Heineken | C32: 67.42 | D32: 19.93 | E32: 0.0167 | F32: -0.1446265859 | H32: -0.05054567919 | J32: -0.1332749622 | M32: -0.1094824091 | N32: 0.7619047619 | O32: 22.12571429 | P32: Ja, | Q32: 0.02024285714 | R32: Nein | S32: 0.3862187769 | T32: 0.1269699673 | U32: 0.04903818547 | V32: NEIN | W32: NEIN | X32: 1.589206066 | Y32: 0.1443630887 | AA32: =SUM(IF($D32<Score!$C$2,1,0),IF($E32>Score!$C$3,1,0),IF($F32>Score!$C$4,1,0),IF($G32>Score!$C$5,1,0),IF($H32>Score!$C$6,1,0),IF($I32>Score!$C$7,1,0),IF($J32>Score!$C$8,1,0),IF($K32>Score!$C$9,1,0),IF($L32>Score!$C$10,1,0),IF($M32>Score!$C$11,1,0),IF($N32>Score!$C$12,1,0),IF($O32<Score!$C$13,1,0),IF($P32=Score!$C$14,1,0),IF($Q32>Score!$C$15,1,0),IF($R32=Score!$C$16,1,0),IF($S32>Score!$C$17,1,0),IF($T32>Score!$C$18,1,0),IF($U32>Score!$C$19,1,0),IF($V32=Score!$C$20,1,0),IF($W32=Score!$C$21,1,0),IF($X32<Score!$C$22,1,0),IF($Y32>Score!$C$23,1,0),IF($Z32<Score!C54,1,0)) -> 
A33: =IF(ROW(A33)>COUNTA(X),"",HYPERLINK("#'"&INDEX(X,ROW(A33))&"'!A1",MID(INDEX(X,ROW(A33)),FIND("]",INDEX(X,ROW(A33)))+1,31))) -> HEN | B33: Henkel | C33: 104.3 | D33: 22.11 | E33: 0.0138 | F33: 0.03986407458 | G33: 0.04613319128 | H33: 0.2498476975 | I33: 0.07041575223 | J33: 0.2030165391 | K33: 0.1232705434 | L33: 0.07993982898 | M33: 0.1642427704 | N33: 0.7666666667 | O33: 16.88 | P33: Nein | Q33: 0.01646 | R33: Nein | V33: NEIN | W33: NEIN | AA33: =SUM(IF($D33<Score!$C$2,1,0),IF($E33>Score!$C$3,1,0),IF($F33>Score!$C$4,1,0),IF($G33>Score!$C$5,1,0),IF($H33>Score!$C$6,1,0),IF($I33>Score!$C$7,1,0),IF($J33>Score!$C$8,1,0),IF($K33>Score!$C$9,1,0),IF($L33>Score!$C$10,1,0),IF($M33>Score!$C$11,1,0),IF($N33>Score!$C$12,1,0),IF($O33<Score!$C$13,1,0),IF($P33=Score!$C$14,1,0),IF($Q33>Score!$C$15,1,0),IF($R33=Score!$C$16,1,0),IF($S33>Score!$C$17,1,0),IF($T33>Score!$C$18,1,0),IF($U33>Score!$C$19,1,0),IF($V33=Score!$C$20,1,0),IF($W33=Score!$C$21,1,0),IF($X33<Score!$C$22,1,0),IF($Y33>Score!$C$23,1,0),IF($Z33<Score!C55,1,0)) -> 
A34: =IF(ROW(A34)>COUNTA(X),"",HYPERLINK("#'"&INDEX(X,ROW(A34))&"'!A1",MID(INDEX(X,ROW(A34)),FIND("]",INDEX(X,ROW(A34)))+1,31))) -> HORN | B34: =INDIRECT("'"&$A34&"'!B4") -> Hornbach | C34: =INDIRECT("'"&$A34&"'!H4") -> 77.8 | D34: =INDIRECT("'"&$A34&"'!H5") -> 13.74 | E34: =INDIRECT("'"&$A34&"'!H6") -> 0.0102 | F34: =INDIRECT("'"&$A34&"'!C27") -> 0.04166681229 | G34: =INDIRECT("'"&$A34&"'!C28") -> 0.04909469273 | H34: =INDIRECT("'"&$A34&"'!C30") -> -0.02820898542 | I34: =INDIRECT("'"&$A34&"'!C31") -> 0.2103226113 | J34: =INDIRECT("'"&$A34&"'!C33") -> 0.07389368945 | K34: =INDIRECT("'"&$A34&"'!C34") -> 0.03694684472 | L34: =INDIRECT("'"&$A34&"'!C35") -> 0.09878804957 | M34: =INDIRECT("'"&$A34&"'!C36") -> 0.0291171721 | N34: =INDIRECT("'"&$A34&"'!I30") -> 0.5757575758 | O34: =INDIRECT("'"&$A34&"'!I34") -> 13.537 | P34: =INDIRECT("'"&$A34&"'!I35") -> Nein | Q34: =INDIRECT("'"&$A34&"'!I39") -> 0.01636 | R34: =INDIRECT("'"&$A34&"'!I40") -> Nein | S34: =INDIRECT("'"&$A34&"'!O34") -> 0.5182823066 | T34: =INDIRECT("'"&$A34&"'!O35") -> 0.08462844 | U34: =INDIRECT("'"&$A34&"'!O36") -> 0.04386142309 | V34: =INDIRECT("'"&$A34&"'!O37") -> JA | W34: =INDIRECT("'"&$A34&"'!O38") -> NEIN | X34: =INDIRECT("'"&$A34&"'!O39") -> 0.9294503926 | Y34: =INDIRECT("'"&$A34&"'!O40") -> 0.04623773656 | AA34: =SUM(IF($D34<Score!$C$2,1,0),IF($E34>Score!$C$3,1,0),IF($F34>Score!$C$4,1,0),IF($G34>Score!$C$5,1,0),IF($H34>Score!$C$6,1,0),IF($I34>Score!$C$7,1,0),IF($J34>Score!$C$8,1,0),IF($K34>Score!$C$9,1,0),IF($L34>Score!$C$10,1,0),IF($M34>Score!$C$11,1,0),IF($N34>Score!$C$12,1,0),IF($O34<Score!$C$13,1,0),IF($P34=Score!$C$14,1,0),IF($Q34>Score!$C$15,1,0),IF($R34=Score!$C$16,1,0),IF($S34>Score!$C$17,1,0),IF($T34>Score!$C$18,1,0),IF($U34>Score!$C$19,1,0),IF($V34=Score!$C$20,1,0),IF($W34=Score!$C$21,1,0),IF($X34<Score!$C$22,1,0),IF($Y34>Score!$C$23,1,0),IF($Z34<Score!C56,1,0)) -> 8 | AB34: =AA34/COUNTA(D34:Y34) -> 0.3636363636
A35: =IF(ROW(A35)>COUNTA(X),"",HYPERLINK("#'"&INDEX(X,ROW(A35))&"'!A1",MID(INDEX(X,ROW(A35)),FIND("]",INDEX(X,ROW(A35)))+1,31))) -> IBM | B35: IBM | C35: 0 | D35: 0 | E35: 0 | N35: 0 | V35: NEIN | W35: NEIN | AA35: =SUM(IF($D35<Score!$C$2,1,0),IF($E35>Score!$C$3,1,0),IF($F35>Score!$C$4,1,0),IF($G35>Score!$C$5,1,0),IF($H35>Score!$C$6,1,0),IF($I35>Score!$C$7,1,0),IF($J35>Score!$C$8,1,0),IF($K35>Score!$C$9,1,0),IF($L35>Score!$C$10,1,0),IF($M35>Score!$C$11,1,0),IF($N35>Score!$C$12,1,0),IF($O35<Score!$C$13,1,0),IF($P35=Score!$C$14,1,0),IF($Q35>Score!$C$15,1,0),IF($R35=Score!$C$16,1,0),IF($S35>Score!$C$17,1,0),IF($T35>Score!$C$18,1,0),IF($U35>Score!$C$19,1,0),IF($V35=Score!$C$20,1,0),IF($W35=Score!$C$21,1,0),IF($X35<Score!$C$22,1,0),IF($Y35>Score!$C$23,1,0),IF($Z35<Score!C57,1,0)) -> 
A36: =IF(ROW(A36)>COUNTA(X),"",HYPERLINK("#'"&INDEX(X,ROW(A36))&"'!A1",MID(INDEX(X,ROW(A36)),FIND("]",INDEX(X,ROW(A36)))+1,31))) -> IMT | B36: Imperial Tobacco | C36: 0 | D36: 0 | E36: 0 | N36: 0 | V36: NEIN | W36: NEIN | AA36: =SUM(IF($D36<Score!$C$2,1,0),IF($E36>Score!$C$3,1,0),IF($F36>Score!$C$4,1,0),IF($G36>Score!$C$5,1,0),IF($H36>Score!$C$6,1,0),IF($I36>Score!$C$7,1,0),IF($J36>Score!$C$8,1,0),IF($K36>Score!$C$9,1,0),IF($L36>Score!$C$10,1,0),IF($M36>Score!$C$11,1,0),IF($N36>Score!$C$12,1,0),IF($O36<Score!$C$13,1,0),IF($P36=Score!$C$14,1,0),IF($Q36>Score!$C$15,1,0),IF($R36=Score!$C$16,1,0),IF($S36>Score!$C$17,1,0),IF($T36>Score!$C$18,1,0),IF($U36>Score!$C$19,1,0),IF($V36=Score!$C$20,1,0),IF($W36=Score!$C$21,1,0),IF($X36<Score!$C$22,1,0),IF($Y36>Score!$C$23,1,0),IF($Z36<Score!C58,1,0)) -> 
A37: =IF(ROW(A37)>COUNTA(X),"",HYPERLINK("#'"&INDEX(X,ROW(A37))&"'!A1",MID(INDEX(X,ROW(A37)),FIND("]",INDEX(X,ROW(A37)))+1,31))) -> JNJ | B37: Johnson & Johnson | C37: 0 | D37: 0 | E37: 0 | N37: 0 | V37: NEIN | W37: NEIN | AA37: =SUM(IF($D37<Score!$C$2,1,0),IF($E37>Score!$C$3,1,0),IF($F37>Score!$C$4,1,0),IF($G37>Score!$C$5,1,0),IF($H37>Score!$C$6,1,0),IF($I37>Score!$C$7,1,0),IF($J37>Score!$C$8,1,0),IF($K37>Score!$C$9,1,0),IF($L37>Score!$C$10,1,0),IF($M37>Score!$C$11,1,0),IF($N37>Score!$C$12,1,0),IF($O37<Score!$C$13,1,0),IF($P37=Score!$C$14,1,0),IF($Q37>Score!$C$15,1,0),IF($R37=Score!$C$16,1,0),IF($S37>Score!$C$17,1,0),IF($T37>Score!$C$18,1,0),IF($U37>Score!$C$19,1,0),IF($V37=Score!$C$20,1,0),IF($W37=Score!$C$21,1,0),IF($X37<Score!$C$22,1,0),IF($Y37>Score!$C$23,1,0),IF($Z37<Score!C59,1,0)) -> 
A38: =IF(ROW(A38)>COUNTA(X),"",HYPERLINK("#'"&INDEX(X,ROW(A38))&"'!A1",MID(INDEX(X,ROW(A38)),FIND("]",INDEX(X,ROW(A38)))+1,31))) -> K | B38: Kellog | C38: 0 | D38: 0 | E38: 0 | N38: 0 | V38: NEIN | W38: NEIN | AA38: =SUM(IF($D38<Score!$C$2,1,0),IF($E38>Score!$C$3,1,0),IF($F38>Score!$C$4,1,0),IF($G38>Score!$C$5,1,0),IF($H38>Score!$C$6,1,0),IF($I38>Score!$C$7,1,0),IF($J38>Score!$C$8,1,0),IF($K38>Score!$C$9,1,0),IF($L38>Score!$C$10,1,0),IF($M38>Score!$C$11,1,0),IF($N38>Score!$C$12,1,0),IF($O38<Score!$C$13,1,0),IF($P38=Score!$C$14,1,0),IF($Q38>Score!$C$15,1,0),IF($R38=Score!$C$16,1,0),IF($S38>Score!$C$17,1,0),IF($T38>Score!$C$18,1,0),IF($U38>Score!$C$19,1,0),IF($V38=Score!$C$20,1,0),IF($W38=Score!$C$21,1,0),IF($X38<Score!$C$22,1,0),IF($Y38>Score!$C$23,1,0),IF($Z38<Score!C60,1,0)) -> 
A39: =IF(ROW(A39)>COUNTA(X),"",HYPERLINK("#'"&INDEX(X,ROW(A39))&"'!A1",MID(INDEX(X,ROW(A39)),FIND("]",INDEX(X,ROW(A39)))+1,31))) -> KMB | B39: Kimberly Clark | C39: 0 | D39: 0 | E39: 0 | N39: 0 | V39: NEIN | W39: NEIN | AA39: =SUM(IF($D39<Score!$C$2,1,0),IF($E39>Score!$C$3,1,0),IF($F39>Score!$C$4,1,0),IF($G39>Score!$C$5,1,0),IF($H39>Score!$C$6,1,0),IF($I39>Score!$C$7,1,0),IF($J39>Score!$C$8,1,0),IF($K39>Score!$C$9,1,0),IF($L39>Score!$C$10,1,0),IF($M39>Score!$C$11,1,0),IF($N39>Score!$C$12,1,0),IF($O39<Score!$C$13,1,0),IF($P39=Score!$C$14,1,0),IF($Q39>Score!$C$15,1,0),IF($R39=Score!$C$16,1,0),IF($S39>Score!$C$17,1,0),IF($T39>Score!$C$18,1,0),IF($U39>Score!$C$19,1,0),IF($V39=Score!$C$20,1,0),IF($W39=Score!$C$21,1,0),IF($X39<Score!$C$22,1,0),IF($Y39>Score!$C$23,1,0),IF($Z39<Score!C61,1,0)) -> 
A40: =IF(ROW(A40)>COUNTA(X),"",HYPERLINK("#'"&INDEX(X,ROW(A40))&"'!A1",MID(INDEX(X,ROW(A40)),FIND("]",INDEX(X,ROW(A40)))+1,31))) -> KO | B40: Coca Cola | C40: 35.519 | D40: 20.34 | E40: 0.033 | F40: 0.08954647665 | G40: 0.08174884045 | H40: 0.06895058645 | I40: 0.07631776013 | J40: 0.08275677257 | K40: 0.09342953408 | L40: 0.08383204488 | M40: 0.08041794522 | N40: 0.7666666667 | O40: 19.377 | P40: Nein | Q40: 0.0271 | R40: Ja | S40: 0.3321017572 | T40: 0.2331075554 | U40: 0.07741542875 | V40: JA | W40: NEIN | X40: 2.01112529 | Y40: 0.2110526545 | AA40: =SUM(IF($D40<Score!$C$2,1,0),IF($E40>Score!$C$3,1,0),IF($F40>Score!$C$4,1,0),IF($G40>Score!$C$5,1,0),IF($H40>Score!$C$6,1,0),IF($I40>Score!$C$7,1,0),IF($J40>Score!$C$8,1,0),IF($K40>Score!$C$9,1,0),IF($L40>Score!$C$10,1,0),IF($M40>Score!$C$11,1,0),IF($N40>Score!$C$12,1,0),IF($O40<Score!$C$13,1,0),IF($P40=Score!$C$14,1,0),IF($Q40>Score!$C$15,1,0),IF($R40=Score!$C$16,1,0),IF($S40>Score!$C$17,1,0),IF($T40>Score!$C$18,1,0),IF($U40>Score!$C$19,1,0),IF($V40=Score!$C$20,1,0),IF($W40=Score!$C$21,1,0),IF($X40<Score!$C$22,1,0),IF($Y40>Score!$C$23,1,0),IF($Z40<Score!C62,1,0)) -> 17 | AB40: 0.7727272727
A41: =IF(ROW(A41)>COUNTA(X),"",HYPERLINK("#'"&INDEX(X,ROW(A41))&"'!A1",MID(INDEX(X,ROW(A41)),FIND("]",INDEX(X,ROW(A41)))+1,31))) -> MA | B41: Mastercard | C41: 0 | D41: 0 | E41: 0 | N41: 0 | V41: NEIN | W41: NEIN | AA41: =SUM(IF($D41<Score!$C$2,1,0),IF($E41>Score!$C$3,1,0),IF($F41>Score!$C$4,1,0),IF($G41>Score!$C$5,1,0),IF($H41>Score!$C$6,1,0),IF($I41>Score!$C$7,1,0),IF($J41>Score!$C$8,1,0),IF($K41>Score!$C$9,1,0),IF($L41>Score!$C$10,1,0),IF($M41>Score!$C$11,1,0),IF($N41>Score!$C$12,1,0),IF($O41<Score!$C$13,1,0),IF($P41=Score!$C$14,1,0),IF($Q41>Score!$C$15,1,0),IF($R41=Score!$C$16,1,0),IF($S41>Score!$C$17,1,0),IF($T41>Score!$C$18,1,0),IF($U41>Score!$C$19,1,0),IF($V41=Score!$C$20,1,0),IF($W41=Score!$C$21,1,0),IF($X41<Score!$C$22,1,0),IF($Y41>Score!$C$23,1,0),IF($Z41<Score!C63,1,0)) -> 
A42: =IF(ROW(A42)>COUNTA(X),"",HYPERLINK("#'"&INDEX(X,ROW(A42))&"'!A1",MID(INDEX(X,ROW(A42)),FIND("]",INDEX(X,ROW(A42)))+1,31))) -> MCD | B42: McDonalds | C42: 0 | D42: 0 | E42: 0 | N42: 0 | V42: NEIN | W42: NEIN | AA42: =SUM(IF($D42<Score!$C$2,1,0),IF($E42>Score!$C$3,1,0),IF($F42>Score!$C$4,1,0),IF($G42>Score!$C$5,1,0),IF($H42>Score!$C$6,1,0),IF($I42>Score!$C$7,1,0),IF($J42>Score!$C$8,1,0),IF($K42>Score!$C$9,1,0),IF($L42>Score!$C$10,1,0),IF($M42>Score!$C$11,1,0),IF($N42>Score!$C$12,1,0),IF($O42<Score!$C$13,1,0),IF($P42=Score!$C$14,1,0),IF($Q42>Score!$C$15,1,0),IF($R42=Score!$C$16,1,0),IF($S42>Score!$C$17,1,0),IF($T42>Score!$C$18,1,0),IF($U42>Score!$C$19,1,0),IF($V42=Score!$C$20,1,0),IF($W42=Score!$C$21,1,0),IF($X42<Score!$C$22,1,0),IF($Y42>Score!$C$23,1,0),IF($Z42<Score!C64,1,0)) -> 
A43: =IF(ROW(A43)>COUNTA(X),"",HYPERLINK("#'"&INDEX(X,ROW(A43))&"'!A1",MID(INDEX(X,ROW(A43)),FIND("]",INDEX(X,ROW(A43)))+1,31))) -> MDT | B43: Medtronic | C43: 76.42 | D43: 24.49 | E43: 0.016 | F43: 0.03125242723 | G43: 0.06537841293 | H43: 0.1109349129 | I43: 0.08447945127 | J43: 0.08355202242 | K43: 0.1501801493 | L43: 0.1000126712 | M43: 0.07524645419 | N43: 0.8333333333 | O43: 20.643 | P43: Nein | Q43: 0.01501 | R43: Ja | S43: 0.5124265345 | T43: 0.1576402818 | U43: 0.08077906333 | V43: JA | W43: JA | X43: 0.9514992542 | Y43: 0.217877095 | AA43: =SUM(IF($D43<Score!$C$2,1,0),IF($E43>Score!$C$3,1,0),IF($F43>Score!$C$4,1,0),IF($G43>Score!$C$5,1,0),IF($H43>Score!$C$6,1,0),IF($I43>Score!$C$7,1,0),IF($J43>Score!$C$8,1,0),IF($K43>Score!$C$9,1,0),IF($L43>Score!$C$10,1,0),IF($M43>Score!$C$11,1,0),IF($N43>Score!$C$12,1,0),IF($O43<Score!$C$13,1,0),IF($P43=Score!$C$14,1,0),IF($Q43>Score!$C$15,1,0),IF($R43=Score!$C$16,1,0),IF($S43>Score!$C$17,1,0),IF($T43>Score!$C$18,1,0),IF($U43>Score!$C$19,1,0),IF($V43=Score!$C$20,1,0),IF($W43=Score!$C$21,1,0),IF($X43<Score!$C$22,1,0),IF($Y43>Score!$C$23,1,0),IF($Z43<Score!C65,1,0)) -> 13 | AB43: 0.5909090909
A44: =IF(ROW(A44)>COUNTA(X),"",HYPERLINK("#'"&INDEX(X,ROW(A44))&"'!A1",MID(INDEX(X,ROW(A44)),FIND("]",INDEX(X,ROW(A44)))+1,31))) -> MMM | B44: 3M | C44: 139 | D44: 19 | E44: 0.0239 | F44: 0.06735530491 | G44: 0.04926360797 | H44: 0.1108494639 | I44: 0.07726093422 | J44: 0.1144971929 | K44: 0.09395356538 | L44: 0.07349270253 | M44: 0.09756732058 | N44: 0.8666666667 | O44: 15.58888889 | P44: Nein | Q44: 0.0247 | R44: Nein | S44: 0.4202884646 | T44: 0.3771115508 | U44: 0.1584956347 | V44: JA | W44: NEIN | X44: 1.379318216 | Y44: 0.2242229974 | AA44: =SUM(IF($D44<Score!$C$2,1,0),IF($E44>Score!$C$3,1,0),IF($F44>Score!$C$4,1,0),IF($G44>Score!$C$5,1,0),IF($H44>Score!$C$6,1,0),IF($I44>Score!$C$7,1,0),IF($J44>Score!$C$8,1,0),IF($K44>Score!$C$9,1,0),IF($L44>Score!$C$10,1,0),IF($M44>Score!$C$11,1,0),IF($N44>Score!$C$12,1,0),IF($O44<Score!$C$13,1,0),IF($P44=Score!$C$14,1,0),IF($Q44>Score!$C$15,1,0),IF($R44=Score!$C$16,1,0),IF($S44>Score!$C$17,1,0),IF($T44>Score!$C$18,1,0),IF($U44>Score!$C$19,1,0),IF($V44=Score!$C$20,1,0),IF($W44=Score!$C$21,1,0),IF($X44<Score!$C$22,1,0),IF($Y44>Score!$C$23,1,0),IF($Z44<Score!C66,1,0)) -> 16 | AB44: 0.7272727273
A45: =IF(ROW(A45)>COUNTA(X),"",HYPERLINK("#'"&INDEX(X,ROW(A45))&"'!A1",MID(INDEX(X,ROW(A45)),FIND("]",INDEX(X,ROW(A45)))+1,31))) -> MO | B45: Altria | C45: 43.405 | D45: 17.25 | E45: 0.0448 | F45: 0.008274368773 | G45: -0.06232802616 | H45: 0.1138770526 | I45: -0.02210875246 | J45: 0.05409354773 | K45: -0.03042499015 | L45: -0.03828725626 | M45: 0.05874832303 | N45: 0.5666666667 | O45: 14.162 | P45: Nein | Q45: 0.05597 | R45: Nein | S45: 0.08730964467 | T45: 1.684385382 | U45: 0.1470630892 | V45: NEIN | W45: NEIN | X45: 10.44186047 | Y45: 0.3107413751 | AA45: =SUM(IF($D45<Score!$C$2,1,0),IF($E45>Score!$C$3,1,0),IF($F45>Score!$C$4,1,0),IF($G45>Score!$C$5,1,0),IF($H45>Score!$C$6,1,0),IF($I45>Score!$C$7,1,0),IF($J45>Score!$C$8,1,0),IF($K45>Score!$C$9,1,0),IF($L45>Score!$C$10,1,0),IF($M45>Score!$C$11,1,0),IF($N45>Score!$C$12,1,0),IF($O45<Score!$C$13,1,0),IF($P45=Score!$C$14,1,0),IF($Q45>Score!$C$15,1,0),IF($R45=Score!$C$16,1,0),IF($S45>Score!$C$17,1,0),IF($T45>Score!$C$18,1,0),IF($U45>Score!$C$19,1,0),IF($V45=Score!$C$20,1,0),IF($W45=Score!$C$21,1,0),IF($X45<Score!$C$22,1,0),IF($Y45>Score!$C$23,1,0),IF($Z45<Score!C67,1,0)) -> 9 | AB45: 0.4090909091
A46: =IF(ROW(A46)>COUNTA(X),"",HYPERLINK("#'"&INDEX(X,ROW(A46))&"'!A1",MID(INDEX(X,ROW(A46)),FIND("]",INDEX(X,ROW(A46)))+1,31))) -> MSFT | B46: Microsoft | C46: 0 | D46: 0 | E46: 0 | N46: 0 | V46: NEIN | W46: NEIN | AA46: =SUM(IF($D46<Score!$C$2,1,0),IF($E46>Score!$C$3,1,0),IF($F46>Score!$C$4,1,0),IF($G46>Score!$C$5,1,0),IF($H46>Score!$C$6,1,0),IF($I46>Score!$C$7,1,0),IF($J46>Score!$C$8,1,0),IF($K46>Score!$C$9,1,0),IF($L46>Score!$C$10,1,0),IF($M46>Score!$C$11,1,0),IF($N46>Score!$C$12,1,0),IF($O46<Score!$C$13,1,0),IF($P46=Score!$C$14,1,0),IF($Q46>Score!$C$15,1,0),IF($R46=Score!$C$16,1,0),IF($S46>Score!$C$17,1,0),IF($T46>Score!$C$18,1,0),IF($U46>Score!$C$19,1,0),IF($V46=Score!$C$20,1,0),IF($W46=Score!$C$21,1,0),IF($X46<Score!$C$22,1,0),IF($Y46>Score!$C$23,1,0),IF($Z46<Score!C68,1,0)) -> 
A47: =IF(ROW(A47)>COUNTA(X),"",HYPERLINK("#'"&INDEX(X,ROW(A47))&"'!A1",MID(INDEX(X,ROW(A47)),FIND("]",INDEX(X,ROW(A47)))+1,31))) -> NEST | B47: Nestle | C47: 66.145 | D47: 18.99 | E47: 0.0337 | F47: -0.02445046643 | G47: 0.01018523875 | H47: 0.4563579652 | I47: 0.3147410372 | J47: 0.06672448142 | K47: 0.1077653012 | L47: 0.1442305257 | M47: 0.1662106601 | N47: 0.7333333333 | O47: 16.5 | P47: Nein | Q47: 0.03001 | R47: Ja | S47: 0.5255151742 | T47: 0.09840296592 | U47: 0.05171225178 | V47: JA | W47: NEIN | X47: 0.8778839298 | Y47: 0.1190346243 | AA47: =SUM(IF($D47<Score!$C$2,1,0),IF($E47>Score!$C$3,1,0),IF($F47>Score!$C$4,1,0),IF($G47>Score!$C$5,1,0),IF($H47>Score!$C$6,1,0),IF($I47>Score!$C$7,1,0),IF($J47>Score!$C$8,1,0),IF($K47>Score!$C$9,1,0),IF($L47>Score!$C$10,1,0),IF($M47>Score!$C$11,1,0),IF($N47>Score!$C$12,1,0),IF($O47<Score!$C$13,1,0),IF($P47=Score!$C$14,1,0),IF($Q47>Score!$C$15,1,0),IF($R47=Score!$C$16,1,0),IF($S47>Score!$C$17,1,0),IF($T47>Score!$C$18,1,0),IF($U47>Score!$C$19,1,0),IF($V47=Score!$C$20,1,0),IF($W47=Score!$C$21,1,0),IF($X47<Score!$C$22,1,0),IF($Y47>Score!$C$23,1,0),IF($Z47<Score!C69,1,0)) -> 15 | AB47: 0.6818181818
A48: =IF(ROW(A48)>COUNTA(X),"",HYPERLINK("#'"&INDEX(X,ROW(A48))&"'!A1",MID(INDEX(X,ROW(A48)),FIND("]",INDEX(X,ROW(A48)))+1,31))) -> NND | B48: Novo Nordisk | C48: 50.113 | D48: 32.07 | E48: 0.0149 | F48: 0.1182553237 | H48: 0.2340899536 | J48: 0.276031746 | M48: 0.2094590078 | N48: 0.7333333333 | O48: 22.71333333 | P48: Nein | Q48: 0.02018333333 | R48: Nein | S48: 0.5228776829 | T48: 0.6571946195 | U48: 0.3436323999 | V48: JA | W48: JA | X48: 0.9124931752 | Y48: 0.3883971804 | AA48: =SUM(IF($D48<Score!$C$2,1,0),IF($E48>Score!$C$3,1,0),IF($F48>Score!$C$4,1,0),IF($G48>Score!$C$5,1,0),IF($H48>Score!$C$6,1,0),IF($I48>Score!$C$7,1,0),IF($J48>Score!$C$8,1,0),IF($K48>Score!$C$9,1,0),IF($L48>Score!$C$10,1,0),IF($M48>Score!$C$11,1,0),IF($N48>Score!$C$12,1,0),IF($O48<Score!$C$13,1,0),IF($P48=Score!$C$14,1,0),IF($Q48>Score!$C$15,1,0),IF($R48=Score!$C$16,1,0),IF($S48>Score!$C$17,1,0),IF($T48>Score!$C$18,1,0),IF($U48>Score!$C$19,1,0),IF($V48=Score!$C$20,1,0),IF($W48=Score!$C$21,1,0),IF($X48<Score!$C$22,1,0),IF($Y48>Score!$C$23,1,0),IF($Z48<Score!C70,1,0)) -> 
A49: =IF(ROW(A49)>COUNTA(X),"",HYPERLINK("#'"&INDEX(X,ROW(A49))&"'!A1",MID(INDEX(X,ROW(A49)),FIND("]",INDEX(X,ROW(A49)))+1,31))) -> NOVA | B49: Novartis | C49: 89.331 | D49: 17.74 | E49: 0.0277 | F49: 0.03902993788 | G49: 0.06673655365 | H49: 0.04040448489 | I49: 0.09270479001 | J49: 0.05683620129 | K49: 0.1181114645 | L49: 0.09251760274 | M49: 0.04542354135 | N49: 0.7333333333 | O49: 18.637 | P49: Ja, | Q49: 0.03109 | R49: Nein | S49: 0.5650027515 | T49: 0.1451075603 | U49: 0.08198617082 | V49: JA | W49: NEIN | X49: 0.7699028852 | Y49: 0.1851162149 | AA49: =SUM(IF($D49<Score!$C$2,1,0),IF($E49>Score!$C$3,1,0),IF($F49>Score!$C$4,1,0),IF($G49>Score!$C$5,1,0),IF($H49>Score!$C$6,1,0),IF($I49>Score!$C$7,1,0),IF($J49>Score!$C$8,1,0),IF($K49>Score!$C$9,1,0),IF($L49>Score!$C$10,1,0),IF($M49>Score!$C$11,1,0),IF($N49>Score!$C$12,1,0),IF($O49<Score!$C$13,1,0),IF($P49=Score!$C$14,1,0),IF($Q49>Score!$C$15,1,0),IF($R49=Score!$C$16,1,0),IF($S49>Score!$C$17,1,0),IF($T49>Score!$C$18,1,0),IF($U49>Score!$C$19,1,0),IF($V49=Score!$C$20,1,0),IF($W49=Score!$C$21,1,0),IF($X49<Score!$C$22,1,0),IF($Y49>Score!$C$23,1,0),IF($Z49<Score!C71,1,0)) -> 12 | AB49: 0.5454545455
A50: =IF(ROW(A50)>COUNTA(X),"",HYPERLINK("#'"&INDEX(X,ROW(A50))&"'!A1",MID(INDEX(X,ROW(A50)),FIND("]",INDEX(X,ROW(A50)))+1,31))) -> PEP | B50: Pepsi | C50: 83.783 | D50: 19.16 | E50: 0.0293 | F50: 0.098122056 | G50: 0.09011584749 | H50: 0.02601923419 | I50: 0.06517069753 | J50: 0.07322874907 | K50: 0.1168286544 | L50: 0.09070506648 | M50: 0.06579001308 | N50: 0.8 | O50: 18.53 | P50: Nein | Q50: 0.02476 | R50: Ja | S50: 0.24887603 | T50: 0.3737178026 | U50: 0.09300940305 | V50: JA | W50: NEIN | X50: 3.018064737 | Y50: 0.1436797984 | AA50: =SUM(IF($D50<Score!$C$2,1,0),IF($E50>Score!$C$3,1,0),IF($F50>Score!$C$4,1,0),IF($G50>Score!$C$5,1,0),IF($H50>Score!$C$6,1,0),IF($I50>Score!$C$7,1,0),IF($J50>Score!$C$8,1,0),IF($K50>Score!$C$9,1,0),IF($L50>Score!$C$10,1,0),IF($M50>Score!$C$11,1,0),IF($N50>Score!$C$12,1,0),IF($O50<Score!$C$13,1,0),IF($P50=Score!$C$14,1,0),IF($Q50>Score!$C$15,1,0),IF($R50=Score!$C$16,1,0),IF($S50>Score!$C$17,1,0),IF($T50>Score!$C$18,1,0),IF($U50>Score!$C$19,1,0),IF($V50=Score!$C$20,1,0),IF($W50=Score!$C$21,1,0),IF($X50<Score!$C$22,1,0),IF($Y50>Score!$C$23,1,0),IF($Z50<Score!C72,1,0)) -> 13 | AB50: 0.5909090909
A51: =IF(ROW(A51)>COUNTA(X),"",HYPERLINK("#'"&INDEX(X,ROW(A51))&"'!A1",MID(INDEX(X,ROW(A51)),FIND("]",INDEX(X,ROW(A51)))+1,31))) -> PFE | B51: Pfizer | C51: 0 | D51: 0 | E51: 0 | N51: 0 | V51: NEIN | W51: NEIN | AA51: =SUM(IF($D51<Score!$C$2,1,0),IF($E51>Score!$C$3,1,0),IF($F51>Score!$C$4,1,0),IF($G51>Score!$C$5,1,0),IF($H51>Score!$C$6,1,0),IF($I51>Score!$C$7,1,0),IF($J51>Score!$C$8,1,0),IF($K51>Score!$C$9,1,0),IF($L51>Score!$C$10,1,0),IF($M51>Score!$C$11,1,0),IF($N51>Score!$C$12,1,0),IF($O51<Score!$C$13,1,0),IF($P51=Score!$C$14,1,0),IF($Q51>Score!$C$15,1,0),IF($R51=Score!$C$16,1,0),IF($S51>Score!$C$17,1,0),IF($T51>Score!$C$18,1,0),IF($U51>Score!$C$19,1,0),IF($V51=Score!$C$20,1,0),IF($W51=Score!$C$21,1,0),IF($X51<Score!$C$22,1,0),IF($Y51>Score!$C$23,1,0),IF($Z51<Score!C73,1,0)) -> 
A52: =IF(ROW(A52)>COUNTA(X),"",HYPERLINK("#'"&INDEX(X,ROW(A52))&"'!A1",MID(INDEX(X,ROW(A52)),FIND("]",INDEX(X,ROW(A52)))+1,31))) -> PG | B52: Procter & Gamble | C52: 71.175 | D52: 18.29 | E52: 0.0323 | F52: 0.01019054816 | G52: 0.05162901008 | H52: -0.01245068195 | I52: 0.05901108817 | J52: 0.08365245797 | K52: 0.1019184487 | L52: 0.07085284898 | M52: 0.02713077473 | N52: 0.7333333333 | O52: 16.799 | P52: Nein | Q52: 0.02685555556 | R52: Ja | S52: 0.4850484522 | T52: 0.1663856179 | U52: 0.08070508644 | V52: NEIN | W52: NEIN | X52: 1.061649708 | Y52: 0.184055284 | AA52: =SUM(IF($D52<Score!$C$2,1,0),IF($E52>Score!$C$3,1,0),IF($F52>Score!$C$4,1,0),IF($G52>Score!$C$5,1,0),IF($H52>Score!$C$6,1,0),IF($I52>Score!$C$7,1,0),IF($J52>Score!$C$8,1,0),IF($K52>Score!$C$9,1,0),IF($L52>Score!$C$10,1,0),IF($M52>Score!$C$11,1,0),IF($N52>Score!$C$12,1,0),IF($O52<Score!$C$13,1,0),IF($P52=Score!$C$14,1,0),IF($Q52>Score!$C$15,1,0),IF($R52=Score!$C$16,1,0),IF($S52>Score!$C$17,1,0),IF($T52>Score!$C$18,1,0),IF($U52>Score!$C$19,1,0),IF($V52=Score!$C$20,1,0),IF($W52=Score!$C$21,1,0),IF($X52<Score!$C$22,1,0),IF($Y52>Score!$C$23,1,0),IF($Z52<Score!C74,1,0)) -> 11 | AB52: 0.5
A53: =IF(ROW(A53)>COUNTA(X),"",HYPERLINK("#'"&INDEX(X,ROW(A53))&"'!A1",MID(INDEX(X,ROW(A53)),FIND("]",INDEX(X,ROW(A53)))+1,31))) -> PM | B53: Philip Morris | C53: 0 | D53: 0 | E53: 0 | N53: 0 | V53: NEIN | W53: NEIN | AA53: =SUM(IF($D53<Score!$C$2,1,0),IF($E53>Score!$C$3,1,0),IF($F53>Score!$C$4,1,0),IF($G53>Score!$C$5,1,0),IF($H53>Score!$C$6,1,0),IF($I53>Score!$C$7,1,0),IF($J53>Score!$C$8,1,0),IF($K53>Score!$C$9,1,0),IF($L53>Score!$C$10,1,0),IF($M53>Score!$C$11,1,0),IF($N53>Score!$C$12,1,0),IF($O53<Score!$C$13,1,0),IF($P53=Score!$C$14,1,0),IF($Q53>Score!$C$15,1,0),IF($R53=Score!$C$16,1,0),IF($S53>Score!$C$17,1,0),IF($T53>Score!$C$18,1,0),IF($U53>Score!$C$19,1,0),IF($V53=Score!$C$20,1,0),IF($W53=Score!$C$21,1,0),IF($X53<Score!$C$22,1,0),IF($Y53>Score!$C$23,1,0),IF($Z53<Score!C75,1,0)) -> 
A54: =IF(ROW(A54)>COUNTA(X),"",HYPERLINK("#'"&INDEX(X,ROW(A54))&"'!A1",MID(INDEX(X,ROW(A54)),FIND("]",INDEX(X,ROW(A54)))+1,31))) -> RB | B54: Reckitt Benckiser | C54: 0 | D54: 0 | E54: 0 | N54: 0 | V54: NEIN | W54: NEIN | AA54: =SUM(IF($D54<Score!$C$2,1,0),IF($E54>Score!$C$3,1,0),IF($F54>Score!$C$4,1,0),IF($G54>Score!$C$5,1,0),IF($H54>Score!$C$6,1,0),IF($I54>Score!$C$7,1,0),IF($J54>Score!$C$8,1,0),IF($K54>Score!$C$9,1,0),IF($L54>Score!$C$10,1,0),IF($M54>Score!$C$11,1,0),IF($N54>Score!$C$12,1,0),IF($O54<Score!$C$13,1,0),IF($P54=Score!$C$14,1,0),IF($Q54>Score!$C$15,1,0),IF($R54=Score!$C$16,1,0),IF($S54>Score!$C$17,1,0),IF($T54>Score!$C$18,1,0),IF($U54>Score!$C$19,1,0),IF($V54=Score!$C$20,1,0),IF($W54=Score!$C$21,1,0),IF($X54<Score!$C$22,1,0),IF($Y54>Score!$C$23,1,0),IF($Z54<Score!C76,1,0)) -> 
A55: =IF(ROW(A55)>COUNTA(X),"",HYPERLINK("#'"&INDEX(X,ROW(A55))&"'!A1",MID(INDEX(X,ROW(A55)),FIND("]",INDEX(X,ROW(A55)))+1,31))) -> RDS | B55: Royal Dutch Shell | C55: 27.791 | D55: 8.82 | E55: 0.067 | F55: 0.1035812804 | G55: 0.06364083509 | H55: 0.09980129767 | I55: 0.01529972137 | J55: -0.0135261311 | K55: 0.03763694762 | L55: 0.03885916803 | M55: 0.06328548231 | N55: 0.6333333333 | O55: 10.304 | P55: Ja, | Q55: 0.04722 | R55: Ja | S55: 0.4869957748 | T55: 0.08565646698 | U55: 0.0417143375 | V55: JA | W55: NEIN | X55: 1.048637521 | Y55: 0.06982362105 | AA55: =SUM(IF($D55<Score!$C$2,1,0),IF($E55>Score!$C$3,1,0),IF($F55>Score!$C$4,1,0),IF($G55>Score!$C$5,1,0),IF($H55>Score!$C$6,1,0),IF($I55>Score!$C$7,1,0),IF($J55>Score!$C$8,1,0),IF($K55>Score!$C$9,1,0),IF($L55>Score!$C$10,1,0),IF($M55>Score!$C$11,1,0),IF($N55>Score!$C$12,1,0),IF($O55<Score!$C$13,1,0),IF($P55=Score!$C$14,1,0),IF($Q55>Score!$C$15,1,0),IF($R55=Score!$C$16,1,0),IF($S55>Score!$C$17,1,0),IF($T55>Score!$C$18,1,0),IF($U55>Score!$C$19,1,0),IF($V55=Score!$C$20,1,0),IF($W55=Score!$C$21,1,0),IF($X55<Score!$C$22,1,0),IF($Y55>Score!$C$23,1,0),IF($Z55<Score!C77,1,0)) -> 10 | AB55: 0.4545454545
A56: =IF(ROW(A56)>COUNTA(X),"",HYPERLINK("#'"&INDEX(X,ROW(A56))&"'!A1",MID(INDEX(X,ROW(A56)),FIND("]",INDEX(X,ROW(A56)))+1,31))) -> ROCH | B56: Roche | C56: 259.02 | D56: 17.12 | E56: 0.0322 | F56: -0.004755340113 | G56: 0.05244473465 | H56: 0.0460905353 | I56: 0.0463624329 | J56: 0.05961017974 | K56: 0.1547948597 | L56: 0.08453400908 | M56: 0.03364845831 | N56: 0.7666666667 | O56: 20.302 | P56: Ja, | Q56: 0.02908 | R56: Ja | S56: 0.2584557462 | T56: 0.5692537313 | U56: 0.1471268979 | V56: JA | W56: NEIN | X56: 2.869134328 | Y56: 0.2968690742 | AA56: =SUM(IF($D56<Score!$C$2,1,0),IF($E56>Score!$C$3,1,0),IF($F56>Score!$C$4,1,0),IF($G56>Score!$C$5,1,0),IF($H56>Score!$C$6,1,0),IF($I56>Score!$C$7,1,0),IF($J56>Score!$C$8,1,0),IF($K56>Score!$C$9,1,0),IF($L56>Score!$C$10,1,0),IF($M56>Score!$C$11,1,0),IF($N56>Score!$C$12,1,0),IF($O56<Score!$C$13,1,0),IF($P56=Score!$C$14,1,0),IF($Q56>Score!$C$15,1,0),IF($R56=Score!$C$16,1,0),IF($S56>Score!$C$17,1,0),IF($T56>Score!$C$18,1,0),IF($U56>Score!$C$19,1,0),IF($V56=Score!$C$20,1,0),IF($W56=Score!$C$21,1,0),IF($X56<Score!$C$22,1,0),IF($Y56>Score!$C$23,1,0),IF($Z56<Score!C78,1,0)) -> 13 | AB56: 0.5909090909
A57: =IF(ROW(A57)>COUNTA(X),"",HYPERLINK("#'"&INDEX(X,ROW(A57))&"'!A1",MID(INDEX(X,ROW(A57)),FIND("]",INDEX(X,ROW(A57)))+1,31))) -> SAP | B57: SAP | C57: 66.31 | D57: 18.21 | E57: 0.0168 | F57: 0.1061293318 | G57: 0.09098424286 | H57: 0.1836553743 | I57: 0.1286694666 | J57: 0.2165062389 | K57: 0.173297978 | L57: 0.1309838958 | M57: 0.1687636483 | N57: 0.7333333333 | O57: 24.414 | P57: Ja, | Q57: 0.0151 | R57: Ja | S57: 0.5089464253 | T57: 0.1673640167 | U57: 0.08517931805 | V57: JA | W57: NEIN | X57: 0.9648433514 | Y57: 0.2466400911 | AA57: =SUM(IF($D57<Score!$C$2,1,0),IF($E57>Score!$C$3,1,0),IF($F57>Score!$C$4,1,0),IF($G57>Score!$C$5,1,0),IF($H57>Score!$C$6,1,0),IF($I57>Score!$C$7,1,0),IF($J57>Score!$C$8,1,0),IF($K57>Score!$C$9,1,0),IF($L57>Score!$C$10,1,0),IF($M57>Score!$C$11,1,0),IF($N57>Score!$C$12,1,0),IF($O57<Score!$C$13,1,0),IF($P57=Score!$C$14,1,0),IF($Q57>Score!$C$15,1,0),IF($R57=Score!$C$16,1,0),IF($S57>Score!$C$17,1,0),IF($T57>Score!$C$18,1,0),IF($U57>Score!$C$19,1,0),IF($V57=Score!$C$20,1,0),IF($W57=Score!$C$21,1,0),IF($X57<Score!$C$22,1,0),IF($Y57>Score!$C$23,1,0),IF($Z57<Score!C79,1,0)) -> 14 | AB57: =AA57/COUNTA(D57:Y57) -> 0.6363636364
A58: =IF(ROW(A58)>COUNTA(X),"",HYPERLINK("#'"&INDEX(X,ROW(A58))&"'!A1",MID(INDEX(X,ROW(A58)),FIND("]",INDEX(X,ROW(A58)))+1,31))) -> SIE | B58: Siemens | C58: 0 | D58: 0 | E58: 0 | N58: 0 | V58: NEIN | W58: NEIN | AA58: =SUM(IF($D58<Score!$C$2,1,0),IF($E58>Score!$C$3,1,0),IF($F58>Score!$C$4,1,0),IF($G58>Score!$C$5,1,0),IF($H58>Score!$C$6,1,0),IF($I58>Score!$C$7,1,0),IF($J58>Score!$C$8,1,0),IF($K58>Score!$C$9,1,0),IF($L58>Score!$C$10,1,0),IF($M58>Score!$C$11,1,0),IF($N58>Score!$C$12,1,0),IF($O58<Score!$C$13,1,0),IF($P58=Score!$C$14,1,0),IF($Q58>Score!$C$15,1,0),IF($R58=Score!$C$16,1,0),IF($S58>Score!$C$17,1,0),IF($T58>Score!$C$18,1,0),IF($U58>Score!$C$19,1,0),IF($V58=Score!$C$20,1,0),IF($W58=Score!$C$21,1,0),IF($X58<Score!$C$22,1,0),IF($Y58>Score!$C$23,1,0),IF($Z58<Score!C80,1,0)) -> 
A59: =IF(ROW(A59)>COUNTA(X),"",HYPERLINK("#'"&INDEX(X,ROW(A59))&"'!A1",MID(INDEX(X,ROW(A59)),FIND("]",INDEX(X,ROW(A59)))+1,31))) -> SWK | B59: Stanley Black & Decker | C59: 94.191 | D59: 17.27 | E59: 0.02 | F59: 0.3150004806 | G59: 0.1826634683 | H59: 0.3928948283 | I59: 0.1616880395 | J59: 0.09650276674 | K59: 0.06715883306 | L59: 0.1371701136 | M59: 0.2681326919 | N59: 0.7 | O59: 19.076 | P59: Ja, | Q59: 0.02497 | R59: Nein | S59: 0.410868756 | T59: 0.1168476174 | U59: 0.04800903521 | V59: JA | W59: NEIN | X59: 1.433867228 | Y59: 0.1101017762 | AA59: =SUM(IF($D59<Score!$C$2,1,0),IF($E59>Score!$C$3,1,0),IF($F59>Score!$C$4,1,0),IF($G59>Score!$C$5,1,0),IF($H59>Score!$C$6,1,0),IF($I59>Score!$C$7,1,0),IF($J59>Score!$C$8,1,0),IF($K59>Score!$C$9,1,0),IF($L59>Score!$C$10,1,0),IF($M59>Score!$C$11,1,0),IF($N59>Score!$C$12,1,0),IF($O59<Score!$C$13,1,0),IF($P59=Score!$C$14,1,0),IF($Q59>Score!$C$15,1,0),IF($R59=Score!$C$16,1,0),IF($S59>Score!$C$17,1,0),IF($T59>Score!$C$18,1,0),IF($U59>Score!$C$19,1,0),IF($V59=Score!$C$20,1,0),IF($W59=Score!$C$21,1,0),IF($X59<Score!$C$22,1,0),IF($Y59>Score!$C$23,1,0),IF($Z59<Score!C81,1,0)) -> 13 | AB59: 0.5909090909
A60: =IF(ROW(A60)>COUNTA(X),"",HYPERLINK("#'"&INDEX(X,ROW(A60))&"'!A1",MID(INDEX(X,ROW(A60)),FIND("]",INDEX(X,ROW(A60)))+1,31))) -> SYY | B60: Sysco | C60: 0 | D60: 0 | E60: 0 | N60: 0 | V60: NEIN | W60: NEIN | AA60: =SUM(IF($D60<Score!$C$2,1,0),IF($E60>Score!$C$3,1,0),IF($F60>Score!$C$4,1,0),IF($G60>Score!$C$5,1,0),IF($H60>Score!$C$6,1,0),IF($I60>Score!$C$7,1,0),IF($J60>Score!$C$8,1,0),IF($K60>Score!$C$9,1,0),IF($L60>Score!$C$10,1,0),IF($M60>Score!$C$11,1,0),IF($N60>Score!$C$12,1,0),IF($O60<Score!$C$13,1,0),IF($P60=Score!$C$14,1,0),IF($Q60>Score!$C$15,1,0),IF($R60=Score!$C$16,1,0),IF($S60>Score!$C$17,1,0),IF($T60>Score!$C$18,1,0),IF($U60>Score!$C$19,1,0),IF($V60=Score!$C$20,1,0),IF($W60=Score!$C$21,1,0),IF($X60<Score!$C$22,1,0),IF($Y60>Score!$C$23,1,0),IF($Z60<Score!C82,1,0)) -> 
A61: =IF(ROW(A61)>COUNTA(X),"",HYPERLINK("#'"&INDEX(X,ROW(A61))&"'!A1",MID(INDEX(X,ROW(A61)),FIND("]",INDEX(X,ROW(A61)))+1,31))) -> T | B61: At & T | C61: 0 | D61: 0 | E61: 0 | N61: 0 | V61: NEIN | W61: NEIN | AA61: =SUM(IF($D61<Score!$C$2,1,0),IF($E61>Score!$C$3,1,0),IF($F61>Score!$C$4,1,0),IF($G61>Score!$C$5,1,0),IF($H61>Score!$C$6,1,0),IF($I61>Score!$C$7,1,0),IF($J61>Score!$C$8,1,0),IF($K61>Score!$C$9,1,0),IF($L61>Score!$C$10,1,0),IF($M61>Score!$C$11,1,0),IF($N61>Score!$C$12,1,0),IF($O61<Score!$C$13,1,0),IF($P61=Score!$C$14,1,0),IF($Q61>Score!$C$15,1,0),IF($R61=Score!$C$16,1,0),IF($S61>Score!$C$17,1,0),IF($T61>Score!$C$18,1,0),IF($U61>Score!$C$19,1,0),IF($V61=Score!$C$20,1,0),IF($W61=Score!$C$21,1,0),IF($X61<Score!$C$22,1,0),IF($Y61>Score!$C$23,1,0),IF($Z61<Score!C83,1,0)) -> 
A62: =IF(ROW(A62)>COUNTA(X),"",HYPERLINK("#'"&INDEX(X,ROW(A62))&"'!A1",MID(INDEX(X,ROW(A62)),FIND("]",INDEX(X,ROW(A62)))+1,31))) -> ULV | B62: Unilever | C62: 0 | D62: 0 | E62: 0 | N62: 0 | V62: NEIN | W62: NEIN | AA62: =SUM(IF($D62<Score!$C$2,1,0),IF($E62>Score!$C$3,1,0),IF($F62>Score!$C$4,1,0),IF($G62>Score!$C$5,1,0),IF($H62>Score!$C$6,1,0),IF($I62>Score!$C$7,1,0),IF($J62>Score!$C$8,1,0),IF($K62>Score!$C$9,1,0),IF($L62>Score!$C$10,1,0),IF($M62>Score!$C$11,1,0),IF($N62>Score!$C$12,1,0),IF($O62<Score!$C$13,1,0),IF($P62=Score!$C$14,1,0),IF($Q62>Score!$C$15,1,0),IF($R62=Score!$C$16,1,0),IF($S62>Score!$C$17,1,0),IF($T62>Score!$C$18,1,0),IF($U62>Score!$C$19,1,0),IF($V62=Score!$C$20,1,0),IF($W62=Score!$C$21,1,0),IF($X62<Score!$C$22,1,0),IF($Y62>Score!$C$23,1,0),IF($Z62<Score!C84,1,0)) -> 
A63: =IF(ROW(A63)>COUNTA(X),"",HYPERLINK("#'"&INDEX(X,ROW(A63))&"'!A1",MID(INDEX(X,ROW(A63)),FIND("]",INDEX(X,ROW(A63)))+1,31))) -> V
A64: =IF(ROW(A64)>COUNTA(X),"",HYPERLINK("#'"&INDEX(X,ROW(A64))&"'!A1",MID(INDEX(X,ROW(A64)),FIND("]",INDEX(X,ROW(A64)))+1,31))) -> WMT
A65: =IF(ROW(A65)>COUNTA(X),"",HYPERLINK("#'"&INDEX(X,ROW(A65))&"'!A1",MID(INDEX(X,ROW(A65)),FIND("]",INDEX(X,ROW(A65)))+1,31))) -> XOM
A66: =IF(ROW(A66)>COUNTA(X),"",HYPERLINK("#'"&INDEX(X,ROW(A66))&"'!A1",MID(INDEX(X,ROW(A66)),FIND("]",INDEX(X,ROW(A66)))+1,31))) -> Neu
A67: =IF(ROW(A67)>COUNTA(X),"",HYPERLINK("#'"&INDEX(X,ROW(A67))&"'!A1",MID(INDEX(X,ROW(A67)),FIND("]",INDEX(X,ROW(A67)))+1,31))) -> Score
A68: =IF(ROW(A68)>COUNTA(X),"",HYPERLINK("#'"&INDEX(X,ROW(A68))&"'!A1",MID(INDEX(X,ROW(A68)),FIND("]",INDEX(X,ROW(A68)))+1,31))) -> Versionen
A69: =IF(ROW(A69)>COUNTA(X),"",HYPERLINK("#'"&INDEX(X,ROW(A69))&"'!A1",MID(INDEX(X,ROW(A69)),FIND("]",INDEX(X,ROW(A69)))+1,31))) -> 
A70: =IF(ROW(A70)>COUNTA(X),"",HYPERLINK("#'"&INDEX(X,ROW(A70))&"'!A1",MID(INDEX(X,ROW(A70)),FIND("]",INDEX(X,ROW(A70)))+1,31))) -> 

Sheet ALZ
B2: Analyse - Einzelunternehmen | Q2: Datum:
G3: Aktuelle Daten:
B4: Allianz | G4: Kurs: | H4: 160.171
G5: KGV: | H5: 11.54
G6: Div.Rendite: | H6: 0.0417
G7: Währung: | H7: Währung
B9: 10-Jahres-Übersicht | M9: akt. Jahr
B10: Jahr | C10: =D10-1 -> 2004 | D10: 2005 | E10: 2006 | F10: =G10-1 -> 2007 | G10: =H10-1 -> 2008 | H10: =I10-1 -> 2009 | I10: 2010 | J10: 2011 | K10: 2012 | L10: 2013 | M10: 2014
B11: Umsatz in Mrd. | C11: 95.627 | D11: 97.706 | E11: 99.905 | F11: 102.734 | G11: 91.422 | H11: 90.65 | I11: 96.174 | J11: 96.492 | K11: 101.76 | L11: 101.416 | M11: 103.161
B12: Umsatz erhöht? (1=ja) | C12: 0 | D12: =IF(D11>C11, 1, 0) -> 1 | E12: =IF(E11>D11, 1, 0) -> 1 | F12: 1 | G12: 0 | H12: =IF(H11>G11, 1, 0) -> 0 | I12: 1 | J12: 1 | K12: 1 | L12: 0 | M12: 1
B13: Umsatzwachstum | D13: =D11/C11-1 -> 0.02174072176 | E13: =E11/D11-1 -> 0.02250629439 | F13: 0.02831690106 | G13: -0.1101096034 | H13: =H11/G11-1 -> -0.008444356938 | I13: 0.06093767237 | J13: 0.003306506956 | K13: 0.0545951996 | L13: -0.003380503145 | M13: 0.01720635797
B14: Ergebnis pro Aktie (EPS) | C14: 6.01 | D14: 11.24 | E14: 17.09 | F14: 18 | G14: -5.43 | H14: 9.53 | I14: 11.2 | J14: 5.63 | K14: 11.42 | L14: 13.23 | M14: 13.71
B15: EPS erhöht? (1=ja) | C15: 0 | D15: =IF(D14>C14, 1, 0) -> 1 | E15: 1 | F15: 1 | G15: 0 | H15: =IF(H14>G14, 1, 0) -> 1 | I15: 1 | J15: 0 | K15: 1 | L15: 1 | M15: 1
B16: EPS-Wachstum | D16: =D14/C14-1 -> 0.8702163062 | E16: =E14/D14-1 -> 0.5204626335 | F16: 0.05324751317 | G16: -1.301666667 | H16: =H14/G14-1 -> -2.755064457 | I16: 0.1752360965 | J16: -0.4973214286 | K16: 1.028419183 | L16: 0.1584938704 | M16: 0.03628117914
B17: Dividende pro Aktie | C17: 1.75 | D17: 2 | E17: 3.8 | F17: 5.5 | G17: 3.5 | H17: 4.1 | I17: 4.5 | J17: 4.5 | K17: 4.5 | L17: 5.3 | M17: 6.85
B18: Dividende erhöht? (1=ja) | C18: 0 | D18: =IF(D17>C17, 1, 0) -> 1 | E18: =IF(E17>D17, 1, 0) -> 1 | F18: 1 | G18: 0 | H18: =IF(H17>G17, 1, 0) -> 1 | I18: 1 | J18: 0 | K18: 0 | L18: 1 | M18: 1
B19: Div.-Wachstum | D19: =D17/C17-1 -> 0.1428571429 | E19: =E17/D17-1 -> 0.9 | F19: 0.4473684211 | G19: -0.3636363636 | H19: =H17/G17-1 -> 0.1714285714 | I19: 0.09756097561 | J19: 0 | K19: 0 | L19: 0.1777777778 | M19: 0.2924528302
B20: Auszahlungsquote | C20: =C17/C14 -> 0.2911813644 | D20: 0.1779359431 | E20: 0.2223522528 | F20: 0.3055555556 | G20: -0.6445672192 | H20: 0.4302203568 | I20: 0.4017857143 | J20: 0.7992895204 | K20: 0.3940455342 | L20: 0.4006046863 | M20: 0.4996353027
B21: Kurs-Gewinn-Verhältnis (Jahresschlusskurs) | C21: 16.2 | D21: 11.4 | E21: 9.1 | F21: 8.2 | G21: - | H21: 9.1 | I21: 7.9 | J21: 13.1 | K21: 9.2 | L21: 9.9 | M21: 10
B22: Dividenden-Rendite (Jahresschlusskurs) | C22: 0.0179 | D22: 0.0156 | E22: 0.0246 | F22: 0.0372 | G22: 0.0467 | H22: 0.047 | I22: 0.0506 | J22: 0.0609 | K22: 0.0429 | L22: 0.0407 | M22: 0.0499
B24: Wachstumraten | E24: Qualität (Robustheit) | K24: Finanzkennzahlen
C25: Ergebnis | I25: Ergebnis | O25: Ergebnis
B26: Umsatz-Wachstum 5J > 10J | C26: =IF(C27>C28,"Ja","Nein") -> Ja | E26: Anzahl Verlustjahre (bei EPS) | I26: =COUNTIF(D14:M14,"<0")*-1 -> -1 | K26: Eigenkapital (Shareholder Equity) | O26: 60747
B27: Umsatz-Wachstum 5J p.a. | C27: =AVERAGE(I13:M13) -> 0.02653304675 | E27: Anzahl Jahre mit steigendem Umsatz | I27: =SUM(D12:M12) -> 7 | K27: Current Assets
B28: Umsatz-Wachstum 10J p.a. | C28: =AVERAGE(D13:M13) -> 0.008667519058 | E28: Anzahl Jahre mit steigendem EPS | I28: =SUM(C15:L15) -> 7 | K28: Current Liabilities
B29: EPS-Wachstum 5J > 10J | C29: =IF(C30>C31,"Ja","Nein") -> Ja | E29: Anzahl Jahre mit steigender Dividende | I29: =SUM(D18:M18) -> 7 | K29: Fremdkapital (Debt) | O29: 742085
B30: EPS-Wachstum 5J p.a. | C30: =AVERAGE(I16:M16) -> 0.1802217801 | E30: Qualität in % (maximal 30 Punkte) | I30: =SUM(I26:I29)/30 -> 0.6666666667 | K30: Gesamtkapital (Total Assets) | O30: 805787
B31: EPS-Wachstum 10J p.a. | C31: =AVERAGE(D16:M16) -> -0.171169577 | K31: Umsatz (Revenue) | O31: 103161
B32: Dividenden-Wachstum 5J > 10J | C32: =IF(C33>C34,"Ja","Nein") -> Nein | E32: KGV | K32: Gewinn (Net income) | O32: 6603
B33: Dividenden-Wachstum 5J p.a. | C33: =AVERAGE(I19:M19) -> 0.1135583167 | I33: Ergebnis | K33: EBIT (Operating income) | O33: 8848
B34: Dividenden-Wachstum 10J p.a. | C34: =AVERAGE(D19:M19) -> 0.1865809355 | E34: KGV-Durchschnitt 10J | I34: =AVERAGE(D21:M21) -> 9.766666667 | K34: Eigenkapitalquote (equity ratio) | O34: =O26/O30 -> 0.0753884091
B35: Wachstumrate 10J p.a. | C35: =AVERAGE(C34,C31,C28) -> 0.008026292523 | E35: Aktuelles KGV < KGV Mittelwert? | I35: =IF(H5<I34,"Ja,","Nein") -> Nein | K35: Eigenkapitalrentabilität (Return on Equity) | O35: =O32/O26 -> 0.1086967258
B36: Wachstumsrate 5J p.a. | C36: =AVERAGE(C33,C30,C27) -> 0.1067710479 | K36: Gesamtkapitalrentabilität (Return on Assets) | O36: =O32/O30 -> 0.008194473229
E37: Dividendenrendite | K37: Current-Valuation | O37: =IF(O27>O28,"JA","NEIN") -> NEIN
I38: Ergebnis | K38: NCAV | O38: =IF(O27>O29,"JA","NEIN") -> NEIN
E39: 10-Jahres-Durchschnittsdividendenrendite | I39: =AVERAGE(D22:M22) -> 0.04161 | K39: Verschuldungsgrad (Debt-to-equity) | O39: =O29/O26 -> 12.21599421
E40: Aktuelle Div.Rendite > Mittelwert Dividende? | I40: =IF(H6>I39,"Ja","Nein") -> Ja | K40: EBIT-Marge (EBIT margin) | O40: =O33/O31 -> 0.08576884675

Sheet APPL
B2: Analyse - Einzelunternehmen | Q2: Datum: 12.07.2015
G3: Aktuelle Daten:
B4: Apple | G4: Kurs: | H4: 110.6
G5: KGV: | H5: 16.06
G6: Div.Rendite: | H6: 0.0158
G7: Währung: | H7: USD
B9: 10-Jahres-Übersicht | M9: akt. Jahr
B10: Jahr | C10: =D10-1 -> 2004 | D10: 2005 | E10: 2006 | F10: =G10-1 -> 2007 | G10: 2008 | H10: =I10-1 -> 2009 | I10: 2010 | J10: 2011 | K10: 2012 | L10: 2013 | M10: 2014
B11: Umsatz in Mrd. | C11: 8.28 | D11: 13.93 | E11: 19.32 | F11: 24.01 | G11: 32.48 | H11: 36.54 | I11: 65.22 | J11: 108.25 | K11: 156.51 | L11: 170.91 | M11: 182.79
B12: Umsatz erhöht? (1=ja) | C12: 0 | D12: =IF(D11>C11, 1, 0) -> 1 | E12: =IF(E11>D11, 1, 0) -> 1 | F12: 1 | G12: 1 | H12: 1 | I12: 1 | J12: 1 | K12: 1 | L12: 1 | M12: 1
B13: Umsatzwachstum | D13: =D11/C11-1 -> 0.6823671498 | E13: =E11/D11-1 -> 0.3869346734 | F13: 0.2427536232 | G13: 0.3527696793 | H13: 0.125 | I13: 0.7848932677 | J13: 0.6597669427 | K13: 0.4458198614 | L13: 0.09200690052 | M13: 0.06951026856
B14: Ergebnis pro Aktie (EPS) | C14: 0.05 | D14: 0.24 | E14: 0.34 | F14: 0.58 | G14: 0.78 | H14: 0.91 | I14: 2.2 | J14: 4.01 | K14: 6.38 | L14: 5.72 | M14: 6.49
B15: EPS erhöht? (1=ja) | C15: 0 | D15: =IF(D14>C14, 1, 0) -> 1 | E15: 1 | F15: 1 | G15: 1 | H15: 1 | I15: 1 | J15: 1 | K15: 1 | L15: 0 | M15: 1
B16: EPS-Wachstum | D16: =D14/C14-1 -> 3.8 | E16: =E14/D14-1 -> 0.4166666667 | F16: 0.7058823529 | G16: 0.3448275862 | H16: 0.1666666667 | I16: 1.417582418 | J16: 0.8227272727 | K16: 0.5910224439 | L16: -0.1034482759 | M16: 0.1346153846
B17: Dividende pro Aktie | C17: 0 | D17: 0 | E17: 0 | F17: 0 | G17: 0 | H17: 0 | I17: 0 | J17: 0 | K17: 0.38 | L17: 1.63 | M17: 1.82
B18: Dividende erhöht? (1=ja) | C18: 0 | D18: =IF(D17>C17, 1, 0) -> 0 | E18: =IF(E17>D17, 1, 0) -> 0 | F18: 0 | G18: 0 | H18: 0 | I18: 0 | J18: 0 | K18: 1 | L18: 1 | M18: 1
B19: Div.-Wachstum | D19: =D17/C17-1 ->  | E19: =E17/D17-1 ->  | L19: 3.289473684 | M19: 0.1165644172
B20: Auszahlungsquote | C20: =C17/C14 -> 0 | D20: 0 | E20: 0 | F20: 0 | G20: 0 | H20: 0 | I20: 0 | J20: 0 | K20: 0.05956112853 | L20: 0.284965035 | M20: 0.280431433
B21: Kurs-Gewinn-Verhältnis (Jahresschlusskurs) | C21: 54.99 | D21: 33.54 | E21: 33.11 | F21: 38.29 | G21: 20.89 | H21: 29.11 | I21: 18.55 | J21: 13.67 | K21: 15.01 | L21: 11.58 | M21: 14.96
B22: Dividenden-Rendite (Jahresschlusskurs) | C22: 0 | D22: 0 | E22: 0 | F22: 0 | G22: 0 | H22: 0 | I22: 0 | J22: 0 | K22: 0.004 | L22: 0.0239 | M22: 0.0181
B24: Wachstumraten | E24: Qualität (Robustheit) | K24: Finanzkennzahlen | Q24: Bewertung
C25: Ergebnis | I25: Ergebnis | O25: Ergebnis | T25: Ergebnis
B26: Umsatz-Wachstum 5J > 10J | C26: =IF(C27>C28,"Ja","Nein") -> Ja | E26: Anzahl Verlustjahre (bei EPS) | I26: =COUNTIF(D14:M14,"<0")*-1 -> 0 | K26: Eigenkapital (Shareholder Equity) | O26: 111547 | Q26: 200 Tage Linie | T26: 106.51
B27: Umsatz-Wachstum 5J p.a. | C27: =AVERAGE(I13:M13) -> 0.4103994482 | E27: Anzahl Jahre mit steigendem Umsatz | I27: =SUM(D12:M12) -> 10 | K27: Current Assets | O27: 68531 | Q27: Differenz Kurz 200 Tage | T27: =H4/T26-1 -> 0.03840015022
B28: Umsatz-Wachstum 10J p.a. | C28: =AVERAGE(D13:M13) -> 0.3841822366 | E28: Anzahl Jahre mit steigendem EPS | I28: =SUM(C15:L15) -> 8 | K28: Current Liabilities | O28: 63448
B29: EPS-Wachstum 5J > 10J | C29: =IF(C30>C31,"Ja","Nein") -> Nein | E29: Anzahl Jahre mit steigender Dividende | I29: =SUM(D18:M18) -> 3 | K29: Fremdkapital (Debt) | O29: 120292
B30: EPS-Wachstum 5J p.a. | C30: =AVERAGE(I16:M16) -> 0.5724998486 | E30: Qualität in % (maximal 30 Punkte) | I30: =SUM(I26:I29)/30 -> 0.7 | K30: Gesamtkapital (Total Assets) | O30: 231839
B31: EPS-Wachstum 10J p.a. | C31: =AVERAGE(D16:M16) -> 0.8296542515 | K31: Umsatz (Revenue) | O31: 182795
B32: Dividenden-Wachstum 5J > 10J | C32: =IF(C33>C34,"Ja","Nein") ->  | E32: KGV | K32: Gewinn (Net income) | O32: 39510
B33: Dividenden-Wachstum 5J p.a. | C33: =AVERAGE(I19:M19) ->  | I33: Ergebnis | K33: EBIT (Operating income) | O33: 52503
B34: Dividenden-Wachstum 10J p.a. | C34: =AVERAGE(D19:M19) ->  | E34: KGV-Durchschnitt 10J | I34: =AVERAGE(D21:M21) -> 22.871 | K34: Eigenkapitalquote (equity ratio) | O34: =O26/O30 -> 0.481139929
B35: Wachstumrate 10J p.a. | C35: =AVERAGE(C34,C31,C28) ->  | E35: Aktuelles KGV < KGV Mittelwert? | I35: =IF(H5<I34,"Ja,","Nein") -> Ja, | K35: Eigenkapitalrentabilität (Return on Equity) | O35: =O32/O26 -> 0.3542004716
B36: Wachstumsrate 5J p.a. | C36: =AVERAGE(C33,C30,C27) ->  | K36: Gesamtkapitalrentabilität (Return on Assets) | O36: =O32/O30 -> 0.1704199897
E37: Dividendenrendite | K37: Current-Valuation | O37: =IF(O27>O28,"JA","NEIN") -> JA
I38: Ergebnis | K38: NCAV | O38: =IF(O27>O29,"JA","NEIN") -> NEIN
E39: 10-Jahres-Durchschnittsdividendenrendite | I39: =AVERAGE(D22:M22) -> 0.0046 | K39: Verschuldungsgrad (Debt-to-equity) | O39: =O29/O26 -> 1.078397447
E40: Aktuelle Div.Rendite > Mittelwert Dividende? | I40: =IF(H6>I39,"Ja","Nein") -> Ja | K40: EBIT-Marge (EBIT margin) | O40: =O33/O31 -> 0.2872233923

Sheet BASF
B2: Analyse - Einzelunternehmen | Q2: Datum:
G3: Aktuelle Daten:
B4: BASF | G4: Kurs:
G5: KGV:
G6: Div.Rendite:
G7: Währung: | H7: Währung
B9: 10-Jahres-Übersicht | M9: akt. Jahr
B10: Jahr | C10: =D10-1 -> 2004 | D10: 2005 | E10: 2006 | F10: =G10-1 -> 2007 | G10: 2008 | H10: =I10-1 -> 2009 | I10: 2010 | J10: 2011 | K10: 2012 | L10: 2013 | M10: 2014
B11: Umsatz in Mrd.
B12: Umsatz erhöht? (1=ja) | C12: 0 | D12: =IF(D11>C11, 1, 0) -> 0 | E12: =IF(E11>D11, 1, 0) -> 0 | F12: 0 | G12: 0 | H12: 0 | I12: 0 | J12: 0 | K12: 0 | L12: 0 | M12: 0
B13: Umsatzwachstum | D13: =D11/C11-1 ->  | E13: =E11/D11-1 -> 
B14: Ergebnis pro Aktie (EPS)
B15: EPS erhöht? (1=ja) | C15: 0 | D15: =IF(D14>C14, 1, 0) -> 0 | E15: 0 | F15: 0 | G15: 0 | H15: 0 | I15: 0 | J15: 0 | K15: 0 | L15: 0 | M15: 0
B16: EPS-Wachstum | D16: =D14/C14-1 ->  | E16: =E14/D14-1 -> 
B17: Dividende pro Aktie
B18: Dividende erhöht? (1=ja) | C18: 0 | D18: =IF(D17>C17, 1, 0) -> 0 | E18: =IF(E17>D17, 1, 0) -> 0 | F18: 0 | G18: 0 | H18: 0 | I18: 0 | J18: 0 | K18: 0 | L18: 0 | M18: 0
B19: Div.-Wachstum | D19: =D17/C17-1 ->  | E19: =E17/D17-1 -> 
B20: Auszahlungsquote | C20: =C17/C14 -> 
B21: Kurs-Gewinn-Verhältnis (Jahresschlusskurs)
B22: Dividenden-Rendite (Jahresschlusskurs)
B24: Wachstumraten | E24: Qualität (Robustheit) | K24: Finanzkennzahlen
C25: Ergebnis | I25: Ergebnis | O25: Ergebnis
B26: Umsatz-Wachstum 5J > 10J | C26: =IF(C27>C28,"Ja","Nein") ->  | E26: Anzahl Verlustjahre (bei EPS) | I26: =COUNTIF(D14:M14,"<0")*-1 -> 0 | K26: Eigenkapital (Shareholder Equity)
B27: Umsatz-Wachstum 5J p.a. | C27: =AVERAGE(I13:M13) ->  | E27: Anzahl Jahre mit steigendem Umsatz | I27: =SUM(D12:M12) -> 0 | K27: Current Assets
B28: Umsatz-Wachstum 10J p.a. | C28: =AVERAGE(D13:M13) ->  | E28: Anzahl Jahre mit steigendem EPS | I28: =SUM(C15:L15) -> 0 | K28: Current Liabilities
B29: EPS-Wachstum 5J > 10J | C29: =IF(C30>C31,"Ja","Nein") ->  | E29: Anzahl Jahre mit steigender Dividende | I29: =SUM(D18:M18) -> 0 | K29: Fremdkapital (Debt)
B30: EPS-Wachstum 5J p.a. | C30: =AVERAGE(I16:M16) ->  | E30: Qualität in % (maximal 30 Punkte) | I30: =SUM(I26:I29)/30 -> 0 | K30: Gesamtkapital (Total Assets)
B31: EPS-Wachstum 10J p.a. | C31: =AVERAGE(D16:M16) ->  | K31: Umsatz (Revenue)
B32: Dividenden-Wachstum 5J > 10J | C32: =IF(C33>C34,"Ja","Nein") ->  | E32: KGV | K32: Gewinn (Net income)
B33: Dividenden-Wachstum 5J p.a. | C33: =AVERAGE(I19:M19) ->  | I33: Ergebnis | K33: EBIT (Operating income)
B34: Dividenden-Wachstum 10J p.a. | C34: =AVERAGE(D19:M19) ->  | E34: KGV-Durchschnitt 10J | I34: =AVERAGE(D21:M21) ->  | K34: Eigenkapitalquote (equity ratio) | O34: =O26/O30 -> 
B35: Wachstumrate 10J p.a. | C35: =AVERAGE(C34,C31,C28) ->  | E35: Aktuelles KGV < KGV Mittelwert? | I35: =IF(H5<I34,"Ja,","Nein") ->  | K35: Eigenkapitalrentabilität (Return on Equity) | O35: =O32/O26 -> 
B36: Wachstumsrate 5J p.a. | C36: =AVERAGE(C33,C30,C27) ->  | K36: Gesamtkapitalrentabilität (Return on Assets) | O36: =O32/O30 -> 
E37: Dividendenrendite | K37: Current-Valuation | O37: =IF(O27>O28,"JA","NEIN") -> NEIN
I38: Ergebnis | K38: NCAV | O38: =IF(O27>O29,"JA","NEIN") -> NEIN
E39: 10-Jahres-Durchschnittsdividendenrendite | I39: =AVERAGE(D22:M22) ->  | K39: Verschuldungsgrad (Debt-to-equity) | O39: =O29/O26 -> 
E40: Aktuelle Div.Rendite > Mittelwert Dividende? | I40: =IF(H6>I39,"Ja","Nein") ->  | K40: EBIT-Marge (EBIT margin) | O40: =O33/O31 -> 

Sheet BAT
B2: Analyse - Einzelunternehmen | Q2: Datum: 25.06.2015
G3: Aktuelle Daten:
B4: British American Tobacco | G4: Kurs: | H4: 49.961
G5: KGV: | H5: 15.51
G6: Div.Rendite: | H6: 0.0442
G7: Währung: | H7: Pfund
B9: 10-Jahres-Übersicht | M9: akt. Jahr
B10: Jahr | C10: =D10-1 -> 2004 | D10: 2005 | E10: 2006 | F10: =G10-1 -> 2007 | G10: 2008 | H10: =I10-1 -> 2009 | I10: 2010 | J10: 2011 | K10: 2012 | L10: 2013 | M10: 2014
B11: Umsatz in Mrd. | H11: 14.21 | I11: 14.88 | J11: 15.4 | K11: 15.19 | L11: 15.26 | M11: 13.97
B12: Umsatz erhöht? (1=ja) | C12: 0 | D12: =IF(D11>C11, 1, 0) -> 0 | E12: =IF(E11>D11, 1, 0) -> 0 | F12: 0 | G12: 0 | H12: 1 | I12: 1 | J12: 1 | K12: 0 | L12: 1 | M12: 0
B13: Umsatzwachstum | D13: =D11/C11-1 ->  | E13: =E11/D11-1 ->  | I13: 0.04714989444 | J13: 0.03494623656 | K13: -0.01363636364 | L13: 0.004608294931 | M13: -0.08453473132
B14: Ergebnis pro Aktie (EPS) | F14: 1.05 | G14: 1.23 | H14: 1.37 | I14: 1.45 | J14: 1.57 | K14: 1.98 | L14: 2.05 | M14: 1.67
B15: EPS erhöht? (1=ja) | C15: 0 | D15: =IF(D14>C14, 1, 0) -> 0 | E15: 0 | F15: 1 | G15: 1 | H15: 1 | I15: 1 | J15: 1 | K15: 1 | L15: 1 | M15: 0
B16: EPS-Wachstum | D16: =D14/C14-1 ->  | E16: =E14/D14-1 ->  | G16: 0.1714285714 | H16: 0.1138211382 | I16: 0.05839416058 | J16: 0.08275862069 | K16: 0.2611464968 | L16: 0.03535353535 | M16: -0.1853658537
B17: Dividende pro Aktie | F17: 0.66 | G17: 0.84 | H17: 1 | I17: 1.14 | J17: 1.27 | K17: 1.35 | L17: 1.42 | M17: 1.48
B18: Dividende erhöht? (1=ja) | C18: 0 | D18: =IF(D17>C17, 1, 0) -> 0 | E18: =IF(E17>D17, 1, 0) -> 0 | F18: 1 | G18: 1 | H18: 1 | I18: 1 | J18: 1 | K18: 1 | L18: 1 | M18: 1
B19: Div.-Wachstum | D19: =D17/C17-1 ->  | E19: =E17/D17-1 ->  | G19: 0.2727272727 | H19: 0.1904761905 | I19: 0.14 | J19: 0.1140350877 | K19: 0.06299212598 | L19: 0.05185185185 | M19: 0.04225352113
B20: Auszahlungsquote | C20: =C17/C14 ->  | F20: 0.6285714286 | G20: 0.6829268293 | H20: 0.7299270073 | I20: 0.7862068966 | J20: 0.8089171975 | K20: 0.6818181818 | L20: 0.6926829268 | M20: 0.8862275449
B21: Kurs-Gewinn-Verhältnis (Jahresschlusskurs) | H21: 15.06 | I21: 17.34 | J21: 20 | K21: 16.47 | L21: 16.81 | M21: 22.77
B22: Dividenden-Rendite (Jahresschlusskurs) | F22: 0.0336 | G22: 0.0467 | H22: 0.0496 | I22: 0.0463 | J22: 0.0416 | K22: 0.0433 | L22: 0.0439 | M22: 0.0423
B24: Wachstumraten | E24: Qualität (Robustheit) | K24: Finanzkennzahlen | Q24: Bewertung
C25: Ergebnis | I25: Ergebnis | O25: Ergebnis | T25: Ergebnis
B26: Umsatz-Wachstum 5J > 10J | C26: =IF(C27>C28,"Ja","Nein") ->  | E26: Anzahl Verlustjahre (bei EPS) | I26: =COUNTIF(D14:M14,"<0")*-1 -> 0 | K26: Eigenkapital (Shareholder Equity) | O26: 5814 | Q26: 200 Tage Linie
B27: Umsatz-Wachstum 5J p.a. | C27: =AVERAGE(I13:M13) -> -0.002293333806 | E27: Anzahl Jahre mit steigendem Umsatz | I27: =SUM(D12:M12) -> 4 | K27: Current Assets | O27: 9132 | Q27: Differenz Kurz 200 Tage | T27: =H4/T26-1 -> 
B28: Umsatz-Wachstum 10J p.a. | C28: =AVERAGE(D13:M13) ->  | E28: Anzahl Jahre mit steigendem EPS | I28: =SUM(C15:L15) -> 7 | K28: Current Liabilities | O28: 8769
B29: EPS-Wachstum 5J > 10J | C29: =IF(C30>C31,"Ja","Nein") ->  | E29: Anzahl Jahre mit steigender Dividende | I29: =SUM(D18:M18) -> 8 | K29: Fremdkapital (Debt) | O29: =O30-O26 -> 20353
B30: EPS-Wachstum 5J p.a. | C30: =AVERAGE(I16:M16) -> 0.05045739196 | E30: Qualität in % (maximal 30 Punkte) | I30: =SUM(I26:I29)/30 -> 0.6333333333 | K30: Gesamtkapital (Total Assets) | O30: 26167
B31: EPS-Wachstum 10J p.a. | C31: =AVERAGE(D16:M16) ->  | K31: Umsatz (Revenue) | O31: 42506
B32: Dividenden-Wachstum 5J > 10J | C32: =IF(C33>C34,"Ja","Nein") ->  | E32: KGV | K32: Gewinn (Net income) | O32: 3393
B33: Dividenden-Wachstum 5J p.a. | C33: =AVERAGE(I19:M19) -> 0.08222651734 | I33: Ergebnis | K33: EBIT (Operating income) | O33: 4546
B34: Dividenden-Wachstum 10J p.a. | C34: =AVERAGE(D19:M19) ->  | E34: KGV-Durchschnitt 10J | I34: =AVERAGE(D21:M21) -> 18.075 | K34: Eigenkapitalquote (equity ratio) | O34: =O26/O30 -> 0.2221882524
B35: Wachstumrate 10J p.a. | C35: =AVERAGE(C34,C31,C28) ->  | E35: Aktuelles KGV < KGV Mittelwert? | I35: =IF(H5<I34,"Ja,","Nein") -> Ja, | K35: Eigenkapitalrentabilität (Return on Equity) | O35: =O32/O26 -> 0.5835913313
B36: Wachstumsrate 5J p.a. | C36: =AVERAGE(C33,C30,C27) -> 0.04346352516 | K36: Gesamtkapitalrentabilität (Return on Assets) | O36: =O32/O30 -> 0.129667138
E37: Dividendenrendite | K37: Current-Valuation | O37: =IF(O27>O28,"JA","NEIN") -> JA
I38: Ergebnis | K38: NCAV | O38: =IF(O27>O29,"JA","NEIN") -> NEIN
E39: 10-Jahres-Durchschnittsdividendenrendite | I39: =AVERAGE(D22:M22) -> 0.0434125 | K39: Verschuldungsgrad (Debt-to-equity) | O39: =O29/O26 -> 3.500687994
E40: Aktuelle Div.Rendite > Mittelwert Dividende? | I40: =IF(H6>I39,"Ja","Nein") -> Ja | K40: EBIT-Marge (EBIT margin) | O40: =O33/O31 -> 0.1069496071

Sheet BAY
B2: Analyse - Einzelunternehmen | Q2: Datum: 28.06.2015
G3: Aktuelle Daten:
B4: Bayer | G4: Kurs: | H4: 132.986
G5: KGV: | H5: 19.49
G6: Div.Rendite: | H6: 0.0186
G7: Währung: | H7: EURO
B9: 10-Jahres-Übersicht | M9: akt. Jahr
B10: Jahr | C10: =D10-1 -> 2004 | D10: 2005 | E10: 2006 | F10: =G10-1 -> 2007 | G10: 2008 | H10: =I10-1 -> 2009 | I10: 2010 | J10: 2011 | K10: 2012 | L10: 2013 | M10: 2014
B11: Umsatz in Mrd. | C11: 29.76 | D11: 27.38 | E11: 28.96 | F11: 32.38 | G11: 32.92 | H11: 21.17 | I11: 35.09 | J11: 36.53 | K11: 39.76 | L11: 40.16 | M11: 42.24
B12: Umsatz erhöht? (1=ja) | C12: 0 | D12: =IF(D11>C11, 1, 0) -> 0 | E12: =IF(E11>D11, 1, 0) -> 1 | F12: 1 | G12: 1 | H12: 0 | I12: 1 | J12: 1 | K12: 1 | L12: 1 | M12: 1
B13: Umsatzwachstum | D13: =D11/C11-1 -> -0.07997311828 | E13: =E11/D11-1 -> 0.057706355 | F13: 0.1180939227 | G13: 0.01667696109 | H13: -0.3569258809 | I13: 0.6575342466 | J13: 0.04103733257 | K13: 0.08842047632 | L13: 0.01006036217 | M13: 0.05179282869
B14: Ergebnis pro Aktie (EPS) | C14: 0.83 | D14: 2.19 | E14: 2.22 | F14: 5.84 | G14: 2.22 | H14: 1.7 | I14: 1.57 | J14: 2.99 | K14: 2.96 | L14: 3.86 | M14: 4.14
B15: EPS erhöht? (1=ja) | C15: 0 | D15: =IF(D14>C14, 1, 0) -> 1 | E15: 1 | F15: 1 | G15: 0 | H15: 0 | I15: 0 | J15: 1 | K15: 0 | L15: 1 | M15: 1
B16: EPS-Wachstum | D16: =D14/C14-1 -> 1.638554217 | E16: =E14/D14-1 -> 0.01369863014 | F16: 1.630630631 | G16: -0.6198630137 | H16: -0.2342342342 | I16: -0.07647058824 | J16: 0.9044585987 | K16: -0.01003344482 | L16: 0.3040540541 | M16: 0.0725388601
B17: Dividende pro Aktie | C17: 0.55 | D17: 0.95 | E17: 1 | F17: 1.35 | G17: 1.4 | H17: 1.4 | I17: 1.5 | J17: 1.65 | K17: 1.9 | L17: 2.1 | M17: 2.25
B18: Dividende erhöht? (1=ja) | C18: 0 | D18: =IF(D17>C17, 1, 0) -> 1 | E18: =IF(E17>D17, 1, 0) -> 1 | F18: 1 | G18: 1 | H18: 0 | I18: 1 | J18: 1 | K18: 1 | L18: 1 | M18: 1
B19: Div.-Wachstum | D19: =D17/C17-1 -> 0.7272727273 | E19: =E17/D17-1 -> 0.05263157895 | F19: 0.35 | G19: 0.03703703704 | H19: 0 | I19: 0.07142857143 | J19: 0.1 | K19: 0.1515151515 | L19: 0.1052631579 | M19: 0.07142857143
B20: Auszahlungsquote | C20: =C17/C14 -> 0.6626506024 | D20: 0.4337899543 | E20: 0.4504504505 | F20: 0.2311643836 | G20: 0.6306306306 | H20: 0.8235294118 | I20: 0.9554140127 | J20: 0.5518394649 | K20: 0.6418918919 | L20: 0.5440414508 | M20: 0.5434782609
B21: Kurs-Gewinn-Verhältnis (Jahresschlusskurs) | C21: 30.21 | D21: 16.14 | E21: 18.46 | F21: 10.14 | G21: 18.47 | H21: 34.05 | I21: 35.15 | J21: 16.54 | K21: 24.3 | L21: 26.44 | M21: 27.28
B22: Dividenden-Rendite (Jahresschlusskurs) | C22: 0.0221 | D22: 0.0269 | E22: 0.0246 | F22: 0.0216 | G22: 0.0337 | H22: 0.025 | I22: 0.0271 | J22: 0.0334 | K22: 0.0264 | L22: 0.0206 | M22: 0.0199
B24: Wachstumraten | E24: Qualität (Robustheit) | K24: Finanzkennzahlen | Q24: Bewertung
C25: Ergebnis | I25: Ergebnis | O25: Ergebnis | T25: Ergebnis
B26: Umsatz-Wachstum 5J > 10J | C26: =IF(C27>C28,"Ja","Nein") -> Ja | E26: Anzahl Verlustjahre (bei EPS) | I26: =COUNTIF(D14:M14,"<0")*-1 -> 0 | K26: Eigenkapital (Shareholder Equity) | O26: 20218 | Q26: 200 Tage Linie | T26: 123.16
B27: Umsatz-Wachstum 5J p.a. | C27: =AVERAGE(I13:M13) -> 0.1697690493 | E27: Anzahl Jahre mit steigendem Umsatz | I27: =SUM(D12:M12) -> 8 | K27: Current Assets | O27: 22227 | Q27: Differenz Kurz 200 Tage | T27: =H4/T26-1 -> 0.07978239688
B28: Umsatz-Wachstum 10J p.a. | C28: =AVERAGE(D13:M13) -> 0.06044234859 | E28: Anzahl Jahre mit steigendem EPS | I28: =SUM(C15:L15) -> 5 | K28: Current Liabilities | O28: 15503
B29: EPS-Wachstum 5J > 10J | C29: =IF(C30>C31,"Ja","Nein") -> Nein | E29: Anzahl Jahre mit steigender Dividende | I29: =SUM(D18:M18) -> 9 | K29: Fremdkapital (Debt) | O29: =34513+15503 -> 50016
B30: EPS-Wachstum 5J p.a. | C30: =AVERAGE(I16:M16) -> 0.238909496 | E30: Qualität in % (maximal 30 Punkte) | I30: =SUM(I26:I29)/30 -> 0.7333333333 | K30: Gesamtkapital (Total Assets) | O30: 70234
B31: EPS-Wachstum 10J p.a. | C31: =AVERAGE(D16:M16) -> 0.362333371 | K31: Umsatz (Revenue) | O31: 42239
B32: Dividenden-Wachstum 5J > 10J | C32: =IF(C33>C34,"Ja","Nein") -> Nein | E32: KGV | K32: Gewinn (Net income) | O32: 3443
B33: Dividenden-Wachstum 5J p.a. | C33: =AVERAGE(I19:M19) -> 0.09992709045 | I33: Ergebnis | K33: EBIT (Operating income) | O33: 5506
B34: Dividenden-Wachstum 10J p.a. | C34: =AVERAGE(D19:M19) -> 0.1666576796 | E34: KGV-Durchschnitt 10J | I34: =AVERAGE(D21:M21) -> 22.697 | K34: Eigenkapitalquote (equity ratio) | O34: =O26/O30 -> 0.2878662756
B35: Wachstumrate 10J p.a. | C35: =AVERAGE(C34,C31,C28) -> 0.1964777997 | E35: Aktuelles KGV < KGV Mittelwert? | I35: =IF(H5<I34,"Ja,","Nein") -> Ja, | K35: Eigenkapitalrentabilität (Return on Equity) | O35: =O32/O26 -> 0.1702937976
B36: Wachstumsrate 5J p.a. | C36: =AVERAGE(C33,C30,C27) -> 0.1695352119 | K36: Gesamtkapitalrentabilität (Return on Assets) | O36: =O32/O30 -> 0.04902184127
E37: Dividendenrendite | K37: Current-Valuation | O37: =IF(O27>O28,"JA","NEIN") -> JA
I38: Ergebnis | K38: NCAV | O38: =IF(O27>O29,"JA","NEIN") -> NEIN
E39: 10-Jahres-Durchschnittsdividendenrendite | I39: =AVERAGE(D22:M22) -> 0.02592 | K39: Verschuldungsgrad (Debt-to-equity) | O39: =O29/O26 -> 2.473835196
E40: Aktuelle Div.Rendite > Mittelwert Dividende? | I40: =IF(H6>I39,"Ja","Nein") -> Nein | K40: EBIT-Marge (EBIT margin) | O40: =O33/O31 -> 0.1303534648

Sheet BBL
B2: Analyse - Einzelunternehmen | Q2: Datum:
G3: Aktuelle Daten:
B4: BHP Billiton | G4: Kurs:
G5: KGV:
G6: Div.Rendite:
G7: Währung: | H7: Währung
B9: 10-Jahres-Übersicht | M9: akt. Jahr
B10: Jahr | C10: =D10-1 -> 2004 | D10: 2005 | E10: 2006 | F10: =G10-1 -> 2007 | G10: 2008 | H10: =I10-1 -> 2009 | I10: 2010 | J10: 2011 | K10: 2012 | L10: 2013 | M10: 2014
B11: Umsatz in Mrd.
B12: Umsatz erhöht? (1=ja) | C12: 0 | D12: =IF(D11>C11, 1, 0) -> 0 | E12: =IF(E11>D11, 1, 0) -> 0 | F12: 0 | G12: 0 | H12: 0 | I12: 0 | J12: 0 | K12: 0 | L12: 0 | M12: 0
B13: Umsatzwachstum | D13: =D11/C11-1 ->  | E13: =E11/D11-1 -> 
B14: Ergebnis pro Aktie (EPS)
B15: EPS erhöht? (1=ja) | C15: 0 | D15: =IF(D14>C14, 1, 0) -> 0 | E15: 0 | F15: 0 | G15: 0 | H15: 0 | I15: 0 | J15: 0 | K15: 0 | L15: 0 | M15: 0
B16: EPS-Wachstum | D16: =D14/C14-1 ->  | E16: =E14/D14-1 -> 
B17: Dividende pro Aktie
B18: Dividende erhöht? (1=ja) | C18: 0 | D18: =IF(D17>C17, 1, 0) -> 0 | E18: =IF(E17>D17, 1, 0) -> 0 | F18: 0 | G18: 0 | H18: 0 | I18: 0 | J18: 0 | K18: 0 | L18: 0 | M18: 0
B19: Div.-Wachstum | D19: =D17/C17-1 ->  | E19: =E17/D17-1 -> 
B20: Auszahlungsquote | C20: =C17/C14 -> 
B21: Kurs-Gewinn-Verhältnis (Jahresschlusskurs)
B22: Dividenden-Rendite (Jahresschlusskurs)
B24: Wachstumraten | E24: Qualität (Robustheit) | K24: Finanzkennzahlen
C25: Ergebnis | I25: Ergebnis | O25: Ergebnis
B26: Umsatz-Wachstum 5J > 10J | C26: =IF(C27>C28,"Ja","Nein") ->  | E26: Anzahl Verlustjahre (bei EPS) | I26: =COUNTIF(D14:M14,"<0")*-1 -> 0 | K26: Eigenkapital (Shareholder Equity)
B27: Umsatz-Wachstum 5J p.a. | C27: =AVERAGE(I13:M13) ->  | E27: Anzahl Jahre mit steigendem Umsatz | I27: =SUM(D12:M12) -> 0 | K27: Current Assets
B28: Umsatz-Wachstum 10J p.a. | C28: =AVERAGE(D13:M13) ->  | E28: Anzahl Jahre mit steigendem EPS | I28: =SUM(C15:L15) -> 0 | K28: Current Liabilities
B29: EPS-Wachstum 5J > 10J | C29: =IF(C30>C31,"Ja","Nein") ->  | E29: Anzahl Jahre mit steigender Dividende | I29: =SUM(D18:M18) -> 0 | K29: Fremdkapital (Debt)
B30: EPS-Wachstum 5J p.a. | C30: =AVERAGE(I16:M16) ->  | E30: Qualität in % (maximal 30 Punkte) | I30: =SUM(I26:I29)/30 -> 0 | K30: Gesamtkapital (Total Assets)
B31: EPS-Wachstum 10J p.a. | C31: =AVERAGE(D16:M16) ->  | K31: Umsatz (Revenue)
B32: Dividenden-Wachstum 5J > 10J | C32: =IF(C33>C34,"Ja","Nein") ->  | E32: KGV | K32: Gewinn (Net income)
B33: Dividenden-Wachstum 5J p.a. | C33: =AVERAGE(I19:M19) ->  | I33: Ergebnis | K33: EBIT (Operating income)
B34: Dividenden-Wachstum 10J p.a. | C34: =AVERAGE(D19:M19) ->  | E34: KGV-Durchschnitt 10J | I34: =AVERAGE(D21:M21) ->  | K34: Eigenkapitalquote (equity ratio) | O34: =O26/O30 -> 
B35: Wachstumrate 10J p.a. | C35: =AVERAGE(C34,C31,C28) ->  | E35: Aktuelles KGV < KGV Mittelwert? | I35: =IF(H5<I34,"Ja,","Nein") ->  | K35: Eigenkapitalrentabilität (Return on Equity) | O35: =O32/O26 -> 
B36: Wachstumsrate 5J p.a. | C36: =AVERAGE(C33,C30,C27) ->  | K36: Gesamtkapitalrentabilität (Return on Assets) | O36: =O32/O30 -> 
E37: Dividendenrendite | K37: Current-Valuation | O37: =IF(O27>O28,"JA","NEIN") -> NEIN
I38: Ergebnis | K38: NCAV | O38: =IF(O27>O29,"JA","NEIN") -> NEIN
E39: 10-Jahres-Durchschnittsdividendenrendite | I39: =AVERAGE(D22:M22) ->  | K39: Verschuldungsgrad (Debt-to-equity) | O39: =O29/O26 -> 
E40: Aktuelle Div.Rendite > Mittelwert Dividende? | I40: =IF(H6>I39,"Ja","Nein") ->  | K40: EBIT-Marge (EBIT margin) | O40: =O33/O31 -> 

Sheet BLK
B2: Analyse - Einzelunternehmen | Q2: Datum: 15.05.2015
G3: Aktuelle Daten:
B4: Blackrock | G4: Kurs: | H4: 368.64
G5: KGV: | H5: 18.7
G6: Div.Rendite: | H6: 0.0237
G7: Währung: | H7: USD
B9: 10-Jahres-Übersicht | M9: akt. Jahr
B10: Jahr | C10: =D10-1 -> 2004 | D10: 2005 | E10: 2006 | F10: =G10-1 -> 2007 | G10: 2008 | H10: =I10-1 -> 2009 | I10: 2010 | J10: 2011 | K10: 2012 | L10: 2013 | M10: 2014
B11: Umsatz in Mrd. | C11: 0.72531 | D11: 1.191 | E11: 2.098 | F11: 4.845 | G11: 5.064 | H11: 4.7 | I11: 8.612 | J11: 9.081 | K11: 9.337 | L11: 10.18 | M11: 11.08
B12: Umsatz erhöht? (1=ja) | C12: 0 | D12: =IF(D11>C11, 1, 0) -> 1 | E12: =IF(E11>D11, 1, 0) -> 1 | F12: 1 | G12: 1 | H12: 0 | I12: 1 | J12: 1 | K12: 1 | L12: 1 | M12: 1
B13: Umsatzwachstum | D13: =D11/C11-1 -> 0.6420565 | E13: =E11/D11-1 -> 0.7615449202 | F13: 1.309342231 | G13: 0.04520123839 | H13: -0.07187993681 | I13: 0.8323404255 | J13: 0.05445889457 | K13: 0.02819072789 | L13: 0.09028595909 | M13: 0.0884086444
B14: Ergebnis pro Aktie (EPS) | C14: 2.171 | D14: 3.507 | E14: 3.566 | F14: 7.519 | G14: 5.76 | H14: 6.122 | I14: 10.6 | J14: 12.38 | K14: 13.81 | L14: 16.87 | M14: 19.26
B15: EPS erhöht? (1=ja) | C15: 0 | D15: =IF(D14>C14, 1, 0) -> 1 | E15: 1 | F15: 1 | G15: 0 | H15: 1 | I15: 1 | J15: 1 | K15: 1 | L15: 1 | M15: 1
B16: EPS-Wachstum | D16: =D14/C14-1 -> 0.6153846154 | E16: =E14/D14-1 -> 0.01682349587 | F16: 1.108524958 | G16: -0.2339406836 | H16: 0.06284722222 | I16: 0.7314603071 | J16: 0.1679245283 | K16: 0.1155088853 | L16: 0.2215785663 | M16: 0.1416716064
B17: Dividende pro Aktie | C17: =4*0.25 -> 1 | D17: =4*0.3 -> 1.2 | E17: =4*0.42 -> 1.68 | F17: =4*0.67 -> 2.68 | G17: =4*0.78 -> 3.12 | H17: =4*0.78 -> 3.12 | I17: 4 | J17: =4*1.375 -> 5.5 | K17: =4*1.5 -> 6 | L17: =4*1.68 -> 6.72 | M17: =4*1.93 -> 7.72
B18: Dividende erhöht? (1=ja) | C18: 0 | D18: =IF(D17>C17, 1, 0) -> 1 | E18: =IF(E17>D17, 1, 0) -> 1 | F18: 1 | G18: 1 | H18: 0 | I18: 1 | J18: 1 | K18: 1 | L18: 1 | M18: 1
B19: Div.-Wachstum | D19: =D17/C17-1 -> 0.2 | E19: =E17/D17-1 -> 0.4 | F19: 0.5952380952 | G19: 0.1641791045 | H19: 0 | I19: 0.2820512821 | J19: 0.375 | K19: 0.09090909091 | L19: 0.12 | M19: 0.1488095238
B20: Auszahlungsquote | C20: =C17/C14 -> 0.4606172271 | D20: 0.3421727973 | E20: 0.4711160965 | F20: 0.3564303764 | G20: 0.5416666667 | H20: 0.5096373734 | I20: 0.3773584906 | J20: 0.4442649435 | K20: 0.434467777 | L20: 0.398340249 | M20: 0.4008307373
B21: Kurs-Gewinn-Verhältnis (Jahresschlusskurs)
B22: Dividenden-Rendite (Jahresschlusskurs)
B24: Wachstumraten | E24: Qualität (Robustheit) | K24: Finanzkennzahlen
C25: Ergebnis | I25: Ergebnis | O25: Ergebnis
B26: Umsatz-Wachstum 5J > 10J | C26: =IF(C27>C28,"Ja","Nein") -> Nein | E26: Anzahl Verlustjahre (bei EPS) | I26: =COUNTIF(D14:M14,"<0")*-1 -> 0 | K26: Eigenkapital (Shareholder Equity) | O26: 27366
B27: Umsatz-Wachstum 5J p.a. | C27: =AVERAGE(I13:M13) -> 0.2187369303 | E27: Anzahl Jahre mit steigendem Umsatz | I27: =SUM(D12:M12) -> 9 | K27: Current Assets
B28: Umsatz-Wachstum 10J p.a. | C28: =AVERAGE(D13:M13) -> 0.3779949604 | E28: Anzahl Jahre mit steigendem EPS | I28: =SUM(C15:L15) -> 8 | K28: Current Liabilities
B29: EPS-Wachstum 5J > 10J | C29: =IF(C30>C31,"Ja","Nein") -> Nein | E29: Anzahl Jahre mit steigender Dividende | I29: =SUM(D18:M18) -> 9 | K29: Fremdkapital (Debt) | O29: 4938
B30: EPS-Wachstum 5J p.a. | C30: =AVERAGE(I16:M16) -> 0.2756287787 | E30: Qualität in % (maximal 30 Punkte) | I30: =SUM(I26:I29)/30 -> 0.8666666667 | K30: Gesamtkapital (Total Assets) | O30: 41080
B31: EPS-Wachstum 10J p.a. | C31: =AVERAGE(D16:M16) -> 0.2947783501 | K31: Umsatz (Revenue) | O31: 11081
B32: Dividenden-Wachstum 5J > 10J | C32: =IF(C33>C34,"Ja","Nein") -> Nein | E32: KGV | K32: Gewinn (Net income) | O32: 3264
B33: Dividenden-Wachstum 5J p.a. | C33: =AVERAGE(I19:M19) -> 0.2033539794 | I33: Ergebnis | K33: EBIT (Operating income) | O33: 4474
B34: Dividenden-Wachstum 10J p.a. | C34: =AVERAGE(D19:M19) -> 0.2376187096 | E34: KGV-Durchschnitt 10J | I34: =AVERAGE(D21:M21) ->  | K34: Eigenkapitalquote (equity ratio) | O34: =O26/O30 -> 0.6661635833
B35: Wachstumrate 10J p.a. | C35: =AVERAGE(C34,C31,C28) -> 0.3034640067 | E35: Aktuelles KGV < KGV Mittelwert? | I35: =IF(H5<I34,"Ja,","Nein") ->  | K35: Eigenkapitalrentabilität (Return on Equity) | O35: =O32/O26 -> 0.1192720895
B36: Wachstumsrate 5J p.a. | C36: =AVERAGE(C33,C30,C27) -> 0.2325732294 | K36: Gesamtkapitalrentabilität (Return on Assets) | O36: =O32/O30 -> 0.07945472249
E37: Dividendenrendite | K37: Current-Valuation | O37: =IF(O27>O28,"JA","NEIN") -> NEIN
I38: Ergebnis | K38: NCAV | O38: =IF(O27>O29,"JA","NEIN") -> NEIN
E39: 10-Jahres-Durchschnittsdividendenrendite | I39: =AVERAGE(D22:M22) ->  | K39: Verschuldungsgrad (Debt-to-equity) | O39: =O29/O26 -> 0.1804428853
E40: Aktuelle Div.Rendite > Mittelwert Dividende? | I40: =IF(H6>I39,"Ja","Nein") ->  | K40: EBIT-Marge (EBIT margin) | O40: =O33/O31 -> 0.4037541738

Sheet BP
B2: Analyse - Einzelunternehmen | Q2: Datum:
G3: Aktuelle Daten:
B4: British Petroleum | G4: Kurs: | H4: 6.065
G5: KGV: | H5: 9.54
G6: Div.Rendite: | H6: 0.0621
G7: Währung: | H7: Währung
B9: 10-Jahres-Übersicht | M9: akt. Jahr
B10: Jahr | C10: =D10-1 -> 2004 | D10: 2005 | E10: 2006 | F10: =G10-1 -> 2007 | G10: 2008 | H10: =I10-1 -> 2009 | I10: 2010 | J10: 2011 | K10: 2012 | L10: 2013 | M10: 2014
B11: Umsatz in Mrd. | C11: 294.849 | D11: 255.159 | E11: 274.316 | F11: 291.438 | G11: 365.7 | H11: 246.138 | I11: 302.545 | J11: 375.517 | K11: 375.58 | L11: 379.136 | M11: 353.568
B12: Umsatz erhöht? (1=ja) | C12: 0 | D12: =IF(D11>C11, 1, 0) -> 0 | E12: =IF(E11>D11, 1, 0) -> 1 | F12: 1 | G12: 1 | H12: 0 | I12: 1 | J12: 1 | K12: 1 | L12: 1 | M12: 0
B13: Umsatzwachstum | D13: =D11/C11-1 -> -0.1346112756 | E13: =E11/D11-1 -> 0.07507867643 | F13: 0.06241706645 | G13: 0.2548123443 | H13: -0.3269401148 | I13: 0.2291681902 | J13: 0.241193872 | K13: 0.0001677687029 | L13: 0.009468022791 | M13: -0.0674375422
B14: Ergebnis pro Aktie (EPS) | C14: 0.72 | D14: 1.06 | E14: 1.1 | F14: 1.09 | G14: 1.13 | H14: 0.88 | I14: -0.2 | J14: 1.36 | K14: 0.61 | L14: 1.24 | M14: 0.21
B15: EPS erhöht? (1=ja) | C15: 0 | D15: =IF(D14>C14, 1, 0) -> 1 | E15: 1 | F15: 0 | G15: 1 | H15: 0 | I15: 0 | J15: 1 | K15: 0 | L15: 1 | M15: 0
B16: EPS-Wachstum | D16: =D14/C14-1 -> 0.4722222222 | E16: =E14/D14-1 -> 0.03773584906 | F16: -0.009090909091 | G16: 0.03669724771 | H16: -0.2212389381 | I16: -1.227272727 | J16: =-(J14/I14-1) -> 7.8 | K16: -0.5514705882 | L16: 1.032786885 | M16: -0.8306451613
B17: Dividende pro Aktie | C17: 0.28 | D17: 0.35 | E17: 0.38 | F17: 0.42 | G17: 0.55 | H17: 0.56 | I17: 0.14 | J17: 0.28 | K17: 0.33 | L17: 0.37 | M17: 0.39
B18: Dividende erhöht? (1=ja) | C18: 0 | D18: =IF(D17>C17, 1, 0) -> 1 | E18: =IF(E17>D17, 1, 0) -> 1 | F18: 1 | G18: 1 | H18: 1 | I18: 0 | J18: 1 | K18: 1 | L18: 1 | M18: 1
B19: Div.-Wachstum | D19: =D17/C17-1 -> 0.25 | E19: =E17/D17-1 -> 0.08571428571 | F19: 0.1052631579 | G19: 0.3095238095 | H19: 0.01818181818 | I19: -0.75 | J19: 1 | K19: 0.1785714286 | L19: 0.1212121212 | M19: 0.05405405405
B20: Auszahlungsquote | C20: =C17/C14 -> 0.3888888889 | D20: 0.3301886792 | E20: 0.3454545455 | F20: 0.3853211009 | G20: 0.4867256637 | H20: 0.6363636364 | I20: -0.7 | J20: 0.2058823529 | K20: 0.5409836066 | L20: 0.2983870968 | M20: 1.857142857
B21: Kurs-Gewinn-Verhältnis (Jahresschlusskurs) | C21: 12.8 | D21: 11 | E21: 5.2 | F21: 5.6 | G21: 4.7 | H21: 7.6 | I21: - | J21: 4.1 | K21: 11 | L21: 6.5 | M21: 31.1
B22: Dividenden-Rendite (Jahresschlusskurs) | C22: 0.0303 | D22: 0.0301 | E22: 0.067 | F22: 0.0683 | G22: 0.1046 | H22: 0.084 | I22: 0.0255 | J22: 0.0503 | K22: 0.0495 | L22: 0.0452 | M22: 0.0609
B24: Wachstumraten | E24: Qualität (Robustheit) | K24: Finanzkennzahlen
C25: Ergebnis | I25: Ergebnis | O25: Ergebnis
B26: Umsatz-Wachstum 5J > 10J | C26: =IF(C27>C28,"Ja","Nein") -> Ja | E26: Anzahl Verlustjahre (bei EPS) | I26: =COUNTIF(D14:M14,"<0")*-1 -> -1 | K26: Eigenkapital (Shareholder Equity) | O26: 111441
B27: Umsatz-Wachstum 5J p.a. | C27: =AVERAGE(I13:M13) -> 0.0825120623 | E27: Anzahl Jahre mit steigendem Umsatz | I27: =SUM(D12:M12) -> 7 | K27: Current Assets | O27: 87262
B28: Umsatz-Wachstum 10J p.a. | C28: =AVERAGE(D13:M13) -> 0.03433170082 | E28: Anzahl Jahre mit steigendem EPS | I28: =SUM(C15:L15) -> 5 | K28: Current Liabilities | O28: 63615
B29: EPS-Wachstum 5J > 10J | C29: =IF(C30>C31,"Ja","Nein") -> Ja | E29: Anzahl Jahre mit steigender Dividende | I29: =SUM(D18:M18) -> 9 | K29: Fremdkapital (Debt) | O29: 171663
B30: EPS-Wachstum 5J p.a. | C30: =AVERAGE(I16:M16) -> 1.244679682 | E30: Qualität in % (maximal 30 Punkte) | I30: =SUM(I26:I29)/30 -> 0.6666666667 | K30: Gesamtkapital (Total Assets) | O30: 284305
B31: EPS-Wachstum 10J p.a. | C31: =AVERAGE(D16:M16) -> 0.653972388 | K31: Umsatz (Revenue) | O31: 353568
B32: Dividenden-Wachstum 5J > 10J | C32: =IF(C33>C34,"Ja","Nein") -> Nein | E32: KGV | K32: Gewinn (Net income) | O32: 4003
B33: Dividenden-Wachstum 5J p.a. | C33: =AVERAGE(I19:M19) -> 0.1207675208 | I33: Ergebnis | K33: EBIT (Operating income) | O33: 6412
B34: Dividenden-Wachstum 10J p.a. | C34: =AVERAGE(D19:M19) -> 0.1372520675 | E34: KGV-Durchschnitt 10J | I34: =AVERAGE(D21:M21) -> 9.644444444 | K34: Eigenkapitalquote (equity ratio) | O34: =O26/O30 -> 0.3919769262
B35: Wachstumrate 10J p.a. | C35: =AVERAGE(C34,C31,C28) -> 0.2751853855 | E35: Aktuelles KGV < KGV Mittelwert? | I35: =IF(H5<I34,"Ja,","Nein") -> Ja, | K35: Eigenkapitalrentabilität (Return on Equity) | O35: =O32/O26 -> 0.03592035247
B36: Wachstumsrate 5J p.a. | C36: =AVERAGE(C33,C30,C27) -> 0.4826530883 | K36: Gesamtkapitalrentabilität (Return on Assets) | O36: =O32/O30 -> 0.01407994935
E37: Dividendenrendite | K37: Current-Valuation | O37: =IF(O27>O28,"JA","NEIN") -> JA
I38: Ergebnis | K38: NCAV | O38: =IF(O27>O29,"JA","NEIN") -> NEIN
E39: 10-Jahres-Durchschnittsdividendenrendite | I39: =AVERAGE(D22:M22) -> 0.05854 | K39: Verschuldungsgrad (Debt-to-equity) | O39: =O29/O26 -> 1.540393571
E40: Aktuelle Div.Rendite > Mittelwert Dividende? | I40: =IF(H6>I39,"Ja","Nein") -> Ja | K40: EBIT-Marge (EBIT margin) | O40: =O33/O31 -> 0.01813512535

Sheet BUD
B2: Analyse - Einzelunternehmen | Q2: Datum: 17.06.2015
G3: Aktuelle Daten:
B4: Anheuser-Busch | G4: Kurs: | H4: 108.123
G5: KGV: | H5: 20.99
G6: Div.Rendite: | H6: 0.028
G7: Währung: | H7: Währung
B9: 10-Jahres-Übersicht | M9: akt. Jahr
B10: Jahr | C10: =D10-1 -> 2004 | D10: 2005 | E10: 2006 | F10: =G10-1 -> 2007 | G10: 2008 | H10: =I10-1 -> 2009 | I10: 2010 | J10: 2011 | K10: 2012 | L10: 2013 | M10: 2014
B11: Umsatz in Mrd. | G11: 23.51 | H11: 36.76 | I11: 36.3 | J11: 39.05 | K11: 39.76 | L11: 43.2
B12: Umsatz erhöht? (1=ja) | C12: 0 | D12: =IF(D11>C11, 1, 0) -> 0 | E12: =IF(E11>D11, 1, 0) -> 0 | F12: 0 | G12: 1 | H12: 1 | I12: 0 | J12: 1 | K12: 1 | L12: 1 | M12: 0
B13: Umsatzwachstum | D13: =D11/C11-1 ->  | E13: =E11/D11-1 ->  | H13: 0.5635899617 | I13: -0.01251360174 | J13: 0.07575757576 | K13: 0.01818181818 | L13: 0.08651911469 | M13: -1
B14: Ergebnis pro Aktie (EPS) | G14: 1.93 | H14: 2.91 | I14: 2.53 | J14: 3.67 | K14: 4.53 | L14: 8.9
B15: EPS erhöht? (1=ja) | C15: 0 | D15: =IF(D14>C14, 1, 0) -> 0 | E15: 0 | F15: 0 | G15: 1 | H15: 1 | I15: 0 | J15: 1 | K15: 1 | L15: 1 | M15: 0
B16: EPS-Wachstum | D16: =D14/C14-1 ->  | E16: =E14/D14-1 ->  | H16: 0.5077720207 | I16: -0.1305841924 | J16: 0.4505928854 | K16: 0.2343324251 | L16: 0.9646799117 | M16: -1
B17: Dividende pro Aktie | G17: 0.35 | H17: 0.55 | I17: 1.07 | J17: 1.55 | K17: 2.23 | L17: 2.83
B18: Dividende erhöht? (1=ja) | C18: 0 | D18: =IF(D17>C17, 1, 0) -> 0 | E18: =IF(E17>D17, 1, 0) -> 0 | F18: 0 | G18: 1 | H18: 1 | I18: 1 | J18: 1 | K18: 1 | L18: 1 | M18: 0
B19: Div.-Wachstum | D19: =D17/C17-1 ->  | E19: =E17/D17-1 ->  | H19: 0.5714285714 | I19: 0.9454545455 | J19: 0.4485981308 | K19: 0.4387096774 | L19: 0.269058296 | M19: -1
B20: Auszahlungsquote | C20: =C17/C14 ->  | G20: 0.1813471503 | H20: 0.1890034364 | I20: 0.4229249012 | J20: 0.4223433243 | K20: 0.4922737307 | L20: 0.3179775281
B21: Kurs-Gewinn-Verhältnis (Jahresschlusskurs) | H21: 17.1 | I21: 23.05 | J21: 16.53 | K21: 19.36 | L21: 11.51
B22: Dividenden-Rendite (Jahresschlusskurs) | H22: 0.0112 | I22: 0.0185 | J22: 0.0257 | K22: 0.0256 | L22: 0.0275
B24: Wachstumraten | E24: Qualität (Robustheit) | K24: Finanzkennzahlen | Q24: Bewertung
C25: Ergebnis | I25: Ergebnis | O25: Ergebnis | T25: Ergebnis
B26: Umsatz-Wachstum 5J > 10J | C26: =IF(C27>C28,"Ja","Nein") ->  | E26: Anzahl Verlustjahre (bei EPS) | I26: =COUNTIF(D14:M14,"<0")*-1 -> 0 | K26: Eigenkapital (Shareholder Equity) | O26: 54257 | Q26: 200 Tage Linie | T26: 100.24
B27: Umsatz-Wachstum 5J p.a. | C27: =AVERAGE(I13:M13) -> -0.1664110186 | E27: Anzahl Jahre mit steigendem Umsatz | I27: =SUM(D12:M12) -> 5 | K27: Current Assets | O27: 18541 | Q27: Differenz Kurz 200 Tage | T27: =H4/T26-1 -> 0.07864126097
B28: Umsatz-Wachstum 10J p.a. | C28: =AVERAGE(D13:M13) ->  | E28: Anzahl Jahre mit steigendem EPS | I28: =SUM(C15:L15) -> 5 | K28: Current Liabilities | O28: 27208
B29: EPS-Wachstum 5J > 10J | C29: =IF(C30>C31,"Ja","Nein") ->  | E29: Anzahl Jahre mit steigender Dividende | I29: =SUM(D18:M18) -> 6 | K29: Fremdkapital (Debt) | O29: 61085
B30: EPS-Wachstum 5J p.a. | C30: =AVERAGE(I16:M16) -> 0.1038042059 | E30: Qualität in % (maximal 30 Punkte) | I30: =SUM(I26:I29)/18 -> 0.8888888889 | K30: Gesamtkapital (Total Assets) | O30: 142550
B31: EPS-Wachstum 10J p.a. | C31: =AVERAGE(D16:M16) ->  | K31: Umsatz (Revenue) | O31: 47063
B32: Dividenden-Wachstum 5J > 10J | C32: =IF(C33>C34,"Ja","Nein") ->  | E32: KGV | K32: Gewinn (Net income) | O32: 11302
B33: Dividenden-Wachstum 5J p.a. | C33: =AVERAGE(I19:M19) -> 0.2203641299 | I33: Ergebnis | K33: EBIT (Operating income) | O33: 15111
B34: Dividenden-Wachstum 10J p.a. | C34: =AVERAGE(D19:M19) ->  | E34: KGV-Durchschnitt 10J | I34: =AVERAGE(D21:M21) -> 17.51 | K34: Eigenkapitalquote (equity ratio) | O34: =O26/O30 -> 0.3806173273
B35: Wachstumrate 10J p.a. | C35: =AVERAGE(C34,C31,C28) ->  | E35: Aktuelles KGV < KGV Mittelwert? | I35: =IF(H5<I34,"Ja,","Nein") -> Nein | K35: Eigenkapitalrentabilität (Return on Equity) | O35: =O32/O26 -> 0.2083049192
B36: Wachstumsrate 5J p.a. | C36: =AVERAGE(C33,C30,C27) -> 0.05258577242 | K36: Gesamtkapitalrentabilität (Return on Assets) | O36: =O32/O30 -> 0.07928446159
E37: Dividendenrendite | K37: Current-Valuation | O37: =IF(O27>O28,"JA","NEIN") -> NEIN
I38: Ergebnis | K38: NCAV | O38: =IF(O27>O29,"JA","NEIN") -> NEIN
E39: 10-Jahres-Durchschnittsdividendenrendite | I39: =AVERAGE(D22:M22) -> 0.0217 | K39: Verschuldungsgrad (Debt-to-equity) | O39: =O29/O26 -> 1.125845513
E40: Aktuelle Div.Rendite > Mittelwert Dividende? | I40: =IF(H6>I39,"Ja","Nein") -> Ja | K40: EBIT-Marge (EBIT margin) | O40: =O33/O31 -> 0.3210802541

Sheet CARL
B2: Analyse - Einzelunternehmen | Q2: Datum: 12.06.2015
G3: Aktuelle Daten:
B4: Carlsberg | G4: Kurs: | H4: 81.26
G5: KGV: | H5: 15.66
G6: Div.Rendite: | H6: 0.0164
G7: Währung: | H7: DKK
B9: 10-Jahres-Übersicht | M9: akt. Jahr
B10: Jahr | C10: =D10-1 -> 2004 | D10: 2005 | E10: 2006 | F10: =G10-1 -> 2007 | G10: 2008 | H10: =I10-1 -> 2009 | I10: 2010 | J10: 2011 | K10: 2012 | L10: 2013 | M10: 2014
B11: Umsatz in Mrd. | H11: 59.38 | I11: 60.05 | J11: 63.56 | K11: 67.2 | L11: 66.55 | M11: 64.51
B12: Umsatz erhöht? (1=ja) | C12: 0 | D12: =IF(D11>C11, 1, 0) -> 0 | E12: =IF(E11>D11, 1, 0) -> 0 | F12: 0 | G12: 0 | H12: 1 | I12: 1 | J12: 1 | K12: 1 | L12: 0 | M12: 0
B13: Umsatzwachstum | D13: =D11/C11-1 ->  | E13: =E11/D11-1 ->  | I13: 0.01128326036 | J13: 0.05845129059 | K13: 0.05726872247 | L13: -0.009672619048 | M13: -0.03065364388
B14: Ergebnis pro Aktie (EPS) | H14: 23.6 | I14: 35.1 | J14: 33.8 | K14: 36.8 | L14: 35.9 | M14: 28.9
B15: EPS erhöht? (1=ja) | C15: 0 | D15: =IF(D14>C14, 1, 0) -> 0 | E15: 0 | F15: 0 | G15: 0 | H15: 1 | I15: 1 | J15: 0 | K15: 1 | L15: 0 | M15: 0
B16: EPS-Wachstum | D16: =D14/C14-1 ->  | E16: =E14/D14-1 ->  | I16: 0.4872881356 | J16: -0.03703703704 | K16: 0.08875739645 | L16: -0.02445652174 | M16: -0.1949860724
B17: Dividende pro Aktie | H17: 3.5 | I17: 5 | J17: 5.5 | K17: 6 | L17: 8
B18: Dividende erhöht? (1=ja) | C18: 0 | D18: =IF(D17>C17, 1, 0) -> 0 | E18: =IF(E17>D17, 1, 0) -> 0 | F18: 0 | G18: 0 | H18: 1 | I18: 1 | J18: 1 | K18: 1 | L18: 1 | M18: 0
B19: Div.-Wachstum | D19: =D17/C17-1 ->  | E19: =E17/D17-1 ->  | I19: 0.4285714286 | J19: 0.1 | K19: 0.09090909091 | L19: 0.3333333333 | M19: -1
B20: Auszahlungsquote | C20: =C17/C14 ->  | H20: 0.1483050847 | I20: 0.1424501425 | J20: 0.1627218935 | K20: 0.1630434783 | L20: 0.2228412256 | M20: 0
B21: Kurs-Gewinn-Verhältnis (Jahresschlusskurs) | H21: 16.58 | I21: 16.31 | J21: 12.35 | K21: 15.78 | L21: 17.43
B22: Dividenden-Rendite (Jahresschlusskurs) | H22: 0.0089 | I22: 0.0087 | J22: 0.0132 | K22: 0.0103 | L22: 0.0128
B24: Wachstumraten | E24: Qualität (Robustheit) | K24: Finanzkennzahlen | Q24: Bewertung
C25: Ergebnis | I25: Ergebnis | O25: Ergebnis | T25: Ergebnis
B26: Umsatz-Wachstum 5J > 10J | C26: =IF(C27>C28,"Ja","Nein") ->  | E26: Anzahl Verlustjahre (bei EPS) | I26: =COUNTIF(D14:M14,"<0")*-1 -> 0 | K26: Eigenkapital (Shareholder Equity) | O26: 55997 | Q26: 200 Tage Linie | T26: 72.67
B27: Umsatz-Wachstum 5J p.a. | C27: =AVERAGE(I13:M13) -> 0.0173354021 | E27: Anzahl Jahre mit steigendem Umsatz | I27: =SUM(D12:M12) -> 4 | K27: Current Assets | O27: 17575 | Q27: Differenz Kurz 200 Tage | T27: =H4/T26-1 -> 0.1182055869
B28: Umsatz-Wachstum 10J p.a. | C28: =AVERAGE(D13:M13) ->  | E28: Anzahl Jahre mit steigendem EPS | I28: =SUM(C15:L15) -> 3 | K28: Current Liabilities | O28: 26523
B29: EPS-Wachstum 5J > 10J | C29: =IF(C30>C31,"Ja","Nein") ->  | E29: Anzahl Jahre mit steigender Dividende | I29: =SUM(D18:M18) -> 5 | K29: Fremdkapital (Debt) | O29: 80986
B30: EPS-Wachstum 5J p.a. | C30: =AVERAGE(I16:M16) -> 0.06391318017 | E30: Qualität in % (maximal 30 Punkte) | I30: =SUM(I26:I29)/15 -> 0.8 | K30: Gesamtkapital (Total Assets) | O30: 136983
B31: EPS-Wachstum 10J p.a. | C31: =AVERAGE(D16:M16) ->  | K31: Umsatz (Revenue) | O31: 91569
B32: Dividenden-Wachstum 5J > 10J | C32: =IF(C33>C34,"Ja","Nein") ->  | E32: KGV | K32: Gewinn (Net income) | O32: 4938
B33: Dividenden-Wachstum 5J p.a. | C33: =AVERAGE(I19:M19) -> -0.009437229437 | I33: Ergebnis | K33: EBIT (Operating income) | O33: 9230
B34: Dividenden-Wachstum 10J p.a. | C34: =AVERAGE(D19:M19) ->  | E34: KGV-Durchschnitt 10J | I34: =AVERAGE(H21:L21) -> 15.69 | K34: Eigenkapitalquote (equity ratio) | O34: =O26/O30 -> 0.4087879518
B35: Wachstumrate 10J p.a. | C35: =AVERAGE(C34,C31,C28) ->  | E35: Aktuelles KGV < KGV Mittelwert? | I35: =IF(H5<I34,"Ja,","Nein") -> Ja, | K35: Eigenkapitalrentabilität (Return on Equity) | O35: =O32/O26 -> 0.08818329553
B36: Wachstumsrate 5J p.a. | C36: =AVERAGE(C33,C30,C27) -> 0.02393711761 | K36: Gesamtkapitalrentabilität (Return on Assets) | O36: =O32/O30 -> 0.03604826876
E37: Dividendenrendite | K37: Current-Valuation | O37: =IF(O27>O28,"JA","NEIN") -> NEIN
I38: Ergebnis | K38: NCAV | O38: =IF(O27>O29,"JA","NEIN") -> NEIN
E39: 10-Jahres-Durchschnittsdividendenrendite | I39: =AVERAGE(H22:L22) -> 0.01078 | K39: Verschuldungsgrad (Debt-to-equity) | O39: =O29/O26 -> 1.446256049
E40: Aktuelle Div.Rendite > Mittelwert Dividende? | I40: =IF(H6>I39,"Ja","Nein") -> Ja | K40: EBIT-Marge (EBIT margin) | O40: =O33/O31 -> 0.1007983051

Sheet CAT
B2: Analyse - Einzelunternehmen | Q2: Datum: 25.06.2015
G3: Aktuelle Daten:
B4: Caterpillar | G4: Kurs: | H4: 77.3
G5: KGV: | H5: 12.59
G6: Div.Rendite: | H6: 0.0298
G7: Währung: | H7: USD
B9: 10-Jahres-Übersicht | M9: akt. Jahr
B10: Jahr | C10: =D10-1 -> 2004 | D10: 2005 | E10: 2006 | F10: =G10-1 -> 2007 | G10: 2008 | H10: =I10-1 -> 2009 | I10: 2010 | J10: 2011 | K10: 2012 | L10: 2013 | M10: 2014
B11: Umsatz in Mrd. | C11: 28.34 | D11: 34.01 | E11: 38.87 | F11: 41.96 | G11: 48.04 | H11: 29.54 | I11: 39.87 | J11: 57.39 | K11: 63.07 | L11: 52.69 | M11: 52.14
B12: Umsatz erhöht? (1=ja) | C12: 0 | D12: =IF(D11>C11, 1, 0) -> 1 | E12: =IF(E11>D11, 1, 0) -> 1 | F12: 1 | G12: 1 | H12: 0 | I12: 1 | J12: 1 | K12: 1 | L12: 0 | M12: 0
B13: Umsatzwachstum | D13: =D11/C11-1 -> 0.2000705716 | E13: =E11/D11-1 -> 0.1428991473 | F13: 0.07949575508 | G13: 0.1448999047 | H13: -0.3850957535 | I13: 0.3496953284 | J13: 0.4394281415 | K13: 0.09897194633 | L13: -0.1645790392 | M13: -0.01043841336
B14: Ergebnis pro Aktie (EPS) | C14: 2.98 | D14: 4.21 | E14: 5.37 | F14: 5.55 | G14: 5.83 | H14: 1.45 | I14: 4.28 | J14: 7.64 | K14: 8.71 | L14: 5.87 | M14: 5.99
B15: EPS erhöht? (1=ja) | C15: 0 | D15: =IF(D14>C14, 1, 0) -> 1 | E15: 1 | F15: 1 | G15: 1 | H15: 0 | I15: 1 | J15: 1 | K15: 1 | L15: 0 | M15: 1
B16: EPS-Wachstum | D16: =D14/C14-1 -> 0.4127516779 | E16: =E14/D14-1 -> 0.2755344418 | F16: 0.03351955307 | G16: 0.05045045045 | H16: -0.7512864494 | I16: 1.951724138 | J16: 0.785046729 | K16: 0.140052356 | L16: -0.3260619977 | M16: 0.02044293015
B17: Dividende pro Aktie | C17: 0.8 | D17: 0.96 | E17: 1.15 | F17: 1.38 | G17: 1.62 | H17: 1.68 | I17: 1.74 | J17: 1.82 | K17: 2.02 | L17: 2.32 | M17: 2.7
B18: Dividende erhöht? (1=ja) | C18: 0 | D18: =IF(D17>C17, 1, 0) -> 1 | E18: =IF(E17>D17, 1, 0) -> 1 | F18: 1 | G18: 1 | H18: 1 | I18: 1 | J18: 1 | K18: 1 | L18: 1 | M18: 1
B19: Div.-Wachstum | D19: =D17/C17-1 -> 0.2 | E19: =E17/D17-1 -> 0.1979166667 | F19: 0.2 | G19: 0.1739130435 | H19: 0.03703703704 | I19: 0.03571428571 | J19: 0.04597701149 | K19: 0.1098901099 | L19: 0.1485148515 | M19: 0.1637931034
B20: Auszahlungsquote | C20: =C17/C14 -> 0.2684563758 | D20: 0.2280285036 | E20: 0.2141527002 | F20: 0.2486486486 | G20: 0.2778730703 | H20: 1.15862069 | I20: 0.4065420561 | J20: 0.2382198953 | K20: 0.2319173364 | L20: 0.395229983 | M20: 0.4507512521
B21: Kurs-Gewinn-Verhältnis (Jahresschlusskurs) | C21: 16.35 | D21: 13.58 | E21: 11.2 | F21: 12.79 | G21: 7.55 | H21: 39.78 | I21: 22.16 | J21: 11.9 | K21: 10.33 | L21: 15.29 | M21: 15.02
B22: Dividenden-Rendite (Jahresschlusskurs) | C22: 0.0164 | D22: 0.0166 | E22: 0.0188 | F22: 0.019 | G22: 0.0363 | H22: 0.0295 | I22: 0.0186 | J22: 0.0201 | K22: 0.0225 | L22: 0.0255 | M22: 0.0295
B24: Wachstumraten | E24: Qualität (Robustheit) | K24: Finanzkennzahlen | Q24: Bewertung
C25: Ergebnis | I25: Ergebnis | O25: Ergebnis | T25: Ergebnis
B26: Umsatz-Wachstum 5J > 10J | C26: =IF(C27>C28,"Ja","Nein") -> Ja | E26: Anzahl Verlustjahre (bei EPS) | I26: =COUNTIF(D14:M14,"<0")*-1 -> 0 | K26: Eigenkapital (Shareholder Equity) | O26: 16826 | Q26: 200 Tage Linie | T26: 80.39
B27: Umsatz-Wachstum 5J p.a. | C27: =AVERAGE(I13:M13) -> 0.1426155927 | E27: Anzahl Jahre mit steigendem Umsatz | I27: =SUM(D12:M12) -> 7 | K27: Current Assets | O27: 38867 | Q27: Differenz Kurz 200 Tage | T27: =H4/T26-1 -> -0.03843761662
B28: Umsatz-Wachstum 10J p.a. | C28: =AVERAGE(D13:M13) -> 0.08953475888 | E28: Anzahl Jahre mit steigendem EPS | I28: =SUM(C15:L15) -> 7 | K28: Current Liabilities | O28: 27877
B29: EPS-Wachstum 5J > 10J | C29: =IF(C30>C31,"Ja","Nein") -> Ja | E29: Anzahl Jahre mit steigender Dividende | I29: =SUM(D18:M18) -> 10 | K29: Fremdkapital (Debt) | O29: 67855
B30: EPS-Wachstum 5J p.a. | C30: =AVERAGE(I16:M16) -> 0.5142408311 | E30: Qualität in % (maximal 30 Punkte) | I30: =SUM(I26:I29)/30 -> 0.8 | K30: Gesamtkapital (Total Assets) | O30: 84681
B31: EPS-Wachstum 10J p.a. | C31: =AVERAGE(D16:M16) -> 0.2592173829 | K31: Umsatz (Revenue) | O31: 65875
B32: Dividenden-Wachstum 5J > 10J | C32: =IF(C33>C34,"Ja","Nein") -> Nein | E32: KGV | K32: Gewinn (Net income) | O32: 5681
B33: Dividenden-Wachstum 5J p.a. | C33: =AVERAGE(I19:M19) -> 0.1007778724 | I33: Ergebnis | K33: EBIT (Operating income) | O33: 8573
B34: Dividenden-Wachstum 10J p.a. | C34: =AVERAGE(D19:M19) -> 0.1312756109 | E34: KGV-Durchschnitt 10J | I34: =AVERAGE(D21:M21) -> 15.96 | K34: Eigenkapitalquote (equity ratio) | O34: =O26/O30 -> 0.1986986455
B35: Wachstumrate 10J p.a. | C35: =AVERAGE(C34,C31,C28) -> 0.1600092509 | E35: Aktuelles KGV < KGV Mittelwert? | I35: =IF(H5<I34,"Ja,","Nein") -> Ja, | K35: Eigenkapitalrentabilität (Return on Equity) | O35: =O32/O26 -> 0.3376322358
B36: Wachstumsrate 5J p.a. | C36: =AVERAGE(C33,C30,C27) -> 0.2525447654 | K36: Gesamtkapitalrentabilität (Return on Assets) | O36: =O32/O30 -> 0.06708706794
E37: Dividendenrendite | K37: Current-Valuation | O37: =IF(O27>O28,"JA","NEIN") -> JA
I38: Ergebnis | K38: NCAV | O38: =IF(O27>O29,"JA","NEIN") -> NEIN
E39: 10-Jahres-Durchschnittsdividendenrendite | I39: =AVERAGE(D22:M22) -> 0.02364 | K39: Verschuldungsgrad (Debt-to-equity) | O39: =O29/O26 -> 4.032746939
E40: Aktuelle Div.Rendite > Mittelwert Dividende? | I40: =IF(H6>I39,"Ja","Nein") -> Ja | K40: EBIT-Marge (EBIT margin) | O40: =O33/O31 -> 0.1301404175

Sheet CL
B2: Analyse - Einzelunternehmen | Q2: Datum: 12.07.2015
G3: Aktuelle Daten:
B4: Colgate Palmolive | G4: Kurs: | H4: 59.775
G5: KGV: | H5: 21.11
G6: Div.Rendite: | H6: 0.0232
G7: Währung: | H7: USD
B9: 10-Jahres-Übersicht | M9: akt. Jahr
B10: Jahr | C10: =D10-1 -> 2004 | D10: 2005 | E10: 2006 | F10: =G10-1 -> 2007 | G10: 2008 | H10: =I10-1 -> 2009 | I10: 2010 | J10: 2011 | K10: 2012 | L10: 2013 | M10: 2014
B11: Umsatz in Mrd. | C11: 10.58 | D11: 11.4 | E11: 12.24 | F11: 13.79 | G11: 15.33 | H11: 15.33 | I11: 15.56 | J11: 16.73 | K11: 17.09 | L11: 17.42 | M11: 17.28
B12: Umsatz erhöht? (1=ja) | C12: 0 | D12: =IF(D11>C11, 1, 0) -> 1 | E12: =IF(E11>D11, 1, 0) -> 1 | F12: 1 | G12: 1 | H12: 0 | I12: 1 | J12: 1 | K12: 1 | L12: 1 | M12: 0
B13: Umsatzwachstum | D13: =D11/C11-1 -> 0.0775047259 | E13: =E11/D11-1 -> 0.07368421053 | F13: 0.1266339869 | G13: 0.1116751269 | H13: 0 | I13: 0.01500326158 | J13: 0.07519280206 | K13: 0.02151823072 | L13: 0.01930953774 | M13: -0.00803673938
B14: Ergebnis pro Aktie (EPS) | C14: 1.23 | D14: 1.27 | E14: 1.29 | F14: 1.68 | G14: 1.91 | H14: 2.27 | I14: 2.23 | J14: 2.49 | K14: 2.6 | L14: 2.41 | M14: 2.38
B15: EPS erhöht? (1=ja) | C15: 0 | D15: =IF(D14>C14, 1, 0) -> 1 | E15: 1 | F15: 1 | G15: 1 | H15: 1 | I15: 0 | J15: 1 | K15: 1 | L15: 0 | M15: 0
B16: EPS-Wachstum | D16: =D14/C14-1 -> 0.0325203252 | E16: =E14/D14-1 -> 0.0157480315 | F16: 0.3023255814 | G16: 0.1369047619 | H16: 0.1884816754 | I16: -0.01762114537 | J16: 0.1165919283 | K16: 0.04417670683 | L16: -0.07307692308 | M16: -0.01244813278
B17: Dividende pro Aktie | C17: 0.48 | D17: 0.56 | E17: 0.63 | F17: 0.7 | G17: 0.78 | H17: 0.86 | I17: 1.01 | J17: 1.14 | K17: 1.22 | L17: 1.33 | M17: 1.42
B18: Dividende erhöht? (1=ja) | C18: 0 | D18: =IF(D17>C17, 1, 0) -> 1 | E18: =IF(E17>D17, 1, 0) -> 1 | F18: 1 | G18: 1 | H18: 1 | I18: 1 | J18: 1 | K18: 1 | L18: 1 | M18: 1
B19: Div.-Wachstum | D19: =D17/C17-1 -> 0.1666666667 | E19: =E17/D17-1 -> 0.125 | F19: 0.1111111111 | G19: 0.1142857143 | H19: 0.1025641026 | I19: 0.1744186047 | J19: 0.1287128713 | K19: 0.0701754386 | L19: 0.09016393443 | M19: 0.06766917293
B20: Auszahlungsquote | C20: =C17/C14 -> 0.3902439024 | D20: 0.4409448819 | E20: 0.488372093 | F20: 0.4166666667 | G20: 0.4083769634 | H20: 0.3788546256 | I20: 0.4529147982 | J20: 0.4578313253 | K20: 0.4692307692 | L20: 0.5518672199 | M20: 0.5966386555
B21: Kurs-Gewinn-Verhältnis (Jahresschlusskurs) | C21: 20.3 | D21: 20.96 | E21: 24.71 | F21: 22.84 | G21: 17.56 | H21: 17.71 | I21: 18.02 | J21: 18.23 | K21: 19.78 | L21: 26.74 | M21: 28.79
B22: Dividenden-Rendite (Jahresschlusskurs) | C22: 0.0188 | D22: 0.0202 | E22: 0.0192 | F22: 0.018 | G22: 0.0228 | H22: 0.0209 | I22: 0.0253 | J22: 0.0246 | K22: 0.0233 | L22: 0.0204 | M22: 0.0205
B24: Wachstumraten | E24: Qualität (Robustheit) | K24: Finanzkennzahlen | Q24: Bewertung
C25: Ergebnis | I25: Ergebnis | O25: Ergebnis | T25: Ergebnis
B26: Umsatz-Wachstum 5J > 10J | C26: =IF(C27>C28,"Ja","Nein") -> Nein | E26: Anzahl Verlustjahre (bei EPS) | I26: =COUNTIF(D14:M14,"<0")*-1 -> 0 | K26: Eigenkapital (Shareholder Equity) | O26: 1385 | Q26: 200 Tage Linie | T26: 61
B27: Umsatz-Wachstum 5J p.a. | C27: =AVERAGE(I13:M13) -> 0.02459741854 | E27: Anzahl Jahre mit steigendem Umsatz | I27: =SUM(D12:M12) -> 8 | K27: Current Assets | O27: 4863 | Q27: Differenz Kurz 200 Tage | T27: =H4/T26-1 -> -0.02008196721
B28: Umsatz-Wachstum 10J p.a. | C28: =AVERAGE(D13:M13) -> 0.0512485143 | E28: Anzahl Jahre mit steigendem EPS | I28: =SUM(C15:L15) -> 7 | K28: Current Liabilities | O28: 3946
B29: EPS-Wachstum 5J > 10J | C29: =IF(C30>C31,"Ja","Nein") -> Nein | E29: Anzahl Jahre mit steigender Dividende | I29: =SUM(D18:M18) -> 10 | K29: Fremdkapital (Debt) | O29: 12074
B30: EPS-Wachstum 5J p.a. | C30: =AVERAGE(I16:M16) -> 0.01152448677 | E30: Qualität in % (maximal 30 Punkte) | I30: =SUM(I26:I29)/30 -> 0.8333333333 | K30: Gesamtkapital (Total Assets) | O30: 13459
B31: EPS-Wachstum 10J p.a. | C31: =AVERAGE(D16:M16) -> 0.07336028092 | K31: Umsatz (Revenue) | O31: 17277
B32: Dividenden-Wachstum 5J > 10J | C32: =IF(C33>C34,"Ja","Nein") -> Nein | E32: KGV | K32: Gewinn (Net income) | O32: 2339
B33: Dividenden-Wachstum 5J p.a. | C33: =AVERAGE(I19:M19) -> 0.1062280044 | I33: Ergebnis | K33: EBIT (Operating income) | O33: 3557
B34: Dividenden-Wachstum 10J p.a. | C34: =AVERAGE(D19:M19) -> 0.1150767617 | E34: KGV-Durchschnitt 10J | I34: =AVERAGE(D21:M21) -> 21.534 | K34: Eigenkapitalquote (equity ratio) | O34: =O26/O30 -> 0.1029051193
B35: Wachstumrate 10J p.a. | C35: =AVERAGE(C34,C31,C28) -> 0.07989518562 | E35: Aktuelles KGV < KGV Mittelwert? | I35: =IF(H5<I34,"Ja,","Nein") -> Ja, | K35: Eigenkapitalrentabilität (Return on Equity) | O35: =O32/O26 -> 1.688808664
B36: Wachstumsrate 5J p.a. | C36: =AVERAGE(C33,C30,C27) -> 0.0474499699 | K36: Gesamtkapitalrentabilität (Return on Assets) | O36: =O32/O30 -> 0.173787057
E37: Dividendenrendite | K37: Current-Valuation | O37: =IF(O27>O28,"JA","NEIN") -> JA
I38: Ergebnis | K38: NCAV | O38: =IF(O27>O29,"JA","NEIN") -> NEIN
E39: 10-Jahres-Durchschnittsdividendenrendite | I39: =AVERAGE(D22:M22) -> 0.02152 | K39: Verschuldungsgrad (Debt-to-equity) | O39: =O29/O26 -> 8.717689531
E40: Aktuelle Div.Rendite > Mittelwert Dividende? | I40: =IF(H6>I39,"Ja","Nein") -> Ja | K40: EBIT-Marge (EBIT margin) | O40: =O33/O31 -> 0.2058806506

Sheet CLX
B2: Analyse - Einzelunternehmen | Q2: Datum:
G3: Aktuelle Daten:
B4: Clorox | G4: Kurs:
G5: KGV:
G6: Div.Rendite:
G7: Währung: | H7: Währung
B9: 10-Jahres-Übersicht | M9: akt. Jahr
B10: Jahr | C10: =D10-1 -> 2004 | D10: 2005 | E10: 2006 | F10: =G10-1 -> 2007 | G10: 2008 | H10: =I10-1 -> 2009 | I10: 2010 | J10: 2011 | K10: 2012 | L10: 2013 | M10: 2014
B11: Umsatz in Mrd.
B12: Umsatz erhöht? (1=ja) | C12: 0 | D12: =IF(D11>C11, 1, 0) -> 0 | E12: =IF(E11>D11, 1, 0) -> 0 | F12: 0 | G12: 0 | H12: 0 | I12: 0 | J12: 0 | K12: 0 | L12: 0 | M12: 0
B13: Umsatzwachstum | D13: =D11/C11-1 ->  | E13: =E11/D11-1 -> 
B14: Ergebnis pro Aktie (EPS)
B15: EPS erhöht? (1=ja) | C15: 0 | D15: =IF(D14>C14, 1, 0) -> 0 | E15: 0 | F15: 0 | G15: 0 | H15: 0 | I15: 0 | J15: 0 | K15: 0 | L15: 0 | M15: 0
B16: EPS-Wachstum | D16: =D14/C14-1 ->  | E16: =E14/D14-1 -> 
B17: Dividende pro Aktie
B18: Dividende erhöht? (1=ja) | C18: 0 | D18: =IF(D17>C17, 1, 0) -> 0 | E18: =IF(E17>D17, 1, 0) -> 0 | F18: 0 | G18: 0 | H18: 0 | I18: 0 | J18: 0 | K18: 0 | L18: 0 | M18: 0
B19: Div.-Wachstum | D19: =D17/C17-1 ->  | E19: =E17/D17-1 -> 
B20: Auszahlungsquote | C20: =C17/C14 -> 
B21: Kurs-Gewinn-Verhältnis (Jahresschlusskurs)
B22: Dividenden-Rendite (Jahresschlusskurs)
B24: Wachstumraten | E24: Qualität (Robustheit) | K24: Finanzkennzahlen
C25: Ergebnis | I25: Ergebnis | O25: Ergebnis
B26: Umsatz-Wachstum 5J > 10J | C26: =IF(C27>C28,"Ja","Nein") ->  | E26: Anzahl Verlustjahre (bei EPS) | I26: =COUNTIF(D14:M14,"<0")*-1 -> 0 | K26: Eigenkapital (Shareholder Equity)
B27: Umsatz-Wachstum 5J p.a. | C27: =AVERAGE(I13:M13) ->  | E27: Anzahl Jahre mit steigendem Umsatz | I27: =SUM(D12:M12) -> 0 | K27: Current Assets
B28: Umsatz-Wachstum 10J p.a. | C28: =AVERAGE(D13:M13) ->  | E28: Anzahl Jahre mit steigendem EPS | I28: =SUM(C15:L15) -> 0 | K28: Current Liabilities
B29: EPS-Wachstum 5J > 10J | C29: =IF(C30>C31,"Ja","Nein") ->  | E29: Anzahl Jahre mit steigender Dividende | I29: =SUM(D18:M18) -> 0 | K29: Fremdkapital (Debt)
B30: EPS-Wachstum 5J p.a. | C30: =AVERAGE(I16:M16) ->  | E30: Qualität in % (maximal 30 Punkte) | I30: =SUM(I26:I29)/30 -> 0 | K30: Gesamtkapital (Total Assets)
B31: EPS-Wachstum 10J p.a. | C31: =AVERAGE(D16:M16) ->  | K31: Umsatz (Revenue)
B32: Dividenden-Wachstum 5J > 10J | C32: =IF(C33>C34,"Ja","Nein") ->  | E32: KGV | K32: Gewinn (Net income)
B33: Dividenden-Wachstum 5J p.a. | C33: =AVERAGE(I19:M19) ->  | I33: Ergebnis | K33: EBIT (Operating income)
B34: Dividenden-Wachstum 10J p.a. | C34: =AVERAGE(D19:M19) ->  | E34: KGV-Durchschnitt 10J | I34: =AVERAGE(D21:M21) ->  | K34: Eigenkapitalquote (equity ratio) | O34: =O26/O30 -> 
B35: Wachstumrate 10J p.a. | C35: =AVERAGE(C34,C31,C28) ->  | E35: Aktuelles KGV < KGV Mittelwert? | I35: =IF(H5<I34,"Ja,","Nein") ->  | K35: Eigenkapitalrentabilität (Return on Equity) | O35: =O32/O26 -> 
B36: Wachstumsrate 5J p.a. | C36: =AVERAGE(C33,C30,C27) ->  | K36: Gesamtkapitalrentabilität (Return on Assets) | O36: =O32/O30 -> 
E37: Dividendenrendite | K37: Current-Valuation | O37: =IF(O27>O28,"JA","NEIN") -> NEIN
I38: Ergebnis | K38: NCAV | O38: =IF(O27>O29,"JA","NEIN") -> NEIN
E39: 10-Jahres-Durchschnittsdividendenrendite | I39: =AVERAGE(D22:M22) ->  | K39: Verschuldungsgrad (Debt-to-equity) | O39: =O29/O26 -> 
E40: Aktuelle Div.Rendite > Mittelwert Dividende? | I40: =IF(H6>I39,"Ja","Nein") ->  | K40: EBIT-Marge (EBIT margin) | O40: =O33/O31 -> 

Sheet COP
B2: Analyse - Einzelunternehmen | Q2: Datum:
G3: Aktuelle Daten:
B4: Conoco Philips | G4: Kurs:
G5: KGV:
G6: Div.Rendite:
G7: Währung: | H7: Währung
B9: 10-Jahres-Übersicht | M9: akt. Jahr
B10: Jahr | C10: =D10-1 -> 2004 | D10: 2005 | E10: 2006 | F10: =G10-1 -> 2007 | G10: 2008 | H10: =I10-1 -> 2009 | I10: 2010 | J10: 2011 | K10: 2012 | L10: 2013 | M10: 2014
B11: Umsatz in Mrd.
B12: Umsatz erhöht? (1=ja) | C12: 0 | D12: =IF(D11>C11, 1, 0) -> 0 | E12: =IF(E11>D11, 1, 0) -> 0 | F12: 0 | G12: 0 | H12: 0 | I12: 0 | J12: 0 | K12: 0 | L12: 0 | M12: 0
B13: Umsatzwachstum | D13: =D11/C11-1 ->  | E13: =E11/D11-1 -> 
B14: Ergebnis pro Aktie (EPS)
B15: EPS erhöht? (1=ja) | C15: 0 | D15: =IF(D14>C14, 1, 0) -> 0 | E15: 0 | F15: 0 | G15: 0 | H15: 0 | I15: 0 | J15: 0 | K15: 0 | L15: 0 | M15: 0
B16: EPS-Wachstum | D16: =D14/C14-1 ->  | E16: =E14/D14-1 -> 
B17: Dividende pro Aktie
B18: Dividende erhöht? (1=ja) | C18: 0 | D18: =IF(D17>C17, 1, 0) -> 0 | E18: =IF(E17>D17, 1, 0) -> 0 | F18: 0 | G18: 0 | H18: 0 | I18: 0 | J18: 0 | K18: 0 | L18: 0 | M18: 0
B19: Div.-Wachstum | D19: =D17/C17-1 ->  | E19: =E17/D17-1 -> 
B20: Auszahlungsquote | C20: =C17/C14 -> 
B21: Kurs-Gewinn-Verhältnis (Jahresschlusskurs)
B22: Dividenden-Rendite (Jahresschlusskurs)
B24: Wachstumraten | E24: Qualität (Robustheit) | K24: Finanzkennzahlen
C25: Ergebnis | I25: Ergebnis | O25: Ergebnis
B26: Umsatz-Wachstum 5J > 10J | C26: =IF(C27>C28,"Ja","Nein") ->  | E26: Anzahl Verlustjahre (bei EPS) | I26: =COUNTIF(D14:M14,"<0")*-1 -> 0 | K26: Eigenkapital (Shareholder Equity)
B27: Umsatz-Wachstum 5J p.a. | C27: =AVERAGE(I13:M13) ->  | E27: Anzahl Jahre mit steigendem Umsatz | I27: =SUM(D12:M12) -> 0 | K27: Current Assets
B28: Umsatz-Wachstum 10J p.a. | C28: =AVERAGE(D13:M13) ->  | E28: Anzahl Jahre mit steigendem EPS | I28: =SUM(C15:L15) -> 0 | K28: Current Liabilities
B29: EPS-Wachstum 5J > 10J | C29: =IF(C30>C31,"Ja","Nein") ->  | E29: Anzahl Jahre mit steigender Dividende | I29: =SUM(D18:M18) -> 0 | K29: Fremdkapital (Debt)
B30: EPS-Wachstum 5J p.a. | C30: =AVERAGE(I16:M16) ->  | E30: Qualität in % (maximal 30 Punkte) | I30: =SUM(I26:I29)/30 -> 0 | K30: Gesamtkapital (Total Assets)
B31: EPS-Wachstum 10J p.a. | C31: =AVERAGE(D16:M16) ->  | K31: Umsatz (Revenue)
B32: Dividenden-Wachstum 5J > 10J | C32: =IF(C33>C34,"Ja","Nein") ->  | E32: KGV | K32: Gewinn (Net income)
B33: Dividenden-Wachstum 5J p.a. | C33: =AVERAGE(I19:M19) ->  | I33: Ergebnis | K33: EBIT (Operating income)
B34: Dividenden-Wachstum 10J p.a. | C34: =AVERAGE(D19:M19) ->  | E34: KGV-Durchschnitt 10J | I34: =AVERAGE(D21:M21) ->  | K34: Eigenkapitalquote (equity ratio) | O34: =O26/O30 -> 
B35: Wachstumrate 10J p.a. | C35: =AVERAGE(C34,C31,C28) ->  | E35: Aktuelles KGV < KGV Mittelwert? | I35: =IF(H5<I34,"Ja,","Nein") ->  | K35: Eigenkapitalrentabilität (Return on Equity) | O35: =O32/O26 -> 
B36: Wachstumsrate 5J p.a. | C36: =AVERAGE(C33,C30,C27) ->  | K36: Gesamtkapitalrentabilität (Return on Assets) | O36: =O32/O30 -> 
E37: Dividendenrendite | K37: Current-Valuation | O37: =IF(O27>O28,"JA","NEIN") -> NEIN
I38: Ergebnis | K38: NCAV | O38: =IF(O27>O29,"JA","NEIN") -> NEIN
E39: 10-Jahres-Durchschnittsdividendenrendite | I39: =AVERAGE(D22:M22) ->  | K39: Verschuldungsgrad (Debt-to-equity) | O39: =O29/O26 -> 
E40: Aktuelle Div.Rendite > Mittelwert Dividende? | I40: =IF(H6>I39,"Ja","Nein") ->  | K40: EBIT-Marge (EBIT margin) | O40: =O33/O31 -> 

Sheet CSCO
B2: Analyse - Einzelunternehmen | Q2: Datum: 22.06.2015
G3: Aktuelle Daten:
B4: Cisco Systems | G4: Kurs: | H4: 25.421
G5: KGV: | H5: 13.59
G6: Div.Rendite: | H6: 0.0256
G7: Währung: | H7: USD
B9: 10-Jahres-Übersicht | M9: akt. Jahr
B10: Jahr | C10: =D10-1 -> 2004 | D10: 2005 | E10: 2006 | F10: =G10-1 -> 2007 | G10: 2008 | H10: =I10-1 -> 2009 | I10: 2010 | J10: 2011 | K10: 2012 | L10: 2013 | M10: 2014
B11: Umsatz in Mrd. | C11: 22.05 | D11: 24.8 | E11: 28.48 | F11: 34.92 | G11: 39.54 | H11: 36.12 | I11: 40.04 | J11: 43.22 | K11: 46.06 | L11: 48.61 | M11: 47.14
B12: Umsatz erhöht? (1=ja) | C12: 0 | D12: =IF(D11>C11, 1, 0) -> 1 | E12: =IF(E11>D11, 1, 0) -> 1 | F12: 1 | G12: 1 | H12: 0 | I12: 1 | J12: 1 | K12: 1 | L12: 1 | M12: 0
B13: Umsatzwachstum | D13: =D11/C11-1 -> 0.1247165533 | E13: =E11/D11-1 -> 0.1483870968 | F13: 0.2261235955 | G13: 0.1323024055 | H13: -0.08649468892 | I13: 0.1085271318 | J13: 0.07942057942 | K13: 0.0657103193 | L13: 0.05536257056 | M13: -0.03024069122
B14: Ergebnis pro Aktie (EPS) | C14: 0.64 | D14: 0.88 | E14: 0.91 | F14: 1.21 | G14: 1.35 | H14: 1.05 | I14: 1.35 | J14: 1.17 | K14: 1.5 | L14: 1.87 | M14: 1.5
B15: EPS erhöht? (1=ja) | C15: 0 | D15: =IF(D14>C14, 1, 0) -> 1 | E15: 1 | F15: 1 | G15: 1 | H15: 0 | I15: 1 | J15: 0 | K15: 1 | L15: 1 | M15: 0
B16: EPS-Wachstum | D16: =D14/C14-1 -> 0.375 | E16: =E14/D14-1 -> 0.03409090909 | F16: 0.3296703297 | G16: 0.1157024793 | H16: -0.2222222222 | I16: 0.2857142857 | J16: -0.1333333333 | K16: 0.2820512821 | L16: 0.2466666667 | M16: -0.1978609626
B17: Dividende pro Aktie | C17: 0 | D17: 0 | E17: 0 | F17: 0 | G17: 0 | H17: 0 | I17: 0 | J17: 0.12 | K17: 0.28 | L17: 0.62 | M17: 0.72
B18: Dividende erhöht? (1=ja) | C18: 0 | D18: =IF(D17>C17, 1, 0) -> 0 | E18: =IF(E17>D17, 1, 0) -> 0 | F18: 0 | G18: 0 | H18: 0 | I18: 0 | J18: 1 | K18: 1 | L18: 1 | M18: 1
B19: Div.-Wachstum | D19: =D17/C17-1 ->  | E19: =E17/D17-1 ->  | K19: 1.333333333 | L19: 1.214285714 | M19: 0.1612903226
B20: Auszahlungsquote | C20: =C17/C14 -> 0 | D20: 0 | E20: 0 | F20: 0 | G20: 0 | H20: 0 | I20: 0 | J20: 0.1025641026 | K20: 0.1866666667 | L20: 0.3315508021 | M20: 0.48
B21: Kurs-Gewinn-Verhältnis (Jahresschlusskurs) | C21: 32.14 | D21: 21.12 | E21: 19.41 | F21: 23.89 | G21: 17.02 | H21: 20.76 | I21: 16.8 | J21: 13.37 | K21: 10.51 | L21: 13.81
B22: Dividenden-Rendite (Jahresschlusskurs) | J22: 0.0075 | K22: 0.0176 | L22: 0.0242
B24: Wachstumraten | E24: Qualität (Robustheit) | K24: Finanzkennzahlen | Q24: Bewertung
C25: Ergebnis | I25: Ergebnis | O25: Ergebnis | T25: Ergebnis
B26: Umsatz-Wachstum 5J > 10J | C26: =IF(C27>C28,"Ja","Nein") -> Nein | E26: Anzahl Verlustjahre (bei EPS) | I26: =COUNTIF(D14:M14,"<0")*-1 -> 0 | K26: Eigenkapital (Shareholder Equity) | O26: 56661 | Q26: 200 Tage Linie | T26: 23.95
B27: Umsatz-Wachstum 5J p.a. | C27: =AVERAGE(I13:M13) -> 0.05575598197 | E27: Anzahl Jahre mit steigendem Umsatz | I27: =SUM(D12:M12) -> 8 | K27: Current Assets | O27: 67114 | Q27: Differenz Kurz 200 Tage | T27: =H4/T26-1 -> 0.06141962422
B28: Umsatz-Wachstum 10J p.a. | C28: =AVERAGE(D13:M13) -> 0.0823814872 | E28: Anzahl Jahre mit steigendem EPS | I28: =SUM(C15:L15) -> 7 | K28: Current Liabilities | O28: 19809
B29: EPS-Wachstum 5J > 10J | C29: =IF(C30>C31,"Ja","Nein") -> Nein | E29: Anzahl Jahre mit steigender Dividende | I29: =SUM(D18:M18) -> 4 | K29: Fremdkapital (Debt) | O29: 48473
B30: EPS-Wachstum 5J p.a. | C30: =AVERAGE(I16:M16) -> 0.09664758771 | E30: Qualität in % (maximal 30 Punkte) | I30: =SUM(I26:I29)/30 -> 0.6333333333 | K30: Gesamtkapital (Total Assets) | O30: 105134
B31: EPS-Wachstum 10J p.a. | C31: =AVERAGE(D16:M16) -> 0.1115479434 | K31: Umsatz (Revenue) | O31: 47142
B32: Dividenden-Wachstum 5J > 10J | C32: =IF(C33>C34,"Ja","Nein") ->  | E32: KGV | K32: Gewinn (Net income) | O32: 7853
B33: Dividenden-Wachstum 5J p.a. | C33: =AVERAGE(I19:M19) ->  | I33: Ergebnis | K33: EBIT (Operating income) | O33: 9345
B34: Dividenden-Wachstum 10J p.a. | C34: =AVERAGE(D19:M19) ->  | E34: KGV-Durchschnitt 10J | I34: =AVERAGE(C21:M21) -> 18.883 | K34: Eigenkapitalquote (equity ratio) | O34: =O26/O30 -> 0.5389407803
B35: Wachstumrate 10J p.a. | C35: =AVERAGE(C34,C31,C28) ->  | E35: Aktuelles KGV < KGV Mittelwert? | I35: =IF(H5<I34,"Ja,","Nein") -> Ja, | K35: Eigenkapitalrentabilität (Return on Equity) | O35: =O32/O26 -> 0.1385962126
B36: Wachstumsrate 5J p.a. | C36: =AVERAGE(C33,C30,C27) ->  | K36: Gesamtkapitalrentabilität (Return on Assets) | O36: =O32/O30 -> 0.07469515095
E37: Dividendenrendite | K37: Current-Valuation | O37: =IF(O27>O28,"JA","NEIN") -> JA
I38: Ergebnis | K38: NCAV | O38: =IF(O27>O29,"JA","NEIN") -> JA
E39: 10-Jahres-Durchschnittsdividendenrendite | I39: =AVERAGE(D22:M22) -> 0.01643333333 | K39: Verschuldungsgrad (Debt-to-equity) | O39: =O29/O26 -> 0.8554914315
E40: Aktuelle Div.Rendite > Mittelwert Dividende? | I40: =IF(H6>I39,"Ja","Nein") -> Ja | K40: EBIT-Marge (EBIT margin) | O40: =O33/O31 -> 0.1982308769

Sheet CVS
B2: Analyse - Einzelunternehmen | Q2: Datum:
G3: Aktuelle Daten:
B4: CVS Health | G4: Kurs: | H4: 100.46
G5: KGV: | H5: 17.12
G6: Div.Rendite: | H6: 0.0139
G7: Währung: | H7: USD
B9: 10-Jahres-Übersicht | M9: akt. Jahr
B10: Jahr | C10: =D10-1 -> 2004 | D10: 2005 | E10: 2006 | F10: =G10-1 -> 2007 | G10: 2008 | H10: =I10-1 -> 2009 | I10: 2010 | J10: 2011 | K10: 2012 | L10: 2013 | M10: 2014
B11: Umsatz in Mrd. | C11: 30.59 | D11: 37.01 | E11: 43.81 | F11: 76.33 | G11: 87.47 | H11: 98.73 | I11: 96.41 | J11: 107.1 | K11: 123.13 | L11: 126.76 | M11: 139.37
B12: Umsatz erhöht? (1=ja) | C12: 0 | D12: =IF(D11>C11, 1, 0) -> 1 | E12: =IF(E11>D11, 1, 0) -> 1 | F12: 1 | G12: 1 | H12: 1 | I12: 0 | J12: 1 | K12: 1 | L12: 1 | M12: 1
B13: Umsatzwachstum | D13: =D11/C11-1 -> 0.2098725074 | E13: =E11/D11-1 -> 0.1837341259 | F13: 0.7422962794 | G13: 0.1459452378 | H13: 0.1287298502 | I13: -0.02349843006 | J13: 0.110880614 | K13: 0.1496732026 | L13: 0.0294810363 | M13: 0.09947933102
B14: Ergebnis pro Aktie (EPS) | C14: 1.14 | D14: 1.49 | E14: 1.65 | F14: 1.97 | G14: 2.23 | H14: 2.58 | I14: 2.51 | J14: 2.59 | K14: 3.05 | L14: 3.78 | M14: 3.98
B15: EPS erhöht? (1=ja) | C15: 0 | D15: =IF(D14>C14, 1, 0) -> 1 | E15: 1 | F15: 1 | G15: 1 | H15: 1 | I15: 0 | J15: 1 | K15: 1 | L15: 1 | M15: 1
B16: EPS-Wachstum | D16: =D14/C14-1 -> 0.3070175439 | E16: =E14/D14-1 -> 0.1073825503 | F16: 0.1939393939 | G16: 0.1319796954 | H16: 0.1569506726 | I16: -0.02713178295 | J16: 0.03187250996 | K16: 0.1776061776 | L16: 0.2393442623 | M16: 0.05291005291
B17: Dividende pro Aktie | C17: 0.13 | D17: 0.14 | E17: 0.16 | F17: 0.23 | G17: 0.26 | H17: 0.31 | I17: 0.35 | J17: 0.5 | K17: 0.65 | L17: 0.9 | M17: 1.1
B18: Dividende erhöht? (1=ja) | C18: 0 | D18: =IF(D17>C17, 1, 0) -> 1 | E18: =IF(E17>D17, 1, 0) -> 1 | F18: 1 | G18: 1 | H18: 1 | I18: 1 | J18: 1 | K18: 1 | L18: 1 | M18: 1
B19: Div.-Wachstum | D19: =D17/C17-1 -> 0.07692307692 | E19: =E17/D17-1 -> 0.1428571429 | F19: 0.4375 | G19: 0.1304347826 | H19: 0.1923076923 | I19: 0.1290322581 | J19: 0.4285714286 | K19: 0.3 | L19: 0.3846153846 | M19: 0.2222222222
B20: Auszahlungsquote | C20: =C17/C14 -> 0.1140350877 | D20: 0.09395973154 | E20: 0.09696969697 | F20: 0.116751269 | G20: 0.1165919283 | H20: 0.1201550388 | I20: 0.1394422311 | J20: 0.1930501931 | K20: 0.2131147541 | L20: 0.2380952381 | M20: 0.2763819095
B21: Kurs-Gewinn-Verhältnis (Jahresschlusskurs) | C21: 19.67 | D21: 17.57 | E21: 18.64 | F21: 21.65 | G21: 12.87 | H21: 12.12 | I21: 13.83 | J21: 15.29 | K21: 15.35 | L21: 18.39
B22: Dividenden-Rendite (Jahresschlusskurs) | C22: 0.0058 | D22: 0.0053 | E22: 0.0052 | F22: 0.0058 | G22: 0.009 | H22: 0.0096 | I22: 0.0101 | J22: 0.0123 | K22: 0.0134 | L22: 0.0126
B24: Wachstumraten | E24: Qualität (Robustheit) | K24: Finanzkennzahlen
C25: Ergebnis | I25: Ergebnis | O25: Ergebnis
B26: Umsatz-Wachstum 5J > 10J | C26: =IF(C27>C28,"Ja","Nein") -> Nein | E26: Anzahl Verlustjahre (bei EPS) | I26: =COUNTIF(D14:M14,"<0")*-1 -> 0 | K26: Eigenkapital (Shareholder Equity) | O26: 37963
B27: Umsatz-Wachstum 5J p.a. | C27: =AVERAGE(I13:M13) -> 0.07320315078 | E27: Anzahl Jahre mit steigendem Umsatz | I27: =SUM(D12:M12) -> 9 | K27: Current Assets | O27: 25983
B28: Umsatz-Wachstum 10J p.a. | C28: =AVERAGE(D13:M13) -> 0.1776593755 | E28: Anzahl Jahre mit steigendem EPS | I28: =SUM(C15:L15) -> 8 | K28: Current Liabilities | O28: 19027
B29: EPS-Wachstum 5J > 10J | C29: =IF(C30>C31,"Ja","Nein") -> Nein | E29: Anzahl Jahre mit steigender Dividende | I29: =SUM(D18:M18) -> 10 | K29: Fremdkapital (Debt) | O29: 36289
B30: EPS-Wachstum 5J p.a. | C30: =AVERAGE(I16:M16) -> 0.09492024397 | E30: Qualität in % (maximal 30 Punkte) | I30: =SUM(I26:I29)/30 -> 0.9 | K30: Gesamtkapital (Total Assets) | O30: 74252
B31: EPS-Wachstum 10J p.a. | C31: =AVERAGE(D16:M16) -> 0.1371871076 | K31: Umsatz (Revenue) | O31: 139367
B32: Dividenden-Wachstum 5J > 10J | C32: =IF(C33>C34,"Ja","Nein") -> Ja | E32: KGV | K32: Gewinn (Net income) | O32: 4644
B33: Dividenden-Wachstum 5J p.a. | C33: =AVERAGE(I19:M19) -> 0.2928882587 | I33: Ergebnis | K33: EBIT (Operating income) | O33: 8799
B34: Dividenden-Wachstum 10J p.a. | C34: =AVERAGE(D19:M19) -> 0.2444463988 | E34: KGV-Durchschnitt 10J | I34: =AVERAGE(D21:L21) -> 16.19 | K34: Eigenkapitalquote (equity ratio) | O34: =O26/O30 -> 0.5112724236
B35: Wachstumrate 10J p.a. | C35: =AVERAGE(C34,C31,C28) -> 0.1864309606 | E35: Aktuelles KGV < KGV Mittelwert? | I35: =IF(H5<I34,"Ja,","Nein") -> Nein | K35: Eigenkapitalrentabilität (Return on Equity) | O35: =O32/O26 -> 0.1223296368
B36: Wachstumsrate 5J p.a. | C36: =AVERAGE(C33,C30,C27) -> 0.1536705511 | K36: Gesamtkapitalrentabilität (Return on Assets) | O36: =O32/O30 -> 0.06254376986
E37: Dividendenrendite | K37: Current-Valuation | O37: =IF(O27>O28,"JA","NEIN") -> JA
I38: Ergebnis | K38: NCAV | O38: =IF(O27>O29,"JA","NEIN") -> NEIN
E39: 10-Jahres-Durchschnittsdividendenrendite | I39: =AVERAGE(D22:L22) -> 0.009255555556 | K39: Verschuldungsgrad (Debt-to-equity) | O39: =O29/O26 -> 0.9559044333
E40: Aktuelle Div.Rendite > Mittelwert Dividende? | I40: =IF(H6>I39,"Ja","Nein") -> Ja | K40: EBIT-Marge (EBIT margin) | O40: =O33/O31 -> 0.06313546248

Sheet CVX
B2: Analyse - Einzelunternehmen | Q2: Datum:
G3: Aktuelle Daten:
B4: Chevron | G4: Kurs:
G5: KGV:
G6: Div.Rendite:
G7: Währung: | H7: Währung
B9: 10-Jahres-Übersicht | M9: akt. Jahr
B10: Jahr | C10: =D10-1 -> 2004 | D10: 2005 | E10: 2006 | F10: =G10-1 -> 2007 | G10: 2008 | H10: =I10-1 -> 2009 | I10: 2010 | J10: 2011 | K10: 2012 | L10: 2013 | M10: 2014
B11: Umsatz in Mrd.
B12: Umsatz erhöht? (1=ja) | C12: 0 | D12: =IF(D11>C11, 1, 0) -> 0 | E12: =IF(E11>D11, 1, 0) -> 0 | F12: 0 | G12: 0 | H12: 0 | I12: 0 | J12: 0 | K12: 0 | L12: 0 | M12: 0
B13: Umsatzwachstum | D13: =D11/C11-1 ->  | E13: =E11/D11-1 -> 
B14: Ergebnis pro Aktie (EPS)
B15: EPS erhöht? (1=ja) | C15: 0 | D15: =IF(D14>C14, 1, 0) -> 0 | E15: 0 | F15: 0 | G15: 0 | H15: 0 | I15: 0 | J15: 0 | K15: 0 | L15: 0 | M15: 0
B16: EPS-Wachstum | D16: =D14/C14-1 ->  | E16: =E14/D14-1 -> 
B17: Dividende pro Aktie
B18: Dividende erhöht? (1=ja) | C18: 0 | D18: =IF(D17>C17, 1, 0) -> 0 | E18: =IF(E17>D17, 1, 0) -> 0 | F18: 0 | G18: 0 | H18: 0 | I18: 0 | J18: 0 | K18: 0 | L18: 0 | M18: 0
B19: Div.-Wachstum | D19: =D17/C17-1 ->  | E19: =E17/D17-1 -> 
B20: Auszahlungsquote | C20: =C17/C14 -> 
B21: Kurs-Gewinn-Verhältnis (Jahresschlusskurs)
B22: Dividenden-Rendite (Jahresschlusskurs)
B24: Wachstumraten | E24: Qualität (Robustheit) | K24: Finanzkennzahlen
C25: Ergebnis | I25: Ergebnis | O25: Ergebnis
B26: Umsatz-Wachstum 5J > 10J | C26: =IF(C27>C28,"Ja","Nein") ->  | E26: Anzahl Verlustjahre (bei EPS) | I26: =COUNTIF(D14:M14,"<0")*-1 -> 0 | K26: Eigenkapital (Shareholder Equity)
B27: Umsatz-Wachstum 5J p.a. | C27: =AVERAGE(I13:M13) ->  | E27: Anzahl Jahre mit steigendem Umsatz | I27: =SUM(D12:M12) -> 0 | K27: Current Assets
B28: Umsatz-Wachstum 10J p.a. | C28: =AVERAGE(D13:M13) ->  | E28: Anzahl Jahre mit steigendem EPS | I28: =SUM(C15:L15) -> 0 | K28: Current Liabilities
B29: EPS-Wachstum 5J > 10J | C29: =IF(C30>C31,"Ja","Nein") ->  | E29: Anzahl Jahre mit steigender Dividende | I29: =SUM(D18:M18) -> 0 | K29: Fremdkapital (Debt)
B30: EPS-Wachstum 5J p.a. | C30: =AVERAGE(I16:M16) ->  | E30: Qualität in % (maximal 30 Punkte) | I30: =SUM(I26:I29)/30 -> 0 | K30: Gesamtkapital (Total Assets)
B31: EPS-Wachstum 10J p.a. | C31: =AVERAGE(D16:M16) ->  | K31: Umsatz (Revenue)
B32: Dividenden-Wachstum 5J > 10J | C32: =IF(C33>C34,"Ja","Nein") ->  | E32: KGV | K32: Gewinn (Net income)
B33: Dividenden-Wachstum 5J p.a. | C33: =AVERAGE(I19:M19) ->  | I33: Ergebnis | K33: EBIT (Operating income)
B34: Dividenden-Wachstum 10J p.a. | C34: =AVERAGE(D19:M19) ->  | E34: KGV-Durchschnitt 10J | I34: =AVERAGE(D21:M21) ->  | K34: Eigenkapitalquote (equity ratio) | O34: =O26/O30 -> 
B35: Wachstumrate 10J p.a. | C35: =AVERAGE(C34,C31,C28) ->  | E35: Aktuelles KGV < KGV Mittelwert? | I35: =IF(H5<I34,"Ja,","Nein") ->  | K35: Eigenkapitalrentabilität (Return on Equity) | O35: =O32/O26 -> 
B36: Wachstumsrate 5J p.a. | C36: =AVERAGE(C33,C30,C27) ->  | K36: Gesamtkapitalrentabilität (Return on Assets) | O36: =O32/O30 -> 
E37: Dividendenrendite | K37: Current-Valuation | O37: =IF(O27>O28,"JA","NEIN") -> NEIN
I38: Ergebnis | K38: NCAV | O38: =IF(O27>O29,"JA","NEIN") -> NEIN
E39: 10-Jahres-Durchschnittsdividendenrendite | I39: =AVERAGE(D22:M22) ->  | K39: Verschuldungsgrad (Debt-to-equity) | O39: =O29/O26 -> 
E40: Aktuelle Div.Rendite > Mittelwert Dividende? | I40: =IF(H6>I39,"Ja","Nein") ->  | K40: EBIT-Marge (EBIT margin) | O40: =O33/O31 -> 

Sheet DE
B2: Analyse - Einzelunternehmen | Q2: Datum:
G3: Aktuelle Daten:
B4: John Deere | G4: Kurs:
G5: KGV:
G6: Div.Rendite:
G7: Währung: | H7: Währung
B9: 10-Jahres-Übersicht | M9: akt. Jahr
B10: Jahr | C10: =D10-1 -> 2004 | D10: 2005 | E10: 2006 | F10: =G10-1 -> 2007 | G10: 2008 | H10: =I10-1 -> 2009 | I10: 2010 | J10: 2011 | K10: 2012 | L10: 2013 | M10: 2014
B11: Umsatz in Mrd.
B12: Umsatz erhöht? (1=ja) | C12: 0 | D12: =IF(D11>C11, 1, 0) -> 0 | E12: =IF(E11>D11, 1, 0) -> 0 | F12: 0 | G12: 0 | H12: 0 | I12: 0 | J12: 0 | K12: 0 | L12: 0 | M12: 0
B13: Umsatzwachstum | D13: =D11/C11-1 ->  | E13: =E11/D11-1 -> 
B14: Ergebnis pro Aktie (EPS)
B15: EPS erhöht? (1=ja) | C15: 0 | D15: =IF(D14>C14, 1, 0) -> 0 | E15: 0 | F15: 0 | G15: 0 | H15: 0 | I15: 0 | J15: 0 | K15: 0 | L15: 0 | M15: 0
B16: EPS-Wachstum | D16: =D14/C14-1 ->  | E16: =E14/D14-1 -> 
B17: Dividende pro Aktie
B18: Dividende erhöht? (1=ja) | C18: 0 | D18: =IF(D17>C17, 1, 0) -> 0 | E18: =IF(E17>D17, 1, 0) -> 0 | F18: 0 | G18: 0 | H18: 0 | I18: 0 | J18: 0 | K18: 0 | L18: 0 | M18: 0
B19: Div.-Wachstum | D19: =D17/C17-1 ->  | E19: =E17/D17-1 -> 
B20: Auszahlungsquote | C20: =C17/C14 -> 
B21: Kurs-Gewinn-Verhältnis (Jahresschlusskurs)
B22: Dividenden-Rendite (Jahresschlusskurs)
B24: Wachstumraten | E24: Qualität (Robustheit) | K24: Finanzkennzahlen
C25: Ergebnis | I25: Ergebnis | O25: Ergebnis
B26: Umsatz-Wachstum 5J > 10J | C26: =IF(C27>C28,"Ja","Nein") ->  | E26: Anzahl Verlustjahre (bei EPS) | I26: =COUNTIF(D14:M14,"<0")*-1 -> 0 | K26: Eigenkapital (Shareholder Equity)
B27: Umsatz-Wachstum 5J p.a. | C27: =AVERAGE(I13:M13) ->  | E27: Anzahl Jahre mit steigendem Umsatz | I27: =SUM(D12:M12) -> 0 | K27: Current Assets
B28: Umsatz-Wachstum 10J p.a. | C28: =AVERAGE(D13:M13) ->  | E28: Anzahl Jahre mit steigendem EPS | I28: =SUM(C15:L15) -> 0 | K28: Current Liabilities
B29: EPS-Wachstum 5J > 10J | C29: =IF(C30>C31,"Ja","Nein") ->  | E29: Anzahl Jahre mit steigender Dividende | I29: =SUM(D18:M18) -> 0 | K29: Fremdkapital (Debt)
B30: EPS-Wachstum 5J p.a. | C30: =AVERAGE(I16:M16) ->  | E30: Qualität in % (maximal 30 Punkte) | I30: =SUM(I26:I29)/30 -> 0 | K30: Gesamtkapital (Total Assets)
B31: EPS-Wachstum 10J p.a. | C31: =AVERAGE(D16:M16) ->  | K31: Umsatz (Revenue)
B32: Dividenden-Wachstum 5J > 10J | C32: =IF(C33>C34,"Ja","Nein") ->  | E32: KGV | K32: Gewinn (Net income)
B33: Dividenden-Wachstum 5J p.a. | C33: =AVERAGE(I19:M19) ->  | I33: Ergebnis | K33: EBIT (Operating income)
B34: Dividenden-Wachstum 10J p.a. | C34: =AVERAGE(D19:M19) ->  | E34: KGV-Durchschnitt 10J | I34: =AVERAGE(D21:M21) ->  | K34: Eigenkapitalquote (equity ratio) | O34: =O26/O30 -> 
B35: Wachstumrate 10J p.a. | C35: =AVERAGE(C34,C31,C28) ->  | E35: Aktuelles KGV < KGV Mittelwert? | I35: =IF(H5<I34,"Ja,","Nein") ->  | K35: Eigenkapitalrentabilität (Return on Equity) | O35: =O32/O26 -> 
B36: Wachstumsrate 5J p.a. | C36: =AVERAGE(C33,C30,C27) ->  | K36: Gesamtkapitalrentabilität (Return on Assets) | O36: =O32/O30 -> 
E37: Dividendenrendite | K37: Current-Valuation | O37: =IF(O27>O28,"JA","NEIN") -> NEIN
I38: Ergebnis | K38: NCAV | O38: =IF(O27>O29,"JA","NEIN") -> NEIN
E39: 10-Jahres-Durchschnittsdividendenrendite | I39: =AVERAGE(D22:M22) ->  | K39: Verschuldungsgrad (Debt-to-equity) | O39: =O29/O26 -> 
E40: Aktuelle Div.Rendite > Mittelwert Dividende? | I40: =IF(H6>I39,"Ja","Nein") ->  | K40: EBIT-Marge (EBIT margin) | O40: =O33/O31 -> 

Sheet DEO
B2: Analyse - Einzelunternehmen | Q2: Datum:
G3: Aktuelle Daten:
B4: Diageo | G4: Kurs: | H4: 25.925
G5: KGV: | H5: 19.52
G6: Div.Rendite: | H6: 0.0285
G7: Währung: | H7: €
B9: 10-Jahres-Übersicht | M9: akt. Jahr
B10: Jahr | C10: =D10-1 -> 2004 | D10: 2005 | E10: 2006 | F10: =G10-1 -> 2007 | G10: 2008 | H10: =I10-1 -> 2009 | I10: 2010 | J10: 2011 | K10: 2012 | L10: 2013 | M10: 2014
B11: Umsatz in Mrd. | C11: 8.891 | D11: 9.036 | E11: 7.26 | F11: 7.481 | G11: 8.09 | H11: 9.311 | I11: 9.78 | J11: 9.936 | K11: 10.762 | L11: 11.433 | M11: 10.258
B12: Umsatz erhöht? (1=ja) | C12: 0 | D12: =IF(D11>C11, 1, 0) -> 1 | E12: =IF(E11>D11, 1, 0) -> 0 | F12: 1 | G12: 1 | H12: 1 | I12: 1 | J12: 1 | K12: 1 | L12: 1 | M12: 0
B13: Umsatzwachstum | D13: =D11/C11-1 -> 0.0163086267 | E13: =E11/D11-1 -> -0.1965471448 | F13: 0.03044077135 | G13: 0.08140622911 | H13: 0.1509270705 | I13: 0.05037052948 | J13: 0.01595092025 | K13: 0.08313204509 | L13: 0.06234900576 | M13: -0.1027726756
B14: Ergebnis pro Aktie (EPS) | C14: 0.46 | D14: 0.46 | E14: 0.67 | F14: 0.55 | G14: 0.59 | H14: 0.65 | I14: 0.66 | J14: 0.76 | K14: 0.78 | L14: 0.99 | M14: 0.9
B15: EPS erhöht? (1=ja) | C15: 0 | D15: =IF(D14>C14, 1, 0) -> 0 | E15: 1 | F15: 0 | G15: 1 | H15: 1 | I15: 1 | J15: 1 | K15: 1 | L15: 1 | M15: 0
B16: EPS-Wachstum | D16: =D14/C14-1 -> 0 | E16: =E14/D14-1 -> 0.4565217391 | F16: -0.1791044776 | G16: 0.07272727273 | H16: 0.1016949153 | I16: 0.01538461538 | J16: 0.1515151515 | K16: 0.02631578947 | L16: 0.2692307692 | M16: -0.09090909091
B17: Dividende pro Aktie | C17: 0.28 | D17: 0.3 | E17: 0.31 | F17: 0.33 | G17: 0.34 | H17: 0.36 | I17: 0.38 | J17: 0.4 | K17: 0.44 | L17: 0.47 | M17: 0.52
B18: Dividende erhöht? (1=ja) | C18: 0 | D18: =IF(D17>C17, 1, 0) -> 1 | E18: =IF(E17>D17, 1, 0) -> 1 | F18: 1 | G18: 1 | H18: 1 | I18: 1 | J18: 1 | K18: 1 | L18: 1 | M18: 1
B19: Div.-Wachstum | D19: =D17/C17-1 -> 0.07142857143 | E19: =E17/D17-1 -> 0.03333333333 | F19: 0.06451612903 | G19: 0.0303030303 | H19: 0.05882352941 | I19: 0.05555555556 | J19: 0.05263157895 | K19: 0.1 | L19: 0.06818181818 | M19: 0.1063829787
B20: Auszahlungsquote | C20: =C17/C14 -> 0.6086956522 | D20: 0.652173913 | E20: 0.4626865672 | F20: 0.6 | G20: 0.5762711864 | H20: 0.5538461538 | I20: 0.5757575758 | J20: 0.5263157895 | K20: 0.5641025641 | L20: 0.4747474747 | M20: 0.5777777778
B21: Kurs-Gewinn-Verhältnis (Jahresschlusskurs) | C21: 16.2 | D21: 17.9 | E21: 13.6 | F21: 18.9 | G21: 15.7 | H21: 13.4 | I21: 16.1 | J21: 16.8 | K21: 21.1 | L21: 18.9 | M21: 20.8
B22: Dividenden-Rendite (Jahresschlusskurs) | C22: 0.0376 | D22: 0.0365 | E22: 0.0341 | F22: 0.0318 | G22: 0.0368 | H22: 0.0413 | I22: 0.0358 | J22: 0.0314 | K22: 0.0265 | L22: 0.0252 | M22: 0.0277
B24: Wachstumraten | E24: Qualität (Robustheit) | K24: Finanzkennzahlen
C25: Ergebnis | I25: Ergebnis | O25: Ergebnis
B26: Umsatz-Wachstum 5J > 10J | C26: =IF(C27>C28,"Ja","Nein") -> Ja | E26: Anzahl Verlustjahre (bei EPS) | I26: =COUNTIF(D14:M14,"<0")*-1 -> 0 | K26: Eigenkapital (Shareholder Equity) | O26: 6823
B27: Umsatz-Wachstum 5J p.a. | C27: =AVERAGE(I13:M13) -> 0.021805965 | E27: Anzahl Jahre mit steigendem Umsatz | I27: =SUM(D12:M12) -> 8 | K27: Current Assets | O27: 7469
B28: Umsatz-Wachstum 10J p.a. | C28: =AVERAGE(D13:M13) -> 0.01915653779 | E28: Anzahl Jahre mit steigendem EPS | I28: =SUM(C15:L15) -> 7 | K28: Current Liabilities | O28: 4851
B29: EPS-Wachstum 5J > 10J | C29: =IF(C30>C31,"Ja","Nein") -> Nein | E29: Anzahl Jahre mit steigender Dividende | I29: =SUM(D18:M18) -> 10 | K29: Fremdkapital (Debt) | O29: 15374
B30: EPS-Wachstum 5J p.a. | C30: =AVERAGE(I16:M16) -> 0.07430744694 | E30: Qualität in % (maximal 30 Punkte) | I30: =SUM(I26:I29)/30 -> 0.8333333333 | K30: Gesamtkapital (Total Assets) | O30: 22964
B31: EPS-Wachstum 10J p.a. | C31: =AVERAGE(D16:M16) -> 0.08233766842 | K31: Umsatz (Revenue) | O31: 10258
B32: Dividenden-Wachstum 5J > 10J | C32: =IF(C33>C34,"Ja","Nein") -> Ja | E32: KGV | K32: Gewinn (Net income) | O32: 2264
B33: Dividenden-Wachstum 5J p.a. | C33: =AVERAGE(I19:M19) -> 0.07655038628 | I33: Ergebnis | K33: EBIT (Operating income) | O33: 2707
B34: Dividenden-Wachstum 10J p.a. | C34: =AVERAGE(D19:M19) -> 0.06411565249 | E34: KGV-Durchschnitt 10J | I34: =AVERAGE(D21:M21) -> 17.32 | K34: Eigenkapitalquote (equity ratio) | O34: =O26/O30 -> 0.297117227
B35: Wachstumrate 10J p.a. | C35: =AVERAGE(C34,C31,C28) -> 0.05520328623 | E35: Aktuelles KGV < KGV Mittelwert? | I35: =IF(H5<I34,"Ja,","Nein") -> Nein | K35: Eigenkapitalrentabilität (Return on Equity) | O35: =O32/O26 -> 0.331818848
B36: Wachstumsrate 5J p.a. | C36: =AVERAGE(C33,C30,C27) -> 0.05755459941 | K36: Gesamtkapitalrentabilität (Return on Assets) | O36: =O32/O30 -> 0.09858909598
E37: Dividendenrendite | K37: Current-Valuation | O37: =IF(O27>O28,"JA","NEIN") -> JA
I38: Ergebnis | K38: NCAV | O38: =IF(O27>O29,"JA","NEIN") -> NEIN
E39: 10-Jahres-Durchschnittsdividendenrendite | I39: =AVERAGE(D22:M22) -> 0.03271 | K39: Verschuldungsgrad (Debt-to-equity) | O39: =O29/O26 -> 2.253261029
E40: Aktuelle Div.Rendite > Mittelwert Dividende? | I40: =IF(H6>I39,"Ja","Nein") -> Nein | K40: EBIT-Marge (EBIT margin) | O40: =O33/O31 -> 0.2638915968

Sheet DIS
B2: Analyse - Einzelunternehmen | Q2: Datum: 19.06.2015
G3: Aktuelle Daten:
B4: Disney | G4: Kurs: | H4: 99.51
G5: KGV: | H5: 24.35
G6: Div.Rendite: | H6: 0.0102
G7: Währung: | H7: USD
B9: 10-Jahres-Übersicht | M9: akt. Jahr
B10: Jahr | C10: =D10-1 -> 2004 | D10: 2005 | E10: 2006 | F10: =G10-1 -> 2007 | G10: 2008 | H10: =I10-1 -> 2009 | I10: 2010 | J10: 2011 | K10: 2012 | L10: 2013 | M10: 2014
B11: Umsatz in Mrd. | C11: 30.75 | D11: 31.94 | E11: 34.28 | F11: 35.51 | G11: 37.84 | H11: 36.15 | I11: 38.06 | J11: 40.89 | K11: 42.28 | L11: 45.04 | M11: 48.81
B12: Umsatz erhöht? (1=ja) | C12: 0 | D12: =IF(D11>C11, 1, 0) -> 1 | E12: =IF(E11>D11, 1, 0) -> 1 | F12: 1 | G12: 1 | H12: 0 | I12: 1 | J12: 1 | K12: 1 | L12: 1 | M12: 1
B13: Umsatzwachstum | D13: =D11/C11-1 -> 0.03869918699 | E13: =E11/D11-1 -> 0.07326236694 | F13: 0.03588098016 | G13: 0.06561531963 | H13: -0.04466173362 | I13: 0.05283540802 | J13: 0.07435627956 | K13: 0.03399364148 | L13: 0.06527909177 | M13: 0.08370337478
B14: Ergebnis pro Aktie (EPS) | C14: 1.14 | D14: 1.25 | E14: 1.68 | F14: 2.34 | G14: 2.34 | H14: 1.78 | I14: 2.07 | J14: 2.56 | K14: 3.17 | L14: 3.42 | M14: 4.31
B15: EPS erhöht? (1=ja) | C15: 0 | D15: =IF(D14>C14, 1, 0) -> 1 | E15: 1 | F15: 1 | G15: 0 | H15: 0 | I15: 1 | J15: 1 | K15: 1 | L15: 1 | M15: 1
B16: EPS-Wachstum | D16: =D14/C14-1 -> 0.09649122807 | E16: =E14/D14-1 -> 0.344 | F16: 0.3928571429 | G16: 0 | H16: -0.2393162393 | I16: 0.1629213483 | J16: 0.2367149758 | K16: 0.23828125 | L16: 0.07886435331 | M16: 0.2602339181
B17: Dividende pro Aktie | C17: 0.21 | D17: 0.24 | E17: 0.27 | F17: 0.31 | G17: 0.35 | H17: 0.35 | I17: 0.35 | J17: 0.4 | K17: 0.6 | L17: 0.75 | M17: 0.86
B18: Dividende erhöht? (1=ja) | C18: 0 | D18: =IF(D17>C17, 1, 0) -> 1 | E18: =IF(E17>D17, 1, 0) -> 1 | F18: 1 | G18: 1 | H18: 0 | I18: 0 | J18: 1 | K18: 1 | L18: 1 | M18: 1
B19: Div.-Wachstum | D19: =D17/C17-1 -> 0.1428571429 | E19: =E17/D17-1 -> 0.125 | F19: 0.1481481481 | G19: 0.1290322581 | H19: 0 | I19: 0 | J19: 0.1428571429 | K19: 0.5 | L19: 0.25 | M19: 0.1466666667
B20: Auszahlungsquote | C20: =C17/C14 -> 0.1842105263 | D20: 0.192 | E20: 0.1607142857 | F20: 0.1324786325 | G20: 0.1495726496 | H20: 0.1966292135 | I20: 0.1690821256 | J20: 0.15625 | K20: 0.1892744479 | L20: 0.2192982456 | M20: 0.1995359629
B21: Kurs-Gewinn-Verhältnis (Jahresschlusskurs) | C21: 19.22 | D21: 19.12 | E21: 18.91 | F21: 14.4 | G21: 12.64 | H21: 15.49 | I21: 15.84 | J21: 11.06 | K21: 16.31 | L21: 18.47
B22: Dividenden-Rendite (Jahresschlusskurs) | C22: 0.0093 | D22: 0.0099 | E22: 0.0087 | F22: 0.009 | G22: 0.0114 | H22: 0.0127 | I22: 0.0106 | J22: 0.0133 | K22: 0.0115 | L22: 0.0116
B24: Wachstumraten | E24: Qualität (Robustheit) | K24: Finanzkennzahlen | Q24: Bewertung
C25: Ergebnis | I25: Ergebnis | O25: Ergebnis | T25: Ergebnis
B26: Umsatz-Wachstum 5J > 10J | C26: =IF(C27>C28,"Ja","Nein") -> Ja | E26: Anzahl Verlustjahre (bei EPS) | I26: =COUNTIF(D14:M14,"<0")*-1 -> 0 | K26: Eigenkapital (Shareholder Equity) | O26: 48178 | Q26: 200 Tage Linie | T26: 86.74
B27: Umsatz-Wachstum 5J p.a. | C27: =AVERAGE(I13:M13) -> 0.06203355912 | E27: Anzahl Jahre mit steigendem Umsatz | I27: =SUM(D12:M12) -> 9 | K27: Current Assets | O27: 15176 | Q27: Differenz Kurz 200 Tage | T27: =H4/T26-1 -> 0.1472215817
B28: Umsatz-Wachstum 10J p.a. | C28: =AVERAGE(D13:M13) -> 0.04789639157 | E28: Anzahl Jahre mit steigendem EPS | I28: =SUM(C15:L15) -> 7 | K28: Current Liabilities | O28: 13292
B29: EPS-Wachstum 5J > 10J | C29: =IF(C30>C31,"Ja","Nein") -> Ja | E29: Anzahl Jahre mit steigender Dividende | I29: =SUM(D18:M18) -> 8 | K29: Fremdkapital (Debt) | O29: =O30-O26 -> 36008
B30: EPS-Wachstum 5J p.a. | C30: =AVERAGE(I16:M16) -> 0.1954031691 | E30: Qualität in % (maximal 30 Punkte) | I30: =SUM(I26:I29)/30 -> 0.8 | K30: Gesamtkapital (Total Assets) | O30: 84186
B31: EPS-Wachstum 10J p.a. | C31: =AVERAGE(D16:M16) -> 0.1571047977 | K31: Umsatz (Revenue) | O31: 48813
B32: Dividenden-Wachstum 5J > 10J | C32: =IF(C33>C34,"Ja","Nein") -> Ja | E32: KGV | K32: Gewinn (Net income) | O32: 8004
B33: Dividenden-Wachstum 5J p.a. | C33: =AVERAGE(I19:M19) -> 0.2079047619 | I33: Ergebnis | K33: EBIT (Operating income) | O33: 12246
B34: Dividenden-Wachstum 10J p.a. | C34: =AVERAGE(D19:M19) -> 0.1584561359 | E34: KGV-Durchschnitt 10J | I34: =AVERAGE(C21:M21) -> 16.146 | K34: Eigenkapitalquote (equity ratio) | O34: =O26/O30 -> 0.5722804267
B35: Wachstumrate 10J p.a. | C35: =AVERAGE(C34,C31,C28) -> 0.1211524417 | E35: Aktuelles KGV < KGV Mittelwert? | I35: =IF(H5<I34,"Ja,","Nein") -> Nein | K35: Eigenkapitalrentabilität (Return on Equity) | O35: =O32/O26 -> 0.16613392
B36: Wachstumsrate 5J p.a. | C36: =AVERAGE(C33,C30,C27) -> 0.15511383 | K36: Gesamtkapitalrentabilität (Return on Assets) | O36: =O32/O30 -> 0.09507519065
E37: Dividendenrendite | K37: Current-Valuation | O37: =IF(O27>O28,"JA","NEIN") -> JA
I38: Ergebnis | K38: NCAV | O38: =IF(O27>O29,"JA","NEIN") -> NEIN
E39: 10-Jahres-Durchschnittsdividendenrendite | I39: =AVERAGE(C22:M22) -> 0.0108 | K39: Verschuldungsgrad (Debt-to-equity) | O39: =O29/O26 -> 0.7473950766
E40: Aktuelle Div.Rendite > Mittelwert Dividende? | I40: =IF(H6>I39,"Ja","Nein") -> Nein | K40: EBIT-Marge (EBIT margin) | O40: =O33/O31 -> 0.2508757913

Sheet DP
B2: Analyse - Einzelunternehmen | Q2: Datum:
G3: Aktuelle Daten:
B4: Deutsche Post | G4: Kurs:
G5: KGV:
G6: Div.Rendite:
G7: Währung: | H7: Währung
B9: 10-Jahres-Übersicht | M9: akt. Jahr
B10: Jahr | C10: =D10-1 -> 2004 | D10: 2005 | E10: 2006 | F10: =G10-1 -> 2007 | G10: 2008 | H10: =I10-1 -> 2009 | I10: 2010 | J10: 2011 | K10: 2012 | L10: 2013 | M10: 2014
B11: Umsatz in Mrd.
B12: Umsatz erhöht? (1=ja) | C12: 0 | D12: =IF(D11>C11, 1, 0) -> 0 | E12: =IF(E11>D11, 1, 0) -> 0 | F12: 0 | G12: 0 | H12: 0 | I12: 0 | J12: 0 | K12: 0 | L12: 0 | M12: 0
B13: Umsatzwachstum | D13: =D11/C11-1 ->  | E13: =E11/D11-1 -> 
B14: Ergebnis pro Aktie (EPS)
B15: EPS erhöht? (1=ja) | C15: 0 | D15: =IF(D14>C14, 1, 0) -> 0 | E15: 0 | F15: 0 | G15: 0 | H15: 0 | I15: 0 | J15: 0 | K15: 0 | L15: 0 | M15: 0
B16: EPS-Wachstum | D16: =D14/C14-1 ->  | E16: =E14/D14-1 -> 
B17: Dividende pro Aktie
B18: Dividende erhöht? (1=ja) | C18: 0 | D18: =IF(D17>C17, 1, 0) -> 0 | E18: =IF(E17>D17, 1, 0) -> 0 | F18: 0 | G18: 0 | H18: 0 | I18: 0 | J18: 0 | K18: 0 | L18: 0 | M18: 0
B19: Div.-Wachstum | D19: =D17/C17-1 ->  | E19: =E17/D17-1 -> 
B20: Auszahlungsquote | C20: =C17/C14 -> 
B21: Kurs-Gewinn-Verhältnis (Jahresschlusskurs)
B22: Dividenden-Rendite (Jahresschlusskurs)
B24: Wachstumraten | E24: Qualität (Robustheit) | K24: Finanzkennzahlen
C25: Ergebnis | I25: Ergebnis | O25: Ergebnis
B26: Umsatz-Wachstum 5J > 10J | C26: =IF(C27>C28,"Ja","Nein") ->  | E26: Anzahl Verlustjahre (bei EPS) | I26: =COUNTIF(D14:M14,"<0")*-1 -> 0 | K26: Eigenkapital (Shareholder Equity)
B27: Umsatz-Wachstum 5J p.a. | C27: =AVERAGE(I13:M13) ->  | E27: Anzahl Jahre mit steigendem Umsatz | I27: =SUM(D12:M12) -> 0 | K27: Current Assets
B28: Umsatz-Wachstum 10J p.a. | C28: =AVERAGE(D13:M13) ->  | E28: Anzahl Jahre mit steigendem EPS | I28: =SUM(C15:L15) -> 0 | K28: Current Liabilities
B29: EPS-Wachstum 5J > 10J | C29: =IF(C30>C31,"Ja","Nein") ->  | E29: Anzahl Jahre mit steigender Dividende | I29: =SUM(D18:M18) -> 0 | K29: Fremdkapital (Debt)
B30: EPS-Wachstum 5J p.a. | C30: =AVERAGE(I16:M16) ->  | E30: Qualität in % (maximal 30 Punkte) | I30: =SUM(I26:I29)/30 -> 0 | K30: Gesamtkapital (Total Assets)
B31: EPS-Wachstum 10J p.a. | C31: =AVERAGE(D16:M16) ->  | K31: Umsatz (Revenue)
B32: Dividenden-Wachstum 5J > 10J | C32: =IF(C33>C34,"Ja","Nein") ->  | E32: KGV | K32: Gewinn (Net income)
B33: Dividenden-Wachstum 5J p.a. | C33: =AVERAGE(I19:M19) ->  | I33: Ergebnis | K33: EBIT (Operating income)
B34: Dividenden-Wachstum 10J p.a. | C34: =AVERAGE(D19:M19) ->  | E34: KGV-Durchschnitt 10J | I34: =AVERAGE(D21:M21) ->  | K34: Eigenkapitalquote (equity ratio) | O34: =O26/O30 -> 
B35: Wachstumrate 10J p.a. | C35: =AVERAGE(C34,C31,C28) ->  | E35: Aktuelles KGV < KGV Mittelwert? | I35: =IF(H5<I34,"Ja,","Nein") ->  | K35: Eigenkapitalrentabilität (Return on Equity) | O35: =O32/O26 -> 
B36: Wachstumsrate 5J p.a. | C36: =AVERAGE(C33,C30,C27) ->  | K36: Gesamtkapitalrentabilität (Return on Assets) | O36: =O32/O30 -> 
E37: Dividendenrendite | K37: Current-Valuation | O37: =IF(O27>O28,"JA","NEIN") -> NEIN
I38: Ergebnis | K38: NCAV | O38: =IF(O27>O29,"JA","NEIN") -> NEIN
E39: 10-Jahres-Durchschnittsdividendenrendite | I39: =AVERAGE(D22:M22) ->  | K39: Verschuldungsgrad (Debt-to-equity) | O39: =O29/O26 -> 
E40: Aktuelle Div.Rendite > Mittelwert Dividende? | I40: =IF(H6>I39,"Ja","Nein") ->  | K40: EBIT-Marge (EBIT margin) | O40: =O33/O31 -> 

Sheet EMR
B2: Analyse - Einzelunternehmen | Q2: Datum:
G3: Aktuelle Daten:
B4: Emerson Electric | G4: Kurs: | H4: 57.92
G5: KGV: | H5: 18.39
G6: Div.Rendite: | H6: 0.0325
G7: Währung: | H7: USD
B9: 10-Jahres-Übersicht | M9: akt. Jahr
B10: Jahr | C10: =D10-1 -> 2004 | D10: 2005 | E10: 2006 | F10: =G10-1 -> 2007 | G10: 2008 | H10: =I10-1 -> 2009 | I10: 2010 | J10: 2011 | K10: 2012 | L10: 2013 | M10: 2014
B11: Umsatz in Mrd. | C11: 15.62 | D11: 17.3 | E11: 20.13 | F11: 22.57 | G11: 24.81 | H11: 20.91 | I11: 21.04 | J11: 24.22 | K11: 24.41 | L11: 24.67 | M11: 24.54
B12: Umsatz erhöht? (1=ja) | C12: 0 | D12: =IF(D11>C11, 1, 0) -> 1 | E12: =IF(E11>D11, 1, 0) -> 1 | F12: 1 | G12: 1 | H12: 0 | I12: 1 | J12: 1 | K12: 1 | L12: 1 | M12: 0
B13: Umsatzwachstum | D13: =D11/C11-1 -> 0.1075544174 | E13: =E11/D11-1 -> 0.163583815 | F13: 0.1212121212 | G13: 0.09924678777 | H13: -0.1571946796 | I13: 0.006217120995 | J13: 0.1511406844 | K13: 0.0078447564 | L13: 0.01065137239 | M13: -0.005269558168
B14: Ergebnis pro Aktie (EPS) | C14: 1.5 | D14: 1.72 | E14: 2.26 | F14: 2.69 | G14: 3.09 | H14: 2.29 | I14: 2.87 | J14: 3.29 | K14: 2.68 | L14: 2.78 | M14: 3.05
B15: EPS erhöht? (1=ja) | C15: 0 | D15: =IF(D14>C14, 1, 0) -> 1 | E15: 1 | F15: 1 | G15: 1 | H15: 0 | I15: 1 | J15: 1 | K15: 0 | L15: 1 | M15: 1
B16: EPS-Wachstum | D16: =D14/C14-1 -> 0.1466666667 | E16: =E14/D14-1 -> 0.3139534884 | F16: 0.1902654867 | G16: 0.1486988848 | H16: -0.2588996764 | I16: 0.2532751092 | J16: 0.1463414634 | K16: -0.1854103343 | L16: 0.03731343284 | M16: 0.09712230216
B17: Dividende pro Aktie | C17: 0.8 | D17: 0.83 | E17: 0.89 | F17: 1.05 | G17: 1.2 | H17: 1.33 | I17: 1.34 | J17: 1.38 | K17: 1.6 | L17: 1.64 | M17: 1.72
B18: Dividende erhöht? (1=ja) | C18: 0 | D18: =IF(D17>C17, 1, 0) -> 1 | E18: =IF(E17>D17, 1, 0) -> 1 | F18: 1 | G18: 1 | H18: 1 | I18: 1 | J18: 1 | K18: 1 | L18: 1 | M18: 1
B19: Div.-Wachstum | D19: =D17/C17-1 -> 0.0375 | E19: =E17/D17-1 -> 0.07228915663 | F19: 0.1797752809 | G19: 0.1428571429 | H19: 0.1083333333 | I19: 0.007518796992 | J19: 0.02985074627 | K19: 0.1594202899 | L19: 0.025 | M19: 0.0487804878
B20: Auszahlungsquote | C20: =C17/C14 -> 0.5333333333 | D20: 0.4825581395 | E20: 0.3938053097 | F20: 0.3903345725 | G20: 0.3883495146 | H20: 0.5807860262 | I20: 0.4668989547 | J20: 0.4194528875 | K20: 0.5970149254 | L20: 0.5899280576 | M20: 0.5639344262
B21: Kurs-Gewinn-Verhältnis (Jahresschlusskurs) | C21: 20.65 | D21: 21.57 | E21: 18.29 | F21: 19.64 | G21: 13.04 | H21: 17.48 | I21: 18.32 | J21: 12.31 | K21: 17.76 | L21: 22.81
B22: Dividenden-Rendite (Jahresschlusskurs) | C22: 0.0258 | D22: 0.0222 | E22: 0.0212 | F22: 0.0197 | G22: 0.0294 | H22: 0.0332 | I22: 0.0254 | J22: 0.0334 | K22: 0.0331 | L22: 0.0253
B24: Wachstumraten | E24: Qualität (Robustheit) | K24: Finanzkennzahlen
C25: Ergebnis | I25: Ergebnis | O25: Ergebnis
B26: Umsatz-Wachstum 5J > 10J | C26: =IF(C27>C28,"Ja","Nein") -> Nein | E26: Anzahl Verlustjahre (bei EPS) | I26: =COUNTIF(D14:M14,"<0")*-1 -> 0 | K26: Eigenkapital (Shareholder Equity) | O26: 10585
B27: Umsatz-Wachstum 5J p.a. | C27: =AVERAGE(I13:M13) -> 0.03411687521 | E27: Anzahl Jahre mit steigendem Umsatz | I27: =SUM(D12:M12) -> 8 | K27: Current Assets
B28: Umsatz-Wachstum 10J p.a. | C28: =AVERAGE(D13:M13) -> 0.05049868379 | E28: Anzahl Jahre mit steigendem EPS | I28: =SUM(C15:L15) -> 7 | K28: Current Liabilities
B29: EPS-Wachstum 5J > 10J | C29: =IF(C30>C31,"Ja","Nein") -> Nein | E29: Anzahl Jahre mit steigender Dividende | I29: =SUM(D18:M18) -> 10 | K29: Fremdkapital (Debt) | O29: =24711-10718 -> 13993
B30: EPS-Wachstum 5J p.a. | C30: =AVERAGE(I16:M16) -> 0.06972839465 | E30: Qualität in % (maximal 30 Punkte) | I30: =SUM(I26:I29)/30 -> 0.8333333333 | K30: Gesamtkapital (Total Assets) | O30: 24711
B31: EPS-Wachstum 10J p.a. | C31: =AVERAGE(D16:M16) -> 0.08893268234 | K31: Umsatz (Revenue) | O31: 24669
B32: Dividenden-Wachstum 5J > 10J | C32: =IF(C33>C34,"Ja","Nein") -> Nein | E32: KGV | K32: Gewinn (Net income) | O32: 2066
B33: Dividenden-Wachstum 5J p.a. | C33: =AVERAGE(I19:M19) -> 0.05411406418 | I33: Ergebnis | K33: EBIT (Operating income) | O33: 3196
B34: Dividenden-Wachstum 10J p.a. | C34: =AVERAGE(D19:M19) -> 0.08113252346 | E34: KGV-Durchschnitt 10J | I34: =AVERAGE(D21:M21) -> 17.91333333 | K34: Eigenkapitalquote (equity ratio) | O34: =O26/O30 -> 0.4283517462
B35: Wachstumrate 10J p.a. | C35: =AVERAGE(C34,C31,C28) -> 0.07352129653 | E35: Aktuelles KGV < KGV Mittelwert? | I35: =IF(H5<I34,"Ja,","Nein") -> Nein | K35: Eigenkapitalrentabilität (Return on Equity) | O35: =O32/O26 -> 0.1951818611
B36: Wachstumsrate 5J p.a. | C36: =AVERAGE(C33,C30,C27) -> 0.05265311135 | K36: Gesamtkapitalrentabilität (Return on Assets) | O36: =O32/O30 -> 0.08360649104
E37: Dividendenrendite | K37: Current-Valuation | O37: =IF(O27>O28,"JA","NEIN") -> NEIN
I38: Ergebnis | K38: NCAV | O38: =IF(O27>O29,"JA","NEIN") -> NEIN
E39: 10-Jahres-Durchschnittsdividendenrendite | I39: =AVERAGE(D22:M22) -> 0.02698888889 | K39: Verschuldungsgrad (Debt-to-equity) | O39: =O29/O26 -> 1.321965045
E40: Aktuelle Div.Rendite > Mittelwert Dividende? | I40: =IF(H6>I39,"Ja","Nein") -> Ja | K40: EBIT-Marge (EBIT margin) | O40: =O33/O31 -> 0.1295553123

Sheet ERIC
B2: Analyse - Einzelunternehmen | Q2: Datum:
G3: Aktuelle Daten:
B4: Ericsson | G4: Kurs:
G5: KGV:
G6: Div.Rendite:
G7: Währung: | H7: Währung
B9: 10-Jahres-Übersicht | M9: akt. Jahr
B10: Jahr | C10: =D10-1 -> 2004 | D10: 2005 | E10: 2006 | F10: =G10-1 -> 2007 | G10: 2008 | H10: =I10-1 -> 2009 | I10: 2010 | J10: 2011 | K10: 2012 | L10: 2013 | M10: 2014
B11: Umsatz in Mrd.
B12: Umsatz erhöht? (1=ja) | C12: 0 | D12: =IF(D11>C11, 1, 0) -> 0 | E12: =IF(E11>D11, 1, 0) -> 0 | F12: 0 | G12: 0 | H12: 0 | I12: 0 | J12: 0 | K12: 0 | L12: 0 | M12: 0
B13: Umsatzwachstum | D13: =D11/C11-1 ->  | E13: =E11/D11-1 -> 
B14: Ergebnis pro Aktie (EPS)
B15: EPS erhöht? (1=ja) | C15: 0 | D15: =IF(D14>C14, 1, 0) -> 0 | E15: 0 | F15: 0 | G15: 0 | H15: 0 | I15: 0 | J15: 0 | K15: 0 | L15: 0 | M15: 0
B16: EPS-Wachstum | D16: =D14/C14-1 ->  | E16: =E14/D14-1 -> 
B17: Dividende pro Aktie
B18: Dividende erhöht? (1=ja) | C18: 0 | D18: =IF(D17>C17, 1, 0) -> 0 | E18: =IF(E17>D17, 1, 0) -> 0 | F18: 0 | G18: 0 | H18: 0 | I18: 0 | J18: 0 | K18: 0 | L18: 0 | M18: 0
B19: Div.-Wachstum | D19: =D17/C17-1 ->  | E19: =E17/D17-1 -> 
B20: Auszahlungsquote | C20: =C17/C14 -> 
B21: Kurs-Gewinn-Verhältnis (Jahresschlusskurs)
B22: Dividenden-Rendite (Jahresschlusskurs)
B24: Wachstumraten | E24: Qualität (Robustheit) | K24: Finanzkennzahlen
C25: Ergebnis | I25: Ergebnis | O25: Ergebnis
B26: Umsatz-Wachstum 5J > 10J | C26: =IF(C27>C28,"Ja","Nein") ->  | E26: Anzahl Verlustjahre (bei EPS) | I26: =COUNTIF(D14:M14,"<0")*-1 -> 0 | K26: Eigenkapital (Shareholder Equity)
B27: Umsatz-Wachstum 5J p.a. | C27: =AVERAGE(I13:M13) ->  | E27: Anzahl Jahre mit steigendem Umsatz | I27: =SUM(D12:M12) -> 0 | K27: Current Assets
B28: Umsatz-Wachstum 10J p.a. | C28: =AVERAGE(D13:M13) ->  | E28: Anzahl Jahre mit steigendem EPS | I28: =SUM(C15:L15) -> 0 | K28: Current Liabilities
B29: EPS-Wachstum 5J > 10J | C29: =IF(C30>C31,"Ja","Nein") ->  | E29: Anzahl Jahre mit steigender Dividende | I29: =SUM(D18:M18) -> 0 | K29: Fremdkapital (Debt)
B30: EPS-Wachstum 5J p.a. | C30: =AVERAGE(I16:M16) ->  | E30: Qualität in % (maximal 30 Punkte) | I30: =SUM(I26:I29)/30 -> 0 | K30: Gesamtkapital (Total Assets)
B31: EPS-Wachstum 10J p.a. | C31: =AVERAGE(D16:M16) ->  | K31: Umsatz (Revenue)
B32: Dividenden-Wachstum 5J > 10J | C32: =IF(C33>C34,"Ja","Nein") ->  | E32: KGV | K32: Gewinn (Net income)
B33: Dividenden-Wachstum 5J p.a. | C33: =AVERAGE(I19:M19) ->  | I33: Ergebnis | K33: EBIT (Operating income)
B34: Dividenden-Wachstum 10J p.a. | C34: =AVERAGE(D19:M19) ->  | E34: KGV-Durchschnitt 10J | I34: =AVERAGE(D21:M21) ->  | K34: Eigenkapitalquote (equity ratio) | O34: =O26/O30 -> 
B35: Wachstumrate 10J p.a. | C35: =AVERAGE(C34,C31,C28) ->  | E35: Aktuelles KGV < KGV Mittelwert? | I35: =IF(H5<I34,"Ja,","Nein") ->  | K35: Eigenkapitalrentabilität (Return on Equity) | O35: =O32/O26 -> 
B36: Wachstumsrate 5J p.a. | C36: =AVERAGE(C33,C30,C27) ->  | K36: Gesamtkapitalrentabilität (Return on Assets) | O36: =O32/O30 -> 
E37: Dividendenrendite | K37: Current-Valuation | O37: =IF(O27>O28,"JA","NEIN") -> NEIN
I38: Ergebnis | K38: NCAV | O38: =IF(O27>O29,"JA","NEIN") -> NEIN
E39: 10-Jahres-Durchschnittsdividendenrendite | I39: =AVERAGE(D22:M22) ->  | K39: Verschuldungsgrad (Debt-to-equity) | O39: =O29/O26 -> 
E40: Aktuelle Div.Rendite > Mittelwert Dividende? | I40: =IF(H6>I39,"Ja","Nein") ->  | K40: EBIT-Marge (EBIT margin) | O40: =O33/O31 -> 

Sheet FPL
B2: Analyse - Einzelunternehmen | Q2: Datum: 28.06.2015
G3: Aktuelle Daten:
B4: Fuchs Petrolub | G4: Kurs: | H4: 38.788
G5: KGV: | H5: 23.37
G6: Div.Rendite: | H6: 0.0217
G7: Währung: | H7: EURO
B9: 10-Jahres-Übersicht | M9: akt. Jahr
B10: Jahr | C10: =D10-1 -> 2004 | D10: 2005 | E10: 2006 | F10: =G10-1 -> 2007 | G10: 2008 | H10: =I10-1 -> 2009 | I10: 2010 | J10: 2011 | K10: 2012 | L10: 2013 | M10: 2014
B11: Umsatz in Mrd. | C11: 1.1 | D11: 1.19 | E11: 1.32 | F11: 1.37 | G11: 1.39 | H11: 1.18 | I11: 1.46 | J11: 1.67 | K11: 1.82 | L11: 1.83 | M11: 1.87
B12: Umsatz erhöht? (1=ja) | C12: 0 | D12: =IF(D11>C11, 1, 0) -> 1 | E12: =IF(E11>D11, 1, 0) -> 1 | F12: 1 | G12: 1 | H12: 0 | I12: 1 | J12: 1 | K12: 1 | L12: 1 | M12: 1
B13: Umsatzwachstum | D13: =D11/C11-1 -> 0.08181818182 | E13: =E11/D11-1 -> 0.1092436975 | F13: 0.03787878788 | G13: 0.01459854015 | H13: -0.1510791367 | I13: 0.2372881356 | J13: 0.1438356164 | K13: 0.08982035928 | L13: 0.005494505495 | M13: 0.0218579235
B14: Ergebnis pro Aktie (EPS) | C14: 0.27 | D14: 0.52 | E14: 0.61 | F14: 0.77 | G14: 0.74 | H14: 0.84 | I14: 1.2 | J14: 1.28 | K14: 1.45 | L14: 1.53 | M14: 1.57
B15: EPS erhöht? (1=ja) | C15: 0 | D15: =IF(D14>C14, 1, 0) -> 1 | E15: 1 | F15: 1 | G15: 0 | H15: 1 | I15: 1 | J15: 1 | K15: 1 | L15: 1 | M15: 1
B16: EPS-Wachstum | D16: =D14/C14-1 -> 0.9259259259 | E16: =E14/D14-1 -> 0.1730769231 | F16: 0.262295082 | G16: -0.03896103896 | H16: 0.1351351351 | I16: 0.4285714286 | J16: 0.06666666667 | K16: 0.1328125 | L16: 0.05517241379 | M16: 0.02614379085
B17: Dividende pro Aktie | C17: 0.09 | D17: 0.12 | E17: 0.15 | F17: 0.24 | G17: 0.26 | H17: 0.28 | I17: 0.44 | J17: 0.49 | K17: 0.64 | L17: 0.69 | M17: 0.76
B18: Dividende erhöht? (1=ja) | C18: 0 | D18: =IF(D17>C17, 1, 0) -> 1 | E18: =IF(E17>D17, 1, 0) -> 1 | F18: 1 | G18: 1 | H18: 1 | I18: 1 | J18: 1 | K18: 1 | L18: 1 | M18: 1
B19: Div.-Wachstum | D19: =D17/C17-1 -> 0.3333333333 | E19: =E17/D17-1 -> 0.25 | F19: 0.6 | G19: 0.08333333333 | H19: 0.07692307692 | I19: 0.5714285714 | J19: 0.1136363636 | K19: 0.306122449 | L19: 0.078125 | M19: 0.1014492754
B20: Auszahlungsquote | C20: =C17/C14 -> 0.3333333333 | D20: 0.2307692308 | E20: 0.2459016393 | F20: 0.3116883117 | G20: 0.3513513514 | H20: 0.3333333333 | I20: 0.3666666667 | J20: 0.3828125 | K20: 0.4413793103 | L20: 0.4509803922 | M20: 0.4840764331
B21: Kurs-Gewinn-Verhältnis (Jahresschlusskurs) | C21: 16.88 | D21: 11.18 | E21: 13.94 | F21: 13.24 | G21: 8.5 | H21: 11.9 | I21: 13.7 | J21: 11.72 | K21: 18.21 | L21: 20.11 | M21: 20.1
B22: Dividenden-Rendite (Jahresschlusskurs) | C22: 0.0192 | D22: 0.0206 | E22: 0.0179 | F22: 0.0229 | G22: 0.0391 | H22: 0.0272 | I22: 0.0267 | J22: 0.0325 | K22: 0.0242 | L22: 0.0223 | M22: 0.0239
B24: Wachstumraten | E24: Qualität (Robustheit) | K24: Finanzkennzahlen | Q24: Bewertung
C25: Ergebnis | I25: Ergebnis | O25: Ergebnis | T25: Ergebnis
B26: Umsatz-Wachstum 5J > 10J | C26: =IF(C27>C28,"Ja","Nein") -> Ja | E26: Anzahl Verlustjahre (bei EPS) | I26: =COUNTIF(D14:M14,"<0")*-1 -> 0 | K26: Eigenkapital (Shareholder Equity) | O26: 915.6 | Q26: 200 Tage Linie | T26: 35.25
B27: Umsatz-Wachstum 5J p.a. | C27: =AVERAGE(I13:M13) -> 0.09965930806 | E27: Anzahl Jahre mit steigendem Umsatz | I27: =SUM(D12:M12) -> 9 | K27: Current Assets | O27: 754.6 | Q27: Differenz Kurz 200 Tage | T27: =H4/T26-1 -> 0.1003687943
B28: Umsatz-Wachstum 10J p.a. | C28: =AVERAGE(D13:M13) -> 0.05907566109 | E28: Anzahl Jahre mit steigendem EPS | I28: =SUM(C15:L15) -> 8 | K28: Current Liabilities | O28: 296.2
B29: EPS-Wachstum 5J > 10J | C29: =IF(C30>C31,"Ja","Nein") -> Nein | E29: Anzahl Jahre mit steigender Dividende | I29: =SUM(D18:M18) -> 10 | K29: Fremdkapital (Debt) | O29: =296.2+64.3 -> 360.5
B30: EPS-Wachstum 5J p.a. | C30: =AVERAGE(I16:M16) -> 0.14187336 | E30: Qualität in % (maximal 30 Punkte) | I30: =SUM(I26:I29)/30 -> 0.9 | K30: Gesamtkapital (Total Assets) | O30: 1276.1
B31: EPS-Wachstum 10J p.a. | C31: =AVERAGE(D16:M16) -> 0.2166838827 | K31: Umsatz (Revenue) | O31: 1865.9
B32: Dividenden-Wachstum 5J > 10J | C32: =IF(C33>C34,"Ja","Nein") -> Nein | E32: KGV | K32: Gewinn (Net income) | O32: 219.9
B33: Dividenden-Wachstum 5J p.a. | C33: =AVERAGE(I19:M19) -> 0.2341523319 | I33: Ergebnis | K33: EBIT (Operating income) | O33: 292.6
B34: Dividenden-Wachstum 10J p.a. | C34: =AVERAGE(D19:M19) -> 0.2514351403 | E34: KGV-Durchschnitt 10J | I34: =AVERAGE(D21:M21) -> 14.26 | K34: Eigenkapitalquote (equity ratio) | O34: =O26/O30 -> 0.7174986286
B35: Wachstumrate 10J p.a. | C35: =AVERAGE(C34,C31,C28) -> 0.1757315614 | E35: Aktuelles KGV < KGV Mittelwert? | I35: =IF(H5<I34,"Ja,","Nein") -> Nein | K35: Eigenkapitalrentabilität (Return on Equity) | O35: =O32/O26 -> 0.2401703801
B36: Wachstumsrate 5J p.a. | C36: =AVERAGE(C33,C30,C27) -> 0.1585616666 | K36: Gesamtkapitalrentabilität (Return on Assets) | O36: =O32/O30 -> 0.1723219183
E37: Dividendenrendite | K37: Current-Valuation | O37: =IF(O27>O28,"JA","NEIN") -> JA
I38: Ergebnis | K38: NCAV | O38: =IF(O27>O29,"JA","NEIN") -> JA
E39: 10-Jahres-Durchschnittsdividendenrendite | I39: =AVERAGE(D22:M22) -> 0.02573 | K39: Verschuldungsgrad (Debt-to-equity) | O39: =O29/O26 -> 0.3937308869
E40: Aktuelle Div.Rendite > Mittelwert Dividende? | I40: =IF(H6>I39,"Ja","Nein") -> Nein | K40: EBIT-Marge (EBIT margin) | O40: =O33/O31 -> 0.1568144059

Sheet FRES
B2: Analyse - Einzelunternehmen | Q2: Datum: 21.06.2015
G3: Aktuelle Daten:
B4: Fresenius | G4: Kurs: | H4: 55.99
G5: KGV: | H5: 24.07
G6: Div.Rendite: | H6: 0.0091
G7: Währung: | H7: EURO
B9: 10-Jahres-Übersicht | M9: akt. Jahr
B10: Jahr | C10: =D10-1 -> 2004 | D10: 2005 | E10: 2006 | F10: =G10-1 -> 2007 | G10: 2008 | H10: =I10-1 -> 2009 | I10: 2010 | J10: 2011 | K10: 2012 | L10: 2013 | M10: 2014
B11: Umsatz in Mrd. | C11: 7.27 | D11: 7.89 | E11: 10.78 | F11: 11.36 | G11: 12.34 | H11: 14.16 | I11: 15.97 | J11: 16.52 | K11: 19.29 | L11: 20.33 | M11: 23.23
B12: Umsatz erhöht? (1=ja) | C12: 0 | D12: =IF(D11>C11, 1, 0) -> 1 | E12: =IF(E11>D11, 1, 0) -> 1 | F12: 1 | G12: 1 | H12: 1 | I12: 1 | J12: 1 | K12: 1 | L12: 1 | M12: 1
B13: Umsatzwachstum | D13: =D11/C11-1 -> 0.08528198074 | E13: =E11/D11-1 -> 0.3662864385 | F13: 0.05380333952 | G13: 0.08626760563 | H13: 0.1474878444 | I13: 0.1278248588 | J13: 0.0344395742 | K13: 0.1676755448 | L13: 0.05391394505 | M13: 0.1426463355
B14: Ergebnis pro Aktie (EPS) | C14: 0.45 | D14: 0.59 | E14: 0.72 | F14: 0.88 | G14: 0.57 | H14: 1.02 | I14: 1.28 | J14: 1.41 | K14: 1.78 | L14: 1.89 | M14: 1.97
B15: EPS erhöht? (1=ja) | C15: 0 | D15: =IF(D14>C14, 1, 0) -> 1 | E15: 1 | F15: 1 | G15: 0 | H15: 1 | I15: 1 | J15: 1 | K15: 1 | L15: 1 | M15: 1
B16: EPS-Wachstum | D16: =D14/C14-1 -> 0.3111111111 | E16: =E14/D14-1 -> 0.2203389831 | F16: 0.2222222222 | G16: -0.3522727273 | H16: 0.7894736842 | I16: 0.2549019608 | J16: 0.1015625 | K16: 0.2624113475 | L16: 0.06179775281 | M16: 0.04232804233
B17: Dividende pro Aktie | C17: 0.15 | D17: 0.16 | E17: 0.19 | F17: 0.22 | G17: 0.23 | H17: 0.25 | I17: 0.29 | J17: 0.32 | K17: 0.37 | L17: 0.42 | M17: 0.44
B18: Dividende erhöht? (1=ja) | C18: 0 | D18: =IF(D17>C17, 1, 0) -> 1 | E18: =IF(E17>D17, 1, 0) -> 1 | F18: 1 | G18: 1 | H18: 1 | I18: 1 | J18: 1 | K18: 1 | L18: 1 | M18: 1
B19: Div.-Wachstum | D19: =D17/C17-1 -> 0.06666666667 | E19: =E17/D17-1 -> 0.1875 | F19: 0.1578947368 | G19: 0.04545454545 | H19: 0.08695652174 | I19: 0.16 | J19: 0.1034482759 | K19: 0.15625 | L19: 0.1351351351 | M19: 0.04761904762
B20: Auszahlungsquote | C20: =C17/C14 -> 0.3333333333 | D20: 0.2711864407 | E20: 0.2638888889 | F20: 0.25 | G20: 0.4035087719 | H20: 0.2450980392 | I20: 0.2265625 | J20: 0.2269503546 | K20: 0.2078651685 | L20: 0.2222222222 | M20: 0.2233502538
B21: Kurs-Gewinn-Verhältnis (Jahresschlusskurs) | C21: 18.21 | D21: 24.21 | E21: 23.66 | F21: 21.2 | G21: 21.63 | H21: 14.18 | I21: 16.39 | J21: 16.91 | K21: 16.76 | L21: 19.84
B22: Dividenden-Rendite (Jahresschlusskurs) | C22: 0.0181 | D22: 0.0138 | E22: 0.0113 | F22: 0.0118 | G22: 0.0193 | H22: 0.0173 | I22: 0.0137 | J22: 0.0133 | K22: 0.0126 | L22: 0.0112
B24: Wachstumraten | E24: Qualität (Robustheit) | K24: Finanzkennzahlen | Q24: Bewertung
C25: Ergebnis | I25: Ergebnis | O25: Ergebnis | T25: Ergebnis
B26: Umsatz-Wachstum 5J > 10J | C26: =IF(C27>C28,"Ja","Nein") -> Nein | E26: Anzahl Verlustjahre (bei EPS) | I26: =COUNTIF(D14:M14,"<0")*-1 -> 0 | K26: Eigenkapital (Shareholder Equity) | O26: 15483 | Q26: 200 Tage Linie | T26: 47.49
B27: Umsatz-Wachstum 5J p.a. | C27: =AVERAGE(I13:M13) -> 0.1053000517 | E27: Anzahl Jahre mit steigendem Umsatz | I27: =SUM(D12:M12) -> 10 | K27: Current Assets | O27: 10028 | Q27: Differenz Kurz 200 Tage | T27: =H4/T26-1 -> 0.1789850495
B28: Umsatz-Wachstum 10J p.a. | C28: =AVERAGE(D13:M13) -> 0.1265627467 | E28: Anzahl Jahre mit steigendem EPS | I28: =SUM(C15:L15) -> 8 | K28: Current Liabilities | O28: 7104
B29: EPS-Wachstum 5J > 10J | C29: =IF(C30>C31,"Ja","Nein") -> Nein | E29: Anzahl Jahre mit steigender Dividende | I29: =SUM(D18:M18) -> 10 | K29: Fremdkapital (Debt) | O29: 23733
B30: EPS-Wachstum 5J p.a. | C30: =AVERAGE(I16:M16) -> 0.1446003207 | E30: Qualität in % (maximal 30 Punkte) | I30: =SUM(I26:I29)/30 -> 0.9333333333 | K30: Gesamtkapital (Total Assets) | O30: 39897
B31: EPS-Wachstum 10J p.a. | C31: =AVERAGE(D16:M16) -> 0.1913874877 | K31: Umsatz (Revenue) | O31: 23231
B32: Dividenden-Wachstum 5J > 10J | C32: =IF(C33>C34,"Ja","Nein") -> Ja | E32: KGV | K32: Gewinn (Net income) | O32: 1067
B33: Dividenden-Wachstum 5J p.a. | C33: =AVERAGE(I19:M19) -> 0.1204904917 | I33: Ergebnis | K33: EBIT (Operating income) | O33: 3114
B34: Dividenden-Wachstum 10J p.a. | C34: =AVERAGE(D19:M19) -> 0.1146924929 | E34: KGV-Durchschnitt 10J | I34: =AVERAGE(C21:L21) -> 19.299 | K34: Eigenkapitalquote (equity ratio) | O34: =O26/O30 -> 0.3880742913
B35: Wachstumrate 10J p.a. | C35: =AVERAGE(C34,C31,C28) -> 0.1442142424 | E35: Aktuelles KGV < KGV Mittelwert? | I35: =IF(H5<I34,"Ja,","Nein") -> Nein | K35: Eigenkapitalrentabilität (Return on Equity) | O35: =O32/O26 -> 0.0689142931
B36: Wachstumsrate 5J p.a. | C36: =AVERAGE(C33,C30,C27) -> 0.1234636214 | K36: Gesamtkapitalrentabilität (Return on Assets) | O36: =O32/O30 -> 0.02674386545
E37: Dividendenrendite | K37: Current-Valuation | O37: =IF(O27>O28,"JA","NEIN") -> JA
I38: Ergebnis | K38: NCAV | O38: =IF(O27>O29,"JA","NEIN") -> NEIN
E39: 10-Jahres-Durchschnittsdividendenrendite | I39: =AVERAGE(C22:L22) -> 0.01424 | K39: Verschuldungsgrad (Debt-to-equity) | O39: =O29/O26 -> 1.532842472
E40: Aktuelle Div.Rendite > Mittelwert Dividende? | I40: =IF(H6>I39,"Ja","Nein") -> Nein | K40: EBIT-Marge (EBIT margin) | O40: =O33/O31 -> 0.134045026

Sheet GE
B2: Analyse - Einzelunternehmen | Q2: Datum:
G3: Aktuelle Daten:
B4: General Electric | G4: Kurs:
G5: KGV:
G6: Div.Rendite:
G7: Währung: | H7: Währung
B9: 10-Jahres-Übersicht | M9: akt. Jahr
B10: Jahr | C10: =D10-1 -> 2004 | D10: 2005 | E10: 2006 | F10: =G10-1 -> 2007 | G10: 2008 | H10: =I10-1 -> 2009 | I10: 2010 | J10: 2011 | K10: 2012 | L10: 2013 | M10: 2014
B11: Umsatz in Mrd.
B12: Umsatz erhöht? (1=ja) | C12: 0 | D12: =IF(D11>C11, 1, 0) -> 0 | E12: =IF(E11>D11, 1, 0) -> 0 | F12: 0 | G12: 0 | H12: 0 | I12: 0 | J12: 0 | K12: 0 | L12: 0 | M12: 0
B13: Umsatzwachstum | D13: =D11/C11-1 ->  | E13: =E11/D11-1 -> 
B14: Ergebnis pro Aktie (EPS)
B15: EPS erhöht? (1=ja) | C15: 0 | D15: =IF(D14>C14, 1, 0) -> 0 | E15: 0 | F15: 0 | G15: 0 | H15: 0 | I15: 0 | J15: 0 | K15: 0 | L15: 0 | M15: 0
B16: EPS-Wachstum | D16: =D14/C14-1 ->  | E16: =E14/D14-1 -> 
B17: Dividende pro Aktie
B18: Dividende erhöht? (1=ja) | C18: 0 | D18: =IF(D17>C17, 1, 0) -> 0 | E18: =IF(E17>D17, 1, 0) -> 0 | F18: 0 | G18: 0 | H18: 0 | I18: 0 | J18: 0 | K18: 0 | L18: 0 | M18: 0
B19: Div.-Wachstum | D19: =D17/C17-1 ->  | E19: =E17/D17-1 -> 
B20: Auszahlungsquote | C20: =C17/C14 -> 
B21: Kurs-Gewinn-Verhältnis (Jahresschlusskurs)
B22: Dividenden-Rendite (Jahresschlusskurs)
B24: Wachstumraten | E24: Qualität (Robustheit) | K24: Finanzkennzahlen
C25: Ergebnis | I25: Ergebnis | O25: Ergebnis
B26: Umsatz-Wachstum 5J > 10J | C26: =IF(C27>C28,"Ja","Nein") ->  | E26: Anzahl Verlustjahre (bei EPS) | I26: =COUNTIF(D14:M14,"<0")*-1 -> 0 | K26: Eigenkapital (Shareholder Equity)
B27: Umsatz-Wachstum 5J p.a. | C27: =AVERAGE(I13:M13) ->  | E27: Anzahl Jahre mit steigendem Umsatz | I27: =SUM(D12:M12) -> 0 | K27: Current Assets
B28: Umsatz-Wachstum 10J p.a. | C28: =AVERAGE(D13:M13) ->  | E28: Anzahl Jahre mit steigendem EPS | I28: =SUM(C15:L15) -> 0 | K28: Current Liabilities
B29: EPS-Wachstum 5J > 10J | C29: =IF(C30>C31,"Ja","Nein") ->  | E29: Anzahl Jahre mit steigender Dividende | I29: =SUM(D18:M18) -> 0 | K29: Fremdkapital (Debt)
B30: EPS-Wachstum 5J p.a. | C30: =AVERAGE(I16:M16) ->  | E30: Qualität in % (maximal 30 Punkte) | I30: =SUM(I26:I29)/30 -> 0 | K30: Gesamtkapital (Total Assets)
B31: EPS-Wachstum 10J p.a. | C31: =AVERAGE(D16:M16) ->  | K31: Umsatz (Revenue)
B32: Dividenden-Wachstum 5J > 10J | C32: =IF(C33>C34,"Ja","Nein") ->  | E32: KGV | K32: Gewinn (Net income)
B33: Dividenden-Wachstum 5J p.a. | C33: =AVERAGE(I19:M19) ->  | I33: Ergebnis | K33: EBIT (Operating income)
B34: Dividenden-Wachstum 10J p.a. | C34: =AVERAGE(D19:M19) ->  | E34: KGV-Durchschnitt 10J | I34: =AVERAGE(D21:M21) ->  | K34: Eigenkapitalquote (equity ratio) | O34: =O26/O30 -> 
B35: Wachstumrate 10J p.a. | C35: =AVERAGE(C34,C31,C28) ->  | E35: Aktuelles KGV < KGV Mittelwert? | I35: =IF(H5<I34,"Ja,","Nein") ->  | K35: Eigenkapitalrentabilität (Return on Equity) | O35: =O32/O26 -> 
B36: Wachstumsrate 5J p.a. | C36: =AVERAGE(C33,C30,C27) ->  | K36: Gesamtkapitalrentabilität (Return on Assets) | O36: =O32/O30 -> 
E37: Dividendenrendite | K37: Current-Valuation | O37: =IF(O27>O28,"JA","NEIN") -> NEIN
I38: Ergebnis | K38: NCAV | O38: =IF(O27>O29,"JA","NEIN") -> NEIN
E39: 10-Jahres-Durchschnittsdividendenrendite | I39: =AVERAGE(D22:M22) ->  | K39: Verschuldungsgrad (Debt-to-equity) | O39: =O29/O26 -> 
E40: Aktuelle Div.Rendite > Mittelwert Dividende? | I40: =IF(H6>I39,"Ja","Nein") ->  | K40: EBIT-Marge (EBIT margin) | O40: =O33/O31 -> 

Sheet GILD
B2: Analyse - Einzelunternehmen | Q2: Datum: 12.07.2015
G3: Aktuelle Daten:
B4: Gilead Sciences | G4: Kurs: | H4: 102.045
G5: KGV: | H5: 11.46
G6: Div.Rendite: | H6: 0
G7: Währung: | H7: USD
B9: 10-Jahres-Übersicht | M9: akt. Jahr
B10: Jahr | C10: =D10-1 -> 2004 | D10: 2005 | E10: 2006 | F10: =G10-1 -> 2007 | G10: 2008 | H10: =I10-1 -> 2009 | I10: 2010 | J10: 2011 | K10: 2012 | L10: 2013 | M10: 2014
B11: Umsatz in Mrd. | C11: 1.32 | D11: 2.03 | E11: 3.03 | F11: 4.23 | G11: 5.34 | H11: 7.01 | I11: 7.95 | J11: 8.39 | K11: 9.7 | L11: 11.2 | M11: 24.89
B12: Umsatz erhöht? (1=ja) | C12: 0 | D12: =IF(D11>C11, 1, 0) -> 1 | E12: =IF(E11>D11, 1, 0) -> 1 | F12: 1 | G12: 1 | H12: 1 | I12: 1 | J12: 1 | K12: 1 | L12: 1 | M12: 1
B13: Umsatzwachstum | D13: =D11/C11-1 -> 0.5378787879 | E13: =E11/D11-1 -> 0.4926108374 | F13: 0.396039604 | G13: 0.2624113475 | H13: 0.3127340824 | I13: 0.1340941512 | J13: 0.05534591195 | K13: 0.1561382598 | L13: 0.1546391753 | M13: 1.222321429
B14: Ergebnis pro Aktie (EPS) | C14: 0.26 | D14: 0.45 | E14: -0.65 | F14: 0.87 | G14: 1.09 | H14: 1.46 | I14: 1.7 | J14: 1.81 | K14: 1.71 | L14: 2.01 | M14: 7.95
B15: EPS erhöht? (1=ja) | C15: 0 | D15: =IF(D14>C14, 1, 0) -> 1 | E15: 0 | F15: 1 | G15: 1 | H15: 1 | I15: 1 | J15: 1 | K15: 0 | L15: 1 | M15: 1
B16: EPS-Wachstum | D16: =D14/C14-1 -> 0.7307692308 | E16: =E14/D14-1 -> -2.444444444 | F16: =-(F14/E14-1) -> 2.338461538 | G16: 0.2528735632 | H16: 0.3394495413 | I16: 0.1643835616 | J16: 0.06470588235 | K16: -0.05524861878 | L16: 0.1754385965 | M16: 2.955223881
B17: Dividende pro Aktie | C17: 0 | D17: 0 | E17: 0 | F17: 0 | G17: 0 | H17: 0 | I17: 0 | J17: 0 | K17: 0 | L17: 0 | M17: 0
B18: Dividende erhöht? (1=ja) | C18: 0 | D18: =IF(D17>C17, 1, 0) -> 0 | E18: =IF(E17>D17, 1, 0) -> 0 | F18: 0 | G18: 0 | H18: 0 | I18: 0 | J18: 0 | K18: 0 | L18: 0 | M18: 0
B19: Div.-Wachstum | D19: =D17/C17-1 ->  | E19: =E17/D17-1 -> 
B20: Auszahlungsquote | C20: =C17/C14 -> 0 | D20: 0 | E20: 0 | F20: 0 | G20: 0 | H20: 0 | I20: 0 | J20: 0 | K20: 0 | L20: 0 | M20: 0
B21: Kurs-Gewinn-Verhältnis (Jahresschlusskurs) | C21: 34.95 | D21: 29.71 | E21: -25.17 | F21: 26.57 | G21: 23.13 | H21: 14.83 | I21: 10.02 | J21: 11 | K21: 21.53 | L21: 37.47 | M21: 11.68
B22: Dividenden-Rendite (Jahresschlusskurs) | C22: 0 | D22: 0 | E22: 0 | F22: 0 | G22: 0 | H22: 0 | I22: 0 | J22: 0 | K22: 0 | L22: 0 | M22: 0
B24: Wachstumraten | E24: Qualität (Robustheit) | K24: Finanzkennzahlen | Q24: Bewertung
C25: Ergebnis | I25: Ergebnis | O25: Ergebnis | T25: Ergebnis
B26: Umsatz-Wachstum 5J > 10J | C26: =IF(C27>C28,"Ja","Nein") -> Nein | E26: Anzahl Verlustjahre (bei EPS) | I26: =COUNTIF(D14:M14,"<0")*-1 -> -1 | K26: Eigenkapital (Shareholder Equity) | O26: 15819 | Q26: 200 Tage Linie | T26: 94.32
B27: Umsatz-Wachstum 5J p.a. | C27: =AVERAGE(I13:M13) -> 0.3445077854 | E27: Anzahl Jahre mit steigendem Umsatz | I27: =SUM(D12:M12) -> 10 | K27: Current Assets | O27: 17714 | Q27: Differenz Kurz 200 Tage | T27: =H4/T26-1 -> 0.08190203562
B28: Umsatz-Wachstum 10J p.a. | C28: =AVERAGE(D13:M13) -> 0.3724213586 | E28: Anzahl Jahre mit steigendem EPS | I28: =SUM(C15:L15) -> 7 | K28: Current Liabilities | O28: 5761
B29: EPS-Wachstum 5J > 10J | C29: =IF(C30>C31,"Ja","Nein") -> Ja | E29: Anzahl Jahre mit steigender Dividende | I29: =SUM(D18:M18) -> 0 | K29: Fremdkapital (Debt) | O29: =O30-O28-O26 -> 13084
B30: EPS-Wachstum 5J p.a. | C30: =AVERAGE(I16:M16) -> 0.6609006605 | E30: Qualität in % (maximal 30 Punkte) | I30: =SUM(I26:I29)/30 -> 0.5333333333 | K30: Gesamtkapital (Total Assets) | O30: 34664
B31: EPS-Wachstum 10J p.a. | C31: =AVERAGE(D16:M16) -> 0.4521612732 | K31: Umsatz (Revenue) | O31: 24890
B32: Dividenden-Wachstum 5J > 10J | C32: =IF(C33>C34,"Ja","Nein") ->  | E32: KGV | K32: Gewinn (Net income) | O32: 12059
B33: Dividenden-Wachstum 5J p.a. | C33: =AVERAGE(I19:M19) ->  | I33: Ergebnis | K33: EBIT (Operating income) | O33: 15265
B34: Dividenden-Wachstum 10J p.a. | C34: =AVERAGE(D19:M19) ->  | E34: KGV-Durchschnitt 10J | I34: =AVERAGE(D21:M21) -> 16.077 | K34: Eigenkapitalquote (equity ratio) | O34: =O26/O30 -> 0.4563524117
B35: Wachstumrate 10J p.a. | C35: =AVERAGE(C34,C31,C28) ->  | E35: Aktuelles KGV < KGV Mittelwert? | I35: =IF(H5<I34,"Ja,","Nein") -> Ja, | K35: Eigenkapitalrentabilität (Return on Equity) | O35: =O32/O26 -> 0.7623111448
B36: Wachstumsrate 5J p.a. | C36: =AVERAGE(C33,C30,C27) ->  | K36: Gesamtkapitalrentabilität (Return on Assets) | O36: =O32/O30 -> 0.3478825294
E37: Dividendenrendite | K37: Current-Valuation | O37: =IF(O27>O28,"JA","NEIN") -> JA
I38: Ergebnis | K38: NCAV | O38: =IF(O27>O29,"JA","NEIN") -> JA
E39: 10-Jahres-Durchschnittsdividendenrendite | I39: =AVERAGE(D22:M22) -> 0 | K39: Verschuldungsgrad (Debt-to-equity) | O39: =O29/O26 -> 0.8271066439
E40: Aktuelle Div.Rendite > Mittelwert Dividende? | I40: =IF(H6>I39,"Ja","Nein") -> Nein | K40: EBIT-Marge (EBIT margin) | O40: =O33/O31 -> 0.6132985135

Sheet GIS
B2: Analyse - Einzelunternehmen | Q2: Datum:
G3: Aktuelle Daten:
B4: General Mills | G4: Kurs:
G5: KGV:
G6: Div.Rendite:
G7: Währung: | H7: Währung
B9: 10-Jahres-Übersicht | M9: akt. Jahr
B10: Jahr | C10: =D10-1 -> 2004 | D10: 2005 | E10: 2006 | F10: =G10-1 -> 2007 | G10: 2008 | H10: =I10-1 -> 2009 | I10: 2010 | J10: 2011 | K10: 2012 | L10: 2013 | M10: 2014
B11: Umsatz in Mrd.
B12: Umsatz erhöht? (1=ja) | C12: 0 | D12: =IF(D11>C11, 1, 0) -> 0 | E12: =IF(E11>D11, 1, 0) -> 0 | F12: 0 | G12: 0 | H12: 0 | I12: 0 | J12: 0 | K12: 0 | L12: 0 | M12: 0
B13: Umsatzwachstum | D13: =D11/C11-1 ->  | E13: =E11/D11-1 -> 
B14: Ergebnis pro Aktie (EPS)
B15: EPS erhöht? (1=ja) | C15: 0 | D15: =IF(D14>C14, 1, 0) -> 0 | E15: 0 | F15: 0 | G15: 0 | H15: 0 | I15: 0 | J15: 0 | K15: 0 | L15: 0 | M15: 0
B16: EPS-Wachstum | D16: =D14/C14-1 ->  | E16: =E14/D14-1 -> 
B17: Dividende pro Aktie
B18: Dividende erhöht? (1=ja) | C18: 0 | D18: =IF(D17>C17, 1, 0) -> 0 | E18: =IF(E17>D17, 1, 0) -> 0 | F18: 0 | G18: 0 | H18: 0 | I18: 0 | J18: 0 | K18: 0 | L18: 0 | M18: 0
B19: Div.-Wachstum | D19: =D17/C17-1 ->  | E19: =E17/D17-1 -> 
B20: Auszahlungsquote | C20: =C17/C14 -> 
B21: Kurs-Gewinn-Verhältnis (Jahresschlusskurs)
B22: Dividenden-Rendite (Jahresschlusskurs)
B24: Wachstumraten | E24: Qualität (Robustheit) | K24: Finanzkennzahlen
C25: Ergebnis | I25: Ergebnis | O25: Ergebnis
B26: Umsatz-Wachstum 5J > 10J | C26: =IF(C27>C28,"Ja","Nein") ->  | E26: Anzahl Verlustjahre (bei EPS) | I26: =COUNTIF(D14:M14,"<0")*-1 -> 0 | K26: Eigenkapital (Shareholder Equity)
B27: Umsatz-Wachstum 5J p.a. | C27: =AVERAGE(I13:M13) ->  | E27: Anzahl Jahre mit steigendem Umsatz | I27: =SUM(D12:M12) -> 0 | K27: Current Assets
B28: Umsatz-Wachstum 10J p.a. | C28: =AVERAGE(D13:M13) ->  | E28: Anzahl Jahre mit steigendem EPS | I28: =SUM(C15:L15) -> 0 | K28: Current Liabilities
B29: EPS-Wachstum 5J > 10J | C29: =IF(C30>C31,"Ja","Nein") ->  | E29: Anzahl Jahre mit steigender Dividende | I29: =SUM(D18:M18) -> 0 | K29: Fremdkapital (Debt)
B30: EPS-Wachstum 5J p.a. | C30: =AVERAGE(I16:M16) ->  | E30: Qualität in % (maximal 30 Punkte) | I30: =SUM(I26:I29)/30 -> 0 | K30: Gesamtkapital (Total Assets)
B31: EPS-Wachstum 10J p.a. | C31: =AVERAGE(D16:M16) ->  | K31: Umsatz (Revenue)
B32: Dividenden-Wachstum 5J > 10J | C32: =IF(C33>C34,"Ja","Nein") ->  | E32: KGV | K32: Gewinn (Net income)
B33: Dividenden-Wachstum 5J p.a. | C33: =AVERAGE(I19:M19) ->  | I33: Ergebnis | K33: EBIT (Operating income)
B34: Dividenden-Wachstum 10J p.a. | C34: =AVERAGE(D19:M19) ->  | E34: KGV-Durchschnitt 10J | I34: =AVERAGE(D21:M21) ->  | K34: Eigenkapitalquote (equity ratio) | O34: =O26/O30 -> 
B35: Wachstumrate 10J p.a. | C35: =AVERAGE(C34,C31,C28) ->  | E35: Aktuelles KGV < KGV Mittelwert? | I35: =IF(H5<I34,"Ja,","Nein") ->  | K35: Eigenkapitalrentabilität (Return on Equity) | O35: =O32/O26 -> 
B36: Wachstumsrate 5J p.a. | C36: =AVERAGE(C33,C30,C27) ->  | K36: Gesamtkapitalrentabilität (Return on Assets) | O36: =O32/O30 -> 
E37: Dividendenrendite | K37: Current-Valuation | O37: =IF(O27>O28,"JA","NEIN") -> NEIN
I38: Ergebnis | K38: NCAV | O38: =IF(O27>O29,"JA","NEIN") -> NEIN
E39: 10-Jahres-Durchschnittsdividendenrendite | I39: =AVERAGE(D22:M22) ->  | K39: Verschuldungsgrad (Debt-to-equity) | O39: =O29/O26 -> 
E40: Aktuelle Div.Rendite > Mittelwert Dividende? | I40: =IF(H6>I39,"Ja","Nein") ->  | K40: EBIT-Marge (EBIT margin) | O40: =O33/O31 -> 

Sheet GOOG
B2: Analyse - Einzelunternehmen | Q2: Datum:
G3: Aktuelle Daten:
B4: Google | G4: Kurs: | H4: 546.39
G5: KGV: | H5: 27.26
G6: Div.Rendite: | H6: 0
G7: Währung: | H7: USD
B9: 10-Jahres-Übersicht | M9: akt. Jahr
B10: Jahr | C10: =D10-1 -> 2004 | D10: 2005 | E10: 2006 | F10: =G10-1 -> 2007 | G10: 2008 | H10: =I10-1 -> 2009 | I10: 2010 | J10: 2011 | K10: 2012 | L10: 2013 | M10: 2014
B11: Umsatz in Mrd. | C11: 3.19 | D11: 6.14 | E11: 10.6 | F11: 16.59 | G11: 21.8 | H11: 23.65 | I11: 29.32 | J11: 37.91 | K11: 50.17 | L11: 59.83 | M11: 66
B12: Umsatz erhöht? (1=ja) | C12: 0 | D12: =IF(D11>C11, 1, 0) -> 1 | E12: =IF(E11>D11, 1, 0) -> 1 | F12: 1 | G12: 1 | H12: 1 | I12: 1 | J12: 1 | K12: 1 | L12: 1 | M12: 1
B13: Umsatzwachstum | D13: =D11/C11-1 -> 0.9247648903 | E13: =E11/D11-1 -> 0.7263843648 | F13: 0.5650943396 | G13: 0.3140446052 | H13: 0.08486238532 | I13: 0.2397463002 | J13: 0.2929740791 | K13: 0.3233975204 | L13: 0.1925453458 | M13: 0.1031255223
B14: Ergebnis pro Aktie (EPS) | C14: 1.04 | D14: 2.66 | E14: 5.11 | F14: 6.77 | G14: 6.73 | H14: 10.31 | I14: 13.35 | J14: 15.09 | K14: 16.41 | L14: 19.41 | M14: 21.37
B15: EPS erhöht? (1=ja) | C15: 0 | D15: =IF(D14>C14, 1, 0) -> 1 | E15: 1 | F15: 1 | G15: 0 | H15: 1 | I15: 1 | J15: 1 | K15: 1 | L15: 1 | M15: 1
B16: EPS-Wachstum | D16: =D14/C14-1 -> 1.557692308 | E16: =E14/D14-1 -> 0.9210526316 | F16: 0.324853229 | G16: -0.005908419498 | H16: 0.5319465082 | I16: 0.2948593598 | J16: 0.1303370787 | K16: 0.08747514911 | L16: 0.1828153565 | M16: 0.1009788769
B17: Dividende pro Aktie | C17: 0 | D17: 0 | E17: 0 | F17: 0 | G17: 0 | H17: 0 | I17: 0 | J17: 0 | K17: 0 | L17: 0 | M17: 0
B18: Dividende erhöht? (1=ja) | C18: 0 | D18: =IF(D17>C17, 1, 0) -> 0 | E18: =IF(E17>D17, 1, 0) -> 0 | F18: 0 | G18: 0 | H18: 0 | I18: 0 | J18: 0 | K18: 0 | L18: 0 | M18: 0
B19: Div.-Wachstum | D19: =D17/C17-1 ->  | E19: =E17/D17-1 -> 
B20: Auszahlungsquote | C20: =C17/C14 -> 0 | D20: 0 | E20: 0 | F20: 0 | G20: 0 | H20: 0 | I20: 0 | J20: 0 | K20: 0 | L20: 0 | M20: 0
B21: Kurs-Gewinn-Verhältnis (Jahresschlusskurs) | C21: 133.24 | D21: 82.95 | E21: 46.24 | F21: 51.47 | G21: 22.93 | H21: 30.22 | I21: 22.44 | J21: 21.55 | K21: 21.74 | L21: 29.13
B22: Dividenden-Rendite (Jahresschlusskurs)
B24: Wachstumraten | E24: Qualität (Robustheit) | K24: Finanzkennzahlen
C25: Ergebnis | I25: Ergebnis | O25: Ergebnis | Q25: Revenues
B26: Umsatz-Wachstum 5J > 10J | C26: =IF(C27>C28,"Ja","Nein") -> Nein | E26: Anzahl Verlustjahre (bei EPS) | I26: =COUNTIF(D14:M14,"<0")*-1 -> 0 | K26: Eigenkapital (Shareholder Equity) | O26: 104500 | Q26: Advertising | R26: 0.895
B27: Umsatz-Wachstum 5J p.a. | C27: =AVERAGE(I13:M13) -> 0.2303577536 | E27: Anzahl Jahre mit steigendem Umsatz | I27: =SUM(D12:M12) -> 10 | K27: Current Assets | O27: 80685 | Q27: Other | R27: 0.105
B28: Umsatz-Wachstum 10J p.a. | C28: =AVERAGE(D13:M13) -> 0.3766939353 | E28: Anzahl Jahre mit steigendem EPS | I28: =SUM(C15:L15) -> 8 | K28: Current Liabilities | O28: 16805
B29: EPS-Wachstum 5J > 10J | C29: =IF(C30>C31,"Ja","Nein") -> Nein | E29: Anzahl Jahre mit steigender Dividende | I29: =SUM(D18:M18) -> 0 | K29: Fremdkapital (Debt) | O29: 9828 | Q29: US | R29: 0.43
B30: EPS-Wachstum 5J p.a. | C30: =AVERAGE(I16:M16) -> 0.1592931642 | E30: Qualität in % (maximal 30 Punkte) | I30: =SUM(I26:I29)/30 -> 0.6 | K30: Gesamtkapital (Total Assets) | O30: 131133 | Q30: UK | R30: 0.1
B31: EPS-Wachstum 10J p.a. | C31: =AVERAGE(D16:M16) -> 0.4126102078 | K31: Umsatz (Revenue) | O31: 66001 | Q31: Rest | R31: 0.47
B32: Dividenden-Wachstum 5J > 10J | C32: =IF(C33>C34,"Ja","Nein") ->  | E32: KGV | K32: Gewinn (Net income) | O32: 14444
B33: Dividenden-Wachstum 5J p.a. | C33: =AVERAGE(I19:M19) ->  | I33: Ergebnis | K33: EBIT (Operating income) | O33: 16496
B34: Dividenden-Wachstum 10J p.a. | C34: =AVERAGE(D19:M19) ->  | E34: KGV-Durchschnitt 10J | I34: =AVERAGE(C21:L21) -> 46.191 | K34: Eigenkapitalquote (equity ratio) | O34: =O26/O30 -> 0.7969008564
B35: Wachstumrate 10J p.a. | C35: =AVERAGE(C34,C31,C28) ->  | E35: Aktuelles KGV < KGV Mittelwert? | I35: =IF(H5<I34,"Ja,","Nein") -> Ja, | K35: Eigenkapitalrentabilität (Return on Equity) | O35: =O32/O26 -> 0.1382200957
B36: Wachstumsrate 5J p.a. | C36: =AVERAGE(C33,C30,C27) ->  | K36: Gesamtkapitalrentabilität (Return on Assets) | O36: =O32/O30 -> 0.1101477126
E37: Dividendenrendite | K37: Current-Valuation | O37: =IF(O27>O28,"JA","NEIN") -> JA
I38: Ergebnis | K38: NCAV | O38: =IF(O27>O29,"JA","NEIN") -> JA
E39: 10-Jahres-Durchschnittsdividendenrendite | I39: =AVERAGE(D22:M22) ->  | K39: Verschuldungsgrad (Debt-to-equity) | O39: =O29/O26 -> 0.09404784689
E40: Aktuelle Div.Rendite > Mittelwert Dividende? | I40: =IF(H6>I39,"Ja","Nein") ->  | K40: EBIT-Marge (EBIT margin) | O40: =O33/O31 -> 0.249935607

Sheet GSK
B2: Analyse - Einzelunternehmen | Q2: Datum:
G3: Aktuelle Daten:
B4: GlaxoSmithKline | G4: Kurs:
G5: KGV:
G6: Div.Rendite:
G7: Währung: | H7: Währung
B9: 10-Jahres-Übersicht | M9: akt. Jahr
B10: Jahr | C10: =D10-1 -> 2004 | D10: 2005 | E10: 2006 | F10: =G10-1 -> 2007 | G10: 2008 | H10: =I10-1 -> 2009 | I10: 2010 | J10: 2011 | K10: 2012 | L10: 2013 | M10: 2014
B11: Umsatz in Mrd.
B12: Umsatz erhöht? (1=ja) | C12: 0 | D12: =IF(D11>C11, 1, 0) -> 0 | E12: =IF(E11>D11, 1, 0) -> 0 | F12: 0 | G12: 0 | H12: 0 | I12: 0 | J12: 0 | K12: 0 | L12: 0 | M12: 0
B13: Umsatzwachstum | D13: =D11/C11-1 ->  | E13: =E11/D11-1 -> 
B14: Ergebnis pro Aktie (EPS)
B15: EPS erhöht? (1=ja) | C15: 0 | D15: =IF(D14>C14, 1, 0) -> 0 | E15: 0 | F15: 0 | G15: 0 | H15: 0 | I15: 0 | J15: 0 | K15: 0 | L15: 0 | M15: 0
B16: EPS-Wachstum | D16: =D14/C14-1 ->  | E16: =E14/D14-1 -> 
B17: Dividende pro Aktie
B18: Dividende erhöht? (1=ja) | C18: 0 | D18: =IF(D17>C17, 1, 0) -> 0 | E18: =IF(E17>D17, 1, 0) -> 0 | F18: 0 | G18: 0 | H18: 0 | I18: 0 | J18: 0 | K18: 0 | L18: 0 | M18: 0
B19: Div.-Wachstum | D19: =D17/C17-1 ->  | E19: =E17/D17-1 -> 
B20: Auszahlungsquote | C20: =C17/C14 -> 
B21: Kurs-Gewinn-Verhältnis (Jahresschlusskurs)
B22: Dividenden-Rendite (Jahresschlusskurs)
B24: Wachstumraten | E24: Qualität (Robustheit) | K24: Finanzkennzahlen
C25: Ergebnis | I25: Ergebnis | O25: Ergebnis
B26: Umsatz-Wachstum 5J > 10J | C26: =IF(C27>C28,"Ja","Nein") ->  | E26: Anzahl Verlustjahre (bei EPS) | I26: =COUNTIF(D14:M14,"<0")*-1 -> 0 | K26: Eigenkapital (Shareholder Equity)
B27: Umsatz-Wachstum 5J p.a. | C27: =AVERAGE(I13:M13) ->  | E27: Anzahl Jahre mit steigendem Umsatz | I27: =SUM(D12:M12) -> 0 | K27: Current Assets
B28: Umsatz-Wachstum 10J p.a. | C28: =AVERAGE(D13:M13) ->  | E28: Anzahl Jahre mit steigendem EPS | I28: =SUM(C15:L15) -> 0 | K28: Current Liabilities
B29: EPS-Wachstum 5J > 10J | C29: =IF(C30>C31,"Ja","Nein") ->  | E29: Anzahl Jahre mit steigender Dividende | I29: =SUM(D18:M18) -> 0 | K29: Fremdkapital (Debt)
B30: EPS-Wachstum 5J p.a. | C30: =AVERAGE(I16:M16) ->  | E30: Qualität in % (maximal 30 Punkte) | I30: =SUM(I26:I29)/30 -> 0 | K30: Gesamtkapital (Total Assets)
B31: EPS-Wachstum 10J p.a. | C31: =AVERAGE(D16:M16) ->  | K31: Umsatz (Revenue)
B32: Dividenden-Wachstum 5J > 10J | C32: =IF(C33>C34,"Ja","Nein") ->  | E32: KGV | K32: Gewinn (Net income)
B33: Dividenden-Wachstum 5J p.a. | C33: =AVERAGE(I19:M19) ->  | I33: Ergebnis | K33: EBIT (Operating income)
B34: Dividenden-Wachstum 10J p.a. | C34: =AVERAGE(D19:M19) ->  | E34: KGV-Durchschnitt 10J | I34: =AVERAGE(D21:M21) ->  | K34: Eigenkapitalquote (equity ratio) | O34: =O26/O30 -> 
B35: Wachstumrate 10J p.a. | C35: =AVERAGE(C34,C31,C28) ->  | E35: Aktuelles KGV < KGV Mittelwert? | I35: =IF(H5<I34,"Ja,","Nein") ->  | K35: Eigenkapitalrentabilität (Return on Equity) | O35: =O32/O26 -> 
B36: Wachstumsrate 5J p.a. | C36: =AVERAGE(C33,C30,C27) ->  | K36: Gesamtkapitalrentabilität (Return on Assets) | O36: =O32/O30 -> 
E37: Dividendenrendite | K37: Current-Valuation | O37: =IF(O27>O28,"JA","NEIN") -> NEIN
I38: Ergebnis | K38: NCAV | O38: =IF(O27>O29,"JA","NEIN") -> NEIN
E39: 10-Jahres-Durchschnittsdividendenrendite | I39: =AVERAGE(D22:M22) ->  | K39: Verschuldungsgrad (Debt-to-equity) | O39: =O29/O26 -> 
E40: Aktuelle Div.Rendite > Mittelwert Dividende? | I40: =IF(H6>I39,"Ja","Nein") ->  | K40: EBIT-Marge (EBIT margin) | O40: =O33/O31 -> 

Sheet HEIN
B2: Analyse - Einzelunternehmen | Q2: Datum: 12.06.2015
G3: Aktuelle Daten:
B4: Heineken | G4: Kurs: | H4: 67.42
G5: KGV: | H5: 19.93
G6: Div.Rendite: | H6: 0.0167
G7: Währung: | H7: EUR
B9: 10-Jahres-Übersicht | M9: akt. Jahr
B10: Jahr | C10: =D10-1 -> 2004 | D10: 2005 | E10: 2006 | F10: =G10-1 -> 2007 | G10: 2008 | H10: =I10-1 -> 2009 | I10: 2010 | J10: 2011 | K10: 2012 | L10: 2013 | M10: 2014
B11: Umsatz in Mrd. | F11: 11.24 | G11: 14.32 | H11: 14.7 | I11: 16.13 | J11: 17.12 | K11: 18.38 | L11: 19.2
B12: Umsatz erhöht? (1=ja) | C12: 0 | D12: =IF(D11>C11, 1, 0) -> 0 | E12: =IF(E11>D11, 1, 0) -> 0 | F12: 1 | G12: 1 | H12: 1 | I12: 1 | J12: 1 | K12: 1 | L12: 1 | M12: 0
B13: Umsatzwachstum | D13: =D11/C11-1 ->  | E13: =E11/D11-1 ->  | G13: 0.2740213523 | H13: 0.02653631285 | I13: 0.09727891156 | J13: 0.06137631742 | K13: 0.07359813084 | L13: 0.04461371055 | M13: -1
B14: Ergebnis pro Aktie (EPS) | F14: 1.65 | G14: 0.43 | H14: 2.08 | I14: 2.55 | J14: 2.44 | K14: 5.13 | L14: 2.37
B15: EPS erhöht? (1=ja) | C15: 0 | D15: =IF(D14>C14, 1, 0) -> 0 | E15: 0 | F15: 1 | G15: 0 | H15: 1 | I15: 1 | J15: 0 | K15: 1 | L15: 0 | M15: 0
B16: EPS-Wachstum | D16: =D14/C14-1 ->  | E16: =E14/D14-1 ->  | G16: -0.7393939394 | H16: 3.837209302 | I16: 0.2259615385 | J16: -0.0431372549 | K16: 1.102459016 | L16: -0.5380116959 | M16: -1
B17: Dividende pro Aktie | F17: 0.7 | G17: 0.62 | H17: 0.65 | I17: 0.76 | J17: 0.83 | K17: 0.89 | L17: 0.89
B18: Dividende erhöht? (1=ja) | C18: 0 | D18: =IF(D17>C17, 1, 0) -> 0 | E18: =IF(E17>D17, 1, 0) -> 0 | F18: 1 | G18: 0 | H18: 1 | I18: 1 | J18: 1 | K18: 1 | L18: 0 | M18: 0
B19: Div.-Wachstum | D19: =D17/C17-1 ->  | E19: =E17/D17-1 ->  | G19: -0.1142857143 | H19: 0.04838709677 | I19: 0.1692307692 | J19: 0.09210526316 | K19: 0.07228915663 | L19: 0 | M19: -1
B20: Auszahlungsquote | C20: =C17/C14 ->  | F20: 0.4242424242 | G20: 1.441860465 | H20: 0.3125 | I20: 0.2980392157 | J20: 0.3401639344 | K20: 0.1734892788 | L20: 0.3755274262
B21: Kurs-Gewinn-Verhältnis (Jahresschlusskurs) | F21: 26.82 | G21: 51.23 | H21: 17.3 | I21: 14.36 | J21: 14.64 | K21: 9.84 | L21: 20.69
B22: Dividenden-Rendite (Jahresschlusskurs) | F22: 0.0158 | G22: 0.0283 | H22: 0.018 | I22: 0.0207 | J22: 0.0232 | K22: 0.0176 | L22: 0.0181
B24: Wachstumraten | E24: Qualität (Robustheit) | K24: Finanzkennzahlen | Q24: Bewertung
C25: Ergebnis | I25: Ergebnis | O25: Ergebnis | T25: Ergebnis
B26: Umsatz-Wachstum 5J > 10J | C26: =IF(C27>C28,"Ja","Nein") ->  | E26: Anzahl Verlustjahre (bei EPS) | I26: =COUNTIF(D14:M14,"<0")*-1 -> 0 | K26: Eigenkapital (Shareholder Equity) | O26: 13452 | Q26: 200 Tage Linie | T26: 64.75
B27: Umsatz-Wachstum 5J p.a. | C27: =AVERAGE(I13:M13) -> -0.1446265859 | E27: Anzahl Jahre mit steigendem Umsatz | I27: =SUM(D12:M12) -> 7 | K27: Current Assets | O27: 6086 | Q27: Differenz Kurz 200 Tage | T27: =H4/T26-1 -> 0.04123552124
B28: Umsatz-Wachstum 10J p.a. | C28: =AVERAGE(D13:M13) ->  | E28: Anzahl Jahre mit steigendem EPS | I28: =SUM(C15:L15) -> 4 | K28: Current Liabilities | O28: 8532
B29: EPS-Wachstum 5J > 10J | C29: =IF(C30>C31,"Ja","Nein") ->  | E29: Anzahl Jahre mit steigender Dividende | I29: =SUM(D18:M18) -> 5 | K29: Fremdkapital (Debt) | O29: 21378
B30: EPS-Wachstum 5J p.a. | C30: =AVERAGE(I16:M16) -> -0.05054567919 | E30: Qualität in % (maximal 30 Punkte) | I30: =SUM(I26:I29)/21 -> 0.7619047619 | K30: Gesamtkapital (Total Assets) | O30: 34830
B31: EPS-Wachstum 10J p.a. | C31: =AVERAGE(D16:M16) ->  | K31: Umsatz (Revenue) | O31: 19257
B32: Dividenden-Wachstum 5J > 10J | C32: =IF(C33>C34,"Ja","Nein") ->  | E32: KGV | K32: Gewinn (Net income) | O32: 1708
B33: Dividenden-Wachstum 5J p.a. | C33: =AVERAGE(I19:M19) -> -0.1332749622 | I33: Ergebnis | K33: EBIT (Operating income) | O33: 2780
B34: Dividenden-Wachstum 10J p.a. | C34: =AVERAGE(D19:M19) ->  | E34: KGV-Durchschnitt 10J | I34: =AVERAGE(F21:L21) -> 22.12571429 | K34: Eigenkapitalquote (equity ratio) | O34: =O26/O30 -> 0.3862187769
B35: Wachstumrate 10J p.a. | C35: =AVERAGE(C34,C31,C28) ->  | E35: Aktuelles KGV < KGV Mittelwert? | I35: =IF(H5<I34,"Ja,","Nein") -> Ja, | K35: Eigenkapitalrentabilität (Return on Equity) | O35: =O32/O26 -> 0.1269699673
B36: Wachstumsrate 5J p.a. | C36: =AVERAGE(C33,C30,C27) -> -0.1094824091 | K36: Gesamtkapitalrentabilität (Return on Assets) | O36: =O32/O30 -> 0.04903818547
E37: Dividendenrendite | K37: Current-Valuation | O37: =IF(O27>O28,"JA","NEIN") -> NEIN
I38: Ergebnis | K38: NCAV | O38: =IF(O27>O29,"JA","NEIN") -> NEIN
E39: 10-Jahres-Durchschnittsdividendenrendite | I39: =AVERAGE(C22:L22) -> 0.02024285714 | K39: Verschuldungsgrad (Debt-to-equity) | O39: =O29/O26 -> 1.589206066
E40: Aktuelle Div.Rendite > Mittelwert Dividende? | I40: =IF(H6>I39,"Ja","Nein") -> Nein | K40: EBIT-Marge (EBIT margin) | O40: =O33/O31 -> 0.1443630887

Sheet HEN
B2: Analyse - Einzelunternehmen | Q2: Datum:
G3: Aktuelle Daten:
B4: Henkel | G4: Kurs: | H4: 104.3
G5: KGV: | H5: 22.11
G6: Div.Rendite: | H6: 0.0138
G7: Währung: | H7: EURO
B9: 10-Jahres-Übersicht | M9: akt. Jahr
B10: Jahr | C10: =D10-1 -> 2004 | D10: 2005 | E10: 2006 | F10: =G10-1 -> 2007 | G10: 2008 | H10: =I10-1 -> 2009 | I10: 2010 | J10: 2011 | K10: 2012 | L10: 2013 | M10: 2014
B11: Umsatz in Mrd. | C11: 10.59 | D11: 11.97 | E11: 12.74 | F11: 13.07 | G11: 14.13 | H11: 13.57 | I11: 15.09 | J11: 15.61 | K11: 16.51 | L11: 16.36 | M11: 16.43
B12: Umsatz erhöht? (1=ja) | C12: 0 | D12: =IF(D11>C11, 1, 0) -> 1 | E12: =IF(E11>D11, 1, 0) -> 1 | F12: 1 | G12: 1 | H12: 0 | I12: 1 | J12: 1 | K12: 1 | L12: 0 | M12: 1
B13: Umsatzwachstum | D13: =D11/C11-1 -> 0.1303116147 | E13: =E11/D11-1 -> 0.06432748538 | F13: 0.02590266876 | G13: 0.08110175976 | H13: -0.03963198868 | I13: 0.1120117907 | J13: 0.03445990722 | K13: 0.05765534914 | L13: -0.009085402786 | M13: 0.004278728606
B14: Ergebnis pro Aktie (EPS) | C14: 4.04 | D14: 1.77 | E14: 1.99 | F14: 2.14 | G14: 2.83 | H14: 1.4 | I14: 2.59 | J14: 2.9 | K14: 3.49 | L14: 3.67 | M14: 3.76
B15: EPS erhöht? (1=ja) | C15: 0 | D15: =IF(D14>C14, 1, 0) -> 0 | E15: 1 | F15: 1 | G15: 1 | H15: 0 | I15: 1 | J15: 1 | K15: 1 | L15: 1 | M15: 1
B16: EPS-Wachstum | D16: =D14/C14-1 -> -0.5618811881 | E16: =E14/D14-1 -> 0.1242937853 | F16: 0.07537688442 | G16: 0.3224299065 | H16: -0.5053003534 | I16: 0.85 | J16: 0.1196911197 | K16: 0.2034482759 | L16: 0.05157593123 | M16: 0.02452316076
B17: Dividende pro Aktie | C17: 0.43 | D17: 0.45 | E17: 0.5 | F17: 0.53 | G17: 0.53 | H17: 0.53 | I17: 0.72 | J17: 0.8 | K17: 0.95 | L17: 1.22 | M17: 1.31
B18: Dividende erhöht? (1=ja) | C18: 0 | D18: =IF(D17>C17, 1, 0) -> 1 | E18: =IF(E17>D17, 1, 0) -> 1 | F18: 1 | G18: 0 | H18: 0 | I18: 1 | J18: 1 | K18: 1 | L18: 1 | M18: 1
B19: Div.-Wachstum | D19: =D17/C17-1 -> 0.04651162791 | E19: =E17/D17-1 -> 0.1111111111 | F19: 0.06 | G19: 0 | H19: 0 | I19: 0.358490566 | J19: 0.1111111111 | K19: 0.1875 | L19: 0.2842105263 | M19: 0.0737704918
B20: Auszahlungsquote | C20: =C17/C14 -> 0.1064356436 | D20: 0.2542372881 | E20: 0.2512562814 | F20: 0.2476635514 | G20: 0.1872791519 | H20: 0.3785714286 | I20: 0.277992278 | J20: 0.275862069 | K20: 0.2722063037 | L20: 0.3324250681 | M20: 0.3484042553
B21: Kurs-Gewinn-Verhältnis (Jahresschlusskurs) | C21: 5.38 | D21: 16.39 | E21: 19.04 | F21: 18.28 | G21: 8.1 | H21: 26.51 | I21: 18.23 | J21: 15.59 | K21: 18.04 | L21: 23.24
B22: Dividenden-Rendite (Jahresschlusskurs) | C22: 0.0202 | D22: 0.0159 | E22: 0.0135 | F22: 0.0138 | G22: 0.0235 | H22: 0.0145 | I22: 0.0155 | J22: 0.0179 | K22: 0.0153 | L22: 0.0145
B24: Wachstumraten | E24: Qualität (Robustheit) | K24: Finanzkennzahlen
C25: Ergebnis | I25: Ergebnis | O25: Ergebnis
B26: Umsatz-Wachstum 5J > 10J | C26: =IF(C27>C28,"Ja","Nein") -> Nein | E26: Anzahl Verlustjahre (bei EPS) | I26: =COUNTIF(D14:M14,"<0")*-1 -> 0 | K26: Eigenkapital (Shareholder Equity)
B27: Umsatz-Wachstum 5J p.a. | C27: =AVERAGE(I13:M13) -> 0.03986407458 | E27: Anzahl Jahre mit steigendem Umsatz | I27: =SUM(D12:M12) -> 8 | K27: Current Assets
B28: Umsatz-Wachstum 10J p.a. | C28: =AVERAGE(D13:M13) -> 0.04613319128 | E28: Anzahl Jahre mit steigendem EPS | I28: =SUM(C15:L15) -> 7 | K28: Current Liabilities
B29: EPS-Wachstum 5J > 10J | C29: =IF(C30>C31,"Ja","Nein") -> Ja | E29: Anzahl Jahre mit steigender Dividende | I29: =SUM(D18:M18) -> 8 | K29: Fremdkapital (Debt)
B30: EPS-Wachstum 5J p.a. | C30: =AVERAGE(I16:M16) -> 0.2498476975 | E30: Qualität in % (maximal 30 Punkte) | I30: =SUM(I26:I29)/30 -> 0.7666666667 | K30: Gesamtkapital (Total Assets)
B31: EPS-Wachstum 10J p.a. | C31: =AVERAGE(D16:M16) -> 0.07041575223 | K31: Umsatz (Revenue)
B32: Dividenden-Wachstum 5J > 10J | C32: =IF(C33>C34,"Ja","Nein") -> Ja | E32: KGV | K32: Gewinn (Net income)
B33: Dividenden-Wachstum 5J p.a. | C33: =AVERAGE(I19:M19) -> 0.2030165391 | I33: Ergebnis | K33: EBIT (Operating income)
B34: Dividenden-Wachstum 10J p.a. | C34: =AVERAGE(D19:M19) -> 0.1232705434 | E34: KGV-Durchschnitt 10J | I34: =AVERAGE(C21:L21) -> 16.88 | K34: Eigenkapitalquote (equity ratio) | O34: =O26/O30 -> 
B35: Wachstumrate 10J p.a. | C35: =AVERAGE(C34,C31,C28) -> 0.07993982898 | E35: Aktuelles KGV < KGV Mittelwert? | I35: =IF(H5<I34,"Ja,","Nein") -> Nein | K35: Eigenkapitalrentabilität (Return on Equity) | O35: =O32/O26 -> 
B36: Wachstumsrate 5J p.a. | C36: =AVERAGE(C33,C30,C27) -> 0.1642427704 | K36: Gesamtkapitalrentabilität (Return on Assets) | O36: =O32/O30 -> 
E37: Dividendenrendite | K37: Current-Valuation | O37: =IF(O27>O28,"JA","NEIN") -> NEIN
I38: Ergebnis | K38: NCAV | O38: =IF(O27>O29,"JA","NEIN") -> NEIN
E39: 10-Jahres-Durchschnittsdividendenrendite | I39: =AVERAGE(C22:L22) -> 0.01646 | K39: Verschuldungsgrad (Debt-to-equity) | O39: =O29/O26 -> 
E40: Aktuelle Div.Rendite > Mittelwert Dividende? | I40: =IF(H6>I39,"Ja","Nein") -> Nein | K40: EBIT-Marge (EBIT margin) | O40: =O33/O31 -> 

Sheet HORN
B2: Analyse - Einzelunternehmen | Q2: Datum: 12.06.2015
G3: Aktuelle Daten:
B4: Hornbach | G4: Kurs: | H4: 77.8
G5: KGV: | H5: 13.74
G6: Div.Rendite: | H6: 0.0102
G7: Währung: | H7: EUR
B9: 10-Jahres-Übersicht | N9: akt. Jahr
B10: Jahr | C10: =D10-1 -> 2004 | D10: 2005 | E10: 2006 | F10: =G10-1 -> 2007 | G10: 2008 | H10: =I10-1 -> 2009 | I10: 2010 | J10: 2011 | K10: 2012 | L10: 2013 | M10: 2014 | N10: 2015
B11: Umsatz in Mrd. | C11: 2.09 | D11: 2.22 | E11: 2.37 | F11: 2.54 | G11: 2.62 | H11: 2.75 | I11: 2.85 | J11: 3.02 | K11: 3.2 | L11: 3.23 | M11: 3.37 | N11: 3.57
B12: Umsatz erhöht? (1=ja) | C12: 0 | D12: =IF(D11>C11, 1, 0) -> 1 | E12: =IF(E11>D11, 1, 0) -> 1 | F12: 1 | G12: 1 | H12: 1 | I12: 1 | J12: 1 | K12: 1 | L12: 1 | M12: 1 | N12: 1
B13: Umsatzwachstum | D13: =D11/C11-1 -> 0.06220095694 | E13: =E11/D11-1 -> 0.06756756757 | F13: 0.07172995781 | G13: 0.03149606299 | H13: 0.04961832061 | I13: 0.03636363636 | J13: 0.05964912281 | K13: 0.05960264901 | L13: 0.009375 | M13: 0.04334365325 | N13: 0.05934718101
B14: Ergebnis pro Aktie (EPS) | C14: 1.36 | D14: 1.75 | E14: 1.7 | F14: 3.96 | G14: 3.02 | H14: 5.72 | I14: 4.18 | J14: 5.09 | K14: 4.79 | L14: 4.08 | M14: 4.56 | N14: 5.66
B15: EPS erhöht? (1=ja) | C15: 0 | D15: =IF(D14>C14, 1, 0) -> 1 | E15: 0 | F15: 1 | G15: 0 | H15: 1 | I15: 0 | J15: 1 | K15: 0 | L15: 0 | M15: 1 | N15: 1
B16: EPS-Wachstum | D16: =D14/C14-1 -> 0.2867647059 | E16: =E14/D14-1 -> -0.02857142857 | F16: 1.329411765 | G16: -0.2373737374 | H16: 0.8940397351 | I16: -0.2692307692 | J16: 0.2177033493 | K16: -0.05893909627 | L16: -0.1482254697 | M16: 0.1176470588 | N16: 0.2412280702
B17: Dividende pro Aktie | C17: 0.57 | D17: 0.57 | E17: 0.57 | F17: 0.57 | G17: 0.57 | H17: 0.57 | I17: 0.67 | J17: 0.67 | K17: 0.67 | L17: 0.67 | M17: 0.8 | N17: 0.8
B18: Dividende erhöht? (1=ja) | C18: 0 | D18: =IF(D17>C17, 1, 0) -> 0 | E18: =IF(E17>D17, 1, 0) -> 0 | F18: 0 | G18: 0 | H18: 0 | I18: 1 | J18: 0 | K18: 0 | L18: 0 | M18: 1 | N18: 0
B19: Div.-Wachstum | D19: =D17/C17-1 -> 0 | E19: =E17/D17-1 -> 0 | F19: 0 | G19: 0 | H19: 0 | I19: 0.1754385965 | J19: 0 | K19: 0 | L19: 0 | M19: 0.1940298507 | N19: 0
B20: Auszahlungsquote | C20: =C17/C14 -> 0.4191176471 | D20: 0.3257142857 | E20: 0.3352941176 | F20: 0.1439393939 | G20: 0.1887417219 | H20: 0.09965034965 | I20: 0.1602870813 | J20: 0.1316306483 | K20: 0.139874739 | L20: 0.1642156863 | M20: 0.1754385965 | N20: =N17/N14 -> 0.1413427562
B21: Kurs-Gewinn-Verhältnis (Jahresschlusskurs) | C21: 22.7 | D21: 19.06 | E21: 23.38 | F21: 10.84 | G21: 12.33 | H21: 3.72 | I21: 7.88 | J21: 9.86 | K21: 11.99 | L21: 13.61
B22: Dividenden-Rendite (Jahresschlusskurs) | C22: 0.0187 | D22: 0.0173 | E22: 0.0144 | F22: 0.0133 | G22: 0.0154 | H22: 0.0268 | I22: 0.0205 | J22: 0.0134 | K22: 0.0117 | L22: 0.0121
B24: Wachstumraten | E24: Qualität (Robustheit) | K24: Finanzkennzahlen | Q24: Bewertung
C25: Ergebnis | I25: Ergebnis | O25: Ergebnis | T25: Ergebnis
B26: Umsatz-Wachstum 5J > 10J | C26: =IF(C27>C28,"Ja","Nein") -> Nein | E26: Anzahl Verlustjahre (bei EPS) | I26: =COUNTIF(D14:M14,"<0")*-1 -> 0 | K26: Eigenkapital (Shareholder Equity) | O26: 1260900 | Q26: 200 Tage Linie | T26: 71.78
B27: Umsatz-Wachstum 5J p.a. | C27: =AVERAGE(I13:M13) -> 0.04166681229 | E27: Anzahl Jahre mit steigendem Umsatz | I27: =SUM(D12:N12) -> 11 | K27: Current Assets | O27: 1074893 | Q27: Differenz Kurz 200 Tage | T27: =H4/T26-1 -> 0.08386737253
B28: Umsatz-Wachstum 10J p.a. | C28: =AVERAGE(D13:M13) -> 0.04909469273 | E28: Anzahl Jahre mit steigendem EPS | I28: =SUM(D15:N15) -> 6 | K28: Current Liabilities | O28: 490939
B29: EPS-Wachstum 5J > 10J | C29: =IF(C30>C31,"Ja","Nein") -> Nein | E29: Anzahl Jahre mit steigender Dividende | I29: =SUM(D18:N18) -> 2 | K29: Fremdkapital (Debt) | O29: =O28+681005 -> 1171944
B30: EPS-Wachstum 5J p.a. | C30: =AVERAGE(I16:M16) -> -0.02820898542 | E30: Qualität in % (maximal 30 Punkte) | I30: =SUM(I26:I29)/33 -> 0.5757575758 | K30: Gesamtkapital (Total Assets) | O30: 2432844
B31: EPS-Wachstum 10J p.a. | C31: =AVERAGE(D16:M16) -> 0.2103226113 | K31: Umsatz (Revenue) | O31: 3571693
B32: Dividenden-Wachstum 5J > 10J | C32: =IF(C33>C34,"Ja","Nein") -> Ja | E32: KGV | K32: Gewinn (Net income) | O32: 106708
B33: Dividenden-Wachstum 5J p.a. | C33: =AVERAGE(I19:M19) -> 0.07389368945 | I33: Ergebnis | K33: EBIT (Operating income) | O33: 165147
B34: Dividenden-Wachstum 10J p.a. | C34: =AVERAGE(D19:M19) -> 0.03694684472 | E34: KGV-Durchschnitt 10J | I34: =AVERAGE(C21:L21) -> 13.537 | K34: Eigenkapitalquote (equity ratio) | O34: =O26/O30 -> 0.5182823066
B35: Wachstumrate 10J p.a. | C35: =AVERAGE(C34,C31,C28) -> 0.09878804957 | E35: Aktuelles KGV < KGV Mittelwert? | I35: =IF(H5<I34,"Ja,","Nein") -> Nein | K35: Eigenkapitalrentabilität (Return on Equity) | O35: =O32/O26 -> 0.08462844
B36: Wachstumsrate 5J p.a. | C36: =AVERAGE(C33,C30,C27) -> 0.0291171721 | K36: Gesamtkapitalrentabilität (Return on Assets) | O36: =O32/O30 -> 0.04386142309
E37: Dividendenrendite | K37: Current-Valuation | O37: =IF(O27>O28,"JA","NEIN") -> JA
I38: Ergebnis | K38: NCAV | O38: =IF(O27>O29,"JA","NEIN") -> NEIN
E39: 10-Jahres-Durchschnittsdividendenrendite | I39: =AVERAGE(C22:L22) -> 0.01636 | K39: Verschuldungsgrad (Debt-to-equity) | O39: =O29/O26 -> 0.9294503926
E40: Aktuelle Div.Rendite > Mittelwert Dividende? | I40: =IF(H6>I39,"Ja","Nein") -> Nein | K40: EBIT-Marge (EBIT margin) | O40: =O33/O31 -> 0.04623773656

Sheet IBM
B2: Analyse - Einzelunternehmen | Q2: Datum:
G3: Aktuelle Daten:
B4: IBM | G4: Kurs:
G5: KGV:
G6: Div.Rendite:
G7: Währung: | H7: Währung
B9: 10-Jahres-Übersicht | M9: akt. Jahr
B10: Jahr | C10: =D10-1 -> 2004 | D10: 2005 | E10: 2006 | F10: =G10-1 -> 2007 | G10: 2008 | H10: =I10-1 -> 2009 | I10: 2010 | J10: 2011 | K10: 2012 | L10: 2013 | M10: 2014
B11: Umsatz in Mrd.
B12: Umsatz erhöht? (1=ja) | C12: 0 | D12: =IF(D11>C11, 1, 0) -> 0 | E12: =IF(E11>D11, 1, 0) -> 0 | F12: 0 | G12: 0 | H12: 0 | I12: 0 | J12: 0 | K12: 0 | L12: 0 | M12: 0
B13: Umsatzwachstum | D13: =D11/C11-1 ->  | E13: =E11/D11-1 -> 
B14: Ergebnis pro Aktie (EPS)
B15: EPS erhöht? (1=ja) | C15: 0 | D15: =IF(D14>C14, 1, 0) -> 0 | E15: 0 | F15: 0 | G15: 0 | H15: 0 | I15: 0 | J15: 0 | K15: 0 | L15: 0 | M15: 0
B16: EPS-Wachstum | D16: =D14/C14-1 ->  | E16: =E14/D14-1 -> 
B17: Dividende pro Aktie
B18: Dividende erhöht? (1=ja) | C18: 0 | D18: =IF(D17>C17, 1, 0) -> 0 | E18: =IF(E17>D17, 1, 0) -> 0 | F18: 0 | G18: 0 | H18: 0 | I18: 0 | J18: 0 | K18: 0 | L18: 0 | M18: 0
B19: Div.-Wachstum | D19: =D17/C17-1 ->  | E19: =E17/D17-1 -> 
B20: Auszahlungsquote | C20: =C17/C14 -> 
B21: Kurs-Gewinn-Verhältnis (Jahresschlusskurs)
B22: Dividenden-Rendite (Jahresschlusskurs)
B24: Wachstumraten | E24: Qualität (Robustheit) | K24: Finanzkennzahlen
C25: Ergebnis | I25: Ergebnis | O25: Ergebnis
B26: Umsatz-Wachstum 5J > 10J | C26: =IF(C27>C28,"Ja","Nein") ->  | E26: Anzahl Verlustjahre (bei EPS) | I26: =COUNTIF(D14:M14,"<0")*-1 -> 0 | K26: Eigenkapital (Shareholder Equity)
B27: Umsatz-Wachstum 5J p.a. | C27: =AVERAGE(I13:M13) ->  | E27: Anzahl Jahre mit steigendem Umsatz | I27: =SUM(D12:M12) -> 0 | K27: Current Assets
B28: Umsatz-Wachstum 10J p.a. | C28: =AVERAGE(D13:M13) ->  | E28: Anzahl Jahre mit steigendem EPS | I28: =SUM(C15:L15) -> 0 | K28: Current Liabilities
B29: EPS-Wachstum 5J > 10J | C29: =IF(C30>C31,"Ja","Nein") ->  | E29: Anzahl Jahre mit steigender Dividende | I29: =SUM(D18:M18) -> 0 | K29: Fremdkapital (Debt)
B30: EPS-Wachstum 5J p.a. | C30: =AVERAGE(I16:M16) ->  | E30: Qualität in % (maximal 30 Punkte) | I30: =SUM(I26:I29)/30 -> 0 | K30: Gesamtkapital (Total Assets)
B31: EPS-Wachstum 10J p.a. | C31: =AVERAGE(D16:M16) ->  | K31: Umsatz (Revenue)
B32: Dividenden-Wachstum 5J > 10J | C32: =IF(C33>C34,"Ja","Nein") ->  | E32: KGV | K32: Gewinn (Net income)
B33: Dividenden-Wachstum 5J p.a. | C33: =AVERAGE(I19:M19) ->  | I33: Ergebnis | K33: EBIT (Operating income)
B34: Dividenden-Wachstum 10J p.a. | C34: =AVERAGE(D19:M19) ->  | E34: KGV-Durchschnitt 10J | I34: =AVERAGE(D21:M21) ->  | K34: Eigenkapitalquote (equity ratio) | O34: =O26/O30 -> 
B35: Wachstumrate 10J p.a. | C35: =AVERAGE(C34,C31,C28) ->  | E35: Aktuelles KGV < KGV Mittelwert? | I35: =IF(H5<I34,"Ja,","Nein") ->  | K35: Eigenkapitalrentabilität (Return on Equity) | O35: =O32/O26 -> 
B36: Wachstumsrate 5J p.a. | C36: =AVERAGE(C33,C30,C27) ->  | K36: Gesamtkapitalrentabilität (Return on Assets) | O36: =O32/O30 -> 
E37: Dividendenrendite | K37: Current-Valuation | O37: =IF(O27>O28,"JA","NEIN") -> NEIN
I38: Ergebnis | K38: NCAV | O38: =IF(O27>O29,"JA","NEIN") -> NEIN
E39: 10-Jahres-Durchschnittsdividendenrendite | I39: =AVERAGE(D22:M22) ->  | K39: Verschuldungsgrad (Debt-to-equity) | O39: =O29/O26 -> 
E40: Aktuelle Div.Rendite > Mittelwert Dividende? | I40: =IF(H6>I39,"Ja","Nein") ->  | K40: EBIT-Marge (EBIT margin) | O40: =O33/O31 -> 

Sheet IMT
B2: Analyse - Einzelunternehmen | Q2: Datum:
G3: Aktuelle Daten:
B4: Imperial Tobacco | G4: Kurs:
G5: KGV:
G6: Div.Rendite:
G7: Währung: | H7: Währung
B9: 10-Jahres-Übersicht | M9: akt. Jahr
B10: Jahr | C10: =D10-1 -> 2004 | D10: 2005 | E10: 2006 | F10: =G10-1 -> 2007 | G10: 2008 | H10: =I10-1 -> 2009 | I10: 2010 | J10: 2011 | K10: 2012 | L10: 2013 | M10: 2014
B11: Umsatz in Mrd.
B12: Umsatz erhöht? (1=ja) | C12: 0 | D12: =IF(D11>C11, 1, 0) -> 0 | E12: =IF(E11>D11, 1, 0) -> 0 | F12: 0 | G12: 0 | H12: 0 | I12: 0 | J12: 0 | K12: 0 | L12: 0 | M12: 0
B13: Umsatzwachstum | D13: =D11/C11-1 ->  | E13: =E11/D11-1 -> 
B14: Ergebnis pro Aktie (EPS)
B15: EPS erhöht? (1=ja) | C15: 0 | D15: =IF(D14>C14, 1, 0) -> 0 | E15: 0 | F15: 0 | G15: 0 | H15: 0 | I15: 0 | J15: 0 | K15: 0 | L15: 0 | M15: 0
B16: EPS-Wachstum | D16: =D14/C14-1 ->  | E16: =E14/D14-1 -> 
B17: Dividende pro Aktie
B18: Dividende erhöht? (1=ja) | C18: 0 | D18: =IF(D17>C17, 1, 0) -> 0 | E18: =IF(E17>D17, 1, 0) -> 0 | F18: 0 | G18: 0 | H18: 0 | I18: 0 | J18: 0 | K18: 0 | L18: 0 | M18: 0
B19: Div.-Wachstum | D19: =D17/C17-1 ->  | E19: =E17/D17-1 -> 
B20: Auszahlungsquote | C20: =C17/C14 -> 
B21: Kurs-Gewinn-Verhältnis (Jahresschlusskurs)
B22: Dividenden-Rendite (Jahresschlusskurs)
B24: Wachstumraten | E24: Qualität (Robustheit) | K24: Finanzkennzahlen
C25: Ergebnis | I25: Ergebnis | O25: Ergebnis
B26: Umsatz-Wachstum 5J > 10J | C26: =IF(C27>C28,"Ja","Nein") ->  | E26: Anzahl Verlustjahre (bei EPS) | I26: =COUNTIF(D14:M14,"<0")*-1 -> 0 | K26: Eigenkapital (Shareholder Equity)
B27: Umsatz-Wachstum 5J p.a. | C27: =AVERAGE(I13:M13) ->  | E27: Anzahl Jahre mit steigendem Umsatz | I27: =SUM(D12:M12) -> 0 | K27: Current Assets
B28: Umsatz-Wachstum 10J p.a. | C28: =AVERAGE(D13:M13) ->  | E28: Anzahl Jahre mit steigendem EPS | I28: =SUM(C15:L15) -> 0 | K28: Current Liabilities
B29: EPS-Wachstum 5J > 10J | C29: =IF(C30>C31,"Ja","Nein") ->  | E29: Anzahl Jahre mit steigender Dividende | I29: =SUM(D18:M18) -> 0 | K29: Fremdkapital (Debt)
B30: EPS-Wachstum 5J p.a. | C30: =AVERAGE(I16:M16) ->  | E30: Qualität in % (maximal 30 Punkte) | I30: =SUM(I26:I29)/30 -> 0 | K30: Gesamtkapital (Total Assets)
B31: EPS-Wachstum 10J p.a. | C31: =AVERAGE(D16:M16) ->  | K31: Umsatz (Revenue)
B32: Dividenden-Wachstum 5J > 10J | C32: =IF(C33>C34,"Ja","Nein") ->  | E32: KGV | K32: Gewinn (Net income)
B33: Dividenden-Wachstum 5J p.a. | C33: =AVERAGE(I19:M19) ->  | I33: Ergebnis | K33: EBIT (Operating income)
B34: Dividenden-Wachstum 10J p.a. | C34: =AVERAGE(D19:M19) ->  | E34: KGV-Durchschnitt 10J | I34: =AVERAGE(D21:M21) ->  | K34: Eigenkapitalquote (equity ratio) | O34: =O26/O30 -> 
B35: Wachstumrate 10J p.a. | C35: =AVERAGE(C34,C31,C28) ->  | E35: Aktuelles KGV < KGV Mittelwert? | I35: =IF(H5<I34,"Ja,","Nein") ->  | K35: Eigenkapitalrentabilität (Return on Equity) | O35: =O32/O26 -> 
B36: Wachstumsrate 5J p.a. | C36: =AVERAGE(C33,C30,C27) ->  | K36: Gesamtkapitalrentabilität (Return on Assets) | O36: =O32/O30 -> 
E37: Dividendenrendite | K37: Current-Valuation | O37: =IF(O27>O28,"JA","NEIN") -> NEIN
I38: Ergebnis | K38: NCAV | O38: =IF(O27>O29,"JA","NEIN") -> NEIN
E39: 10-Jahres-Durchschnittsdividendenrendite | I39: =AVERAGE(D22:M22) ->  | K39: Verschuldungsgrad (Debt-to-equity) | O39: =O29/O26 -> 
E40: Aktuelle Div.Rendite > Mittelwert Dividende? | I40: =IF(H6>I39,"Ja","Nein") ->  | K40: EBIT-Marge (EBIT margin) | O40: =O33/O31 -> 

Sheet JNJ
B2: Analyse - Einzelunternehmen | Q2: Datum:
G3: Aktuelle Daten:
B4: Johnson & Johnson | G4: Kurs:
G5: KGV:
G6: Div.Rendite:
G7: Währung: | H7: Währung
B9: 10-Jahres-Übersicht | M9: akt. Jahr
B10: Jahr | C10: =D10-1 -> 2004 | D10: 2005 | E10: 2006 | F10: =G10-1 -> 2007 | G10: 2008 | H10: =I10-1 -> 2009 | I10: 2010 | J10: 2011 | K10: 2012 | L10: 2013 | M10: 2014
B11: Umsatz in Mrd.
B12: Umsatz erhöht? (1=ja) | C12: 0 | D12: =IF(D11>C11, 1, 0) -> 0 | E12: =IF(E11>D11, 1, 0) -> 0 | F12: 0 | G12: 0 | H12: 0 | I12: 0 | J12: 0 | K12: 0 | L12: 0 | M12: 0
B13: Umsatzwachstum | D13: =D11/C11-1 ->  | E13: =E11/D11-1 -> 
B14: Ergebnis pro Aktie (EPS)
B15: EPS erhöht? (1=ja) | C15: 0 | D15: =IF(D14>C14, 1, 0) -> 0 | E15: 0 | F15: 0 | G15: 0 | H15: 0 | I15: 0 | J15: 0 | K15: 0 | L15: 0 | M15: 0
B16: EPS-Wachstum | D16: =D14/C14-1 ->  | E16: =E14/D14-1 -> 
B17: Dividende pro Aktie
B18: Dividende erhöht? (1=ja) | C18: 0 | D18: =IF(D17>C17, 1, 0) -> 0 | E18: =IF(E17>D17, 1, 0) -> 0 | F18: 0 | G18: 0 | H18: 0 | I18: 0 | J18: 0 | K18: 0 | L18: 0 | M18: 0
B19: Div.-Wachstum | D19: =D17/C17-1 ->  | E19: =E17/D17-1 -> 
B20: Auszahlungsquote | C20: =C17/C14 -> 
B21: Kurs-Gewinn-Verhältnis (Jahresschlusskurs)
B22: Dividenden-Rendite (Jahresschlusskurs)
B24: Wachstumraten | E24: Qualität (Robustheit) | K24: Finanzkennzahlen
C25: Ergebnis | I25: Ergebnis | O25: Ergebnis
B26: Umsatz-Wachstum 5J > 10J | C26: =IF(C27>C28,"Ja","Nein") ->  | E26: Anzahl Verlustjahre (bei EPS) | I26: =COUNTIF(D14:M14,"<0")*-1 -> 0 | K26: Eigenkapital (Shareholder Equity)
B27: Umsatz-Wachstum 5J p.a. | C27: =AVERAGE(I13:M13) ->  | E27: Anzahl Jahre mit steigendem Umsatz | I27: =SUM(D12:M12) -> 0 | K27: Current Assets
B28: Umsatz-Wachstum 10J p.a. | C28: =AVERAGE(D13:M13) ->  | E28: Anzahl Jahre mit steigendem EPS | I28: =SUM(C15:L15) -> 0 | K28: Current Liabilities
B29: EPS-Wachstum 5J > 10J | C29: =IF(C30>C31,"Ja","Nein") ->  | E29: Anzahl Jahre mit steigender Dividende | I29: =SUM(D18:M18) -> 0 | K29: Fremdkapital (Debt)
B30: EPS-Wachstum 5J p.a. | C30: =AVERAGE(I16:M16) ->  | E30: Qualität in % (maximal 30 Punkte) | I30: =SUM(I26:I29)/30 -> 0 | K30: Gesamtkapital (Total Assets)
B31: EPS-Wachstum 10J p.a. | C31: =AVERAGE(D16:M16) ->  | K31: Umsatz (Revenue)
B32: Dividenden-Wachstum 5J > 10J | C32: =IF(C33>C34,"Ja","Nein") ->  | E32: KGV | K32: Gewinn (Net income)
B33: Dividenden-Wachstum 5J p.a. | C33: =AVERAGE(I19:M19) ->  | I33: Ergebnis | K33: EBIT (Operating income)
B34: Dividenden-Wachstum 10J p.a. | C34: =AVERAGE(D19:M19) ->  | E34: KGV-Durchschnitt 10J | I34: =AVERAGE(D21:M21) ->  | K34: Eigenkapitalquote (equity ratio) | O34: =O26/O30 -> 
B35: Wachstumrate 10J p.a. | C35: =AVERAGE(C34,C31,C28) ->  | E35: Aktuelles KGV < KGV Mittelwert? | I35: =IF(H5<I34,"Ja,","Nein") ->  | K35: Eigenkapitalrentabilität (Return on Equity) | O35: =O32/O26 -> 
B36: Wachstumsrate 5J p.a. | C36: =AVERAGE(C33,C30,C27) ->  | K36: Gesamtkapitalrentabilität (Return on Assets) | O36: =O32/O30 -> 
E37: Dividendenrendite | K37: Current-Valuation | O37: =IF(O27>O28,"JA","NEIN") -> NEIN
I38: Ergebnis | K38: NCAV | O38: =IF(O27>O29,"JA","NEIN") -> NEIN
E39: 10-Jahres-Durchschnittsdividendenrendite | I39: =AVERAGE(D22:M22) ->  | K39: Verschuldungsgrad (Debt-to-equity) | O39: =O29/O26 -> 
E40: Aktuelle Div.Rendite > Mittelwert Dividende? | I40: =IF(H6>I39,"Ja","Nein") ->  | K40: EBIT-Marge (EBIT margin) | O40: =O33/O31 -> 

Sheet K
B2: Analyse - Einzelunternehmen | Q2: Datum:
G3: Aktuelle Daten:
B4: Kellog | G4: Kurs:
G5: KGV:
G6: Div.Rendite:
G7: Währung: | H7: Währung
B9: 10-Jahres-Übersicht | M9: akt. Jahr
B10: Jahr | C10: =D10-1 -> 2004 | D10: 2005 | E10: 2006 | F10: =G10-1 -> 2007 | G10: 2008 | H10: =I10-1 -> 2009 | I10: 2010 | J10: 2011 | K10: 2012 | L10: 2013 | M10: 2014
B11: Umsatz in Mrd.
B12: Umsatz erhöht? (1=ja) | C12: 0 | D12: =IF(D11>C11, 1, 0) -> 0 | E12: =IF(E11>D11, 1, 0) -> 0 | F12: 0 | G12: 0 | H12: 0 | I12: 0 | J12: 0 | K12: 0 | L12: 0 | M12: 0
B13: Umsatzwachstum | D13: =D11/C11-1 ->  | E13: =E11/D11-1 -> 
B14: Ergebnis pro Aktie (EPS)
B15: EPS erhöht? (1=ja) | C15: 0 | D15: =IF(D14>C14, 1, 0) -> 0 | E15: 0 | F15: 0 | G15: 0 | H15: 0 | I15: 0 | J15: 0 | K15: 0 | L15: 0 | M15: 0
B16: EPS-Wachstum | D16: =D14/C14-1 ->  | E16: =E14/D14-1 -> 
B17: Dividende pro Aktie
B18: Dividende erhöht? (1=ja) | C18: 0 | D18: =IF(D17>C17, 1, 0) -> 0 | E18: =IF(E17>D17, 1, 0) -> 0 | F18: 0 | G18: 0 | H18: 0 | I18: 0 | J18: 0 | K18: 0 | L18: 0 | M18: 0
B19: Div.-Wachstum | D19: =D17/C17-1 ->  | E19: =E17/D17-1 -> 
B20: Auszahlungsquote | C20: =C17/C14 -> 
B21: Kurs-Gewinn-Verhältnis (Jahresschlusskurs)
B22: Dividenden-Rendite (Jahresschlusskurs)
B24: Wachstumraten | E24: Qualität (Robustheit) | K24: Finanzkennzahlen
C25: Ergebnis | I25: Ergebnis | O25: Ergebnis
B26: Umsatz-Wachstum 5J > 10J | C26: =IF(C27>C28,"Ja","Nein") ->  | E26: Anzahl Verlustjahre (bei EPS) | I26: =COUNTIF(D14:M14,"<0")*-1 -> 0 | K26: Eigenkapital (Shareholder Equity)
B27: Umsatz-Wachstum 5J p.a. | C27: =AVERAGE(I13:M13) ->  | E27: Anzahl Jahre mit steigendem Umsatz | I27: =SUM(D12:M12) -> 0 | K27: Current Assets
B28: Umsatz-Wachstum 10J p.a. | C28: =AVERAGE(D13:M13) ->  | E28: Anzahl Jahre mit steigendem EPS | I28: =SUM(C15:L15) -> 0 | K28: Current Liabilities
B29: EPS-Wachstum 5J > 10J | C29: =IF(C30>C31,"Ja","Nein") ->  | E29: Anzahl Jahre mit steigender Dividende | I29: =SUM(D18:M18) -> 0 | K29: Fremdkapital (Debt)
B30: EPS-Wachstum 5J p.a. | C30: =AVERAGE(I16:M16) ->  | E30: Qualität in % (maximal 30 Punkte) | I30: =SUM(I26:I29)/30 -> 0 | K30: Gesamtkapital (Total Assets)
B31: EPS-Wachstum 10J p.a. | C31: =AVERAGE(D16:M16) ->  | K31: Umsatz (Revenue)
B32: Dividenden-Wachstum 5J > 10J | C32: =IF(C33>C34,"Ja","Nein") ->  | E32: KGV | K32: Gewinn (Net income)
B33: Dividenden-Wachstum 5J p.a. | C33: =AVERAGE(I19:M19) ->  | I33: Ergebnis | K33: EBIT (Operating income)
B34: Dividenden-Wachstum 10J p.a. | C34: =AVERAGE(D19:M19) ->  | E34: KGV-Durchschnitt 10J | I34: =AVERAGE(D21:M21) ->  | K34: Eigenkapitalquote (equity ratio) | O34: =O26/O30 -> 
B35: Wachstumrate 10J p.a. | C35: =AVERAGE(C34,C31,C28) ->  | E35: Aktuelles KGV < KGV Mittelwert? | I35: =IF(H5<I34,"Ja,","Nein") ->  | K35: Eigenkapitalrentabilität (Return on Equity) | O35: =O32/O26 -> 
B36: Wachstumsrate 5J p.a. | C36: =AVERAGE(C33,C30,C27) ->  | K36: Gesamtkapitalrentabilität (Return on Assets) | O36: =O32/O30 -> 
E37: Dividendenrendite | K37: Current-Valuation | O37: =IF(O27>O28,"JA","NEIN") -> NEIN
I38: Ergebnis | K38: NCAV | O38: =IF(O27>O29,"JA","NEIN") -> NEIN
E39: 10-Jahres-Durchschnittsdividendenrendite | I39: =AVERAGE(D22:M22) ->  | K39: Verschuldungsgrad (Debt-to-equity) | O39: =O29/O26 -> 
E40: Aktuelle Div.Rendite > Mittelwert Dividende? | I40: =IF(H6>I39,"Ja","Nein") ->  | K40: EBIT-Marge (EBIT margin) | O40: =O33/O31 -> 

Sheet KMB
B2: Analyse - Einzelunternehmen | Q2: Datum:
G3: Aktuelle Daten:
B4: Kimberly Clark | G4: Kurs:
G5: KGV:
G6: Div.Rendite:
G7: Währung: | H7: Währung
B9: 10-Jahres-Übersicht | M9: akt. Jahr
B10: Jahr | C10: =D10-1 -> 2004 | D10: 2005 | E10: 2006 | F10: =G10-1 -> 2007 | G10: 2008 | H10: =I10-1 -> 2009 | I10: 2010 | J10: 2011 | K10: 2012 | L10: 2013 | M10: 2014
B11: Umsatz in Mrd.
B12: Umsatz erhöht? (1=ja) | C12: 0 | D12: =IF(D11>C11, 1, 0) -> 0 | E12: =IF(E11>D11, 1, 0) -> 0 | F12: 0 | G12: 0 | H12: 0 | I12: 0 | J12: 0 | K12: 0 | L12: 0 | M12: 0
B13: Umsatzwachstum | D13: =D11/C11-1 ->  | E13: =E11/D11-1 -> 
B14: Ergebnis pro Aktie (EPS)
B15: EPS erhöht? (1=ja) | C15: 0 | D15: =IF(D14>C14, 1, 0) -> 0 | E15: 0 | F15: 0 | G15: 0 | H15: 0 | I15: 0 | J15: 0 | K15: 0 | L15: 0 | M15: 0
B16: EPS-Wachstum | D16: =D14/C14-1 ->  | E16: =E14/D14-1 -> 
B17: Dividende pro Aktie
B18: Dividende erhöht? (1=ja) | C18: 0 | D18: =IF(D17>C17, 1, 0) -> 0 | E18: =IF(E17>D17, 1, 0) -> 0 | F18: 0 | G18: 0 | H18: 0 | I18: 0 | J18: 0 | K18: 0 | L18: 0 | M18: 0
B19: Div.-Wachstum | D19: =D17/C17-1 ->  | E19: =E17/D17-1 -> 
B20: Auszahlungsquote | C20: =C17/C14 -> 
B21: Kurs-Gewinn-Verhältnis (Jahresschlusskurs)
B22: Dividenden-Rendite (Jahresschlusskurs)
B24: Wachstumraten | E24: Qualität (Robustheit) | K24: Finanzkennzahlen
C25: Ergebnis | I25: Ergebnis | O25: Ergebnis
B26: Umsatz-Wachstum 5J > 10J | C26: =IF(C27>C28,"Ja","Nein") ->  | E26: Anzahl Verlustjahre (bei EPS) | I26: =COUNTIF(D14:M14,"<0")*-1 -> 0 | K26: Eigenkapital (Shareholder Equity)
B27: Umsatz-Wachstum 5J p.a. | C27: =AVERAGE(I13:M13) ->  | E27: Anzahl Jahre mit steigendem Umsatz | I27: =SUM(D12:M12) -> 0 | K27: Current Assets
B28: Umsatz-Wachstum 10J p.a. | C28: =AVERAGE(D13:M13) ->  | E28: Anzahl Jahre mit steigendem EPS | I28: =SUM(C15:L15) -> 0 | K28: Current Liabilities
B29: EPS-Wachstum 5J > 10J | C29: =IF(C30>C31,"Ja","Nein") ->  | E29: Anzahl Jahre mit steigender Dividende | I29: =SUM(D18:M18) -> 0 | K29: Fremdkapital (Debt)
B30: EPS-Wachstum 5J p.a. | C30: =AVERAGE(I16:M16) ->  | E30: Qualität in % (maximal 30 Punkte) | I30: =SUM(I26:I29)/30 -> 0 | K30: Gesamtkapital (Total Assets)
B31: EPS-Wachstum 10J p.a. | C31: =AVERAGE(D16:M16) ->  | K31: Umsatz (Revenue)
B32: Dividenden-Wachstum 5J > 10J | C32: =IF(C33>C34,"Ja","Nein") ->  | E32: KGV | K32: Gewinn (Net income)
B33: Dividenden-Wachstum 5J p.a. | C33: =AVERAGE(I19:M19) ->  | I33: Ergebnis | K33: EBIT (Operating income)
B34: Dividenden-Wachstum 10J p.a. | C34: =AVERAGE(D19:M19) ->  | E34: KGV-Durchschnitt 10J | I34: =AVERAGE(D21:M21) ->  | K34: Eigenkapitalquote (equity ratio) | O34: =O26/O30 -> 
B35: Wachstumrate 10J p.a. | C35: =AVERAGE(C34,C31,C28) ->  | E35: Aktuelles KGV < KGV Mittelwert? | I35: =IF(H5<I34,"Ja,","Nein") ->  | K35: Eigenkapitalrentabilität (Return on Equity) | O35: =O32/O26 -> 
B36: Wachstumsrate 5J p.a. | C36: =AVERAGE(C33,C30,C27) ->  | K36: Gesamtkapitalrentabilität (Return on Assets) | O36: =O32/O30 -> 
E37: Dividendenrendite | K37: Current-Valuation | O37: =IF(O27>O28,"JA","NEIN") -> NEIN
I38: Ergebnis | K38: NCAV | O38: =IF(O27>O29,"JA","NEIN") -> NEIN
E39: 10-Jahres-Durchschnittsdividendenrendite | I39: =AVERAGE(D22:M22) ->  | K39: Verschuldungsgrad (Debt-to-equity) | O39: =O29/O26 -> 
E40: Aktuelle Div.Rendite > Mittelwert Dividende? | I40: =IF(H6>I39,"Ja","Nein") ->  | K40: EBIT-Marge (EBIT margin) | O40: =O33/O31 -> 

Sheet KO
B2: Analyse - Einzelunternehmen | Q2: Datum: 13.06.2015
G3: Aktuelle Daten:
B4: Coca Cola | G4: Kurs: | H4: 35.519
G5: KGV: | H5: 20.34
G6: Div.Rendite: | H6: 0.033
G7: Währung: | H7: USD
B9: 10-Jahres-Übersicht | M9: akt. Jahr
B10: Jahr | C10: =D10-1 -> 2004 | D10: 2005 | E10: 2006 | F10: =G10-1 -> 2007 | G10: 2008 | H10: =I10-1 -> 2009 | I10: 2010 | J10: 2011 | K10: 2012 | L10: 2013 | M10: 2014
B11: Umsatz in Mrd. | C11: 21.96 | D11: 23.1 | E11: 24.09 | F11: 28.86 | G11: 31.94 | H11: 30.99 | I11: 35.12 | J11: 46.54 | K11: 48.02 | L11: 46.85 | M11: 46
B12: Umsatz erhöht? (1=ja) | C12: 0 | D12: =IF(D11>C11, 1, 0) -> 1 | E12: =IF(E11>D11, 1, 0) -> 1 | F12: 1 | G12: 1 | H12: 0 | I12: 1 | J12: 1 | K12: 1 | L12: 0 | M12: 0
B13: Umsatzwachstum | D13: =D11/C11-1 -> 0.05191256831 | E13: =E11/D11-1 -> 0.04285714286 | F13: 0.198007472 | G13: 0.1067221067 | H13: -0.02974326863 | I13: 0.1332687964 | J13: 0.3251708428 | K13: 0.03180060163 | L13: -0.02436484798 | M13: -0.01814300961
B14: Ergebnis pro Aktie (EPS) | C14: 1 | D14: 1.02 | E14: 1.08 | F14: 1.3 | G14: 1.26 | H14: 1.47 | I14: 2.56 | J14: 1.88 | K14: 2 | L14: 1.94 | M14: 1.62
B15: EPS erhöht? (1=ja) | C15: 0 | D15: =IF(D14>C14, 1, 0) -> 1 | E15: 1 | F15: 1 | G15: 0 | H15: 1 | I15: 1 | J15: 0 | K15: 1 | L15: 0 | M15: 0
B16: EPS-Wachstum | D16: =D14/C14-1 -> 0.02 | E16: =E14/D14-1 -> 0.05882352941 | F16: 0.2037037037 | G16: -0.03076923077 | H16: 0.1666666667 | I16: 0.7414965986 | J16: -0.265625 | K16: 0.06382978723 | L16: -0.03 | M16: -0.1649484536
B17: Dividende pro Aktie | C17: 0.5 | D17: 0.56 | E17: 0.62 | F17: 0.68 | G17: 0.76 | H17: 0.82 | I17: 0.88 | J17: 0.94 | K17: 1.02 | L17: 1.12 | M17: 1.22
B18: Dividende erhöht? (1=ja) | C18: 0 | D18: =IF(D17>C17, 1, 0) -> 1 | E18: =IF(E17>D17, 1, 0) -> 1 | F18: 1 | G18: 1 | H18: 1 | I18: 1 | J18: 1 | K18: 1 | L18: 1 | M18: 1
B19: Div.-Wachstum | D19: =D17/C17-1 -> 0.12 | E19: =E17/D17-1 -> 0.1071428571 | F19: 0.09677419355 | G19: 0.1176470588 | H19: 0.07894736842 | I19: 0.07317073171 | J19: 0.06818181818 | K19: 0.08510638298 | L19: 0.09803921569 | M19: 0.08928571429
B20: Auszahlungsquote | C20: =C17/C14 -> 0.5 | D20: 0.5490196078 | E20: 0.5740740741 | F20: 0.5230769231 | G20: 0.6031746032 | H20: 0.5578231293 | I20: 0.34375 | J20: 0.5 | K20: 0.51 | L20: 0.5773195876 | M20: 0.7530864198
B21: Kurs-Gewinn-Verhältnis (Jahresschlusskurs) | C21: 20.7 | D21: 19.61 | E21: 22.02 | F21: 23.79 | G21: 18.03 | H21: 19.24 | I21: 12.77 | J21: 18.47 | K21: 17.96 | L21: 21.18
B22: Dividenden-Rendite (Jahresschlusskurs) | C22: 0.024 | D22: 0.0278 | E22: 0.0257 | F22: 0.0222 | G22: 0.0336 | H22: 0.0288 | I22: 0.0268 | J22: 0.0269 | K22: 0.0281 | L22: 0.0271
B24: Wachstumraten | E24: Qualität (Robustheit) | K24: Finanzkennzahlen | Q24: Bewertung
C25: Ergebnis | I25: Ergebnis | O25: Ergebnis | T25: Ergebnis
B26: Umsatz-Wachstum 5J > 10J | C26: =IF(C27>C28,"Ja","Nein") -> Ja | E26: Anzahl Verlustjahre (bei EPS) | I26: =COUNTIF(D14:M14,"<0")*-1 -> 0 | K26: Eigenkapital (Shareholder Equity) | O26: 30561 | Q26: 200 Tage Linie | T26: 35.601
B27: Umsatz-Wachstum 5J p.a. | C27: =AVERAGE(I13:M13) -> 0.08954647665 | E27: Anzahl Jahre mit steigendem Umsatz | I27: =SUM(D12:M12) -> 7 | K27: Current Assets | O27: 32986 | Q27: Differenz Kurz 200 Tage | T27: =H4/T26-1 -> -0.002303306087
B28: Umsatz-Wachstum 10J p.a. | C28: =AVERAGE(D13:M13) -> 0.08174884045 | E28: Anzahl Jahre mit steigendem EPS | I28: =SUM(D15:M15) -> 6 | K28: Current Liabilities | O28: 32374
B29: EPS-Wachstum 5J > 10J | C29: =IF(C30>C31,"Ja","Nein") -> Nein | E29: Anzahl Jahre mit steigender Dividende | I29: =SUM(D18:M18) -> 10 | K29: Fremdkapital (Debt) | O29: =O30-O26 -> 61462
B30: EPS-Wachstum 5J p.a. | C30: =AVERAGE(I16:M16) -> 0.06895058645 | E30: Qualität in % (maximal 30 Punkte) | I30: =SUM(I26:I29)/30 -> 0.7666666667 | K30: Gesamtkapital (Total Assets) | O30: 92023
B31: EPS-Wachstum 10J p.a. | C31: =AVERAGE(D16:M16) -> 0.07631776013 | K31: Umsatz (Revenue) | O31: 45998
B32: Dividenden-Wachstum 5J > 10J | C32: =IF(C33>C34,"Ja","Nein") -> Nein | E32: KGV | K32: Gewinn (Net income) | O32: 7124
B33: Dividenden-Wachstum 5J p.a. | C33: =AVERAGE(I19:M19) -> 0.08275677257 | I33: Ergebnis | K33: EBIT (Operating income) | O33: 9708
B34: Dividenden-Wachstum 10J p.a. | C34: =AVERAGE(D19:M19) -> 0.09342953408 | E34: KGV-Durchschnitt 10J | I34: =AVERAGE(C21:L21) -> 19.377 | K34: Eigenkapitalquote (equity ratio) | O34: =O26/O30 -> 0.3321017572
B35: Wachstumrate 10J p.a. | C35: =AVERAGE(C34,C31,C28) -> 0.08383204488 | E35: Aktuelles KGV < KGV Mittelwert? | I35: =IF(H5<I34,"Ja,","Nein") -> Nein | K35: Eigenkapitalrentabilität (Return on Equity) | O35: =O32/O26 -> 0.2331075554
B36: Wachstumsrate 5J p.a. | C36: =AVERAGE(C33,C30,C27) -> 0.08041794522 | K36: Gesamtkapitalrentabilität (Return on Assets) | O36: =O32/O30 -> 0.07741542875
E37: Dividendenrendite | K37: Current-Valuation | O37: =IF(O27>O28,"JA","NEIN") -> JA
I38: Ergebnis | K38: NCAV | O38: =IF(O27>O29,"JA","NEIN") -> NEIN
E39: 10-Jahres-Durchschnittsdividendenrendite | I39: =AVERAGE(C22:L22) -> 0.0271 | K39: Verschuldungsgrad (Debt-to-equity) | O39: =O29/O26 -> 2.01112529
E40: Aktuelle Div.Rendite > Mittelwert Dividende? | I40: =IF(H6>I39,"Ja","Nein") -> Ja | K40: EBIT-Marge (EBIT margin) | O40: =O33/O31 -> 0.2110526545

Sheet MA
B2: Analyse - Einzelunternehmen | Q2: Datum:
G3: Aktuelle Daten:
B4: Mastercard | G4: Kurs:
G5: KGV:
G6: Div.Rendite:
G7: Währung: | H7: Währung
B9: 10-Jahres-Übersicht | M9: akt. Jahr
B10: Jahr | C10: =D10-1 -> 2004 | D10: 2005 | E10: 2006 | F10: =G10-1 -> 2007 | G10: 2008 | H10: =I10-1 -> 2009 | I10: 2010 | J10: 2011 | K10: 2012 | L10: 2013 | M10: 2014
B11: Umsatz in Mrd.
B12: Umsatz erhöht? (1=ja) | C12: 0 | D12: =IF(D11>C11, 1, 0) -> 0 | E12: =IF(E11>D11, 1, 0) -> 0 | F12: 0 | G12: 0 | H12: 0 | I12: 0 | J12: 0 | K12: 0 | L12: 0 | M12: 0
B13: Umsatzwachstum | D13: =D11/C11-1 ->  | E13: =E11/D11-1 -> 
B14: Ergebnis pro Aktie (EPS)
B15: EPS erhöht? (1=ja) | C15: 0 | D15: =IF(D14>C14, 1, 0) -> 0 | E15: 0 | F15: 0 | G15: 0 | H15: 0 | I15: 0 | J15: 0 | K15: 0 | L15: 0 | M15: 0
B16: EPS-Wachstum | D16: =D14/C14-1 ->  | E16: =E14/D14-1 -> 
B17: Dividende pro Aktie
B18: Dividende erhöht? (1=ja) | C18: 0 | D18: =IF(D17>C17, 1, 0) -> 0 | E18: =IF(E17>D17, 1, 0) -> 0 | F18: 0 | G18: 0 | H18: 0 | I18: 0 | J18: 0 | K18: 0 | L18: 0 | M18: 0
B19: Div.-Wachstum | D19: =D17/C17-1 ->  | E19: =E17/D17-1 -> 
B20: Auszahlungsquote | C20: =C17/C14 -> 
B21: Kurs-Gewinn-Verhältnis (Jahresschlusskurs)
B22: Dividenden-Rendite (Jahresschlusskurs)
B24: Wachstumraten | E24: Qualität (Robustheit) | K24: Finanzkennzahlen
C25: Ergebnis | I25: Ergebnis | O25: Ergebnis
B26: Umsatz-Wachstum 5J > 10J | C26: =IF(C27>C28,"Ja","Nein") ->  | E26: Anzahl Verlustjahre (bei EPS) | I26: =COUNTIF(D14:M14,"<0")*-1 -> 0 | K26: Eigenkapital (Shareholder Equity)
B27: Umsatz-Wachstum 5J p.a. | C27: =AVERAGE(I13:M13) ->  | E27: Anzahl Jahre mit steigendem Umsatz | I27: =SUM(D12:M12) -> 0 | K27: Current Assets
B28: Umsatz-Wachstum 10J p.a. | C28: =AVERAGE(D13:M13) ->  | E28: Anzahl Jahre mit steigendem EPS | I28: =SUM(C15:L15) -> 0 | K28: Current Liabilities
B29: EPS-Wachstum 5J > 10J | C29: =IF(C30>C31,"Ja","Nein") ->  | E29: Anzahl Jahre mit steigender Dividende | I29: =SUM(D18:M18) -> 0 | K29: Fremdkapital (Debt)
B30: EPS-Wachstum 5J p.a. | C30: =AVERAGE(I16:M16) ->  | E30: Qualität in % (maximal 30 Punkte) | I30: =SUM(I26:I29)/30 -> 0 | K30: Gesamtkapital (Total Assets)
B31: EPS-Wachstum 10J p.a. | C31: =AVERAGE(D16:M16) ->  | K31: Umsatz (Revenue)
B32: Dividenden-Wachstum 5J > 10J | C32: =IF(C33>C34,"Ja","Nein") ->  | E32: KGV | K32: Gewinn (Net income)
B33: Dividenden-Wachstum 5J p.a. | C33: =AVERAGE(I19:M19) ->  | I33: Ergebnis | K33: EBIT (Operating income)
B34: Dividenden-Wachstum 10J p.a. | C34: =AVERAGE(D19:M19) ->  | E34: KGV-Durchschnitt 10J | I34: =AVERAGE(D21:M21) ->  | K34: Eigenkapitalquote (equity ratio) | O34: =O26/O30 -> 
B35: Wachstumrate 10J p.a. | C35: =AVERAGE(C34,C31,C28) ->  | E35: Aktuelles KGV < KGV Mittelwert? | I35: =IF(H5<I34,"Ja,","Nein") ->  | K35: Eigenkapitalrentabilität (Return on Equity) | O35: =O32/O26 -> 
B36: Wachstumsrate 5J p.a. | C36: =AVERAGE(C33,C30,C27) ->  | K36: Gesamtkapitalrentabilität (Return on Assets) | O36: =O32/O30 -> 
E37: Dividendenrendite | K37: Current-Valuation | O37: =IF(O27>O28,"JA","NEIN") -> NEIN
I38: Ergebnis | K38: NCAV | O38: =IF(O27>O29,"JA","NEIN") -> NEIN
E39: 10-Jahres-Durchschnittsdividendenrendite | I39: =AVERAGE(D22:M22) ->  | K39: Verschuldungsgrad (Debt-to-equity) | O39: =O29/O26 -> 
E40: Aktuelle Div.Rendite > Mittelwert Dividende? | I40: =IF(H6>I39,"Ja","Nein") ->  | K40: EBIT-Marge (EBIT margin) | O40: =O33/O31 -> 

Sheet MCD
B2: Analyse - Einzelunternehmen | Q2: Datum:
G3: Aktuelle Daten:
B4: McDonalds | G4: Kurs:
G5: KGV:
G6: Div.Rendite:
G7: Währung: | H7: Währung
B9: 10-Jahres-Übersicht | M9: akt. Jahr
B10: Jahr | C10: =D10-1 -> 2004 | D10: 2005 | E10: 2006 | F10: =G10-1 -> 2007 | G10: 2008 | H10: =I10-1 -> 2009 | I10: 2010 | J10: 2011 | K10: 2012 | L10: 2013 | M10: 2014
B11: Umsatz in Mrd.
B12: Umsatz erhöht? (1=ja) | C12: 0 | D12: =IF(D11>C11, 1, 0) -> 0 | E12: =IF(E11>D11, 1, 0) -> 0 | F12: 0 | G12: 0 | H12: 0 | I12: 0 | J12: 0 | K12: 0 | L12: 0 | M12: 0
B13: Umsatzwachstum | D13: =D11/C11-1 ->  | E13: =E11/D11-1 -> 
B14: Ergebnis pro Aktie (EPS)
B15: EPS erhöht? (1=ja) | C15: 0 | D15: =IF(D14>C14, 1, 0) -> 0 | E15: 0 | F15: 0 | G15: 0 | H15: 0 | I15: 0 | J15: 0 | K15: 0 | L15: 0 | M15: 0
B16: EPS-Wachstum | D16: =D14/C14-1 ->  | E16: =E14/D14-1 -> 
B17: Dividende pro Aktie
B18: Dividende erhöht? (1=ja) | C18: 0 | D18: =IF(D17>C17, 1, 0) -> 0 | E18: =IF(E17>D17, 1, 0) -> 0 | F18: 0 | G18: 0 | H18: 0 | I18: 0 | J18: 0 | K18: 0 | L18: 0 | M18: 0
B19: Div.-Wachstum | D19: =D17/C17-1 ->  | E19: =E17/D17-1 -> 
B20: Auszahlungsquote | C20: =C17/C14 -> 
B21: Kurs-Gewinn-Verhältnis (Jahresschlusskurs)
B22: Dividenden-Rendite (Jahresschlusskurs)
B24: Wachstumraten | E24: Qualität (Robustheit) | K24: Finanzkennzahlen
C25: Ergebnis | I25: Ergebnis | O25: Ergebnis
B26: Umsatz-Wachstum 5J > 10J | C26: =IF(C27>C28,"Ja","Nein") ->  | E26: Anzahl Verlustjahre (bei EPS) | I26: =COUNTIF(D14:M14,"<0")*-1 -> 0 | K26: Eigenkapital (Shareholder Equity)
B27: Umsatz-Wachstum 5J p.a. | C27: =AVERAGE(I13:M13) ->  | E27: Anzahl Jahre mit steigendem Umsatz | I27: =SUM(D12:M12) -> 0 | K27: Current Assets
B28: Umsatz-Wachstum 10J p.a. | C28: =AVERAGE(D13:M13) ->  | E28: Anzahl Jahre mit steigendem EPS | I28: =SUM(C15:L15) -> 0 | K28: Current Liabilities
B29: EPS-Wachstum 5J > 10J | C29: =IF(C30>C31,"Ja","Nein") ->  | E29: Anzahl Jahre mit steigender Dividende | I29: =SUM(D18:M18) -> 0 | K29: Fremdkapital (Debt)
B30: EPS-Wachstum 5J p.a. | C30: =AVERAGE(I16:M16) ->  | E30: Qualität in % (maximal 30 Punkte) | I30: =SUM(I26:I29)/30 -> 0 | K30: Gesamtkapital (Total Assets)
B31: EPS-Wachstum 10J p.a. | C31: =AVERAGE(D16:M16) ->  | K31: Umsatz (Revenue)
B32: Dividenden-Wachstum 5J > 10J | C32: =IF(C33>C34,"Ja","Nein") ->  | E32: KGV | K32: Gewinn (Net income)
B33: Dividenden-Wachstum 5J p.a. | C33: =AVERAGE(I19:M19) ->  | I33: Ergebnis | K33: EBIT (Operating income)
B34: Dividenden-Wachstum 10J p.a. | C34: =AVERAGE(D19:M19) ->  | E34: KGV-Durchschnitt 10J | I34: =AVERAGE(D21:M21) ->  | K34: Eigenkapitalquote (equity ratio) | O34: =O26/O30 -> 
B35: Wachstumrate 10J p.a. | C35: =AVERAGE(C34,C31,C28) ->  | E35: Aktuelles KGV < KGV Mittelwert? | I35: =IF(H5<I34,"Ja,","Nein") ->  | K35: Eigenkapitalrentabilität (Return on Equity) | O35: =O32/O26 -> 
B36: Wachstumsrate 5J p.a. | C36: =AVERAGE(C33,C30,C27) ->  | K36: Gesamtkapitalrentabilität (Return on Assets) | O36: =O32/O30 -> 
E37: Dividendenrendite | K37: Current-Valuation | O37: =IF(O27>O28,"JA","NEIN") -> NEIN
I38: Ergebnis | K38: NCAV | O38: =IF(O27>O29,"JA","NEIN") -> NEIN
E39: 10-Jahres-Durchschnittsdividendenrendite | I39: =AVERAGE(D22:M22) ->  | K39: Verschuldungsgrad (Debt-to-equity) | O39: =O29/O26 -> 
E40: Aktuelle Div.Rendite > Mittelwert Dividende? | I40: =IF(H6>I39,"Ja","Nein") ->  | K40: EBIT-Marge (EBIT margin) | O40: =O33/O31 -> 

Sheet MDT
B2: Analyse - Einzelunternehmen | Q2: Datum: 16.05.2015
G3: Aktuelle Daten:
B4: Medtronic | G4: Kurs: | H4: 76.42
G5: KGV: | H5: 24.49
G6: Div.Rendite: | H6: 0.016
G7: Währung: | H7: USD
B9: 10-Jahres-Übersicht | M9: akt. Jahr
B10: Jahr | C10: =D10-1 -> 2004 | D10: 2005 | E10: 2006 | F10: =G10-1 -> 2007 | G10: 2008 | H10: =I10-1 -> 2009 | I10: 2010 | J10: 2011 | K10: 2012 | L10: 2013 | M10: 2014
B11: Umsatz in Mrd. | C11: 9.09 | D11: 10.05 | E11: 11.29 | F11: 12.3 | G11: 13.52 | H11: 14.6 | I11: 15.82 | J11: 15.93 | K11: 16.18 | L11: 16.59 | M11: 17
B12: Umsatz erhöht? (1=ja) | C12: 0 | D12: =IF(D11>C11, 1, 0) -> 1 | E12: =IF(E11>D11, 1, 0) -> 1 | F12: 1 | G12: 1 | H12: 1 | I12: 1 | J12: 1 | K12: 1 | L12: 1 | M12: 1
B13: Umsatzwachstum | D13: =D11/C11-1 -> 0.1056105611 | E13: =E11/D11-1 -> 0.1233830846 | F13: 0.08945969885 | G13: 0.09918699187 | H13: 0.0798816568 | I13: 0.08356164384 | J13: 0.006953223767 | K13: 0.01569365976 | L13: 0.02533992583 | M13: 0.02471368294
B14: Ergebnis pro Aktie (EPS) | C14: 1.61 | D14: 1.49 | E14: 2.11 | F14: 2.44 | G14: 1.97 | H14: 1.94 | I14: 2.8 | J14: 2.87 | K14: 3.43 | L14: 3.4 | M14: 3.06
B15: EPS erhöht? (1=ja) | C15: 0 | D15: =IF(D14>C14, 1, 0) -> 0 | E15: 1 | F15: 1 | G15: 0 | H15: 0 | I15: 1 | J15: 1 | K15: 1 | L15: 0 | M15: 0
B16: EPS-Wachstum | D16: =D14/C14-1 -> -0.07453416149 | E16: =E14/D14-1 -> 0.4161073826 | F16: 0.1563981043 | G16: -0.1926229508 | H16: -0.0152284264 | I16: 0.4432989691 | J16: 0.025 | K16: 0.1951219512 | L16: -0.008746355685 | M16: -0.1
B17: Dividende pro Aktie | C17: 0.29 | D17: 0.34 | E17: 0.39 | F17: 0.44 | G17: 0.5 | H17: 0.75 | I17: 0.82 | J17: 0.9 | K17: 0.97 | L17: 1.04 | M17: 1.12
B18: Dividende erhöht? (1=ja) | C18: 0 | D18: =IF(D17>C17, 1, 0) -> 1 | E18: =IF(E17>D17, 1, 0) -> 1 | F18: 1 | G18: 1 | H18: 1 | I18: 1 | J18: 1 | K18: 1 | L18: 1 | M18: 1
B19: Div.-Wachstum | D19: =D17/C17-1 -> 0.1724137931 | E19: =E17/D17-1 -> 0.1470588235 | F19: 0.1282051282 | G19: 0.1363636364 | H19: 0.5 | I19: 0.09333333333 | J19: 0.09756097561 | K19: 0.07777777778 | L19: 0.07216494845 | M19: 0.07692307692
B20: Auszahlungsquote | C20: =C17/C14 -> 0.1801242236 | D20: 0.2281879195 | E20: 0.1848341232 | F20: 0.1803278689 | G20: 0.2538071066 | H20: 0.3865979381 | I20: 0.2928571429 | J20: 0.3135888502 | K20: 0.2827988338 | L20: 0.3058823529 | M20: 0.3660130719
B21: Kurs-Gewinn-Verhältnis (Jahresschlusskurs) | C21: 31.15 | D21: 35.36 | E21: 22.73 | F21: 21.6 | G21: 24.55 | H21: 16.51 | I21: 15.47 | J21: 14.43 | K21: 10.95 | L21: 13.68
B22: Dividenden-Rendite (Jahresschlusskurs) | C22: 0.0057 | D22: 0.0065 | E22: 0.0078 | F22: 0.0083 | G22: 0.0103 | H22: 0.0234 | I22: 0.0188 | J22: 0.0216 | K22: 0.0254 | L22: 0.0223
B24: Wachstumraten | E24: Qualität (Robustheit) | K24: Finanzkennzahlen
C25: Ergebnis | I25: Ergebnis | O25: Ergebnis
B26: Umsatz-Wachstum 5J > 10J | C26: =IF(C27>C28,"Ja","Nein") -> Nein | E26: Anzahl Verlustjahre (bei EPS) | I26: =COUNTIF(D14:M14,"<0")*-1 -> 0 | K26: Eigenkapital (Shareholder Equity) | O26: 19443
B27: Umsatz-Wachstum 5J p.a. | C27: =AVERAGE(I13:M13) -> 0.03125242723 | E27: Anzahl Jahre mit steigendem Umsatz | I27: =SUM(D12:M12) -> 10 | K27: Current Assets | O27: 21210
B28: Umsatz-Wachstum 10J p.a. | C28: =AVERAGE(D13:M13) -> 0.06537841293 | E28: Anzahl Jahre mit steigendem EPS | I28: =SUM(C15:L15) -> 5 | K28: Current Liabilities | O28: 5559
B29: EPS-Wachstum 5J > 10J | C29: =IF(C30>C31,"Ja","Nein") -> Ja | E29: Anzahl Jahre mit steigender Dividende | I29: =SUM(D18:M18) -> 10 | K29: Fremdkapital (Debt) | O29: 18500
B30: EPS-Wachstum 5J p.a. | C30: =AVERAGE(I16:M16) -> 0.1109349129 | E30: Qualität in % (maximal 30 Punkte) | I30: =SUM(I26:I29)/30 -> 0.8333333333 | K30: Gesamtkapital (Total Assets) | O30: 37943
B31: EPS-Wachstum 10J p.a. | C31: =AVERAGE(D16:M16) -> 0.08447945127 | K31: Umsatz (Revenue) | O31: 17005
B32: Dividenden-Wachstum 5J > 10J | C32: =IF(C33>C34,"Ja","Nein") -> Nein | E32: KGV | K32: Gewinn (Net income) | O32: 3065
B33: Dividenden-Wachstum 5J p.a. | C33: =AVERAGE(I19:M19) -> 0.08355202242 | I33: Ergebnis | K33: EBIT (Operating income) | O33: 3705
B34: Dividenden-Wachstum 10J p.a. | C34: =AVERAGE(D19:M19) -> 0.1501801493 | E34: KGV-Durchschnitt 10J | I34: =AVERAGE(C21:L21) -> 20.643 | K34: Eigenkapitalquote (equity ratio) | O34: =O26/O30 -> 0.5124265345
B35: Wachstumrate 10J p.a. | C35: =AVERAGE(C34,C31,C28) -> 0.1000126712 | E35: Aktuelles KGV < KGV Mittelwert? | I35: =IF(H5<I34,"Ja,","Nein") -> Nein | K35: Eigenkapitalrentabilität (Return on Equity) | O35: =O32/O26 -> 0.1576402818
B36: Wachstumsrate 5J p.a. | C36: =AVERAGE(C33,C30,C27) -> 0.07524645419 | K36: Gesamtkapitalrentabilität (Return on Assets) | O36: =O32/O30 -> 0.08077906333
E37: Dividendenrendite | K37: Current-Valuation | O37: =IF(O27>O28,"JA","NEIN") -> JA
I38: Ergebnis | K38: NCAV | O38: =IF(O27>O29,"JA","NEIN") -> JA
E39: 10-Jahres-Durchschnittsdividendenrendite | I39: =AVERAGE(C22:L22) -> 0.01501 | K39: Verschuldungsgrad (Debt-to-equity) | O39: =O29/O26 -> 0.9514992542
E40: Aktuelle Div.Rendite > Mittelwert Dividende? | I40: =IF(H6>I39,"Ja","Nein") -> Ja | K40: EBIT-Marge (EBIT margin) | O40: =O33/O31 -> 0.217877095

Sheet MMM
B2: Analyse - Einzelunternehmen | Q2: Datum: 17.06.2015
G3: Aktuelle Daten:
B4: 3M | G4: Kurs: | H4: 139
G5: KGV: | H5: 19
G6: Div.Rendite: | H6: 0.0239
G7: Währung: | H7: USD
B9: 10-Jahres-Übersicht | M9: akt. Jahr
B10: Jahr | C10: =D10-1 -> 2004 | D10: 2005 | E10: 2006 | F10: =G10-1 -> 2007 | G10: 2008 | H10: =I10-1 -> 2009 | I10: 2010 | J10: 2011 | K10: 2012 | L10: 2013 | M10: 2014
B11: Umsatz in Mrd. | C11: 20.01 | D11: 21.17 | E11: 22.92 | F11: 24.46 | G11: 25.27 | H11: 23.12 | I11: 26.66 | J11: 29.61 | K11: 29.9 | L11: 30.87 | M11: 31.82
B12: Umsatz erhöht? (1=ja) | C12: 0 | D12: =IF(D11>C11, 1, 0) -> 1 | E12: =IF(E11>D11, 1, 0) -> 1 | F12: 1 | G12: 1 | H12: 0 | I12: 1 | J12: 1 | K12: 1 | L12: 1 | M12: 1
B13: Umsatzwachstum | D13: =D11/C11-1 -> 0.05797101449 | E13: =E11/D11-1 -> 0.08266414738 | F13: 0.06719022688 | G13: 0.03311529027 | H13: -0.08508112386 | I13: 0.1531141869 | J13: 0.1106526632 | K13: 0.009793988517 | L13: 0.03244147157 | M13: 0.03077421445
B14: Ergebnis pro Aktie (EPS) | C14: 3.83 | D14: 4.23 | E14: 5.15 | F14: 5.7 | G14: 4.95 | H14: 4.56 | I14: 5.72 | J14: 6.05 | K14: 6.4 | L14: 6.83 | M14: 7.63
B15: EPS erhöht? (1=ja) | C15: 0 | D15: =IF(D14>C14, 1, 0) -> 1 | E15: 1 | F15: 1 | G15: 0 | H15: 0 | I15: 1 | J15: 1 | K15: 1 | L15: 1 | M15: 1
B16: EPS-Wachstum | D16: =D14/C14-1 -> 0.1044386423 | E16: =E14/D14-1 -> 0.2174940898 | F16: 0.1067961165 | G16: -0.1315789474 | H16: -0.07878787879 | I16: 0.2543859649 | J16: 0.05769230769 | K16: 0.05785123967 | L16: 0.0671875 | M16: 0.1171303075
B17: Dividende pro Aktie | C17: 1.44 | D17: 1.68 | E17: 1.84 | F17: 1.92 | G17: 2 | H17: 2.04 | I17: 2.1 | J17: 2.2 | K17: 2.36 | L17: 2.54 | M17: 3.42
B18: Dividende erhöht? (1=ja) | C18: 0 | D18: =IF(D17>C17, 1, 0) -> 1 | E18: =IF(E17>D17, 1, 0) -> 1 | F18: 1 | G18: 1 | H18: 1 | I18: 1 | J18: 1 | K18: 1 | L18: 1 | M18: 1
B19: Div.-Wachstum | D19: =D17/C17-1 -> 0.1666666667 | E19: =E17/D17-1 -> 0.09523809524 | F19: 0.04347826087 | G19: 0.04166666667 | H19: 0.02 | I19: 0.02941176471 | J19: 0.04761904762 | K19: 0.07272727273 | L19: 0.07627118644 | M19: 0.3464566929
B20: Auszahlungsquote | C20: =C17/C14 -> 0.3759791123 | D20: 0.3971631206 | E20: 0.3572815534 | F20: 0.3368421053 | G20: 0.404040404 | H20: 0.4473684211 | I20: 0.3671328671 | J20: 0.3636363636 | K20: 0.36875 | L20: 0.3718887262 | M20: 0.4482306684
B21: Kurs-Gewinn-Verhältnis (Jahresschlusskurs) | C21: 21.23 | D21: 18.28 | E21: 14.86 | F21: 14.6 | G21: 11.53 | H21: 18.4 | I21: 15.04 | J21: 13.26 | K21: 14.36 | L21: 19.97
B22: Dividenden-Rendite (Jahresschlusskurs) | C22: 0.0175 | D22: 0.0217 | E22: 0.0236 | F22: 0.0228 | G22: 0.0348 | H22: 0.0247 | I22: 0.0243 | J22: 0.0269 | K22: 0.0254 | L22: 0.0181
B24: Wachstumraten | E24: Qualität (Robustheit) | K24: Finanzkennzahlen | Q24: Bewertung
C25: Ergebnis | I25: Ergebnis | O25: Ergebnis | T25: Ergebnis
B26: Umsatz-Wachstum 5J > 10J | C26: =IF(C27>C28,"Ja","Nein") -> Ja | E26: Anzahl Verlustjahre (bei EPS) | I26: =COUNTIF(D14:M14,"<0")*-1 -> 0 | K26: Eigenkapital (Shareholder Equity) | O26: 13142 | Q26: 200 Tage Linie | T26: 140.48
B27: Umsatz-Wachstum 5J p.a. | C27: =AVERAGE(I13:M13) -> 0.06735530491 | E27: Anzahl Jahre mit steigendem Umsatz | I27: =SUM(D12:M12) -> 9 | K27: Current Assets | O27: 11765 | Q27: Differenz Kurz 200 Tage | T27: =H4/T26-1 -> -0.01053530752
B28: Umsatz-Wachstum 10J p.a. | C28: =AVERAGE(D13:M13) -> 0.04926360797 | E28: Anzahl Jahre mit steigendem EPS | I28: =SUM(C15:L15) -> 7 | K28: Current Liabilities | O28: 5998
B29: EPS-Wachstum 5J > 10J | C29: =IF(C30>C31,"Ja","Nein") -> Ja | E29: Anzahl Jahre mit steigender Dividende | I29: =SUM(D18:M18) -> 10 | K29: Fremdkapital (Debt) | O29: 18127
B30: EPS-Wachstum 5J p.a. | C30: =AVERAGE(I16:M16) -> 0.1108494639 | E30: Qualität in % (maximal 30 Punkte) | I30: =SUM(I26:I29)/30 -> 0.8666666667 | K30: Gesamtkapital (Total Assets) | O30: 31269
B31: EPS-Wachstum 10J p.a. | C31: =AVERAGE(D16:M16) -> 0.07726093422 | K31: Umsatz (Revenue) | O31: 31821
B32: Dividenden-Wachstum 5J > 10J | C32: =IF(C33>C34,"Ja","Nein") -> Ja | E32: KGV | K32: Gewinn (Net income) | O32: 4956
B33: Dividenden-Wachstum 5J p.a. | C33: =AVERAGE(I19:M19) -> 0.1144971929 | I33: Ergebnis | K33: EBIT (Operating income) | O33: 7135
B34: Dividenden-Wachstum 10J p.a. | C34: =AVERAGE(D19:M19) -> 0.09395356538 | E34: KGV-Durchschnitt 10J | I34: =AVERAGE(D21:M21) -> 15.58888889 | K34: Eigenkapitalquote (equity ratio) | O34: =O26/O30 -> 0.4202884646
B35: Wachstumrate 10J p.a. | C35: =AVERAGE(C34,C31,C28) -> 0.07349270253 | E35: Aktuelles KGV < KGV Mittelwert? | I35: =IF(H5<I34,"Ja,","Nein") -> Nein | K35: Eigenkapitalrentabilität (Return on Equity) | O35: =O32/O26 -> 0.3771115508
B36: Wachstumsrate 5J p.a. | C36: =AVERAGE(C33,C30,C27) -> 0.09756732058 | K36: Gesamtkapitalrentabilität (Return on Assets) | O36: =O32/O30 -> 0.1584956347
E37: Dividendenrendite | K37: Current-Valuation | O37: =IF(O27>O28,"JA","NEIN") -> JA
I38: Ergebnis | K38: NCAV | O38: =IF(O27>O29,"JA","NEIN") -> NEIN
E39: 10-Jahres-Durchschnittsdividendenrendite | I39: =AVERAGE(D22:M22) -> 0.0247 | K39: Verschuldungsgrad (Debt-to-equity) | O39: =O29/O26 -> 1.379318216
E40: Aktuelle Div.Rendite > Mittelwert Dividende? | I40: =IF(H6>I39,"Ja","Nein") -> Nein | K40: EBIT-Marge (EBIT margin) | O40: =O33/O31 -> 0.2242229974

Sheet MO
B2: Analyse - Einzelunternehmen | Q2: Datum: 07.06.2015
G3: Aktuelle Daten:
B4: Altria | G4: Kurs: | H4: 43.405
G5: KGV: | H5: 17.25
G6: Div.Rendite: | H6: 0.0448
G7: Währung: | H7: Währung
B9: 10-Jahres-Übersicht | M9: akt. Jahr
B10: Jahr | C10: =D10-1 -> 2004 | D10: 2005 | E10: 2006 | F10: =G10-1 -> 2007 | G10: 2008 | H10: =I10-1 -> 2009 | I10: 2010 | J10: 2011 | K10: 2012 | L10: 2013 | M10: 2014
B11: Umsatz in Mrd. | C11: 89.61 | D11: 97.85 | E11: 101.41 | F11: 73.8 | G11: 19.36 | H11: 23.56 | I11: 24.36 | J11: 23.8 | K11: 24.62 | L11: 24.47 | M11: 24.52
B12: Umsatz erhöht? (1=ja) | C12: 0 | D12: =IF(D11>C11, 1, 0) -> 1 | E12: =IF(E11>D11, 1, 0) -> 1 | F12: 0 | G12: 0 | H12: 1 | I12: 1 | J12: 0 | K12: 1 | L12: 0 | M12: 1
B13: Umsatzwachstum | D13: =D11/C11-1 -> 0.09195402299 | E13: =E11/D11-1 -> 0.03638221768 | F13: -0.2722611182 | G13: -0.7376693767 | H13: 0.2169421488 | I13: 0.03395585739 | J13: -0.02298850575 | K13: 0.03445378151 | L13: -0.006092607636 | M13: 0.002043318349
B14: Ergebnis pro Aktie (EPS) | C14: 4.6 | D14: 5.04 | E14: 5.76 | F14: 4.66 | G14: 2.38 | H14: 1.55 | I14: 1.87 | J14: 1.64 | K14: 2.06 | L14: 2.26 | M14: 2.56
B15: EPS erhöht? (1=ja) | C15: 0 | D15: =IF(D14>C14, 1, 0) -> 1 | E15: 1 | F15: 0 | G15: 0 | H15: 0 | I15: 1 | J15: 0 | K15: 1 | L15: 1 | M15: 1
B16: EPS-Wachstum | D16: =D14/C14-1 -> 0.09565217391 | E16: =E14/D14-1 -> 0.1428571429 | F16: -0.1909722222 | G16: -0.4892703863 | H16: -0.3487394958 | I16: 0.2064516129 | J16: -0.1229946524 | K16: 0.256097561 | L16: 0.09708737864 | M16: 0.1327433628
B17: Dividende pro Aktie | C17: 2.82 | D17: 3.06 | E17: 3.32 | F17: 3.05 | G17: 1.68 | H17: 1.32 | I17: 1.46 | J17: 1.58 | K17: 1.7 | L17: 1.84 | M17: 1.7
B18: Dividende erhöht? (1=ja) | C18: 0 | D18: =IF(D17>C17, 1, 0) -> 1 | E18: =IF(E17>D17, 1, 0) -> 1 | F18: 0 | G18: 0 | H18: 0 | I18: 1 | J18: 1 | K18: 1 | L18: 1 | M18: 0
B19: Div.-Wachstum | D19: =D17/C17-1 -> 0.08510638298 | E19: =E17/D17-1 -> 0.08496732026 | F19: -0.0813253012 | G19: -0.4491803279 | H19: -0.2142857143 | I19: 0.1060606061 | J19: 0.08219178082 | K19: 0.07594936709 | L19: 0.08235294118 | M19: -0.07608695652
B20: Auszahlungsquote | C20: =C17/C14 -> 0.6130434783 | D20: 0.6071428571 | E20: 0.5763888889 | F20: 0.6545064378 | G20: 0.7058823529 | H20: 0.8516129032 | I20: 0.7807486631 | J20: 0.9634146341 | K20: 0.8252427184 | L20: 0.814159292 | M20: 0.6640625
B21: Kurs-Gewinn-Verhältnis (Jahresschlusskurs) | C21: 13.36 | D21: 14.92 | E21: 14.97 | F21: 16.28 | G21: 6.3 | H21: 12.74 | I21: 13.17 | J21: 17.89 | K21: 15.12 | L21: 16.87
B22: Dividenden-Rendite (Jahresschlusskurs) | C22: 0.0462 | D22: 0.041 | E22: 0.0387 | F22: 0.0404 | G22: 0.1116 | H22: 0.0672 | I22: 0.0593 | J22: 0.0533 | K22: 0.0541 | L22: 0.0479
B24: Wachstumraten | E24: Qualität (Robustheit) | K24: Finanzkennzahlen
C25: Ergebnis | I25: Ergebnis | O25: Ergebnis
B26: Umsatz-Wachstum 5J > 10J | C26: =IF(C27>C28,"Ja","Nein") -> Ja | E26: Anzahl Verlustjahre (bei EPS) | I26: =COUNTIF(D14:M14,"<0")*-1 -> 0 | K26: Eigenkapital (Shareholder Equity) | O26: 3010
B27: Umsatz-Wachstum 5J p.a. | C27: =AVERAGE(I13:M13) -> 0.008274368773 | E27: Anzahl Jahre mit steigendem Umsatz | I27: =SUM(D12:M12) -> 6 | K27: Current Assets | O27: 6878
B28: Umsatz-Wachstum 10J p.a. | C28: =AVERAGE(D13:M13) -> -0.06232802616 | E28: Anzahl Jahre mit steigendem EPS | I28: =SUM(C15:L15) -> 5 | K28: Current Liabilities | O28: 7673
B29: EPS-Wachstum 5J > 10J | C29: =IF(C30>C31,"Ja","Nein") -> Ja | E29: Anzahl Jahre mit steigender Dividende | I29: =SUM(D18:M18) -> 6 | K29: Fremdkapital (Debt) | O29: 31430
B30: EPS-Wachstum 5J p.a. | C30: =AVERAGE(I16:M16) -> 0.1138770526 | E30: Qualität in % (maximal 30 Punkte) | I30: =SUM(I26:I29)/30 -> 0.5666666667 | K30: Gesamtkapital (Total Assets) | O30: 34475
B31: EPS-Wachstum 10J p.a. | C31: =AVERAGE(D16:M16) -> -0.02210875246 | K31: Umsatz (Revenue) | O31: 24522
B32: Dividenden-Wachstum 5J > 10J | C32: =IF(C33>C34,"Ja","Nein") -> Ja | E32: KGV | K32: Gewinn (Net income) | O32: 5070
B33: Dividenden-Wachstum 5J p.a. | C33: =AVERAGE(I19:M19) -> 0.05409354773 | I33: Ergebnis | K33: EBIT (Operating income) | O33: 7620
B34: Dividenden-Wachstum 10J p.a. | C34: =AVERAGE(D19:M19) -> -0.03042499015 | E34: KGV-Durchschnitt 10J | I34: =AVERAGE(C21:L21) -> 14.162 | K34: Eigenkapitalquote (equity ratio) | O34: =O26/O30 -> 0.08730964467
B35: Wachstumrate 10J p.a. | C35: =AVERAGE(C34,C31,C28) -> -0.03828725626 | E35: Aktuelles KGV < KGV Mittelwert? | I35: =IF(H5<I34,"Ja,","Nein") -> Nein | K35: Eigenkapitalrentabilität (Return on Equity) | O35: =O32/O26 -> 1.684385382
B36: Wachstumsrate 5J p.a. | C36: =AVERAGE(C33,C30,C27) -> 0.05874832303 | K36: Gesamtkapitalrentabilität (Return on Assets) | O36: =O32/O30 -> 0.1470630892
E37: Dividendenrendite | K37: Current-Valuation | O37: =IF(O27>O28,"JA","NEIN") -> NEIN
I38: Ergebnis | K38: NCAV | O38: =IF(O27>O29,"JA","NEIN") -> NEIN
E39: 10-Jahres-Durchschnittsdividendenrendite | I39: =AVERAGE(C22:L22) -> 0.05597 | K39: Verschuldungsgrad (Debt-to-equity) | O39: =O29/O26 -> 10.44186047
E40: Aktuelle Div.Rendite > Mittelwert Dividende? | I40: =IF(H6>I39,"Ja","Nein") -> Nein | K40: EBIT-Marge (EBIT margin) | O40: =O33/O31 -> 0.3107413751

Sheet MSFT
B2: Analyse - Einzelunternehmen | Q2: Datum:
G3: Aktuelle Daten:
B4: Microsoft | G4: Kurs:
G5: KGV:
G6: Div.Rendite:
G7: Währung: | H7: Währung
B9: 10-Jahres-Übersicht | M9: akt. Jahr
B10: Jahr | C10: =D10-1 -> 2004 | D10: 2005 | E10: 2006 | F10: =G10-1 -> 2007 | G10: 2008 | H10: =I10-1 -> 2009 | I10: 2010 | J10: 2011 | K10: 2012 | L10: 2013 | M10: 2014
B11: Umsatz in Mrd.
B12: Umsatz erhöht? (1=ja) | C12: 0 | D12: =IF(D11>C11, 1, 0) -> 0 | E12: =IF(E11>D11, 1, 0) -> 0 | F12: 0 | G12: 0 | H12: 0 | I12: 0 | J12: 0 | K12: 0 | L12: 0 | M12: 0
B13: Umsatzwachstum | D13: =D11/C11-1 ->  | E13: =E11/D11-1 -> 
B14: Ergebnis pro Aktie (EPS)
B15: EPS erhöht? (1=ja) | C15: 0 | D15: =IF(D14>C14, 1, 0) -> 0 | E15: 0 | F15: 0 | G15: 0 | H15: 0 | I15: 0 | J15: 0 | K15: 0 | L15: 0 | M15: 0
B16: EPS-Wachstum | D16: =D14/C14-1 ->  | E16: =E14/D14-1 -> 
B17: Dividende pro Aktie
B18: Dividende erhöht? (1=ja) | C18: 0 | D18: =IF(D17>C17, 1, 0) -> 0 | E18: =IF(E17>D17, 1, 0) -> 0 | F18: 0 | G18: 0 | H18: 0 | I18: 0 | J18: 0 | K18: 0 | L18: 0 | M18: 0
B19: Div.-Wachstum | D19: =D17/C17-1 ->  | E19: =E17/D17-1 -> 
B20: Auszahlungsquote | C20: =C17/C14 -> 
B21: Kurs-Gewinn-Verhältnis (Jahresschlusskurs)
B22: Dividenden-Rendite (Jahresschlusskurs)
B24: Wachstumraten | E24: Qualität (Robustheit) | K24: Finanzkennzahlen
C25: Ergebnis | I25: Ergebnis | O25: Ergebnis
B26: Umsatz-Wachstum 5J > 10J | C26: =IF(C27>C28,"Ja","Nein") ->  | E26: Anzahl Verlustjahre (bei EPS) | I26: =COUNTIF(D14:M14,"<0")*-1 -> 0 | K26: Eigenkapital (Shareholder Equity)
B27: Umsatz-Wachstum 5J p.a. | C27: =AVERAGE(I13:M13) ->  | E27: Anzahl Jahre mit steigendem Umsatz | I27: =SUM(D12:M12) -> 0 | K27: Current Assets
B28: Umsatz-Wachstum 10J p.a. | C28: =AVERAGE(D13:M13) ->  | E28: Anzahl Jahre mit steigendem EPS | I28: =SUM(C15:L15) -> 0 | K28: Current Liabilities
B29: EPS-Wachstum 5J > 10J | C29: =IF(C30>C31,"Ja","Nein") ->  | E29: Anzahl Jahre mit steigender Dividende | I29: =SUM(D18:M18) -> 0 | K29: Fremdkapital (Debt)
B30: EPS-Wachstum 5J p.a. | C30: =AVERAGE(I16:M16) ->  | E30: Qualität in % (maximal 30 Punkte) | I30: =SUM(I26:I29)/30 -> 0 | K30: Gesamtkapital (Total Assets)
B31: EPS-Wachstum 10J p.a. | C31: =AVERAGE(D16:M16) ->  | K31: Umsatz (Revenue)
B32: Dividenden-Wachstum 5J > 10J | C32: =IF(C33>C34,"Ja","Nein") ->  | E32: KGV | K32: Gewinn (Net income)
B33: Dividenden-Wachstum 5J p.a. | C33: =AVERAGE(I19:M19) ->  | I33: Ergebnis | K33: EBIT (Operating income)
B34: Dividenden-Wachstum 10J p.a. | C34: =AVERAGE(D19:M19) ->  | E34: KGV-Durchschnitt 10J | I34: =AVERAGE(D21:M21) ->  | K34: Eigenkapitalquote (equity ratio) | O34: =O26/O30 -> 
B35: Wachstumrate 10J p.a. | C35: =AVERAGE(C34,C31,C28) ->  | E35: Aktuelles KGV < KGV Mittelwert? | I35: =IF(H5<I34,"Ja,","Nein") ->  | K35: Eigenkapitalrentabilität (Return on Equity) | O35: =O32/O26 -> 
B36: Wachstumsrate 5J p.a. | C36: =AVERAGE(C33,C30,C27) ->  | K36: Gesamtkapitalrentabilität (Return on Assets) | O36: =O32/O30 -> 
E37: Dividendenrendite | K37: Current-Valuation | O37: =IF(O27>O28,"JA","NEIN") -> NEIN
I38: Ergebnis | K38: NCAV | O38: =IF(O27>O29,"JA","NEIN") -> NEIN
E39: 10-Jahres-Durchschnittsdividendenrendite | I39: =AVERAGE(D22:M22) ->  | K39: Verschuldungsgrad (Debt-to-equity) | O39: =O29/O26 -> 
E40: Aktuelle Div.Rendite > Mittelwert Dividende? | I40: =IF(H6>I39,"Ja","Nein") ->  | K40: EBIT-Marge (EBIT margin) | O40: =O33/O31 -> 

Sheet NEST
B2: Analyse - Einzelunternehmen | Q2: Datum: 09.06.2015
G3: Aktuelle Daten:
B4: Nestle | G4: Kurs: | H4: 66.145
G5: KGV: | H5: 18.99
G6: Div.Rendite: | H6: 0.0337
G7: Währung: | H7: SFR
B9: 10-Jahres-Übersicht | M9: akt. Jahr
B10: Jahr | C10: =D10-1 -> 2004 | D10: 2005 | E10: 2006 | F10: =G10-1 -> 2007 | G10: 2008 | H10: =I10-1 -> 2009 | I10: 2010 | J10: 2011 | K10: 2012 | L10: 2013 | M10: 2014
B11: Umsatz in Mrd. | C11: 86.77 | D11: 91.08 | E11: 98.76 | F11: 107.55 | G11: 109.91 | H11: 107.62 | I11: 109.72 | J11: 83.64 | K11: 92.19 | L11: 92.16 | M11: 91.61
B12: Umsatz erhöht? (1=ja) | C12: 0 | D12: =IF(D11>C11, 1, 0) -> 1 | E12: =IF(E11>D11, 1, 0) -> 1 | F12: 1 | G12: 1 | H12: 0 | I12: 1 | J12: 0 | K12: 1 | L12: 0 | M12: 0
B13: Umsatzwachstum | D13: =D11/C11-1 -> 0.04967154547 | E13: =E11/D11-1 -> 0.08432147563 | F13: 0.0890036452 | G13: 0.02194328219 | H13: -0.02083522882 | I13: 0.01951310165 | J13: -0.2376959533 | K13: 0.1022238164 | L13: -0.000325414904 | M13: -0.005967881944
B14: Ergebnis pro Aktie (EPS) | C14: 1.73 | D14: 2.06 | E14: 2.37 | F14: 2.78 | G14: 4.87 | H14: 2.92 | I14: 10.16 | J14: 2.97 | K14: 3.33 | L14: 3.14 | M14: 4.54
B15: EPS erhöht? (1=ja) | C15: 0 | D15: =IF(D14>C14, 1, 0) -> 1 | E15: 1 | F15: 1 | G15: 1 | H15: 0 | I15: 1 | J15: 0 | K15: 1 | L15: 0 | M15: 1
B16: EPS-Wachstum | D16: =D14/C14-1 -> 0.1907514451 | E16: =E14/D14-1 -> 0.1504854369 | F16: 0.1729957806 | G16: 0.7517985612 | H16: -0.4004106776 | I16: 2.479452055 | J16: -0.7076771654 | K16: 0.1212121212 | L16: -0.05705705706 | M16: 0.4458598726
B17: Dividende pro Aktie | C17: 0.8 | D17: 0.9 | E17: 1.04 | F17: 1.22 | G17: 1.4 | H17: 1.6 | I17: 1.85 | J17: 1.95 | K17: 2.05 | L17: 2.15 | M17: 2.2
B18: Dividende erhöht? (1=ja) | C18: 0 | D18: =IF(D17>C17, 1, 0) -> 1 | E18: =IF(E17>D17, 1, 0) -> 1 | F18: 1 | G18: 1 | H18: 1 | I18: 1 | J18: 1 | K18: 1 | L18: 1 | M18: 1
B19: Div.-Wachstum | D19: =D17/C17-1 -> 0.125 | E19: =E17/D17-1 -> 0.1555555556 | F19: 0.1730769231 | G19: 0.1475409836 | H19: 0.1428571429 | I19: 0.15625 | J19: 0.05405405405 | K19: 0.05128205128 | L19: 0.0487804878 | M19: 0.02325581395
B20: Auszahlungsquote | C20: =C17/C14 -> 0.4624277457 | D20: 0.4368932039 | E20: 0.4388185654 | F20: 0.4388489209 | G20: 0.2874743326 | H20: 0.5479452055 | I20: 0.1820866142 | J20: 0.6565656566 | K20: 0.6156156156 | L20: 0.6847133758 | M20: 0.4845814978
B21: Kurs-Gewinn-Verhältnis (Jahresschlusskurs) | C21: 17.21 | D21: 19.83 | E21: 18.87 | F21: 19.2 | G21: 8.83 | H21: 17.57 | I21: 5.54 | J21: 18.78 | K21: 18.16 | L21: 21.01
B22: Dividenden-Rendite (Jahresschlusskurs) | C22: 0.0269 | D22: 0.0229 | E22: 0.024 | F22: 0.0235 | G22: 0.0337 | H22: 0.0319 | I22: 0.0338 | J22: 0.0361 | K22: 0.0343 | L22: 0.033
B24: Wachstumraten | E24: Qualität (Robustheit) | K24: Finanzkennzahlen | Q24: Bewertung
C25: Ergebnis | I25: Ergebnis | O25: Ergebnis | T25: Ergebnis
B26: Umsatz-Wachstum 5J > 10J | C26: =IF(C27>C28,"Ja","Nein") -> Nein | E26: Anzahl Verlustjahre (bei EPS) | I26: =COUNTIF(D14:M14,"<0")*-1 -> 0 | K26: Eigenkapital (Shareholder Equity) | O26: 70130 | Q26: 200 Tage Linie | T26: 68.49
B27: Umsatz-Wachstum 5J p.a. | C27: =AVERAGE(I13:M13) -> -0.02445046643 | E27: Anzahl Jahre mit steigendem Umsatz | I27: =SUM(D12:M12) -> 6 | K27: Current Assets | O27: 33961 | Q27: Differenz Kurz 200 Tage | T27: =H4/T26-1 -> -0.03423857497
B28: Umsatz-Wachstum 10J p.a. | C28: =AVERAGE(D13:M13) -> 0.01018523875 | E28: Anzahl Jahre mit steigendem EPS | I28: =SUM(C15:L15) -> 6 | K28: Current Liabilities | O28: 32895
B29: EPS-Wachstum 5J > 10J | C29: =IF(C30>C31,"Ja","Nein") -> Ja | E29: Anzahl Jahre mit steigender Dividende | I29: =SUM(D18:M18) -> 10 | K29: Fremdkapital (Debt) | O29: 61566
B30: EPS-Wachstum 5J p.a. | C30: =AVERAGE(I16:M16) -> 0.4563579652 | E30: Qualität in % (maximal 30 Punkte) | I30: =SUM(I26:I29)/30 -> 0.7333333333 | K30: Gesamtkapital (Total Assets) | O30: 133450
B31: EPS-Wachstum 10J p.a. | C31: =AVERAGE(D16:M16) -> 0.3147410372 | K31: Umsatz (Revenue) | O31: 91612
B32: Dividenden-Wachstum 5J > 10J | C32: =IF(C33>C34,"Ja","Nein") -> Nein | E32: KGV | K32: Gewinn (Net income) | O32: 6901
B33: Dividenden-Wachstum 5J p.a. | C33: =AVERAGE(I19:M19) -> 0.06672448142 | I33: Ergebnis | K33: EBIT (Operating income) | O33: 10905
B34: Dividenden-Wachstum 10J p.a. | C34: =AVERAGE(D19:M19) -> 0.1077653012 | E34: KGV-Durchschnitt 10J | I34: =AVERAGE(C21:L21) -> 16.5 | K34: Eigenkapitalquote (equity ratio) | O34: =O26/O30 -> 0.5255151742
B35: Wachstumrate 10J p.a. | C35: =AVERAGE(C34,C31,C28) -> 0.1442305257 | E35: Aktuelles KGV < KGV Mittelwert? | I35: =IF(H5<I34,"Ja,","Nein") -> Nein | K35: Eigenkapitalrentabilität (Return on Equity) | O35: =O32/O26 -> 0.09840296592
B36: Wachstumsrate 5J p.a. | C36: =AVERAGE(C33,C30,C27) -> 0.1662106601 | K36: Gesamtkapitalrentabilität (Return on Assets) | O36: =O32/O30 -> 0.05171225178
E37: Dividendenrendite | K37: Current-Valuation | O37: =IF(O27>O28,"JA","NEIN") -> JA
I38: Ergebnis | K38: NCAV | O38: =IF(O27>O29,"JA","NEIN") -> NEIN
E39: 10-Jahres-Durchschnittsdividendenrendite | I39: =AVERAGE(C22:L22) -> 0.03001 | K39: Verschuldungsgrad (Debt-to-equity) | O39: =O29/O26 -> 0.8778839298
E40: Aktuelle Div.Rendite > Mittelwert Dividende? | I40: =IF(H6>I39,"Ja","Nein") -> Ja | K40: EBIT-Marge (EBIT margin) | O40: =O33/O31 -> 0.1190346243

Sheet NND
B2: Analyse - Einzelunternehmen | Q2: Datum: 28.06.2015
G3: Aktuelle Daten:
B4: Novo Nordisk | G4: Kurs: | H4: 50.113
G5: KGV: | H5: 32.07
G6: Div.Rendite: | H6: 0.0149
G7: Währung: | H7: DKK
B9: 10-Jahres-Übersicht | M9: akt. Jahr
B10: Jahr | C10: =D10-1 -> 2004 | D10: 2005 | E10: 2006 | F10: =G10-1 -> 2007 | G10: 2008 | H10: =I10-1 -> 2009 | I10: 2010 | J10: 2011 | K10: 2012 | L10: 2013 | M10: 2014
B11: Umsatz in Mrd. | F11: 41.83 | G11: 45.55 | H11: 51.08 | I11: 60.78 | J11: 66.35 | K11: 78.03 | L11: 83.57 | M11: 88.81
B12: Umsatz erhöht? (1=ja) | C12: 0 | D12: =IF(D11>C11, 1, 0) -> 0 | E12: =IF(E11>D11, 1, 0) -> 0 | F12: 1 | G12: 1 | H12: 1 | I12: 1 | J12: 1 | K12: 1 | L12: 1 | M12: 1
B13: Umsatzwachstum | D13: =D11/C11-1 ->  | E13: =E11/D11-1 ->  | G13: 0.08893138896 | H13: 0.1214050494 | I13: 0.1898981989 | J13: 0.0916419875 | K13: 0.1760361718 | L13: 0.07099833397 | M13: 0.06270192653
B14: Ergebnis pro Aktie (EPS) | F14: 2.7 | G14: 3.13 | H14: 3.59 | I14: 4.96 | J14: 6.05 | K14: 7.82 | L14: 9.4 | M14: 10.1
B15: EPS erhöht? (1=ja) | C15: 0 | D15: =IF(D14>C14, 1, 0) -> 0 | E15: 0 | F15: 1 | G15: 1 | H15: 1 | I15: 1 | J15: 1 | K15: 1 | L15: 1 | M15: 1
B16: EPS-Wachstum | D16: =D14/C14-1 ->  | E16: =E14/D14-1 ->  | G16: 0.1592592593 | H16: 0.1469648562 | I16: 0.3816155989 | J16: 0.2197580645 | K16: 0.2925619835 | L16: 0.2020460358 | M16: 0.07446808511
B17: Dividende pro Aktie | F17: 0 | G17: 1.2 | H17: 1.5 | I17: 2 | J17: 2.8 | K17: 3.6 | L17: 4.5 | M17: 5
B18: Dividende erhöht? (1=ja) | C18: 0 | D18: =IF(D17>C17, 1, 0) -> 0 | E18: =IF(E17>D17, 1, 0) -> 0 | F18: 0 | G18: 1 | H18: 1 | I18: 1 | J18: 1 | K18: 1 | L18: 1 | M18: 1
B19: Div.-Wachstum | D19: =D17/C17-1 ->  | E19: =E17/D17-1 ->  | H19: 0.25 | I19: 0.3333333333 | J19: 0.4 | K19: 0.2857142857 | L19: 0.25 | M19: 0.1111111111
B20: Auszahlungsquote | C20: =C17/C14 ->  | F20: 0 | G20: 0.3833865815 | H20: 0.4178272981 | I20: 0.4032258065 | J20: 0.4628099174 | K20: 0.4603580563 | L20: 0.4787234043 | M20: 0.495049505
B21: Kurs-Gewinn-Verhältnis (Jahresschlusskurs) | H21: 18.13 | I21: 24.98 | J21: 21.46 | K21: 23.95 | L21: 21.71 | M21: 26.05
B22: Dividenden-Rendite (Jahresschlusskurs) | H22: 0.0226 | I22: 0.0159 | J22: 0.0212 | K22: 0.0196 | L22: 0.0226 | M22: 0.0192
B24: Wachstumraten | E24: Qualität (Robustheit) | K24: Finanzkennzahlen | Q24: Bewertung
C25: Ergebnis | I25: Ergebnis | O25: Ergebnis | T25: Ergebnis
B26: Umsatz-Wachstum 5J > 10J | C26: =IF(C27>C28,"Ja","Nein") ->  | E26: Anzahl Verlustjahre (bei EPS) | I26: =COUNTIF(D14:M14,"<0")*-1 -> 0 | K26: Eigenkapital (Shareholder Equity) | O26: 40294 | Q26: 200 Tage Linie | T26: 41.55
B27: Umsatz-Wachstum 5J p.a. | C27: =AVERAGE(I13:M13) -> 0.1182553237 | E27: Anzahl Jahre mit steigendem Umsatz | I27: =SUM(D12:M12) -> 8 | K27: Current Assets | O27: 46293 | Q27: Differenz Kurz 200 Tage | T27: =H4/T26-1 -> 0.2060890493
B28: Umsatz-Wachstum 10J p.a. | C28: =AVERAGE(D13:M13) ->  | E28: Anzahl Jahre mit steigendem EPS | I28: =SUM(C15:L15) -> 7 | K28: Current Liabilities | O28: 33689
B29: EPS-Wachstum 5J > 10J | C29: =IF(C30>C31,"Ja","Nein") ->  | E29: Anzahl Jahre mit steigender Dividende | I29: =SUM(D18:M18) -> 7 | K29: Fremdkapital (Debt) | O29: 36768
B30: EPS-Wachstum 5J p.a. | C30: =AVERAGE(I16:M16) -> 0.2340899536 | E30: Qualität in % (maximal 30 Punkte) | I30: =SUM(I26:I29)/30 -> 0.7333333333 | K30: Gesamtkapital (Total Assets) | O30: 77062
B31: EPS-Wachstum 10J p.a. | C31: =AVERAGE(D16:M16) ->  | K31: Umsatz (Revenue) | O31: 88806
B32: Dividenden-Wachstum 5J > 10J | C32: =IF(C33>C34,"Ja","Nein") ->  | E32: KGV | K32: Gewinn (Net income) | O32: 26481
B33: Dividenden-Wachstum 5J p.a. | C33: =AVERAGE(I19:M19) -> 0.276031746 | I33: Ergebnis | K33: EBIT (Operating income) | O33: 34492
B34: Dividenden-Wachstum 10J p.a. | C34: =AVERAGE(D19:M19) ->  | E34: KGV-Durchschnitt 10J | I34: =AVERAGE(D21:M21) -> 22.71333333 | K34: Eigenkapitalquote (equity ratio) | O34: =O26/O30 -> 0.5228776829
B35: Wachstumrate 10J p.a. | C35: =AVERAGE(C34,C31,C28) ->  | E35: Aktuelles KGV < KGV Mittelwert? | I35: =IF(H5<I34,"Ja,","Nein") -> Nein | K35: Eigenkapitalrentabilität (Return on Equity) | O35: =O32/O26 -> 0.6571946195
B36: Wachstumsrate 5J p.a. | C36: =AVERAGE(C33,C30,C27) -> 0.2094590078 | K36: Gesamtkapitalrentabilität (Return on Assets) | O36: =O32/O30 -> 0.3436323999
E37: Dividendenrendite | K37: Current-Valuation | O37: =IF(O27>O28,"JA","NEIN") -> JA
I38: Ergebnis | K38: NCAV | O38: =IF(O27>O29,"JA","NEIN") -> JA
E39: 10-Jahres-Durchschnittsdividendenrendite | I39: =AVERAGE(D22:M22) -> 0.02018333333 | K39: Verschuldungsgrad (Debt-to-equity) | O39: =O29/O26 -> 0.9124931752
E40: Aktuelle Div.Rendite > Mittelwert Dividende? | I40: =IF(H6>I39,"Ja","Nein") -> Nein | K40: EBIT-Marge (EBIT margin) | O40: =O33/O31 -> 0.3883971804

Sheet NOVA
B2: Analyse - Einzelunternehmen | Q2: Datum: 09.06.2015
G3: Aktuelle Daten:
B4: Novartis | G4: Kurs: | H4: 89.331
G5: KGV: | H5: 17.74
G6: Div.Rendite: | H6: 0.0277
G7: Währung: | H7: Währung
B9: 10-Jahres-Übersicht | M9: akt. Jahr
B10: Jahr | C10: =D10-1 -> 2004 | D10: 2005 | E10: 2006 | F10: =G10-1 -> 2007 | G10: 2008 | H10: =I10-1 -> 2009 | I10: 2010 | J10: 2011 | K10: 2012 | L10: 2013 | M10: 2014
B11: Umsatz in Mrd. | C11: 28.25 | D11: 32.21 | E11: 36.03 | F11: 38.07 | G11: 41.46 | H11: 44.27 | I11: 50.62 | J11: 58.57 | K11: 56.67 | L11: 57.92 | M11: 52.42
B12: Umsatz erhöht? (1=ja) | C12: 0 | D12: =IF(D11>C11, 1, 0) -> 1 | E12: =IF(E11>D11, 1, 0) -> 1 | F12: 1 | G12: 1 | H12: 1 | I12: 1 | J12: 1 | K12: 0 | L12: 1 | M12: 0
B13: Umsatzwachstum | D13: =D11/C11-1 -> 0.1401769912 | E13: =E11/D11-1 -> 0.1185967091 | F13: 0.05661948376 | G13: 0.0890464933 | H13: 0.0677761698 | I13: 0.1434379941 | J13: 0.1570525484 | K13: -0.03243981561 | L13: 0.02205752603 | M13: -0.09495856354
B14: Ergebnis pro Aktie (EPS) | C14: 2.28 | D14: 2.63 | E14: 3.06 | F14: 5.15 | G14: 3.62 | H14: 3.7 | I14: 4.28 | J14: 3.83 | K14: 3.93 | L14: 3.76 | M14: 4.39
B15: EPS erhöht? (1=ja) | C15: 0 | D15: =IF(D14>C14, 1, 0) -> 1 | E15: 1 | F15: 1 | G15: 0 | H15: 1 | I15: 1 | J15: 0 | K15: 1 | L15: 0 | M15: 1
B16: EPS-Wachstum | D16: =D14/C14-1 -> 0.1535087719 | E16: =E14/D14-1 -> 0.1634980989 | F16: 0.6830065359 | G16: -0.2970873786 | H16: 0.02209944751 | I16: 0.1567567568 | J16: -0.1051401869 | K16: 0.02610966057 | L16: -0.04325699746 | M16: 0.1675531915
B17: Dividende pro Aktie | C17: 0.92 | D17: 0.88 | E17: 1.11 | F17: 1.42 | G17: 1.89 | H17: 2.02 | I17: 2.34 | J17: 2.42 | K17: 2.47 | L17: 2.77 | M17: 2.63
B18: Dividende erhöht? (1=ja) | C18: 0 | D18: =IF(D17>C17, 1, 0) -> 0 | E18: =IF(E17>D17, 1, 0) -> 1 | F18: 1 | G18: 1 | H18: 1 | I18: 1 | J18: 1 | K18: 1 | L18: 1 | M18: 0
B19: Div.-Wachstum | D19: =D17/C17-1 -> -0.04347826087 | E19: =E17/D17-1 -> 0.2613636364 | F19: 0.2792792793 | G19: 0.3309859155 | H19: 0.06878306878 | I19: 0.1584158416 | J19: 0.03418803419 | K19: 0.02066115702 | L19: 0.1214574899 | M19: -0.05054151625
B20: Auszahlungsquote | C20: =C17/C14 -> 0.4035087719 | D20: 0.3346007605 | E20: 0.362745098 | F20: 0.2757281553 | G20: 0.5220994475 | H20: 0.5459459459 | I20: 0.546728972 | J20: 0.6318537859 | K20: 0.6284987277 | L20: 0.7367021277 | M20: 0.5990888383
B21: Kurs-Gewinn-Verhältnis (Jahresschlusskurs) | C21: 22.91 | D21: 23.48 | E21: 21.9 | F21: 12.59 | G21: 16.1 | H21: 17.09 | I21: 15.73 | J21: 17.3 | K21: 18.02 | L21: 21.25
B22: Dividenden-Rendite (Jahresschlusskurs) | C22: 0.0183 | D22: 0.0167 | E22: 0.0193 | F22: 0.0258 | G22: 0.0379 | H22: 0.0371 | I22: 0.0401 | J22: 0.0422 | K22: 0.0391 | L22: 0.0344
B24: Wachstumraten | E24: Qualität (Robustheit) | K24: Finanzkennzahlen | Q24: Bewertung
C25: Ergebnis | I25: Ergebnis | O25: Ergebnis | T25: Ergebnis
B26: Umsatz-Wachstum 5J > 10J | C26: =IF(C27>C28,"Ja","Nein") -> Nein | E26: Anzahl Verlustjahre (bei EPS) | I26: =COUNTIF(D14:M14,"<0")*-1 -> 0 | K26: Eigenkapital (Shareholder Equity) | O26: 70844 | Q26: 200 Tage Linie | T26: 87.95
B27: Umsatz-Wachstum 5J p.a. | C27: =AVERAGE(I13:M13) -> 0.03902993788 | E27: Anzahl Jahre mit steigendem Umsatz | I27: =SUM(D12:M12) -> 8 | K27: Current Assets | O27: 37561 | Q27: Differenz Kurz 200 Tage | T27: =H4/T26-1 -> 0.01570210347
B28: Umsatz-Wachstum 10J p.a. | C28: =AVERAGE(D13:M13) -> 0.06673655365 | E28: Anzahl Jahre mit steigendem EPS | I28: =SUM(C15:L15) -> 6 | K28: Current Liabilities | O28: 26973
B29: EPS-Wachstum 5J > 10J | C29: =IF(C30>C31,"Ja","Nein") -> Nein | E29: Anzahl Jahre mit steigender Dividende | I29: =SUM(D18:M18) -> 8 | K29: Fremdkapital (Debt) | O29: 54543
B30: EPS-Wachstum 5J p.a. | C30: =AVERAGE(I16:M16) -> 0.04040448489 | E30: Qualität in % (maximal 30 Punkte) | I30: =SUM(I26:I29)/30 -> 0.7333333333 | K30: Gesamtkapital (Total Assets) | O30: 125387
B31: EPS-Wachstum 10J p.a. | C31: =AVERAGE(D16:M16) -> 0.09270479001 | K31: Umsatz (Revenue) | O31: 57996
B32: Dividenden-Wachstum 5J > 10J | C32: =IF(C33>C34,"Ja","Nein") -> Nein | E32: KGV | K32: Gewinn (Net income) | O32: 10280
B33: Dividenden-Wachstum 5J p.a. | C33: =AVERAGE(I19:M19) -> 0.05683620129 | I33: Ergebnis | K33: EBIT (Operating income) | O33: 10736
B34: Dividenden-Wachstum 10J p.a. | C34: =AVERAGE(D19:M19) -> 0.1181114645 | E34: KGV-Durchschnitt 10J | I34: =AVERAGE(C21:L21) -> 18.637 | K34: Eigenkapitalquote (equity ratio) | O34: =O26/O30 -> 0.5650027515
B35: Wachstumrate 10J p.a. | C35: =AVERAGE(C34,C31,C28) -> 0.09251760274 | E35: Aktuelles KGV < KGV Mittelwert? | I35: =IF(H5<I34,"Ja,","Nein") -> Ja, | K35: Eigenkapitalrentabilität (Return on Equity) | O35: =O32/O26 -> 0.1451075603
B36: Wachstumsrate 5J p.a. | C36: =AVERAGE(C33,C30,C27) -> 0.04542354135 | K36: Gesamtkapitalrentabilität (Return on Assets) | O36: =O32/O30 -> 0.08198617082
E37: Dividendenrendite | K37: Current-Valuation | O37: =IF(O27>O28,"JA","NEIN") -> JA
I38: Ergebnis | K38: NCAV | O38: =IF(O27>O29,"JA","NEIN") -> NEIN
E39: 10-Jahres-Durchschnittsdividendenrendite | I39: =AVERAGE(C22:L22) -> 0.03109 | K39: Verschuldungsgrad (Debt-to-equity) | O39: =O29/O26 -> 0.7699028852
E40: Aktuelle Div.Rendite > Mittelwert Dividende? | I40: =IF(H6>I39,"Ja","Nein") -> Nein | K40: EBIT-Marge (EBIT margin) | O40: =O33/O31 -> 0.1851162149

Sheet PEP
B2: Analyse - Einzelunternehmen | Q2: Datum: 19.06.2015
G3: Aktuelle Daten:
B4: Pepsi | G4: Kurs: | H4: 83.783
G5: KGV: | H5: 19.16
G6: Div.Rendite: | H6: 0.0293
G7: Währung: | H7: USD
B9: 10-Jahres-Übersicht | M9: akt. Jahr
B10: Jahr | C10: =D10-1 -> 2004 | D10: 2005 | E10: 2006 | F10: =G10-1 -> 2007 | G10: 2008 | H10: =I10-1 -> 2009 | I10: 2010 | J10: 2011 | K10: 2012 | L10: 2013 | M10: 2014
B11: Umsatz in Mrd. | C11: 29.26 | D11: 32.56 | E11: 35.14 | F11: 39.47 | G11: 43.25 | H11: 43.23 | I11: 57.84 | J11: 66.5 | K11: 65.49 | L11: 66.42 | M11: 66.68
B12: Umsatz erhöht? (1=ja) | C12: 0 | D12: =IF(D11>C11, 1, 0) -> 1 | E12: =IF(E11>D11, 1, 0) -> 1 | F12: 1 | G12: 1 | H12: 0 | I12: 1 | J12: 1 | K12: 0 | L12: 1 | M12: 1
B13: Umsatzwachstum | D13: =D11/C11-1 -> 0.1127819549 | E13: =E11/D11-1 -> 0.07923832924 | F13: 0.1232214001 | G13: 0.09576893843 | H13: -0.0004624277457 | I13: 0.3379597502 | J13: 0.1497233748 | K13: -0.01518796992 | L13: 0.01420064132 | M13: 0.003914483589
B14: Ergebnis pro Aktie (EPS) | C14: 2.47 | D14: 2.39 | E14: 3.42 | F14: 3.48 | G14: 3.26 | H14: 3.81 | I14: 3.97 | J14: 4.08 | K14: 3.96 | L14: 4.37 | M14: 4.31
B15: EPS erhöht? (1=ja) | C15: 0 | D15: =IF(D14>C14, 1, 0) -> 0 | E15: 1 | F15: 1 | G15: 0 | H15: 1 | I15: 1 | J15: 1 | K15: 0 | L15: 1 | M15: 0
B16: EPS-Wachstum | D16: =D14/C14-1 -> -0.03238866397 | E16: =E14/D14-1 -> 0.4309623431 | F16: 0.01754385965 | G16: -0.0632183908 | H16: 0.1687116564 | I16: 0.04199475066 | J16: 0.02770780856 | K16: -0.02941176471 | L16: 0.1035353535 | M16: -0.01372997712
B17: Dividende pro Aktie | C17: 0.85 | D17: 1.01 | E17: 1.16 | F17: 1.43 | G17: 1.65 | H17: 1.78 | I17: 1.89 | J17: 2.02 | K17: 2.13 | L17: 2.24 | M17: 2.53
B18: Dividende erhöht? (1=ja) | C18: 0 | D18: =IF(D17>C17, 1, 0) -> 1 | E18: =IF(E17>D17, 1, 0) -> 1 | F18: 1 | G18: 1 | H18: 1 | I18: 1 | J18: 1 | K18: 1 | L18: 1 | M18: 1
B19: Div.-Wachstum | D19: =D17/C17-1 -> 0.1882352941 | E19: =E17/D17-1 -> 0.1485148515 | F19: 0.2327586207 | G19: 0.1538461538 | H19: 0.07878787879 | I19: 0.06179775281 | J19: 0.06878306878 | K19: 0.05445544554 | L19: 0.05164319249 | M19: 0.1294642857
B20: Auszahlungsquote | C20: =C17/C14 -> 0.3441295547 | D20: 0.4225941423 | E20: 0.3391812865 | F20: 0.4109195402 | G20: 0.5061349693 | H20: 0.467191601 | I20: 0.476070529 | J20: 0.4950980392 | K20: 0.5378787879 | L20: 0.5125858124 | M20: 0.5870069606
B21: Kurs-Gewinn-Verhältnis (Jahresschlusskurs) | C21: 20.81 | D21: 23.99 | E21: 18.16 | F21: 21.53 | G21: 16.54 | H21: 16 | I21: 16.34 | J21: 16.11 | K21: 17.09 | L21: 18.73
B22: Dividenden-Rendite (Jahresschlusskurs) | C22: 0.0163 | D22: 0.0171 | E22: 0.0185 | F22: 0.0188 | G22: 0.0301 | H22: 0.0293 | I22: 0.0289 | J22: 0.0305 | K22: 0.0311 | L22: 0.027
B24: Wachstumraten | E24: Qualität (Robustheit) | K24: Finanzkennzahlen | Q24: Bewertung
C25: Ergebnis | I25: Ergebnis | O25: Ergebnis | T25: Ergebnis
B26: Umsatz-Wachstum 5J > 10J | C26: =IF(C27>C28,"Ja","Nein") -> Ja | E26: Anzahl Verlustjahre (bei EPS) | I26: =COUNTIF(D14:M14,"<0")*-1 -> 0 | K26: Eigenkapital (Shareholder Equity) | O26: 17548 | Q26: 200 Tage Linie | T26: 84.2
B27: Umsatz-Wachstum 5J p.a. | C27: =AVERAGE(I13:M13) -> 0.098122056 | E27: Anzahl Jahre mit steigendem Umsatz | I27: =SUM(D12:M12) -> 8 | K27: Current Assets | O27: 20663 | Q27: Differenz Kurz 200 Tage | T27: =H4/T26-1 -> -0.004952494062
B28: Umsatz-Wachstum 10J p.a. | C28: =AVERAGE(D13:M13) -> 0.09011584749 | E28: Anzahl Jahre mit steigendem EPS | I28: =SUM(C15:L15) -> 6 | K28: Current Liabilities | O28: 18092
B29: EPS-Wachstum 5J > 10J | C29: =IF(C30>C31,"Ja","Nein") -> Nein | E29: Anzahl Jahre mit steigender Dividende | I29: =SUM(D18:M18) -> 10 | K29: Fremdkapital (Debt) | O29: 52961
B30: EPS-Wachstum 5J p.a. | C30: =AVERAGE(I16:M16) -> 0.02601923419 | E30: Qualität in % (maximal 30 Punkte) | I30: =SUM(I26:I29)/30 -> 0.8 | K30: Gesamtkapital (Total Assets) | O30: 70509
B31: EPS-Wachstum 10J p.a. | C31: =AVERAGE(D16:M16) -> 0.06517069753 | K31: Umsatz (Revenue) | O31: 66683
B32: Dividenden-Wachstum 5J > 10J | C32: =IF(C33>C34,"Ja","Nein") -> Nein | E32: KGV | K32: Gewinn (Net income) | O32: 6558
B33: Dividenden-Wachstum 5J p.a. | C33: =AVERAGE(I19:M19) -> 0.07322874907 | I33: Ergebnis | K33: EBIT (Operating income) | O33: 9581
B34: Dividenden-Wachstum 10J p.a. | C34: =AVERAGE(D19:M19) -> 0.1168286544 | E34: KGV-Durchschnitt 10J | I34: =AVERAGE(C21:L21) -> 18.53 | K34: Eigenkapitalquote (equity ratio) | O34: =O26/O30 -> 0.24887603
B35: Wachstumrate 10J p.a. | C35: =AVERAGE(C34,C31,C28) -> 0.09070506648 | E35: Aktuelles KGV < KGV Mittelwert? | I35: =IF(H5<I34,"Ja,","Nein") -> Nein | K35: Eigenkapitalrentabilität (Return on Equity) | O35: =O32/O26 -> 0.3737178026
B36: Wachstumsrate 5J p.a. | C36: =AVERAGE(C33,C30,C27) -> 0.06579001308 | K36: Gesamtkapitalrentabilität (Return on Assets) | O36: =O32/O30 -> 0.09300940305
E37: Dividendenrendite | K37: Current-Valuation | O37: =IF(O27>O28,"JA","NEIN") -> JA
I38: Ergebnis | K38: NCAV | O38: =IF(O27>O29,"JA","NEIN") -> NEIN
E39: 10-Jahres-Durchschnittsdividendenrendite | I39: =AVERAGE(C22:L22) -> 0.02476 | K39: Verschuldungsgrad (Debt-to-equity) | O39: =O29/O26 -> 3.018064737
E40: Aktuelle Div.Rendite > Mittelwert Dividende? | I40: =IF(H6>I39,"Ja","Nein") -> Ja | K40: EBIT-Marge (EBIT margin) | O40: =O33/O31 -> 0.1436797984

Sheet PFE
B2: Analyse - Einzelunternehmen | Q2: Datum:
G3: Aktuelle Daten:
B4: Pfizer | G4: Kurs:
G5: KGV:
G6: Div.Rendite:
G7: Währung: | H7: Währung
B9: 10-Jahres-Übersicht | M9: akt. Jahr
B10: Jahr | C10: =D10-1 -> 2004 | D10: 2005 | E10: 2006 | F10: =G10-1 -> 2007 | G10: 2008 | H10: =I10-1 -> 2009 | I10: 2010 | J10: 2011 | K10: 2012 | L10: 2013 | M10: 2014
B11: Umsatz in Mrd.
B12: Umsatz erhöht? (1=ja) | C12: 0 | D12: =IF(D11>C11, 1, 0) -> 0 | E12: =IF(E11>D11, 1, 0) -> 0 | F12: 0 | G12: 0 | H12: 0 | I12: 0 | J12: 0 | K12: 0 | L12: 0 | M12: 0
B13: Umsatzwachstum | D13: =D11/C11-1 ->  | E13: =E11/D11-1 -> 
B14: Ergebnis pro Aktie (EPS)
B15: EPS erhöht? (1=ja) | C15: 0 | D15: =IF(D14>C14, 1, 0) -> 0 | E15: 0 | F15: 0 | G15: 0 | H15: 0 | I15: 0 | J15: 0 | K15: 0 | L15: 0 | M15: 0
B16: EPS-Wachstum | D16: =D14/C14-1 ->  | E16: =E14/D14-1 -> 
B17: Dividende pro Aktie
B18: Dividende erhöht? (1=ja) | C18: 0 | D18: =IF(D17>C17, 1, 0) -> 0 | E18: =IF(E17>D17, 1, 0) -> 0 | F18: 0 | G18: 0 | H18: 0 | I18: 0 | J18: 0 | K18: 0 | L18: 0 | M18: 0
B19: Div.-Wachstum | D19: =D17/C17-1 ->  | E19: =E17/D17-1 -> 
B20: Auszahlungsquote | C20: =C17/C14 -> 
B21: Kurs-Gewinn-Verhältnis (Jahresschlusskurs)
B22: Dividenden-Rendite (Jahresschlusskurs)
B24: Wachstumraten | E24: Qualität (Robustheit) | K24: Finanzkennzahlen
C25: Ergebnis | I25: Ergebnis | O25: Ergebnis
B26: Umsatz-Wachstum 5J > 10J | C26: =IF(C27>C28,"Ja","Nein") ->  | E26: Anzahl Verlustjahre (bei EPS) | I26: =COUNTIF(D14:M14,"<0")*-1 -> 0 | K26: Eigenkapital (Shareholder Equity)
B27: Umsatz-Wachstum 5J p.a. | C27: =AVERAGE(I13:M13) ->  | E27: Anzahl Jahre mit steigendem Umsatz | I27: =SUM(D12:M12) -> 0 | K27: Current Assets
B28: Umsatz-Wachstum 10J p.a. | C28: =AVERAGE(D13:M13) ->  | E28: Anzahl Jahre mit steigendem EPS | I28: =SUM(C15:L15) -> 0 | K28: Current Liabilities
B29: EPS-Wachstum 5J > 10J | C29: =IF(C30>C31,"Ja","Nein") ->  | E29: Anzahl Jahre mit steigender Dividende | I29: =SUM(D18:M18) -> 0 | K29: Fremdkapital (Debt)
B30: EPS-Wachstum 5J p.a. | C30: =AVERAGE(I16:M16) ->  | E30: Qualität in % (maximal 30 Punkte) | I30: =SUM(I26:I29)/30 -> 0 | K30: Gesamtkapital (Total Assets)
B31: EPS-Wachstum 10J p.a. | C31: =AVERAGE(D16:M16) ->  | K31: Umsatz (Revenue)
B32: Dividenden-Wachstum 5J > 10J | C32: =IF(C33>C34,"Ja","Nein") ->  | E32: KGV | K32: Gewinn (Net income)
B33: Dividenden-Wachstum 5J p.a. | C33: =AVERAGE(I19:M19) ->  | I33: Ergebnis | K33: EBIT (Operating income)
B34: Dividenden-Wachstum 10J p.a. | C34: =AVERAGE(D19:M19) ->  | E34: KGV-Durchschnitt 10J | I34: =AVERAGE(D21:M21) ->  | K34: Eigenkapitalquote (equity ratio) | O34: =O26/O30 -> 
B35: Wachstumrate 10J p.a. | C35: =AVERAGE(C34,C31,C28) ->  | E35: Aktuelles KGV < KGV Mittelwert? | I35: =IF(H5<I34,"Ja,","Nein") ->  | K35: Eigenkapitalrentabilität (Return on Equity) | O35: =O32/O26 -> 
B36: Wachstumsrate 5J p.a. | C36: =AVERAGE(C33,C30,C27) ->  | K36: Gesamtkapitalrentabilität (Return on Assets) | O36: =O32/O30 -> 
E37: Dividendenrendite | K37: Current-Valuation | O37: =IF(O27>O28,"JA","NEIN") -> NEIN
I38: Ergebnis | K38: NCAV | O38: =IF(O27>O29,"JA","NEIN") -> NEIN
E39: 10-Jahres-Durchschnittsdividendenrendite | I39: =AVERAGE(D22:M22) ->  | K39: Verschuldungsgrad (Debt-to-equity) | O39: =O29/O26 -> 
E40: Aktuelle Div.Rendite > Mittelwert Dividende? | I40: =IF(H6>I39,"Ja","Nein") ->  | K40: EBIT-Marge (EBIT margin) | O40: =O33/O31 -> 

Sheet PG
B2: Analyse - Einzelunternehmen | Q2: Datum: 19.06.2015
G3: Aktuelle Daten:
B4: Procter & Gamble | G4: Kurs: | H4: 71.175
G5: KGV: | H5: 18.29
G6: Div.Rendite: | H6: 0.0323
G7: Währung: | H7: USD
B9: 10-Jahres-Übersicht | M9: akt. Jahr
B10: Jahr | C10: =D10-1 -> 2004 | D10: 2005 | E10: 2006 | F10: =G10-1 -> 2007 | G10: 2008 | H10: =I10-1 -> 2009 | I10: 2010 | J10: 2011 | K10: 2012 | L10: 2013 | M10: 2014
B11: Umsatz in Mrd. | C11: 51.41 | D11: 56.74 | E11: 68.22 | F11: 76.48 | G11: 83.5 | H11: 79.03 | I11: 78.94 | J11: 82.56 | K11: 83.68 | L11: 84.17 | M11: 83.06
B12: Umsatz erhöht? (1=ja) | C12: 0 | D12: =IF(D11>C11, 1, 0) -> 1 | E12: =IF(E11>D11, 1, 0) -> 1 | F12: 1 | G12: 1 | H12: 0 | I12: 0 | J12: 1 | K12: 1 | L12: 1 | M12: 0
B13: Umsatzwachstum | D13: =D11/C11-1 -> 0.1036763276 | E13: =E11/D11-1 -> 0.2023264011 | F13: 0.1210788625 | G13: 0.09178870293 | H13: -0.05353293413 | I13: -0.001138808048 | J13: 0.04585761338 | K13: 0.01356589147 | L13: 0.005855640535 | M13: -0.01318759653
B14: Ergebnis pro Aktie (EPS) | C14: 2.46 | D14: 2.83 | E14: 2.79 | F14: 3.22 | G14: 3.86 | H14: 4.49 | I14: 4.32 | J14: 4.12 | K14: 3.82 | L14: 4.04 | M14: 4.19
B15: EPS erhöht? (1=ja) | C15: 0 | D15: =IF(D14>C14, 1, 0) -> 1 | E15: 0 | F15: 1 | G15: 1 | H15: 1 | I15: 0 | J15: 0 | K15: 0 | L15: 1 | M15: 1
B16: EPS-Wachstum | D16: =D14/C14-1 -> 0.1504065041 | E16: =E14/D14-1 -> -0.01413427562 | F16: 0.1541218638 | G16: 0.198757764 | H16: 0.1632124352 | I16: -0.03786191537 | J16: -0.0462962963 | K16: -0.07281553398 | L16: 0.05759162304 | M16: 0.03712871287
B17: Dividende pro Aktie | C17: 0.93 | D17: 1.03 | E17: 1.15 | F17: 1.28 | G17: 1.45 | H17: 1.64 | I17: 1.8 | J17: 1.97 | K17: 2.14 | L17: 2.29 | M17: 2.45
B18: Dividende erhöht? (1=ja) | C18: 0 | D18: =IF(D17>C17, 1, 0) -> 1 | E18: =IF(E17>D17, 1, 0) -> 1 | F18: 1 | G18: 1 | H18: 1 | I18: 1 | J18: 1 | K18: 1 | L18: 1 | M18: 1
B19: Div.-Wachstum | D19: =D17/C17-1 -> 0.1075268817 | E19: =E17/D17-1 -> 0.1165048544 | F19: 0.1130434783 | G19: 0.1328125 | H19: 0.1310344828 | I19: 0.09756097561 | J19: 0.09444444444 | K19: 0.08629441624 | L19: 0.07009345794 | M19: 0.06986899563
B20: Auszahlungsquote | C20: =C17/C14 -> 0.3780487805 | D20: 0.3639575972 | E20: 0.4121863799 | F20: 0.397515528 | G20: 0.3756476684 | H20: 0.3652561247 | I20: 0.4166666667 | J20: 0.4781553398 | K20: 0.5602094241 | L20: 0.5668316832 | M20: 0.584725537
B21: Kurs-Gewinn-Verhältnis (Jahresschlusskurs) | C21: 21.27 | D21: 18.88 | E21: 20.35 | F21: 18.53 | G21: 15.27 | H21: 11.09 | I21: 13.39 | J21: 14.9 | K21: 15.65 | L21: 18.66
B22: Dividenden-Rendite (Jahresschlusskurs) | C22: 0.0172 | D22: 0.0186 | E22: 0.0207 | F22: 0.0209 | G22: 0.0238 | H22: 0.0321 | I22: 0.03 | J22: 0.031 | K22: 0.0349 | L22: 0.0297
B24: Wachstumraten | E24: Qualität (Robustheit) | K24: Finanzkennzahlen | Q24: Bewertung
C25: Ergebnis | I25: Ergebnis | O25: Ergebnis | T25: Ergebnis
B26: Umsatz-Wachstum 5J > 10J | C26: =IF(C27>C28,"Ja","Nein") -> Nein | E26: Anzahl Verlustjahre (bei EPS) | I26: =COUNTIF(D14:M14,"<0")*-1 -> 0 | K26: Eigenkapital (Shareholder Equity) | O26: 69976 | Q26: 200 Tage Linie | T26: 74.7
B27: Umsatz-Wachstum 5J p.a. | C27: =AVERAGE(I13:M13) -> 0.01019054816 | E27: Anzahl Jahre mit steigendem Umsatz | I27: =SUM(D12:M12) -> 7 | K27: Current Assets | O27: 31617 | Q27: Differenz Kurz 200 Tage | T27: =H4/T26-1 -> -0.04718875502
B28: Umsatz-Wachstum 10J p.a. | C28: =AVERAGE(D13:M13) -> 0.05162901008 | E28: Anzahl Jahre mit steigendem EPS | I28: =SUM(C15:L15) -> 5 | K28: Current Liabilities | O28: 33726
B29: EPS-Wachstum 5J > 10J | C29: =IF(C30>C31,"Ja","Nein") -> Nein | E29: Anzahl Jahre mit steigender Dividende | I29: =SUM(D18:M18) -> 10 | K29: Fremdkapital (Debt) | O29: 74290
B30: EPS-Wachstum 5J p.a. | C30: =AVERAGE(I16:M16) -> -0.01245068195 | E30: Qualität in % (maximal 30 Punkte) | I30: =SUM(I26:I29)/30 -> 0.7333333333 | K30: Gesamtkapital (Total Assets) | O30: 144266
B31: EPS-Wachstum 10J p.a. | C31: =AVERAGE(D16:M16) -> 0.05901108817 | K31: Umsatz (Revenue) | O31: 83062
B32: Dividenden-Wachstum 5J > 10J | C32: =IF(C33>C34,"Ja","Nein") -> Nein | E32: KGV | K32: Gewinn (Net income) | O32: 11643
B33: Dividenden-Wachstum 5J p.a. | C33: =AVERAGE(I19:M19) -> 0.08365245797 | I33: Ergebnis | K33: EBIT (Operating income) | O33: 15288
B34: Dividenden-Wachstum 10J p.a. | C34: =AVERAGE(D19:M19) -> 0.1019184487 | E34: KGV-Durchschnitt 10J | I34: =AVERAGE(C21:M21) -> 16.799 | K34: Eigenkapitalquote (equity ratio) | O34: =O26/O30 -> 0.4850484522
B35: Wachstumrate 10J p.a. | C35: =AVERAGE(C34,C31,C28) -> 0.07085284898 | E35: Aktuelles KGV < KGV Mittelwert? | I35: =IF(H5<I34,"Ja,","Nein") -> Nein | K35: Eigenkapitalrentabilität (Return on Equity) | O35: =O32/O26 -> 0.1663856179
B36: Wachstumsrate 5J p.a. | C36: =AVERAGE(C33,C30,C27) -> 0.02713077473 | K36: Gesamtkapitalrentabilität (Return on Assets) | O36: =O32/O30 -> 0.08070508644
E37: Dividendenrendite | K37: Current-Valuation | O37: =IF(O27>O28,"JA","NEIN") -> NEIN
I38: Ergebnis | K38: NCAV | O38: =IF(O27>O29,"JA","NEIN") -> NEIN
E39: 10-Jahres-Durchschnittsdividendenrendite | I39: =AVERAGE(D22:M22) -> 0.02685555556 | K39: Verschuldungsgrad (Debt-to-equity) | O39: =O29/O26 -> 1.061649708
E40: Aktuelle Div.Rendite > Mittelwert Dividende? | I40: =IF(H6>I39,"Ja","Nein") -> Ja | K40: EBIT-Marge (EBIT margin) | O40: =O33/O31 -> 0.184055284

Sheet PM
B2: Analyse - Einzelunternehmen | Q2: Datum:
G3: Aktuelle Daten:
B4: Philip Morris | G4: Kurs:
G5: KGV:
G6: Div.Rendite:
G7: Währung: | H7: Währung
B9: 10-Jahres-Übersicht | M9: akt. Jahr
B10: Jahr | C10: =D10-1 -> 2004 | D10: 2005 | E10: 2006 | F10: =G10-1 -> 2007 | G10: 2008 | H10: =I10-1 -> 2009 | I10: 2010 | J10: 2011 | K10: 2012 | L10: 2013 | M10: 2014
B11: Umsatz in Mrd.
B12: Umsatz erhöht? (1=ja) | C12: 0 | D12: =IF(D11>C11, 1, 0) -> 0 | E12: =IF(E11>D11, 1, 0) -> 0 | F12: 0 | G12: 0 | H12: 0 | I12: 0 | J12: 0 | K12: 0 | L12: 0 | M12: 0
B13: Umsatzwachstum | D13: =D11/C11-1 ->  | E13: =E11/D11-1 -> 
B14: Ergebnis pro Aktie (EPS)
B15: EPS erhöht? (1=ja) | C15: 0 | D15: =IF(D14>C14, 1, 0) -> 0 | E15: 0 | F15: 0 | G15: 0 | H15: 0 | I15: 0 | J15: 0 | K15: 0 | L15: 0 | M15: 0
B16: EPS-Wachstum | D16: =D14/C14-1 ->  | E16: =E14/D14-1 -> 
B17: Dividende pro Aktie
B18: Dividende erhöht? (1=ja) | C18: 0 | D18: =IF(D17>C17, 1, 0) -> 0 | E18: =IF(E17>D17, 1, 0) -> 0 | F18: 0 | G18: 0 | H18: 0 | I18: 0 | J18: 0 | K18: 0 | L18: 0 | M18: 0
B19: Div.-Wachstum | D19: =D17/C17-1 ->  | E19: =E17/D17-1 -> 
B20: Auszahlungsquote | C20: =C17/C14 -> 
B21: Kurs-Gewinn-Verhältnis (Jahresschlusskurs)
B22: Dividenden-Rendite (Jahresschlusskurs)
B24: Wachstumraten | E24: Qualität (Robustheit) | K24: Finanzkennzahlen
C25: Ergebnis | I25: Ergebnis | O25: Ergebnis
B26: Umsatz-Wachstum 5J > 10J | C26: =IF(C27>C28,"Ja","Nein") ->  | E26: Anzahl Verlustjahre (bei EPS) | I26: =COUNTIF(D14:M14,"<0")*-1 -> 0 | K26: Eigenkapital (Shareholder Equity)
B27: Umsatz-Wachstum 5J p.a. | C27: =AVERAGE(I13:M13) ->  | E27: Anzahl Jahre mit steigendem Umsatz | I27: =SUM(D12:M12) -> 0 | K27: Current Assets
B28: Umsatz-Wachstum 10J p.a. | C28: =AVERAGE(D13:M13) ->  | E28: Anzahl Jahre mit steigendem EPS | I28: =SUM(C15:L15) -> 0 | K28: Current Liabilities
B29: EPS-Wachstum 5J > 10J | C29: =IF(C30>C31,"Ja","Nein") ->  | E29: Anzahl Jahre mit steigender Dividende | I29: =SUM(D18:M18) -> 0 | K29: Fremdkapital (Debt)
B30: EPS-Wachstum 5J p.a. | C30: =AVERAGE(I16:M16) ->  | E30: Qualität in % (maximal 30 Punkte) | I30: =SUM(I26:I29)/30 -> 0 | K30: Gesamtkapital (Total Assets)
B31: EPS-Wachstum 10J p.a. | C31: =AVERAGE(D16:M16) ->  | K31: Umsatz (Revenue)
B32: Dividenden-Wachstum 5J > 10J | C32: =IF(C33>C34,"Ja","Nein") ->  | E32: KGV | K32: Gewinn (Net income)
B33: Dividenden-Wachstum 5J p.a. | C33: =AVERAGE(I19:M19) ->  | I33: Ergebnis | K33: EBIT (Operating income)
B34: Dividenden-Wachstum 10J p.a. | C34: =AVERAGE(D19:M19) ->  | E34: KGV-Durchschnitt 10J | I34: =AVERAGE(D21:M21) ->  | K34: Eigenkapitalquote (equity ratio) | O34: =O26/O30 -> 
B35: Wachstumrate 10J p.a. | C35: =AVERAGE(C34,C31,C28) ->  | E35: Aktuelles KGV < KGV Mittelwert? | I35: =IF(H5<I34,"Ja,","Nein") ->  | K35: Eigenkapitalrentabilität (Return on Equity) | O35: =O32/O26 -> 
B36: Wachstumsrate 5J p.a. | C36: =AVERAGE(C33,C30,C27) ->  | K36: Gesamtkapitalrentabilität (Return on Assets) | O36: =O32/O30 -> 
E37: Dividendenrendite | K37: Current-Valuation | O37: =IF(O27>O28,"JA","NEIN") -> NEIN
I38: Ergebnis | K38: NCAV | O38: =IF(O27>O29,"JA","NEIN") -> NEIN
E39: 10-Jahres-Durchschnittsdividendenrendite | I39: =AVERAGE(D22:M22) ->  | K39: Verschuldungsgrad (Debt-to-equity) | O39: =O29/O26 -> 
E40: Aktuelle Div.Rendite > Mittelwert Dividende? | I40: =IF(H6>I39,"Ja","Nein") ->  | K40: EBIT-Marge (EBIT margin) | O40: =O33/O31 -> 

Sheet RB
B2: Analyse - Einzelunternehmen | Q2: Datum:
G3: Aktuelle Daten:
B4: Reckitt Benckiser | G4: Kurs:
G5: KGV:
G6: Div.Rendite:
G7: Währung: | H7: Währung
B9: 10-Jahres-Übersicht | M9: akt. Jahr
B10: Jahr | C10: =D10-1 -> 2004 | D10: 2005 | E10: 2006 | F10: =G10-1 -> 2007 | G10: 2008 | H10: =I10-1 -> 2009 | I10: 2010 | J10: 2011 | K10: 2012 | L10: 2013 | M10: 2014
B11: Umsatz in Mrd.
B12: Umsatz erhöht? (1=ja) | C12: 0 | D12: =IF(D11>C11, 1, 0) -> 0 | E12: =IF(E11>D11, 1, 0) -> 0 | F12: 0 | G12: 0 | H12: 0 | I12: 0 | J12: 0 | K12: 0 | L12: 0 | M12: 0
B13: Umsatzwachstum | D13: =D11/C11-1 ->  | E13: =E11/D11-1 -> 
B14: Ergebnis pro Aktie (EPS)
B15: EPS erhöht? (1=ja) | C15: 0 | D15: =IF(D14>C14, 1, 0) -> 0 | E15: 0 | F15: 0 | G15: 0 | H15: 0 | I15: 0 | J15: 0 | K15: 0 | L15: 0 | M15: 0
B16: EPS-Wachstum | D16: =D14/C14-1 ->  | E16: =E14/D14-1 -> 
B17: Dividende pro Aktie
B18: Dividende erhöht? (1=ja) | C18: 0 | D18: =IF(D17>C17, 1, 0) -> 0 | E18: =IF(E17>D17, 1, 0) -> 0 | F18: 0 | G18: 0 | H18: 0 | I18: 0 | J18: 0 | K18: 0 | L18: 0 | M18: 0
B19: Div.-Wachstum | D19: =D17/C17-1 ->  | E19: =E17/D17-1 -> 
B20: Auszahlungsquote | C20: =C17/C14 -> 
B21: Kurs-Gewinn-Verhältnis (Jahresschlusskurs)
B22: Dividenden-Rendite (Jahresschlusskurs)
B24: Wachstumraten | E24: Qualität (Robustheit) | K24: Finanzkennzahlen
C25: Ergebnis | I25: Ergebnis | O25: Ergebnis
B26: Umsatz-Wachstum 5J > 10J | C26: =IF(C27>C28,"Ja","Nein") ->  | E26: Anzahl Verlustjahre (bei EPS) | I26: =COUNTIF(D14:M14,"<0")*-1 -> 0 | K26: Eigenkapital (Shareholder Equity)
B27: Umsatz-Wachstum 5J p.a. | C27: =AVERAGE(I13:M13) ->  | E27: Anzahl Jahre mit steigendem Umsatz | I27: =SUM(D12:M12) -> 0 | K27: Current Assets
B28: Umsatz-Wachstum 10J p.a. | C28: =AVERAGE(D13:M13) ->  | E28: Anzahl Jahre mit steigendem EPS | I28: =SUM(C15:L15) -> 0 | K28: Current Liabilities
B29: EPS-Wachstum 5J > 10J | C29: =IF(C30>C31,"Ja","Nein") ->  | E29: Anzahl Jahre mit steigender Dividende | I29: =SUM(D18:M18) -> 0 | K29: Fremdkapital (Debt)
B30: EPS-Wachstum 5J p.a. | C30: =AVERAGE(I16:M16) ->  | E30: Qualität in % (maximal 30 Punkte) | I30: =SUM(I26:I29)/30 -> 0 | K30: Gesamtkapital (Total Assets)
B31: EPS-Wachstum 10J p.a. | C31: =AVERAGE(D16:M16) ->  | K31: Umsatz (Revenue)
B32: Dividenden-Wachstum 5J > 10J | C32: =IF(C33>C34,"Ja","Nein") ->  | E32: KGV | K32: Gewinn (Net income)
B33: Dividenden-Wachstum 5J p.a. | C33: =AVERAGE(I19:M19) ->  | I33: Ergebnis | K33: EBIT (Operating income)
B34: Dividenden-Wachstum 10J p.a. | C34: =AVERAGE(D19:M19) ->  | E34: KGV-Durchschnitt 10J | I34: =AVERAGE(D21:M21) ->  | K34: Eigenkapitalquote (equity ratio) | O34: =O26/O30 -> 
B35: Wachstumrate 10J p.a. | C35: =AVERAGE(C34,C31,C28) ->  | E35: Aktuelles KGV < KGV Mittelwert? | I35: =IF(H5<I34,"Ja,","Nein") ->  | K35: Eigenkapitalrentabilität (Return on Equity) | O35: =O32/O26 -> 
B36: Wachstumsrate 5J p.a. | C36: =AVERAGE(C33,C30,C27) ->  | K36: Gesamtkapitalrentabilität (Return on Assets) | O36: =O32/O30 -> 
E37: Dividendenrendite | K37: Current-Valuation | O37: =IF(O27>O28,"JA","NEIN") -> NEIN
I38: Ergebnis | K38: NCAV | O38: =IF(O27>O29,"JA","NEIN") -> NEIN
E39: 10-Jahres-Durchschnittsdividendenrendite | I39: =AVERAGE(D22:M22) ->  | K39: Verschuldungsgrad (Debt-to-equity) | O39: =O29/O26 -> 
E40: Aktuelle Div.Rendite > Mittelwert Dividende? | I40: =IF(H6>I39,"Ja","Nein") ->  | K40: EBIT-Marge (EBIT margin) | O40: =O33/O31 -> 

Sheet RDS
B2: Analyse - Einzelunternehmen | Q2: Datum: 29.03.2015
G3: Aktuelle Daten:
B4: Royal Dutch Shell | G4: Kurs: | H4: 27.791
G5: KGV: | H5: 8.82
G6: Div.Rendite: | H6: 0.067
G7: Währung: | H7: EURO
B9: 10-Jahres-Übersicht | M9: akt. Jahr
B10: Jahr | C10: =D10-1 -> 2004 | D10: 2005 | E10: 2006 | F10: =G10-1 -> 2007 | G10: 2008 | H10: =I10-1 -> 2009 | I10: 2010 | J10: 2011 | K10: 2012 | L10: 2013 | M10: 2014
B11: Umsatz in Mrd. | D11: 306.73 | E11: 318.85 | F11: 355.78 | G11: 458.36 | H11: 280.15 | I11: 378.15 | J11: 484.49 | K11: 481.7 | L11: 459.6 | M11: 431.344
B12: Umsatz erhöht? (1=ja) | C12: 0 | D12: =IF(D11>C11, 1, 0) -> 1 | E12: =IF(E11>D11, 1, 0) -> 1 | F12: 1 | G12: 1 | H12: 0 | I12: 1 | J12: 1 | K12: 0 | L12: 0 | M12: 0
B13: Umsatzwachstum | D13: =D11/C11-1 ->  | E13: =E11/D11-1 -> 0.03951357872 | F13: 0.1158224871 | G13: 0.2883242453 | H13: -0.3887991971 | I13: 0.3498126004 | J13: 0.2812111596 | K13: -0.005758632789 | L13: -0.04587917791 | M13: -0.06147954743
B14: Ergebnis pro Aktie (EPS) | D14: 3.79 | E14: 3.97 | F14: 5 | G14: 4.27 | H14: 2.04 | I14: 3.28 | J14: 4.98 | K14: 4.25 | L14: 2.6 | M14: 2.36
B15: EPS erhöht? (1=ja) | C15: 0 | D15: =IF(D14>C14, 1, 0) -> 1 | E15: 1 | F15: 1 | G15: 0 | H15: 0 | I15: 1 | J15: 1 | K15: 0 | L15: 0 | M15: 0
B16: EPS-Wachstum | D16: =D14/C14-1 ->  | E16: =E14/D14-1 -> 0.04749340369 | F16: 0.2594458438 | G16: -0.146 | H16: -0.5222482436 | I16: 0.6078431373 | J16: 0.5182926829 | K16: -0.1465863454 | L16: -0.3882352941 | M16: -0.09230769231
B17: Dividende pro Aktie | D17: 1.13 | E17: 1.27 | F17: 1.44 | G17: 1.6 | H17: 1.66 | I17: 1.68 | J17: 1.68 | K17: 1.72 | L17: 1.8 | M17: 1.53
B18: Dividende erhöht? (1=ja) | C18: 0 | D18: =IF(D17>C17, 1, 0) -> 1 | E18: =IF(E17>D17, 1, 0) -> 1 | F18: 1 | G18: 1 | H18: 1 | I18: 1 | J18: 0 | K18: 1 | L18: 1 | M18: 0
B19: Div.-Wachstum | D19: =D17/C17-1 ->  | E19: =E17/D17-1 -> 0.1238938053 | F19: 0.1338582677 | G19: 0.1111111111 | H19: 0.0375 | I19: 0.01204819277 | J19: 0 | K19: 0.02380952381 | L19: 0.04651162791 | M19: -0.15
B20: Auszahlungsquote | C20: =C17/C14 ->  | D20: 0.2981530343 | E20: 0.3198992443 | F20: 0.288 | G20: 0.37470726 | H20: 0.8137254902 | I20: 0.512195122 | J20: 0.3373493976 | K20: 0.4047058824 | L20: 0.6923076923 | M20: 0.6483050847
B21: Kurs-Gewinn-Verhältnis (Jahresschlusskurs) | D21: 10.05 | E21: 10.58 | F21: 9.24 | G21: 5.86 | H21: 13.37 | I21: 9.79 | J21: 7.33 | K21: 8.36 | L21: 13.76 | M21: 14.7
B22: Dividenden-Rendite (Jahresschlusskurs) | D22: 0.0297 | E22: 0.0323 | F22: 0.034 | G22: 0.0636 | H22: 0.0608 | I22: 0.0525 | J22: 0.0461 | K22: 0.0488 | L22: 0.0503 | M22: 0.0541
